Workbook

Sheet Check List
B2: Check List Calculo Consolidado Anual
B4: 1 | C4: Borrar
B5: 1.1 | C5: En caso de necesitar borrar datos de un mes en específico, seleccionar mes y año y ejecutar la macro borrar mes
B6: 1.2 | C6: En caso de necesitar borrar datos de todo el año, seleccionar año y ejecutar la macro borrar año
B8: 2 | C8: Traspaso de datos
B9: 2.1 | C9: Revisar que las tablas de las hojas de cáclulo verde tengas los mismos datos que los de la tabla dinámica ubicada en la columna B de la hoja Unidades
B10: 2.2 | C10: En caso de necesitar traspasar datos de un mes en específico, seleccionar mes y año y ejecutar la macro traspasar mes
B11: 2.3 | C11: En caso de necesitar traspasar datos de todo el año, seleccionar año y ejecutar la macro traspasar año
B13: 3 | C13: Calcular Impuesto por central
B14: 3.1 | C14: Una vez cargados todos los datos del año proceder la macro "Impuesto" caclculo el impuesto por unidad generadora.

Sheet Macros
B4: 1. Datos | F4: 2. Borrar datos anteriores | J4: 3. Traspasar datos desde planillas mensuales | N4: 3. Calcular Impuesto por central
B6: Mes: | C6: 02_Febrero
B7: Año: | C7: 2020

Sheet Lista completa
B2: Listados de Fuentes de Generación
B4: Empresa | C4: Rut | D4: Nombre Establecimiento | E4: ID RECT (VU) | F4: Unidad Generadora | G4: Fuente | H4: N° registro de emisiones de Fuentes Fijas (F138) | I4: Nombre unidad Peajes | J4: Nombre central Peajes | K4: Nombre central TCV | L4: Nombre unidad TCV | M4: Nombre configuración TCV | N4: Combustible | O4: Barra Generación CMg | P4: Autoproductor | Q4: Excedente
B5: AES_GENER | C5: 94.272.000-9 | D5: CENTRAL TERMOELÉCTRICA NUEVA TOCOPILLA | E5: 5441369 | F5: TERMOELÉCTRICA NUEVA TOCOPILLA (NTO1) | G5: UGE NT-01 | H5: GE000005-5 | I5: NTO1 | J5: TERMOELÉCTRICA NORGENER | K5: Norgener | L5: NTO1 | M5: NORGENER-NTO1_CAR | N5: Carbón | O5: NORGENER______220 | P5: No
B6: AES_GENER | C6: 94.272.000-9 | D6: CENTRAL TERMOELÉCTRICA NUEVA TOCOPILLA | E6: 5441369 | F6: TERMOELÉCTRICA NUEVA TOCOPILLA (NTO2) | G6: UGE NT-02 | H6: GE000006-3 | I6: NTO2 | J6: TERMOELÉCTRICA NORGENER | K6: Norgener | L6: NTO2 | M6: NORGENER-NTO2_CAR | N6: Carbón | O6: NORGENER______220 | P6: No
B7: GMETROPOLITANA | C7: 76.538.731-0 | D7: CENTRAL LOS VIENTOS | E7: 386023 | F7: LOS VIENTOS TG | G7: UGE LOS VIENTOS TG | H7: PC000023-4 | I7: LOS VIENTOS 1 | J7: LOS VIENTOS | K7: Los Vientos | L7: Los Vientos | M7: LOSVIENTOS_DIESEL | N7: Diésel | O7: L.VEGAS_______110 | P7: No
B8: GMETROPOLITANA | C8: 76.538.731-0 | D8: CENTRAL LOS VIENTOS | E8: 386023 | F8: LOS VIENTOS TG | G8: UGE LOS VIENTOS TG | H8: PC000023-4 | I8: LOS VIENTOS 1 | J8: LOS VIENTOS | K8: Los Vientos | L8: Los Vientos | M8: LOSVIENTOS_DIESEL_CNAVIA | N8: Diésel | O8: L.VEGAS2______110 | P8: No
B9: AES_GENER | C9: 94.272.000-9 | D9: VENTANA IV (EX CENTRAL CAMPICHE) | E9: 4917485 | F9: CAMPICHE (VENTANAS 4) | G9: UGE Ventanas 4 | H9: GE000124-8 | I9: CAMPICHE | J9: CAMPICHE | K9: Termoeléctrica Ventanas | L9: Campiche | M9: CAMPICHE_CAR | N9: Carbón | O9: VENTANAS______220 | P9: No
B10: AES_GENER | C10: 94.272.000-9 | D10: CENTRAL TERMOELECTRICA NUEVA VENTANAS UNIDAD 3 | E10: 309729 | F10: NUEVA VENTANAS (VENTANAS 3) | G10: UGE Ventanas 3 | H10: GE000072-1 | I10: NUEVA VENTANAS | J10: NUEVA VENTANAS | K10: Termoeléctrica Ventanas | L10: Nueva Ventanas | M10: NUEVAVENTANAS_CAR | N10: Carbón | O10: VENTANAS______220 | P10: No
B11: AES_GENER | C11: 94.272.000-9 | D11: CENTRAL TERMOELECTRICA VENTANAS UNIDADES 1 Y 2 | E11: 85823 | F11: VENTANAS U1 | G11: UGE Ventanas U1 | H11: GE000035-7 | I11: VENTANAS 1 | J11: VENTANAS 1 | K11: Termoeléctrica Ventanas | L11: Ventanas 1 | M11: VENTANAS-1_CAR | N11: Carbón | O11: VENTANAS______110 | P11: No
B12: AES_GENER | C12: 94.272.000-9 | D12: CENTRAL TERMOELECTRICA VENTANAS UNIDADES 1 Y 2 | E12: 85823 | F12: VENTANAS U2 | G12: UGE Ventanas U2 | H12: GE000036-5 | I12: VENTANAS 2 | J12: VENTANAS 2 | K12: Termoeléctrica Ventanas | L12: Ventanas 2 | M12: VENTANAS-2_CAR | N12: Carbón | O12: VENTANAS______110 | P12: No
B13: AES_GENER | C13: 94.272.000-9 | D13: CENTRAL TERMOELECTRICA LAGUNA VERDE | E13: 85824 | F13: LAGUNA VERDE TG | G13: UGE Laguna Verde TG | H13: PC000603-8 | I13: LAGUNA VERDE TG | J13: LAGUNA VERDE | K13: Laguna Verde | L13: Laguna Verde TG | M13: LAGVERDE-TG_DIESEL | N13: Diésel | O13: L.VERDE_______110 | P13: No
B14: AES_GENER | C14: 94.272.000-9 | D14: CENTRAL TERMOELECTRICA LAGUNA VERDE | E14: 85824 | F14: LAGUNA VERDE TV Brown Boveri I | G14: UGE Laguna VerdeTV Brown Boveri | H14: GE000039-k | I14: LAGUNA VERDE TV1 | J14: LAGUNA VERDE | K14: Laguna Verde | L14: Laguna Verde TV | M14: LAGVERDE-TV_DIESEL | N14: Diésel | O14: L.VERDE_______110 | P14: No
B15: AES_GENER | C15: 94.272.000-9 | D15: CENTRAL TERMOELECTRICA LAGUNA VERDE | E15: 85824 | F15: LAGUNA VERDE TV Brown Boveri II | G15: UGE Laguna VerdeTV Brown Boveri | H15: GE000040-3 | I15: LAGUNA VERDE TV2 | J15: LAGUNA VERDE | K15: Laguna Verde | L15: Laguna Verde TV | M15: LAGVERDE-TV_DIESEL | N15: Diésel | O15: L.VERDE_______110 | P15: No
B16: AES_GENER | C16: 94.272.000-9 | D16: CENTRAL TERMOELECTRICA LAGUNA VERDE | E16: 85824 | F16: LAGUNA VERDE TV AEG I | G16: UGE Laguna Verde TV AEG | H16: GE000037-3 | I16: LAGUNA VERDE TV1 | J16: LAGUNA VERDE | K16: Laguna Verde | L16: Laguna Verde TV | M16: LAGVERDE-TV_DIESEL | N16: Diésel | O16: L.VERDE_______110 | P16: No
B17: AES_GENER | C17: 94.272.000-9 | D17: CENTRAL TERMOELECTRICA LAGUNA VERDE | E17: 85824 | F17: LAGUNA VERDE TV AEG II | G17: UGE Laguna Verde TV AEG | H17: GE000038-1 | I17: LAGUNA VERDE TV2 | J17: LAGUNA VERDE | K17: Laguna Verde | L17: Laguna Verde TV | M17: LAGVERDE-TV_DIESEL | N17: Diésel | O17: L.VERDE_______110 | P17: No
B18: AES_GENER | C18: 94.272.000-9 | D18: CENTRAL TERMOELECTRICA LAJA | E18: 386458 | F18: LAJA EVE | G18: Caldera | H18: GE000116-7 | I18: LAJA 1 | J18: LAJA | K18: Laja | L18: Laja | M18: LAJAEVE-1_COGEN | N18: Biomasa | O18: CHARRUA_______066 | P18: Sí
B19: AES_GENER | C19: 94.272.000-9 | D19: CENTRAL TERMOELECTRICA LAJA | E19: 386458 | F19: LAJA EVE | G19: Caldera | H19: GE000116-7 | I19: LAJA 2 | J19: LAJA | K19: Laja | L19: Laja | M19: LAJAEVE-2_COGEN | N19: Biomasa | O19: CHARRUA_______066 | P19: Sí
B20: GMETROPOLITANA | C20: 76.538.731-0 | D20: SANTA LIDIA | E20: 3188001 | F20: SANTA LIDIA | G20: UGE SANTA LIDIA | H20: PC000846-4 | I20: SANTA LIDIA 1 | J20: SANTA LIDIA | K20: Santa Lidia | L20: Santa Lidia | M20: SANTALIDIA_DIESEL | N20: Diésel | O20: CHARRUA_______220 | P20: No
B21: GMETROPOLITANA | C21: 76.538.731-0 | D21: SOCIEDAD ELÉCTRICA SANTIAGO S.A. | E21: 9778 | F21: NUEVA RENCA | G21: UGE Nueva Renca | H21: IN001115-4 | I21: NUEVA RENCA | J21: NUEVA RENCA | K21: Nueva Renca | L21: Nueva Renca | M21: NUEVARENCA_TG1+TV1+FA1_GNL_INFLEX | N21: GNL | O21: RENCA_________110 | P21: No
B22: GMETROPOLITANA | C22: 76.538.731-0 | D22: SOCIEDAD ELÉCTRICA SANTIAGO S.A. | E22: 9778 | F22: NUEVA RENCA | G22: UGE Nueva Renca | H22: IN001115-4 | I22: NUEVA RENCA | J22: NUEVA RENCA | K22: Nueva Renca | L22: Nueva Renca | M22: NUEVARENCA_TG1+TV1_GNL_INFLEX | N22: GNL | O22: RENCA_________110 | P22: No
B23: GMETROPOLITANA | C23: 76.538.731-0 | D23: SOCIEDAD ELÉCTRICA SANTIAGO S.A. | E23: 9778 | F23: NUEVA RENCA | G23: UGE Nueva Renca | H23: IN001115-4 | I23: NUEVA RENCA | J23: NUEVA RENCA | K23: Nueva Renca | L23: Nueva Renca | M23: NUEVARENCA_TG1+TV1_GNL_B | N23: GNL | O23: RENCA_________110 | P23: No
B24: GMETROPOLITANA | C24: 76.538.731-0 | D24: SOCIEDAD ELÉCTRICA SANTIAGO S.A. | E24: 9778 | F24: NUEVA RENCA | G24: UGE Nueva Renca | H24: IN001115-4 | I24: NUEVA RENCA | J24: NUEVA RENCA | K24: Nueva Renca | L24: Nueva Renca | M24: NUEVARENCA_TG1+TV1_GNL_E | N24: GNL | O24: RENCA_________110 | P24: No
B25: GMETROPOLITANA | C25: 76.538.731-0 | D25: SOCIEDAD ELÉCTRICA SANTIAGO S.A. | E25: 9778 | F25: NUEVA RENCA | G25: UGE Nueva Renca | H25: IN001115-4 | I25: NUEVA RENCA | J25: NUEVA RENCA | K25: Nueva Renca | L25: Nueva Renca | M25: NUEVARENCA_TG1+TV1_GNL_C | N25: GNL | O25: RENCA_________110 | P25: No
B26: GMETROPOLITANA | C26: 76.538.731-0 | D26: SOCIEDAD ELÉCTRICA SANTIAGO S.A. | E26: 9778 | F26: NUEVA RENCA | G26: UGE Nueva Renca | H26: IN001115-4 | I26: NUEVA RENCA | J26: NUEVA RENCA | K26: Nueva Renca | L26: Nueva Renca | M26: NUEVARENCA_TG1+TV1_GNL_D | N26: GNL | O26: RENCA_________110 | P26: No
B27: GMETROPOLITANA | C27: 76.538.731-0 | D27: SOCIEDAD ELÉCTRICA SANTIAGO S.A. | E27: 9778 | F27: NUEVA RENCA | G27: UGE Nueva Renca | H27: IN001115-4 | I27: NUEVA RENCA | J27: NUEVA RENCA | K27: Nueva Renca | L27: Nueva Renca | M27: NUEVARENCA_TG1+TV1_GNL_A | N27: GNL | O27: RENCA_________110 | P27: No
B28: GMETROPOLITANA | C28: 76.538.731-0 | D28: SOCIEDAD ELÉCTRICA SANTIAGO S.A. | E28: 9778 | F28: NUEVA RENCA | G28: UGE Nueva Renca | H28: IN001115-4 | I28: NUEVA RENCA | J28: NUEVA RENCA | K28: Nueva Renca | L28: Nueva Renca | M28: NUEVARENCA_TG1+TV1+FA1_GNL_A | N28: GNL | O28: RENCA_________110 | P28: No
B29: GMETROPOLITANA | C29: 76.538.731-0 | D29: SOCIEDAD ELÉCTRICA SANTIAGO S.A. | E29: 9778 | F29: NUEVA RENCA | G29: UGE Nueva Renca | H29: IN001115-4 | I29: NUEVA RENCA | J29: NUEVA RENCA | K29: Nueva Renca | L29: Nueva Renca | M29: NUEVARENCA_TG1+TV1_DIESEL | N29: Diésel | O29: RENCA_________110 | P29: No
B30: GMETROPOLITANA | C30: 76.538.731-0 | D30: SOCIEDAD ELÉCTRICA SANTIAGO S.A. | E30: 9778 | F30: NUEVA RENCA | G30: UGE Nueva Renca | H30: IN001115-4 | I30: NUEVA RENCA | J30: NUEVA RENCA | K30: Nueva Renca | L30: Nueva Renca | M30: NUEVARENCA_TG1+TV1+FA1_GLP | N30: GLP | O30: RENCA_________110 | P30: No
B31: GMETROPOLITANA | C31: 76.538.731-0 | D31: SOCIEDAD ELÉCTRICA SANTIAGO S.A. | E31: 9778 | F31: NUEVA RENCA | G31: UGE Nueva Renca | H31: IN001115-4 | I31: NUEVA RENCA | J31: NUEVA RENCA | K31: Nueva Renca | L31: Nueva Renca | M31: NUEVARENCA_TG1+TV1+FA1_GNL_P | N31: GNL | O31: RENCA_________110 | P31: No
B32: GMETROPOLITANA | C32: 76.538.731-0 | D32: SOCIEDAD ELÉCTRICA SANTIAGO S.A. | E32: 9778 | F32: NUEVA RENCA | G32: UGE Nueva Renca | H32: IN001115-4 | I32: NUEVA RENCA | J32: NUEVA RENCA | K32: Nueva Renca | L32: Nueva Renca | M32: NUEVARENCA_TG1+TV1_GNL_P | N32: GN | O32: RENCA_________110 | P32: No
B33: GMETROPOLITANA | C33: 76.538.731-0 | D33: SOCIEDAD ELÉCTRICA SANTIAGO S.A. | E33: 9778 | F33: NUEVA RENCA | G33: UGE Nueva Renca | H33: IN001115-4 | I33: NUEVA RENCA | J33: NUEVA RENCA | K33: Nueva Renca | L33: Nueva Renca | M33: NUEVARENCA_TG1+TV1_GN_A | N33: GN | O33: RENCA_________110 | P33: No
B34: GMETROPOLITANA | C34: 76.538.731-0 | D34: SOCIEDAD ELÉCTRICA SANTIAGO S.A. | E34: 9778 | F34: NUEVA RENCA | G34: UGE Nueva Renca | H34: IN001115-4 | I34: NUEVA RENCA | J34: NUEVA RENCA | K34: Nueva Renca | L34: Nueva Renca | M34: NUEVARENCA_TG1+TV1+FA1_GN_A | N34: GNL | O34: RENCA_________110 | P34: No
B35: GMETROPOLITANA | C35: 76.538.731-0 | D35: SOCIEDAD ELÉCTRICA SANTIAGO S.A. | E35: 9778 | F35: RENCA U1 | G35: UGE RENCA U1 | H35: IN001131-6 | I35: RENCA 1 | J35: RENCA | K35: Renca | L35: Renca U1 | M35: RENCA-1_DIESEL | N35: Diésel | O35: RENCA_________110 | P35: No
B36: GMETROPOLITANA | C36: 76.538.731-0 | D36: SOCIEDAD ELÉCTRICA SANTIAGO S.A. | E36: 9778 | F36: RENCA U2 | G36: UGE RENCA U2 | H36: IN001132-4 | I36: RENCA 2 | J36: RENCA | K36: Renca | L36: Renca U2 | M36: RENCA-2_DIESEL | N36: Diésel | O36: RENCA_________110 | P36: No
B37: ANDINA | C37: 76.708.710-1 | D37: CENTRAL TERMICA ANDINA | E37: 436492 | F37: CENTRAL TERMOELÉCTRICA ANDINA (CTA) | G37: UGE CTA | H37: GE000251-8 | I37: CTA1 | J37: TERMOELÉCTRICA ANDINA | K37: Andina | L37: CTA | M37: ANDINA-CTA_CAR | N37: Carbón | O37: CHACAYA_______220 | P37: No
B38: ANGAMOS | C38: 76.004.976-K | D38: EMPRESA ELÉCTRICA ANGAMOS S.A. | E38: 5452292 | F38: TERMOELÉCTRICA ANGAMOS 1 (ANG1) | G38: UGE ANGAMOS 1 | H38: GE000103-5 | I38: ANG1 | J38: TERMOELÉCTRICA ANGAMOS | K38: Angamos | L38: ANG1 | M38: ANGAMOS-ANG1_CAR | N38: Carbón | O38: ANGAMOS_______220 | P38: No
B39: ANGAMOS | C39: 76.004.976-K | D39: EMPRESA ELÉCTRICA ANGAMOS S.A. | E39: 5452292 | F39: TERMOELÉCTRICA ANGAMOS 2 (ANG2) | G39: UGE ANGAMOS 2 | H39: GE000104-3 | I39: ANG2 | J39: TERMOELÉCTRICA ANGAMOS | K39: Angamos | L39: ANG2 | M39: ANGAMOS-ANG2_CAR | N39: Carbón | O39: ANGAMOS_______220 | P39: No
B40: ARAUCO BIO | C40: 96.547.510-9 | D40: PLANTA VIÑALES | E40: 4473 | F40: VIÑALES | G40: caldera de poder | H40: GE000085-3 | I40: VIÑALES | J40: VIÑALES | K40: Viñales | L40: Viñales | M40: VINALES_BL1_COGEN | N40: Biomasa | O40: CONSTIT.______066 | P40: Sí
B41: ARAUCO BIO | C41: 96.547.510-9 | D41: PLANTA VIÑALES | E41: 4473 | F41: VIÑALES | G41: caldera de poder | H41: GE000085-3 | I41: VIÑALES | J41: VIÑALES | K41: Viñales | L41: Viñales | M41: VINALES_BL1+BL2_COGEN | N41: Biomasa | O41: CONSTIT.______066 | P41: Sí
B42: ARAUCO BIO | C42: 96.547.510-9 | D42: CELULOSA ARAUCO Y CONSTITUCIÓN -PLANTA CONSTITUCIÓN | E42: 2396 | F42: CELCO | G42: Caldera de poder | H42: IN000211-2 | I42: CELCO TG2 | J42: CELCO | K42: Celco | L42: Celco | M42: CELCO_BL1_COGEN | N42: Biomasa | O42: CONSTIT.______066 | P42: Sí
B43: ARAUCO BIO | C43: 96.547.510-9 | D43: CELULOSA ARAUCO Y CONSTITUCIÓN -PLANTA CONSTITUCIÓN | E43: 2396 | F43: CELCO | G43: Caldera de poder | H43: IN000211-2 | I43: CELCO TG2 | J43: CELCO | K43: Celco | L43: Celco | M43: CELCO_BL1+BL2_COGEN | N43: Diésel | O43: CONSTIT.______066 | P43: Sí
B44: ARAUCO BIO | C44: 96.547.510-9 | D44: CELULOSA ARAUCO Y CONSTITUCIÓN -PLANTA CONSTITUCIÓN | E44: 2396 | F44: CELCO | G44: Caldera recuperadora | H44: IN000212-0 | I44: CELCO TG2 | J44: CELCO | K44: Celco | L44: Celco | M44: CELCO_BL1_COGEN | N44: Biomasa | O44: CONSTIT.______066 | P44: Sí
B45: ARAUCO BIO | C45: 96.547.510-9 | D45: CELULOSA ARAUCO Y CONSTITUCIÓN -PLANTA CONSTITUCIÓN | E45: 2396 | F45: CELCO | G45: Caldera recuperadora | H45: IN000212-0 | I45: CELCO TG2 | J45: CELCO | K45: Celco | L45: Celco | M45: CELCO_BL1+BL2_COGEN | N45: Diésel | O45: CONSTIT.______066 | P45: Sí
B46: ARAUCO BIO | C46: 96.547.510-9 | D46: PLANTA LICANCEL | E46: 85016 | F46: LICANTEN | G46: Caldera recuperadora | H46: IN000224-4 | I46: LICANTEN TG2 | J46: LICANTEN | K46: Licanten | L46: Licantén | M46: LICANTEN_COGEN | N46: Biomasa | O46: LICANTEN______066 | P46: Sí
B47: ARAUCO BIO | C47: 96.547.510-9 | D47: PLANTA LICANCEL | E47: 85016 | F47: LICANTEN | G47: Caldera de poder | H47: IN000225-2 | I47: LICANTEN TG2 | J47: LICANTEN | K47: Licanten | L47: Licantén | M47: LICANTEN_COGEN | N47: Biomasa | O47: LICANTEN______066 | P47: Sí
B48: ARAUCO BIO | C48: 96.547.510-9 | D48: CENTRAL HORCONES | E48: 88406 | F48: HORCONES | G48: TURBOGENERADOR | H48: PC002440-0 | I48: HORCONES TG | J48: HORCONES TG | K48: Horcones TG | L48: Horcones | M48: HORCONES_DIESEL | N48: Diésel | O48: HORCONES______066 | P48: No
B49: ARAUCO BIO | C49: 96.547.510-9 | D49: CELULOSA ARAUCO Y CONSTITUCIÓN -PLANTA ARAUCO | E49: 2397 | F49: ARAUCO | G49: CALDERA DE PODER 1 | H49: IN000213-9 | I49: ARAUCO TG4/5 | J49: ARAUCO | K49: Arauco | L49: Arauco | M49: ARAUCO_COGEN | N49: Biomasa | O49: HORCONES______066 | P49: Sí
B50: ARAUCO BIO | C50: 96.547.510-9 | D50: CELULOSA ARAUCO Y CONSTITUCIÓN -PLANTA ARAUCO | E50: 2397 | F50: ARAUCO | G50: CALDERA DE PODER 1 | H50: IN000213-9 | I50: ARAUCO TG6 | J50: ARAUCO | K50: Arauco | L50: Arauco | M50: ARAUCO_COGEN | N50: Biomasa | O50: HORCONES______066 | P50: Sí
B51: ARAUCO BIO | C51: 96.547.510-9 | D51: CELULOSA ARAUCO Y CONSTITUCIÓN -PLANTA ARAUCO | E51: 2397 | F51: ARAUCO | G51: CALDERA RECUPERADORA 1 | H51: IN000214-7 | I51: ARAUCO TG4/5 | J51: ARAUCO | K51: Arauco | L51: Arauco | M51: ARAUCO_COGEN | N51: Biomasa | O51: HORCONES______066 | P51: Sí
B52: ARAUCO BIO | C52: 96.547.510-9 | D52: CELULOSA ARAUCO Y CONSTITUCIÓN -PLANTA ARAUCO | E52: 2397 | F52: ARAUCO | G52: CALDERA RECUPERADORA 1 | H52: IN000214-7 | I52: ARAUCO TG4/5 | J52: ARAUCO | K52: Arauco | L52: Arauco | M52: ARAUCO_COGEN | N52: Biomasa | O52: HORCONES______066 | P52: Sí
B53: ARAUCO BIO | C53: 96.547.510-9 | D53: CELULOSA ARAUCO Y CONSTITUCIÓN -PLANTA ARAUCO | E53: 2397 | F53: ARAUCO | G53: CALDERA DE PODER 3 | H53: IN000215-5 | I53: ARAUCO TG6 | J53: ARAUCO | K53: Arauco | L53: Arauco | M53: ARAUCO_COGEN | N53: Biomasa | O53: HORCONES______066 | P53: Sí
B54: ARAUCO BIO | C54: 96.547.510-9 | D54: CELULOSA ARAUCO Y CONSTITUCIÓN -PLANTA ARAUCO | E54: 2397 | F54: ARAUCO | G54: CALDERA DE PODER 2 | H54: IN000216-3 | I54: ARAUCO TG4/5 | J54: ARAUCO | K54: Arauco | L54: Arauco | M54: ARAUCO_COGEN | N54: Biomasa | O54: HORCONES______066 | P54: Sí
B55: ARAUCO BIO | C55: 96.547.510-9 | D55: CELULOSA ARAUCO Y CONSTITUCIÓN -PLANTA ARAUCO | E55: 2397 | F55: ARAUCO | G55: CALDERA DE PODER 2 | H55: IN000216-3 | I55: ARAUCO TG6 | J55: ARAUCO | K55: Arauco | L55: Arauco | M55: ARAUCO_COGEN | N55: Biomasa | O55: HORCONES______066 | P55: Sí
B56: ARAUCO BIO | C56: 96.547.510-9 | D56: CELULOSA ARAUCO Y CONSTITUCIÓN -PLANTA ARAUCO | E56: 2397 | F56: ARAUCO | G56: CALDERA RECUPERADORA 2 | H56: IN000217-1 | I56: ARAUCO TG4/5 | J56: ARAUCO | K56: Arauco | L56: Arauco | M56: ARAUCO_COGEN | N56: Biomasa | O56: HORCONES______066 | P56: Sí
B57: ARAUCO BIO | C57: 96.547.510-9 | D57: CELULOSA ARAUCO Y CONSTITUCIÓN -PLANTA ARAUCO | E57: 2397 | F57: ARAUCO | G57: CALDERA RECUPERADORA 2 | H57: IN000217-1 | I57: ARAUCO TG6 | J57: ARAUCO | K57: Arauco | L57: Arauco | M57: ARAUCO_COGEN | N57: Biomasa | O57: HORCONES______066 | P57: Sí
B58: ARAUCO BIO | C58: 96.547.510-9 | D58: CELULOSA ARAUCO Y CONSTITUCIÓN -PLANTA ARAUCO | E58: 2397 | F58: ARAUCO | G58: CALDERA DE PODER 4 | H58: IN001365-3 | I58: ARAUCO TG4/5 | J58: ARAUCO | K58: Arauco | L58: Arauco | M58: ARAUCO_COGEN | N58: Biomasa | O58: HORCONES______066 | P58: Sí
B59: ARAUCO BIO | C59: 96.547.510-9 | D59: CELULOSA ARAUCO Y CONSTITUCIÓN -PLANTA ARAUCO | E59: 2397 | F59: ARAUCO | G59: CALDERA DE PODER 4 | H59: IN001365-3 | I59: ARAUCO TG6 | J59: ARAUCO | K59: Arauco | L59: Arauco | M59: ARAUCO_COGEN | N59: Biomasa | O59: HORCONES______066 | P59: Sí
B60: ARAUCO BIO | C60: 96.547.510-9 | D60: NUEVA ALDEA (1 Y 3) | E60: 85017 | F60: NUEVA ALDEA (1 y 3) | G60: TURBOGENERADOR | H60: EL019740-9 | I60: NUEVA ALDEA I | J60: NUEVA ALDEA I | K60: Nueva Aldea I | L60: Nueva Aldea I | M60: NUEVAALDEA-1_BL1_COGEN | N60: Biomasa | O60: STA.ELVIRA____066 | P60: Sí
B61: ARAUCO BIO | C61: 96.547.510-9 | D61: NUEVA ALDEA (1 Y 3) | E61: 85017 | F61: NUEVA ALDEA (1 y 3) | G61: TURBOGENERADOR | H61: EL019740-9 | I61: NUEVA ALDEA I | J61: NUEVA ALDEA I | K61: Nueva Aldea I | L61: Nueva Aldea I | M61: NUEVAALDEA-1_BL1+BL2_COGEN | N61: Biomasa | O61: STA.ELVIRA____066 | P61: Sí
B62: ARAUCO BIO | C62: 96.547.510-9 | D62: NUEVA ALDEA (1 Y 3) | E62: 85017 | F62: NUEVA ALDEA (1 y 3) | G62: TURBOGENERADOR | H62: EL019740-9 | I62: NUEVA ALDEA III | J62: NUEVA ALDEA III | K62: Nueva Aldea III | L62: Nueva Aldea III | M62: NUEVAALDEA-3_COGEN | N62: Biomasa | O62: STA.ELVIRA____066 | P62: Sí
B63: ARAUCO BIO | C63: 96.547.510-9 | D63: NUEVA ALDEA (1 Y 3) | E63: 85017 | F63: NUEVA ALDEA (1 y 3) | G63: CALDERA RECUPERADORA | H63: IN000218-k | I63: NUEVA ALDEA I | J63: NUEVA ALDEA I | K63: Nueva Aldea I | L63: Nueva Aldea I | M63: NUEVAALDEA-1_BL1_COGEN | N63: Biomasa | O63: STA.ELVIRA____066 | P63: Sí
B64: ARAUCO BIO | C64: 96.547.510-9 | D64: NUEVA ALDEA (1 Y 3) | E64: 85017 | F64: NUEVA ALDEA (1 y 3) | G64: CALDERA RECUPERADORA | H64: IN000218-k | I64: NUEVA ALDEA I | J64: NUEVA ALDEA I | K64: Nueva Aldea I | L64: Nueva Aldea I | M64: NUEVAALDEA-1_BL1+BL2_COGEN | N64: Biomasa | O64: STA.ELVIRA____066 | P64: Sí
B65: ARAUCO BIO | C65: 96.547.510-9 | D65: NUEVA ALDEA (1 Y 3) | E65: 85017 | F65: NUEVA ALDEA (1 y 3) | G65: CALDERA RECUPERADORA | H65: IN000218-k | I65: NUEVA ALDEA III | J65: NUEVA ALDEA III | K65: Nueva Aldea III | L65: Nueva Aldea III | M65: NUEVAALDEA-3_COGEN | N65: Biomasa | O65: STA.ELVIRA____066 | P65: Sí
B66: ARAUCO BIO | C66: 96.547.510-9 | D66: NUEVA ALDEA (1 Y 3) | E66: 85017 | F66: NUEVA ALDEA (1 y 3) | G66: CALDERA DE PODER | H66: IN002622-4 | I66: NUEVA ALDEA I | J66: NUEVA ALDEA I | K66: Nueva Aldea I | L66: Nueva Aldea I | M66: NUEVAALDEA-1_BL1_COGEN | N66: Biomasa | O66: STA.ELVIRA____066 | P66: Sí
B67: ARAUCO BIO | C67: 96.547.510-9 | D67: NUEVA ALDEA (1 Y 3) | E67: 85017 | F67: NUEVA ALDEA (1 y 3) | G67: CALDERA DE PODER | H67: IN002622-4 | I67: NUEVA ALDEA I | J67: NUEVA ALDEA I | K67: Nueva Aldea I | L67: Nueva Aldea I | M67: NUEVAALDEA-1_BL1+BL2_COGEN | N67: Biomasa | O67: STA.ELVIRA____066 | P67: Sí
B68: ARAUCO BIO | C68: 96.547.510-9 | D68: NUEVA ALDEA (1 Y 3) | E68: 85017 | F68: NUEVA ALDEA (1 y 3) | G68: CALDERA DE PODER | H68: IN002622-4 | I68: NUEVA ALDEA III | J68: NUEVA ALDEA III | K68: Nueva Aldea III | L68: Nueva Aldea III | M68: NUEVAALDEA-3_COGEN | N68: Biomasa | O68: STA.ELVIRA____066 | P68: Sí
B69: ARAUCO BIO | C69: 96.547.510-9 | D69: PLANTA TRUPÁN/CHOLGUÁN | E69: 4586116 | F69: CHOLGUÁN | H69: IN000611-8 | I69: CHOLGUAN TG | J69: CHOLGUAN | K69: Cholguan | L69: Cholguán | M69: CHOLGUAN_BL1_COGEN | N69: Biomasa | O69: CHOLGUAN______066 | P69: Sí
B70: ARAUCO BIO | C70: 96.547.510-9 | D70: PLANTA TRUPÁN/CHOLGUÁN | E70: 4586116 | F70: CHOLGUÁN | H70: IN000611-8 | I70: CHOLGUAN TG | J70: CHOLGUAN | K70: Cholguan | L70: Cholguán | M70: CHOLGUAN_BL1+BL2_COGEN | N70: Diésel | O70: CHOLGUAN______066 | P70: Sí
B71: ARAUCO BIO | C71: 96.547.510-9 | D71: PLANTA TRUPÁN/CHOLGUÁN | E71: 4586116 | F71: CHOLGUÁN | H71: IN003326-k | I71: CHOLGUAN TG | J71: CHOLGUAN | K71: Cholguan | L71: Cholguán | M71: CHOLGUAN_BL1_COGEN | N71: Biomasa | O71: CHOLGUAN______066 | P71: Sí
B72: ARAUCO BIO | C72: 96.547.510-9 | D72: PLANTA TRUPÁN/CHOLGUÁN | E72: 4586116 | F72: CHOLGUÁN | H72: IN003326-k | I72: CHOLGUAN TG | J72: CHOLGUAN | K72: Cholguan | L72: Cholguán | M72: CHOLGUAN_BL1+BL2_COGEN | N72: Diésel | O72: CHOLGUAN______066 | P72: Sí
B73: ARAUCO BIO | C73: 96.547.510-9 | D73: PLANTA TRUPÁN/CHOLGUÁN | E73: 4586116 | F73: CHOLGUÁN | H73: IN003325-1 | I73: CHOLGUAN TG | J73: CHOLGUAN | K73: Cholguan | L73: Cholguán | M73: CHOLGUAN_BL1_COGEN | N73: Biomasa | O73: CHOLGUAN______066 | P73: Sí
B74: ARAUCO BIO | C74: 96.547.510-9 | D74: PLANTA TRUPÁN/CHOLGUÁN | E74: 4586116 | F74: CHOLGUÁN | H74: IN003325-1 | I74: CHOLGUAN TG | J74: CHOLGUAN | K74: Cholguan | L74: Cholguán | M74: CHOLGUAN_BL1+BL2_COGEN | N74: Diésel | O74: CHOLGUAN______066 | P74: Sí
B75: ARAUCO BIO | C75: 96.547.510-9 | D75: CELULOSA ARAUCO Y CONSTITUCIÓN - PLANTA VALDIVIA | E75: 85018 | F75: VALDIVIA | G75: CALDERA RECUPERADORA | H75: IN000219-8 | I75: VALDIVIA | J75: VALDIVIA | K75: Valdivia | L75: Valdivia | M75: VALDIVIA_BL1_COGEN_PINO | N75: Biomasa | O75: CIRUELOS______220 | P75: Sí
B76: ARAUCO BIO | C76: 96.547.510-9 | D76: CELULOSA ARAUCO Y CONSTITUCIÓN - PLANTA VALDIVIA | E76: 85018 | F76: VALDIVIA | G76: CALDERA RECUPERADORA | H76: IN000219-8 | I76: VALDIVIA | J76: VALDIVIA | K76: Valdivia | L76: Valdivia | M76: VALDIVIA_BL1_COGEN_EUCA | N76: Biomasa | O76: CIRUELOS______220 | P76: Sí
B77: ARAUCO BIO | C77: 96.547.510-9 | D77: CELULOSA ARAUCO Y CONSTITUCIÓN - PLANTA VALDIVIA | E77: 85018 | F77: VALDIVIA | G77: CALDERA RECUPERADORA | H77: IN000219-8 | I77: VALDIVIA | J77: VALDIVIA | K77: Valdivia | L77: Valdivia | M77: VALDIVIA_BL1+BL2_COGEN_PINO | N77: Biomasa | O77: CIRUELOS______220 | P77: Sí
B78: ARAUCO BIO | C78: 96.547.510-9 | D78: CELULOSA ARAUCO Y CONSTITUCIÓN - PLANTA VALDIVIA | E78: 85018 | F78: VALDIVIA | G78: CALDERA RECUPERADORA | H78: IN000219-8 | I78: VALDIVIA | J78: VALDIVIA | K78: Valdivia | L78: Valdivia | M78: VALDIVIA_BL1+BL2_COGEN_EUCA | N78: Biomasa | O78: CIRUELOS______220 | P78: Sí
B79: ARAUCO BIO | C79: 96.547.510-9 | D79: CELULOSA ARAUCO Y CONSTITUCIÓN - PLANTA VALDIVIA | E79: 85018 | F79: VALDIVIA | G79: CALDERA RECUPERADORA | H79: IN000219-8 | I79: VALDIVIA | J79: VALDIVIA | K79: Valdivia | L79: Valdivia | M79: VALDIVIA_BL1+BL2+BL3_COGEN_PINO | N79: Biomasa | O79: CIRUELOS______220 | P79: Sí
B80: ARAUCO BIO | C80: 96.547.510-9 | D80: CELULOSA ARAUCO Y CONSTITUCIÓN - PLANTA VALDIVIA | E80: 85018 | F80: VALDIVIA | G80: CALDERA RECUPERADORA | H80: IN000219-8 | I80: VALDIVIA | J80: VALDIVIA | K80: Valdivia | L80: Valdivia | M80: VALDIVIA_BL1+BL2+BL3_COGEN_EUCA | N80: Biomasa | O80: CIRUELOS______220 | P80: Sí
B81: ARAUCO BIO | C81: 96.547.510-9 | D81: CELULOSA ARAUCO Y CONSTITUCIÓN - PLANTA VALDIVIA | E81: 85018 | F81: VALDIVIA | G81: CALDERA RECUPERADORA | H81: IN000219-8 | I81: VALDIVIA | J81: VALDIVIA | K81: Valdivia | L81: Valdivia | M81: VALDIVIA_BL1+BL2+BL3+BL4_COGEN_PINO | N81: Diésel | O81: CIRUELOS______220 | P81: Sí
B82: ARAUCO BIO | C82: 96.547.510-9 | D82: CELULOSA ARAUCO Y CONSTITUCIÓN - PLANTA VALDIVIA | E82: 85018 | F82: VALDIVIA | G82: CALDERA RECUPERADORA | H82: IN000219-8 | I82: VALDIVIA | J82: VALDIVIA | K82: Valdivia | L82: Valdivia | M82: VALDIVIA_BL1+BL2+BL3+BL4_COGEN_EUCA | N82: Diésel | O82: CIRUELOS______220 | P82: Sí
B83: ARAUCO BIO | C83: 96.547.510-9 | D83: CELULOSA ARAUCO Y CONSTITUCIÓN - PLANTA VALDIVIA | E83: 85018 | F83: VALDIVIA | G83: CALDERA DE PODER | H83: IN000220-1 | I83: VALDIVIA | J83: VALDIVIA | K83: Valdivia | L83: Valdivia | M83: VALDIVIA_BL1_COGEN_PINO | N83: Biomasa | O83: CIRUELOS______220 | P83: Sí
B84: ARAUCO BIO | C84: 96.547.510-9 | D84: CELULOSA ARAUCO Y CONSTITUCIÓN - PLANTA VALDIVIA | E84: 85018 | F84: VALDIVIA | G84: CALDERA DE PODER | H84: IN000220-1 | I84: VALDIVIA | J84: VALDIVIA | K84: Valdivia | L84: Valdivia | M84: VALDIVIA_BL1_COGEN_EUCA | N84: Biomasa | O84: CIRUELOS______220 | P84: Sí
B85: ARAUCO BIO | C85: 96.547.510-9 | D85: CELULOSA ARAUCO Y CONSTITUCIÓN - PLANTA VALDIVIA | E85: 85018 | F85: VALDIVIA | G85: CALDERA DE PODER | H85: IN000220-1 | I85: VALDIVIA | J85: VALDIVIA | K85: Valdivia | L85: Valdivia | M85: VALDIVIA_BL1+BL2_COGEN_PINO | N85: Biomasa | O85: CIRUELOS______220 | P85: Sí
B86: ARAUCO BIO | C86: 96.547.510-9 | D86: CELULOSA ARAUCO Y CONSTITUCIÓN - PLANTA VALDIVIA | E86: 85018 | F86: VALDIVIA | G86: CALDERA DE PODER | H86: IN000220-1 | I86: VALDIVIA | J86: VALDIVIA | K86: Valdivia | L86: Valdivia | M86: VALDIVIA_BL1+BL2_COGEN_EUCA | N86: Biomasa | O86: CIRUELOS______220 | P86: Sí
B87: ARAUCO BIO | C87: 96.547.510-9 | D87: CELULOSA ARAUCO Y CONSTITUCIÓN - PLANTA VALDIVIA | E87: 85018 | F87: VALDIVIA | G87: CALDERA DE PODER | H87: IN000220-1 | I87: VALDIVIA | J87: VALDIVIA | K87: Valdivia | L87: Valdivia | M87: VALDIVIA_BL1+BL2+BL3_COGEN_PINO | N87: Biomasa | O87: CIRUELOS______220 | P87: Sí
B88: ARAUCO BIO | C88: 96.547.510-9 | D88: CELULOSA ARAUCO Y CONSTITUCIÓN - PLANTA VALDIVIA | E88: 85018 | F88: VALDIVIA | G88: CALDERA DE PODER | H88: IN000220-1 | I88: VALDIVIA | J88: VALDIVIA | K88: Valdivia | L88: Valdivia | M88: VALDIVIA_BL1+BL2+BL3_COGEN_EUCA | N88: Biomasa | O88: CIRUELOS______220 | P88: Sí
B89: ARAUCO BIO | C89: 96.547.510-9 | D89: CELULOSA ARAUCO Y CONSTITUCIÓN - PLANTA VALDIVIA | E89: 85018 | F89: VALDIVIA | G89: CALDERA DE PODER | H89: IN000220-1 | I89: VALDIVIA | J89: VALDIVIA | K89: Valdivia | L89: Valdivia | M89: VALDIVIA_BL1+BL2+BL3+BL4_COGEN_PINO | N89: Diésel | O89: CIRUELOS______220 | P89: Sí
B90: ARAUCO BIO | C90: 96.547.510-9 | D90: CELULOSA ARAUCO Y CONSTITUCIÓN - PLANTA VALDIVIA | E90: 85018 | F90: VALDIVIA | G90: CALDERA DE PODER | H90: IN000220-1 | I90: VALDIVIA | J90: VALDIVIA | K90: Valdivia | L90: Valdivia | M90: VALDIVIA_BL1+BL2+BL3+BL4_COGEN_EUCA | N90: Diésel | O90: CIRUELOS______220 | P90: Sí
B91: BE FORESTALES | C91: 76.188.197-3 | D91: CMPC CELULOSA PLANTA LAJA | E91: 3216 | F91: CMPC LAJA | G91: Caldera Recuperadora N° 6 | H91: IN001988-0 | I91: CMPC LAJA 1 | J91: CMPC LAJA | K91: CMPC Laja | L91: CMPC Laja | M91: CMPCLAJA_BL1_COGEN | N91: Biomasa | O91: LAJA__________220 | P91: Sí
B92: BE FORESTALES | C92: 76.188.197-3 | D92: CMPC CELULOSA PLANTA LAJA | E92: 3216 | F92: CMPC LAJA | G92: Caldera Recuperadora N° 6 | H92: IN001988-0 | I92: CMPC LAJA 1 | J92: CMPC LAJA | K92: CMPC Laja | L92: CMPC Laja | M92: CMPCLAJA_BL1+BL2_COGEN | N92: Biomasa | O92: LAJA__________220 | P92: Sí
B93: BE FORESTALES | C93: 76.188.197-3 | D93: CMPC CELULOSA PLANTA LAJA | E93: 3216 | F93: CMPC LAJA | G93: Caldera Recuperadora N° 6 | H93: IN001988-0 | I93: CMPC LAJA 1 | J93: CMPC LAJA | K93: CMPC Laja | L93: CMPC Laja | M93: CMPCLAJA_BL1+BL2+BL3_COGEN | N93: Biomasa | O93: LAJA__________220 | P93: Sí
B94: BE FORESTALES | C94: 76.188.197-3 | D94: CMPC CELULOSA PLANTA LAJA | E94: 3216 | F94: CMPC LAJA | G94: Caldera Recuperadora N° 6 | H94: IN001988-0 | I94: CMPC LAJA 2 | J94: CMPC LAJA | K94: CMPC Laja | L94: CMPC Laja | M94: CMPCLAJA_BL1_COGEN | N94: Biomasa | O94: LAJA__________220 | P94: Sí
B95: BE FORESTALES | C95: 76.188.197-3 | D95: CMPC CELULOSA PLANTA LAJA | E95: 3216 | F95: CMPC LAJA | G95: Caldera Recuperadora N° 6 | H95: IN001988-0 | I95: CMPC LAJA 2 | J95: CMPC LAJA | K95: CMPC Laja | L95: CMPC Laja | M95: CMPCLAJA_BL1+BL2_COGEN | N95: Biomasa | O95: LAJA__________220 | P95: Sí
B96: BE FORESTALES | C96: 76.188.197-3 | D96: CMPC CELULOSA PLANTA LAJA | E96: 3216 | F96: CMPC LAJA | G96: Caldera Recuperadora N° 6 | H96: IN001988-0 | I96: CMPC LAJA 2 | J96: CMPC LAJA | K96: CMPC Laja | L96: CMPC Laja | M96: CMPCLAJA_BL1+BL2+BL3_COGEN | N96: Biomasa | O96: LAJA__________220 | P96: Sí
B97: BE FORESTALES | C97: 76.188.197-3 | D97: CMPC CELULOSA PLANTA LAJA | E97: 3216 | F97: CMPC LAJA | G97: Caldera de Biomasa 3 | H97: IN002371-3 | I97: CMPC LAJA 1 | J97: CMPC LAJA | K97: CMPC Laja | L97: CMPC Laja | M97: CMPCLAJA_BL1_COGEN | N97: Biomasa | O97: LAJA__________220 | P97: Sí
B98: BE FORESTALES | C98: 76.188.197-3 | D98: CMPC CELULOSA PLANTA LAJA | E98: 3216 | F98: CMPC LAJA | G98: Caldera de Biomasa 3 | H98: IN002371-3 | I98: CMPC LAJA 1 | J98: CMPC LAJA | K98: CMPC Laja | L98: CMPC Laja | M98: CMPCLAJA_BL1+BL2_COGEN | N98: Biomasa | O98: LAJA__________220 | P98: Sí
B99: BE FORESTALES | C99: 76.188.197-3 | D99: CMPC CELULOSA PLANTA LAJA | E99: 3216 | F99: CMPC LAJA | G99: Caldera de Biomasa 3 | H99: IN002371-3 | I99: CMPC LAJA 1 | J99: CMPC LAJA | K99: CMPC Laja | L99: CMPC Laja | M99: CMPCLAJA_BL1+BL2+BL3_COGEN | N99: Biomasa | O99: LAJA__________220 | P99: Sí
B100: BE FORESTALES | C100: 76.188.197-3 | D100: CMPC CELULOSA PLANTA LAJA | E100: 3216 | F100: CMPC LAJA | G100: Caldera de Biomasa 3 | H100: IN002371-3 | I100: CMPC LAJA 2 | J100: CMPC LAJA | K100: CMPC Laja | L100: CMPC Laja | M100: CMPCLAJA_BL1_COGEN | N100: Biomasa | O100: LAJA__________220 | P100: Sí
B101: BE FORESTALES | C101: 76.188.197-3 | D101: CMPC CELULOSA PLANTA LAJA | E101: 3216 | F101: CMPC LAJA | G101: Caldera de Biomasa 3 | H101: IN002371-3 | I101: CMPC LAJA 2 | J101: CMPC LAJA | K101: CMPC Laja | L101: CMPC Laja | M101: CMPCLAJA_BL1+BL2_COGEN | N101: Biomasa | O101: LAJA__________220 | P101: Sí
B102: BE FORESTALES | C102: 76.188.197-3 | D102: CMPC CELULOSA PLANTA LAJA | E102: 3216 | F102: CMPC LAJA | G102: Caldera de Biomasa 3 | H102: IN002371-3 | I102: CMPC LAJA 2 | J102: CMPC LAJA | K102: CMPC Laja | L102: CMPC Laja | M102: CMPCLAJA_BL1+BL2+BL3_COGEN | N102: Biomasa | O102: LAJA__________220 | P102: Sí
B103: BE FORESTALES | C103: 76.188.197-3 | D103: CMPC CELULOSA PLANTA SANTA FE | E103: 3522 | F103: CMPC SANTA FE | G103: CALDERA RECUPERADORA LINEA 1 | H103: IN000638-k | I103: CELULOSA SANTA FE 1 | J103: CMPC SANTA FE | K103: Santa Fe | L103: CMPC Santa Fe | M103: SANTAFE_BL1_COGEN | N103: Biomasa | O103: NACIMIENTO____220 | P103: Sí
B104: BE FORESTALES | C104: 76.188.197-3 | D104: CMPC CELULOSA PLANTA SANTA FE | E104: 3522 | F104: CMPC SANTA FE | G104: CALDERA RECUPERADORA LINEA 1 | H104: IN000638-k | I104: CELULOSA SANTA FE 1 | J104: CMPC SANTA FE | K104: Santa Fe | L104: CMPC Santa Fe | M104: SANTAFE_BL1+BL2_COGEN | N104: Biomasa | O104: NACIMIENTO____220 | P104: Sí
B105: BE FORESTALES | C105: 76.188.197-3 | D105: CMPC CELULOSA PLANTA SANTA FE | E105: 3522 | F105: CMPC SANTA FE | G105: CALDERA RECUPERADORA LINEA 1 | H105: IN000638-k | I105: CELULOSA SANTA FE 1 | J105: CMPC SANTA FE | K105: Santa Fe | L105: CMPC Santa Fe | M105: SANTAFE_BL1+BL2+BL3_COGEN | N105: Biomasa | O105: NACIMIENTO____220 | P105: Sí
B106: BE FORESTALES | C106: 76.188.197-3 | D106: CMPC CELULOSA PLANTA SANTA FE | E106: 3522 | F106: CMPC SANTA FE | G106: CALDERA RECUPERADORA LINEA 1 | H106: IN000638-k | I106: CELULOSA SANTA FE 1 | J106: CMPC SANTA FE | K106: Santa Fe | L106: CMPC Santa Fe | M106: SANTAFE_BL1+BL2+BL3+BL4_COGEN | N106: Biomasa | O106: NACIMIENTO____220 | P106: Sí
B107: BE FORESTALES | C107: 76.188.197-3 | D107: CMPC CELULOSA PLANTA SANTA FE | E107: 3522 | F107: CMPC SANTA FE | G107: CALDERA RECUPERADORA LINEA 1 | H107: IN000638-k | I107: CELULOSA SANTA FE 2 | J107: CMPC SANTA FE | K107: Santa Fe | L107: CMPC Santa Fe | M107: SANTAFE_BL1_COGEN | N107: Biomasa | O107: NACIMIENTO____220 | P107: Sí
B108: BE FORESTALES | C108: 76.188.197-3 | D108: CMPC CELULOSA PLANTA SANTA FE | E108: 3522 | F108: CMPC SANTA FE | G108: CALDERA RECUPERADORA LINEA 1 | H108: IN000638-k | I108: CELULOSA SANTA FE 2 | J108: CMPC SANTA FE | K108: Santa Fe | L108: CMPC Santa Fe | M108: SANTAFE_BL1+BL2_COGEN | N108: Biomasa | O108: NACIMIENTO____220 | P108: Sí
B109: BE FORESTALES | C109: 76.188.197-3 | D109: CMPC CELULOSA PLANTA SANTA FE | E109: 3522 | F109: CMPC SANTA FE | G109: CALDERA RECUPERADORA LINEA 1 | H109: IN000638-k | I109: CELULOSA SANTA FE 2 | J109: CMPC SANTA FE | K109: Santa Fe | L109: CMPC Santa Fe | M109: SANTAFE_BL1+BL2+BL3_COGEN | N109: Biomasa | O109: NACIMIENTO____220 | P109: Sí
B110: BE FORESTALES | C110: 76.188.197-3 | D110: CMPC CELULOSA PLANTA SANTA FE | E110: 3522 | F110: CMPC SANTA FE | G110: CALDERA RECUPERADORA LINEA 1 | H110: IN000638-k | I110: CELULOSA SANTA FE 2 | J110: CMPC SANTA FE | K110: Santa Fe | L110: CMPC Santa Fe | M110: SANTAFE_BL1+BL2+BL3+BL4_COGEN | N110: Biomasa | O110: NACIMIENTO____220 | P110: Sí
B111: BE FORESTALES | C111: 76.188.197-3 | D111: CMPC CELULOSA PLANTA SANTA FE | E111: 3522 | F111: CMPC SANTA FE | G111: CALDERA RECUPERADORA LINEA 1 | H111: IN000638-k | I111: CELULOSA SANTA FE 3 | J111: CMPC SANTA FE | K111: Santa Fe | L111: CMPC Santa Fe | M111: SANTAFE_BL1_COGEN | N111: Biomasa | O111: NACIMIENTO____220 | P111: Sí
B112: BE FORESTALES | C112: 76.188.197-3 | D112: CMPC CELULOSA PLANTA SANTA FE | E112: 3522 | F112: CMPC SANTA FE | G112: CALDERA RECUPERADORA LINEA 1 | H112: IN000638-k | I112: CELULOSA SANTA FE 3 | J112: CMPC SANTA FE | K112: Santa Fe | L112: CMPC Santa Fe | M112: SANTAFE_BL1+BL2_COGEN | N112: Biomasa | O112: NACIMIENTO____220 | P112: Sí
B113: BE FORESTALES | C113: 76.188.197-3 | D113: CMPC CELULOSA PLANTA SANTA FE | E113: 3522 | F113: CMPC SANTA FE | G113: CALDERA RECUPERADORA LINEA 1 | H113: IN000638-k | I113: CELULOSA SANTA FE 3 | J113: CMPC SANTA FE | K113: Santa Fe | L113: CMPC Santa Fe | M113: SANTAFE_BL1+BL2+BL3_COGEN | N113: Biomasa | O113: NACIMIENTO____220 | P113: Sí
B114: BE FORESTALES | C114: 76.188.197-3 | D114: CMPC CELULOSA PLANTA SANTA FE | E114: 3522 | F114: CMPC SANTA FE | G114: CALDERA RECUPERADORA LINEA 1 | H114: IN000638-k | I114: CELULOSA SANTA FE 3 | J114: CMPC SANTA FE | K114: Santa Fe | L114: CMPC Santa Fe | M114: SANTAFE_BL1+BL2+BL3+BL4_COGEN | N114: Biomasa | O114: NACIMIENTO____220 | P114: Sí
B115: BE FORESTALES | C115: 76.188.197-3 | D115: CMPC CELULOSA PLANTA SANTA FE | E115: 3522 | F115: CMPC SANTA FE | G115: CALDERA DE BIOMASA LINEA 1 | H115: IN000639-8 | I115: CELULOSA SANTA FE 1 | J115: CMPC SANTA FE | K115: Santa Fe | L115: CMPC Santa Fe | M115: SANTAFE_BL1_COGEN | N115: Biomasa | O115: NACIMIENTO____220 | P115: Sí
B116: BE FORESTALES | C116: 76.188.197-3 | D116: CMPC CELULOSA PLANTA SANTA FE | E116: 3522 | F116: CMPC SANTA FE | G116: CALDERA DE BIOMASA LINEA 1 | H116: IN000639-8 | I116: CELULOSA SANTA FE 1 | J116: CMPC SANTA FE | K116: Santa Fe | L116: CMPC Santa Fe | M116: SANTAFE_BL1+BL2_COGEN | N116: Biomasa | O116: NACIMIENTO____220 | P116: Sí
B117: BE FORESTALES | C117: 76.188.197-3 | D117: CMPC CELULOSA PLANTA SANTA FE | E117: 3522 | F117: CMPC SANTA FE | G117: CALDERA DE BIOMASA LINEA 1 | H117: IN000639-8 | I117: CELULOSA SANTA FE 1 | J117: CMPC SANTA FE | K117: Santa Fe | L117: CMPC Santa Fe | M117: SANTAFE_BL1+BL2+BL3_COGEN | N117: Biomasa | O117: NACIMIENTO____220 | P117: Sí
B118: BE FORESTALES | C118: 76.188.197-3 | D118: CMPC CELULOSA PLANTA SANTA FE | E118: 3522 | F118: CMPC SANTA FE | G118: CALDERA DE BIOMASA LINEA 1 | H118: IN000639-8 | I118: CELULOSA SANTA FE 1 | J118: CMPC SANTA FE | K118: Santa Fe | L118: CMPC Santa Fe | M118: SANTAFE_BL1+BL2+BL3+BL4_COGEN | N118: Biomasa | O118: NACIMIENTO____220 | P118: Sí
B119: BE FORESTALES | C119: 76.188.197-3 | D119: CMPC CELULOSA PLANTA SANTA FE | E119: 3522 | F119: CMPC SANTA FE | G119: CALDERA DE BIOMASA LINEA 1 | H119: IN000639-8 | I119: CELULOSA SANTA FE 2 | J119: CMPC SANTA FE | K119: Santa Fe | L119: CMPC Santa Fe | M119: SANTAFE_BL1_COGEN | N119: Biomasa | O119: NACIMIENTO____220 | P119: Sí
B120: BE FORESTALES | C120: 76.188.197-3 | D120: CMPC CELULOSA PLANTA SANTA FE | E120: 3522 | F120: CMPC SANTA FE | G120: CALDERA DE BIOMASA LINEA 1 | H120: IN000639-8 | I120: CELULOSA SANTA FE 2 | J120: CMPC SANTA FE | K120: Santa Fe | L120: CMPC Santa Fe | M120: SANTAFE_BL1+BL2_COGEN | N120: Biomasa | O120: NACIMIENTO____220 | P120: Sí
B121: BE FORESTALES | C121: 76.188.197-3 | D121: CMPC CELULOSA PLANTA SANTA FE | E121: 3522 | F121: CMPC SANTA FE | G121: CALDERA DE BIOMASA LINEA 1 | H121: IN000639-8 | I121: CELULOSA SANTA FE 2 | J121: CMPC SANTA FE | K121: Santa Fe | L121: CMPC Santa Fe | M121: SANTAFE_BL1+BL2+BL3_COGEN | N121: Biomasa | O121: NACIMIENTO____220 | P121: Sí
B122: BE FORESTALES | C122: 76.188.197-3 | D122: CMPC CELULOSA PLANTA SANTA FE | E122: 3522 | F122: CMPC SANTA FE | G122: CALDERA DE BIOMASA LINEA 1 | H122: IN000639-8 | I122: CELULOSA SANTA FE 2 | J122: CMPC SANTA FE | K122: Santa Fe | L122: CMPC Santa Fe | M122: SANTAFE_BL1+BL2+BL3+BL4_COGEN | N122: Biomasa | O122: NACIMIENTO____220 | P122: Sí
B123: BE FORESTALES | C123: 76.188.197-3 | D123: CMPC CELULOSA PLANTA SANTA FE | E123: 3522 | F123: CMPC SANTA FE | G123: CALDERA DE BIOMASA LINEA 1 | H123: IN000639-8 | I123: CELULOSA SANTA FE 3 | J123: CMPC SANTA FE | K123: Santa Fe | L123: CMPC Santa Fe | M123: SANTAFE_BL1_COGEN | N123: Biomasa | O123: NACIMIENTO____220 | P123: Sí
B124: BE FORESTALES | C124: 76.188.197-3 | D124: CMPC CELULOSA PLANTA SANTA FE | E124: 3522 | F124: CMPC SANTA FE | G124: CALDERA DE BIOMASA LINEA 1 | H124: IN000639-8 | I124: CELULOSA SANTA FE 3 | J124: CMPC SANTA FE | K124: Santa Fe | L124: CMPC Santa Fe | M124: SANTAFE_BL1+BL2_COGEN | N124: Biomasa | O124: NACIMIENTO____220 | P124: Sí
B125: BE FORESTALES | C125: 76.188.197-3 | D125: CMPC CELULOSA PLANTA SANTA FE | E125: 3522 | F125: CMPC SANTA FE | G125: CALDERA DE BIOMASA LINEA 1 | H125: IN000639-8 | I125: CELULOSA SANTA FE 3 | J125: CMPC SANTA FE | K125: Santa Fe | L125: CMPC Santa Fe | M125: SANTAFE_BL1+BL2+BL3_COGEN | N125: Biomasa | O125: NACIMIENTO____220 | P125: Sí
B126: BE FORESTALES | C126: 76.188.197-3 | D126: CMPC CELULOSA PLANTA SANTA FE | E126: 3522 | F126: CMPC SANTA FE | G126: CALDERA DE BIOMASA LINEA 1 | H126: IN000639-8 | I126: CELULOSA SANTA FE 3 | J126: CMPC SANTA FE | K126: Santa Fe | L126: CMPC Santa Fe | M126: SANTAFE_BL1+BL2+BL3+BL4_COGEN | N126: Biomasa | O126: NACIMIENTO____220 | P126: Sí
B127: BE FORESTALES | C127: 76.188.197-3 | D127: CMPC CELULOSA PLANTA SANTA FE | E127: 3522 | F127: CMPC SANTA FE | G127: CALDERA RECUPERADORA LINEA 2 | H127: IN000640-1 | I127: CELULOSA SANTA FE 1 | J127: CMPC SANTA FE | K127: Santa Fe | L127: CMPC Santa Fe | M127: SANTAFE_BL1_COGEN | N127: Biomasa | O127: NACIMIENTO____220 | P127: Sí
B128: BE FORESTALES | C128: 76.188.197-3 | D128: CMPC CELULOSA PLANTA SANTA FE | E128: 3522 | F128: CMPC SANTA FE | G128: CALDERA RECUPERADORA LINEA 2 | H128: IN000640-1 | I128: CELULOSA SANTA FE 1 | J128: CMPC SANTA FE | K128: Santa Fe | L128: CMPC Santa Fe | M128: SANTAFE_BL1+BL2_COGEN | N128: Biomasa | O128: NACIMIENTO____220 | P128: Sí
B129: BE FORESTALES | C129: 76.188.197-3 | D129: CMPC CELULOSA PLANTA SANTA FE | E129: 3522 | F129: CMPC SANTA FE | G129: CALDERA RECUPERADORA LINEA 2 | H129: IN000640-1 | I129: CELULOSA SANTA FE 1 | J129: CMPC SANTA FE | K129: Santa Fe | L129: CMPC Santa Fe | M129: SANTAFE_BL1+BL2+BL3_COGEN | N129: Biomasa | O129: NACIMIENTO____220 | P129: Sí
B130: BE FORESTALES | C130: 76.188.197-3 | D130: CMPC CELULOSA PLANTA SANTA FE | E130: 3522 | F130: CMPC SANTA FE | G130: CALDERA RECUPERADORA LINEA 2 | H130: IN000640-1 | I130: CELULOSA SANTA FE 1 | J130: CMPC SANTA FE | K130: Santa Fe | L130: CMPC Santa Fe | M130: SANTAFE_BL1+BL2+BL3+BL4_COGEN | N130: Biomasa | O130: NACIMIENTO____220 | P130: Sí
B131: BE FORESTALES | C131: 76.188.197-3 | D131: CMPC CELULOSA PLANTA SANTA FE | E131: 3522 | F131: CMPC SANTA FE | G131: CALDERA RECUPERADORA LINEA 2 | H131: IN000640-1 | I131: CELULOSA SANTA FE 2 | J131: CMPC SANTA FE | K131: Santa Fe | L131: CMPC Santa Fe | M131: SANTAFE_BL1_COGEN | N131: Biomasa | O131: NACIMIENTO____220 | P131: Sí
B132: BE FORESTALES | C132: 76.188.197-3 | D132: CMPC CELULOSA PLANTA SANTA FE | E132: 3522 | F132: CMPC SANTA FE | G132: CALDERA RECUPERADORA LINEA 2 | H132: IN000640-1 | I132: CELULOSA SANTA FE 2 | J132: CMPC SANTA FE | K132: Santa Fe | L132: CMPC Santa Fe | M132: SANTAFE_BL1+BL2_COGEN | N132: Biomasa | O132: NACIMIENTO____220 | P132: Sí
B133: BE FORESTALES | C133: 76.188.197-3 | D133: CMPC CELULOSA PLANTA SANTA FE | E133: 3522 | F133: CMPC SANTA FE | G133: CALDERA RECUPERADORA LINEA 2 | H133: IN000640-1 | I133: CELULOSA SANTA FE 2 | J133: CMPC SANTA FE | K133: Santa Fe | L133: CMPC Santa Fe | M133: SANTAFE_BL1+BL2+BL3_COGEN | N133: Biomasa | O133: NACIMIENTO____220 | P133: Sí
B134: BE FORESTALES | C134: 76.188.197-3 | D134: CMPC CELULOSA PLANTA SANTA FE | E134: 3522 | F134: CMPC SANTA FE | G134: CALDERA RECUPERADORA LINEA 2 | H134: IN000640-1 | I134: CELULOSA SANTA FE 2 | J134: CMPC SANTA FE | K134: Santa Fe | L134: CMPC Santa Fe | M134: SANTAFE_BL1+BL2+BL3+BL4_COGEN | N134: Biomasa | O134: NACIMIENTO____220 | P134: Sí
B135: BE FORESTALES | C135: 76.188.197-3 | D135: CMPC CELULOSA PLANTA SANTA FE | E135: 3522 | F135: CMPC SANTA FE | G135: CALDERA RECUPERADORA LINEA 2 | H135: IN000640-1 | I135: CELULOSA SANTA FE 3 | J135: CMPC SANTA FE | K135: Santa Fe | L135: CMPC Santa Fe | M135: SANTAFE_BL1_COGEN | N135: Biomasa | O135: NACIMIENTO____220 | P135: Sí
B136: BE FORESTALES | C136: 76.188.197-3 | D136: CMPC CELULOSA PLANTA SANTA FE | E136: 3522 | F136: CMPC SANTA FE | G136: CALDERA RECUPERADORA LINEA 2 | H136: IN000640-1 | I136: CELULOSA SANTA FE 3 | J136: CMPC SANTA FE | K136: Santa Fe | L136: CMPC Santa Fe | M136: SANTAFE_BL1+BL2_COGEN | N136: Biomasa | O136: NACIMIENTO____220 | P136: Sí
B137: BE FORESTALES | C137: 76.188.197-3 | D137: CMPC CELULOSA PLANTA SANTA FE | E137: 3522 | F137: CMPC SANTA FE | G137: CALDERA RECUPERADORA LINEA 2 | H137: IN000640-1 | I137: CELULOSA SANTA FE 3 | J137: CMPC SANTA FE | K137: Santa Fe | L137: CMPC Santa Fe | M137: SANTAFE_BL1+BL2+BL3_COGEN | N137: Biomasa | O137: NACIMIENTO____220 | P137: Sí
B138: BE FORESTALES | C138: 76.188.197-3 | D138: CMPC CELULOSA PLANTA SANTA FE | E138: 3522 | F138: CMPC SANTA FE | G138: CALDERA RECUPERADORA LINEA 2 | H138: IN000640-1 | I138: CELULOSA SANTA FE 3 | J138: CMPC SANTA FE | K138: Santa Fe | L138: CMPC Santa Fe | M138: SANTAFE_BL1+BL2+BL3+BL4_COGEN | N138: Biomasa | O138: NACIMIENTO____220 | P138: Sí
B139: BE FORESTALES | C139: 76.188.197-3 | D139: CMPC CELULOSA PLANTA PACIFICO | E139: 322488 | F139: CMPC PACIFICO | G139: CALDERA BIOMASA | H139: GE000015-2 | I139: CMPC PACIFICO 1 | J139: CMPC PACIFICO | K139: CMPC Pacífico | L139: CMPC Pacífico | M139: CMPCPACIFICO_BL1_COGEN | N139: Biomasa | O139: MININCO_______220 | P139: Sí
B140: BE FORESTALES | C140: 76.188.197-3 | D140: CMPC CELULOSA PLANTA PACIFICO | E140: 322488 | F140: CMPC PACIFICO | G140: CALDERA BIOMASA | H140: GE000015-2 | I140: CMPC PACIFICO 1 | J140: CMPC PACIFICO | K140: CMPC Pacífico | L140: CMPC Pacífico | M140: CMPCPACIFICO_BL1+BL2_COGEN | N140: Biomasa | O140: MININCO_______220 | P140: Sí
B141: BE FORESTALES | C141: 76.188.197-3 | D141: CMPC CELULOSA PLANTA PACIFICO | E141: 322488 | F141: CMPC PACIFICO | G141: CALDERA BIOMASA | H141: GE000015-2 | I141: CMPC PACIFICO 1 | J141: CMPC PACIFICO | K141: CMPC Pacífico | L141: CMPC Pacífico | M141: CMPCPACIFICO_BL1+BL2+BL3_COGEN | N141: Diésel | O141: MININCO_______220 | P141: Sí
B142: BE FORESTALES | C142: 76.188.197-3 | D142: CMPC CELULOSA PLANTA PACIFICO | E142: 322488 | F142: CMPC PACIFICO | G142: CALDERA BIOMASA | H142: GE000015-2 | I142: CMPC PACIFICO 2 | J142: CMPC PACIFICO | K142: CMPC Pacífico | L142: CMPC Pacífico | M142: CMPCPACIFICO_BL1_COGEN | N142: Biomasa | O142: MININCO_______220 | P142: Sí
B143: BE FORESTALES | C143: 76.188.197-3 | D143: CMPC CELULOSA PLANTA PACIFICO | E143: 322488 | F143: CMPC PACIFICO | G143: CALDERA BIOMASA | H143: GE000015-2 | I143: CMPC PACIFICO 2 | J143: CMPC PACIFICO | K143: CMPC Pacífico | L143: CMPC Pacífico | M143: CMPCPACIFICO_BL1+BL2_COGEN | N143: Biomasa | O143: MININCO_______220 | P143: Sí
B144: BE FORESTALES | C144: 76.188.197-3 | D144: CMPC CELULOSA PLANTA PACIFICO | E144: 322488 | F144: CMPC PACIFICO | G144: CALDERA BIOMASA | H144: GE000015-2 | I144: CMPC PACIFICO 2 | J144: CMPC PACIFICO | K144: CMPC Pacífico | L144: CMPC Pacífico | M144: CMPCPACIFICO_BL1+BL2+BL3_COGEN | N144: Diésel | O144: MININCO_______220 | P144: Sí
B145: BE FORESTALES | C145: 76.188.197-3 | D145: CMPC CELULOSA PLANTA PACIFICO | E145: 322488 | F145: CMPC PACIFICO | G145: CALDERA BIOMASA | H145: GE000015-2 | I145: CMPC PACIFICO 3 | J145: CMPC PACIFICO | K145: CMPC Pacífico | L145: CMPC Pacífico | M145: CMPCPACIFICO_BL1_COGEN | N145: Biomasa | O145: MININCO_______220 | P145: Sí
B146: BE FORESTALES | C146: 76.188.197-3 | D146: CMPC CELULOSA PLANTA PACIFICO | E146: 322488 | F146: CMPC PACIFICO | G146: CALDERA BIOMASA | H146: GE000015-2 | I146: CMPC PACIFICO 3 | J146: CMPC PACIFICO | K146: CMPC Pacífico | L146: CMPC Pacífico | M146: CMPCPACIFICO_BL1+BL2_COGEN | N146: Biomasa | O146: MININCO_______220 | P146: Sí
B147: BE FORESTALES | C147: 76.188.197-3 | D147: CMPC CELULOSA PLANTA PACIFICO | E147: 322488 | F147: CMPC PACIFICO | G147: CALDERA BIOMASA | H147: GE000015-2 | I147: CMPC PACIFICO 3 | J147: CMPC PACIFICO | K147: CMPC Pacífico | L147: CMPC Pacífico | M147: CMPCPACIFICO_BL1+BL2+BL3_COGEN | N147: Diésel | O147: MININCO_______220 | P147: Sí
B148: BE FORESTALES | C148: 76.188.197-3 | D148: CMPC CELULOSA PLANTA PACIFICO | E148: 322488 | F148: CMPC PACIFICO | G148: CALDERA AUXILIAR N°1 | H148: IN000334-8 | I148: CMPC PACIFICO 1 | J148: CMPC PACIFICO | K148: CMPC Pacífico | L148: CMPC Pacífico | M148: CMPCPACIFICO_BL1_COGEN | N148: Biomasa | O148: MININCO_______220 | P148: Sí
B149: BE FORESTALES | C149: 76.188.197-3 | D149: CMPC CELULOSA PLANTA PACIFICO | E149: 322488 | F149: CMPC PACIFICO | G149: CALDERA AUXILIAR N°1 | H149: IN000334-8 | I149: CMPC PACIFICO 1 | J149: CMPC PACIFICO | K149: CMPC Pacífico | L149: CMPC Pacífico | M149: CMPCPACIFICO_BL1+BL2_COGEN | N149: Biomasa | O149: MININCO_______220 | P149: Sí
B150: BE FORESTALES | C150: 76.188.197-3 | D150: CMPC CELULOSA PLANTA PACIFICO | E150: 322488 | F150: CMPC PACIFICO | G150: CALDERA AUXILIAR N°1 | H150: IN000334-8 | I150: CMPC PACIFICO 1 | J150: CMPC PACIFICO | K150: CMPC Pacífico | L150: CMPC Pacífico | M150: CMPCPACIFICO_BL1+BL2+BL3_COGEN | N150: Diésel | O150: MININCO_______220 | P150: Sí
B151: BE FORESTALES | C151: 76.188.197-3 | D151: CMPC CELULOSA PLANTA PACIFICO | E151: 322488 | F151: CMPC PACIFICO | G151: CALDERA AUXILIAR N°1 | H151: IN000334-8 | I151: CMPC PACIFICO 2 | J151: CMPC PACIFICO | K151: CMPC Pacífico | L151: CMPC Pacífico | M151: CMPCPACIFICO_BL1_COGEN | N151: Biomasa | O151: MININCO_______220 | P151: Sí
B152: BE FORESTALES | C152: 76.188.197-3 | D152: CMPC CELULOSA PLANTA PACIFICO | E152: 322488 | F152: CMPC PACIFICO | G152: CALDERA AUXILIAR N°1 | H152: IN000334-8 | I152: CMPC PACIFICO 2 | J152: CMPC PACIFICO | K152: CMPC Pacífico | L152: CMPC Pacífico | M152: CMPCPACIFICO_BL1+BL2_COGEN | N152: Biomasa | O152: MININCO_______220 | P152: Sí
B153: BE FORESTALES | C153: 76.188.197-3 | D153: CMPC CELULOSA PLANTA PACIFICO | E153: 322488 | F153: CMPC PACIFICO | G153: CALDERA AUXILIAR N°1 | H153: IN000334-8 | I153: CMPC PACIFICO 2 | J153: CMPC PACIFICO | K153: CMPC Pacífico | L153: CMPC Pacífico | M153: CMPCPACIFICO_BL1+BL2+BL3_COGEN | N153: Diésel | O153: MININCO_______220 | P153: Sí
B154: BE FORESTALES | C154: 76.188.197-3 | D154: CMPC CELULOSA PLANTA PACIFICO | E154: 322488 | F154: CMPC PACIFICO | G154: CALDERA AUXILIAR N°1 | H154: IN000334-8 | I154: CMPC PACIFICO 3 | J154: CMPC PACIFICO | K154: CMPC Pacífico | L154: CMPC Pacífico | M154: CMPCPACIFICO_BL1_COGEN | N154: Biomasa | O154: MININCO_______220 | P154: Sí
B155: BE FORESTALES | C155: 76.188.197-3 | D155: CMPC CELULOSA PLANTA PACIFICO | E155: 322488 | F155: CMPC PACIFICO | G155: CALDERA AUXILIAR N°1 | H155: IN000334-8 | I155: CMPC PACIFICO 3 | J155: CMPC PACIFICO | K155: CMPC Pacífico | L155: CMPC Pacífico | M155: CMPCPACIFICO_BL1+BL2_COGEN | N155: Biomasa | O155: MININCO_______220 | P155: Sí
B156: BE FORESTALES | C156: 76.188.197-3 | D156: CMPC CELULOSA PLANTA PACIFICO | E156: 322488 | F156: CMPC PACIFICO | G156: CALDERA AUXILIAR N°1 | H156: IN000334-8 | I156: CMPC PACIFICO 3 | J156: CMPC PACIFICO | K156: CMPC Pacífico | L156: CMPC Pacífico | M156: CMPCPACIFICO_BL1+BL2+BL3_COGEN | N156: Diésel | O156: MININCO_______220 | P156: Sí
B157: BE FORESTALES | C157: 76.188.197-3 | D157: CMPC CELULOSA PLANTA PACIFICO | E157: 322488 | F157: CMPC PACIFICO | G157: CALDERA AUXILIAR N°2 | H157: IN000335-6 | I157: CMPC PACIFICO 1 | J157: CMPC PACIFICO | K157: CMPC Pacífico | L157: CMPC Pacífico | M157: CMPCPACIFICO_BL1_COGEN | N157: Biomasa | O157: MININCO_______220 | P157: Sí
B158: BE FORESTALES | C158: 76.188.197-3 | D158: CMPC CELULOSA PLANTA PACIFICO | E158: 322488 | F158: CMPC PACIFICO | G158: CALDERA AUXILIAR N°2 | H158: IN000335-6 | I158: CMPC PACIFICO 1 | J158: CMPC PACIFICO | K158: CMPC Pacífico | L158: CMPC Pacífico | M158: CMPCPACIFICO_BL1+BL2_COGEN | N158: Biomasa | O158: MININCO_______220 | P158: Sí
B159: BE FORESTALES | C159: 76.188.197-3 | D159: CMPC CELULOSA PLANTA PACIFICO | E159: 322488 | F159: CMPC PACIFICO | G159: CALDERA AUXILIAR N°2 | H159: IN000335-6 | I159: CMPC PACIFICO 1 | J159: CMPC PACIFICO | K159: CMPC Pacífico | L159: CMPC Pacífico | M159: CMPCPACIFICO_BL1+BL2+BL3_COGEN | N159: Diésel | O159: MININCO_______220 | P159: Sí
B160: BE FORESTALES | C160: 76.188.197-3 | D160: CMPC CELULOSA PLANTA PACIFICO | E160: 322488 | F160: CMPC PACIFICO | G160: CALDERA AUXILIAR N°2 | H160: IN000335-6 | I160: CMPC PACIFICO 2 | J160: CMPC PACIFICO | K160: CMPC Pacífico | L160: CMPC Pacífico | M160: CMPCPACIFICO_BL1_COGEN | N160: Biomasa | O160: MININCO_______220 | P160: Sí
B161: BE FORESTALES | C161: 76.188.197-3 | D161: CMPC CELULOSA PLANTA PACIFICO | E161: 322488 | F161: CMPC PACIFICO | G161: CALDERA AUXILIAR N°2 | H161: IN000335-6 | I161: CMPC PACIFICO 2 | J161: CMPC PACIFICO | K161: CMPC Pacífico | L161: CMPC Pacífico | M161: CMPCPACIFICO_BL1+BL2_COGEN | N161: Biomasa | O161: MININCO_______220 | P161: Sí
B162: BE FORESTALES | C162: 76.188.197-3 | D162: CMPC CELULOSA PLANTA PACIFICO | E162: 322488 | F162: CMPC PACIFICO | G162: CALDERA AUXILIAR N°2 | H162: IN000335-6 | I162: CMPC PACIFICO 2 | J162: CMPC PACIFICO | K162: CMPC Pacífico | L162: CMPC Pacífico | M162: CMPCPACIFICO_BL1+BL2+BL3_COGEN | N162: Diésel | O162: MININCO_______220 | P162: Sí
B163: BE FORESTALES | C163: 76.188.197-3 | D163: CMPC CELULOSA PLANTA PACIFICO | E163: 322488 | F163: CMPC PACIFICO | G163: CALDERA AUXILIAR N°2 | H163: IN000335-6 | I163: CMPC PACIFICO 3 | J163: CMPC PACIFICO | K163: CMPC Pacífico | L163: CMPC Pacífico | M163: CMPCPACIFICO_BL1_COGEN | N163: Biomasa | O163: MININCO_______220 | P163: Sí
B164: BE FORESTALES | C164: 76.188.197-3 | D164: CMPC CELULOSA PLANTA PACIFICO | E164: 322488 | F164: CMPC PACIFICO | G164: CALDERA AUXILIAR N°2 | H164: IN000335-6 | I164: CMPC PACIFICO 3 | J164: CMPC PACIFICO | K164: CMPC Pacífico | L164: CMPC Pacífico | M164: CMPCPACIFICO_BL1+BL2_COGEN | N164: Biomasa | O164: MININCO_______220 | P164: Sí
B165: BE FORESTALES | C165: 76.188.197-3 | D165: CMPC CELULOSA PLANTA PACIFICO | E165: 322488 | F165: CMPC PACIFICO | G165: CALDERA AUXILIAR N°2 | H165: IN000335-6 | I165: CMPC PACIFICO 3 | J165: CMPC PACIFICO | K165: CMPC Pacífico | L165: CMPC Pacífico | M165: CMPCPACIFICO_BL1+BL2+BL3_COGEN | N165: Diésel | O165: MININCO_______220 | P165: Sí
B166: BE FORESTALES | C166: 76.188.197-3 | D166: CMPC CELULOSA PLANTA PACIFICO | E166: 322488 | F166: CMPC PACIFICO | G166: CALDERA RECUPERADORA | H166: IN000336-4 | I166: CMPC PACIFICO 1 | J166: CMPC PACIFICO | K166: CMPC Pacífico | L166: CMPC Pacífico | M166: CMPCPACIFICO_BL1_COGEN | N166: Biomasa | O166: MININCO_______220 | P166: Sí
B167: BE FORESTALES | C167: 76.188.197-3 | D167: CMPC CELULOSA PLANTA PACIFICO | E167: 322488 | F167: CMPC PACIFICO | G167: CALDERA RECUPERADORA | H167: IN000336-4 | I167: CMPC PACIFICO 1 | J167: CMPC PACIFICO | K167: CMPC Pacífico | L167: CMPC Pacífico | M167: CMPCPACIFICO_BL1+BL2_COGEN | N167: Biomasa | O167: MININCO_______220 | P167: Sí
B168: BE FORESTALES | C168: 76.188.197-3 | D168: CMPC CELULOSA PLANTA PACIFICO | E168: 322488 | F168: CMPC PACIFICO | G168: CALDERA RECUPERADORA | H168: IN000336-4 | I168: CMPC PACIFICO 1 | J168: CMPC PACIFICO | K168: CMPC Pacífico | L168: CMPC Pacífico | M168: CMPCPACIFICO_BL1+BL2+BL3_COGEN | N168: Diésel | O168: MININCO_______220 | P168: Sí
B169: BE FORESTALES | C169: 76.188.197-3 | D169: CMPC CELULOSA PLANTA PACIFICO | E169: 322488 | F169: CMPC PACIFICO | G169: CALDERA RECUPERADORA | H169: IN000336-4 | I169: CMPC PACIFICO 2 | J169: CMPC PACIFICO | K169: CMPC Pacífico | L169: CMPC Pacífico | M169: CMPCPACIFICO_BL1_COGEN | N169: Biomasa | O169: MININCO_______220 | P169: Sí
B170: BE FORESTALES | C170: 76.188.197-3 | D170: CMPC CELULOSA PLANTA PACIFICO | E170: 322488 | F170: CMPC PACIFICO | G170: CALDERA RECUPERADORA | H170: IN000336-4 | I170: CMPC PACIFICO 2 | J170: CMPC PACIFICO | K170: CMPC Pacífico | L170: CMPC Pacífico | M170: CMPCPACIFICO_BL1+BL2_COGEN | N170: Biomasa | O170: MININCO_______220 | P170: Sí
B171: BE FORESTALES | C171: 76.188.197-3 | D171: CMPC CELULOSA PLANTA PACIFICO | E171: 322488 | F171: CMPC PACIFICO | G171: CALDERA RECUPERADORA | H171: IN000336-4 | I171: CMPC PACIFICO 2 | J171: CMPC PACIFICO | K171: CMPC Pacífico | L171: CMPC Pacífico | M171: CMPCPACIFICO_BL1+BL2+BL3_COGEN | N171: Diésel | O171: MININCO_______220 | P171: Sí
B172: BE FORESTALES | C172: 76.188.197-3 | D172: CMPC CELULOSA PLANTA PACIFICO | E172: 322488 | F172: CMPC PACIFICO | G172: CALDERA RECUPERADORA | H172: IN000336-4 | I172: CMPC PACIFICO 3 | J172: CMPC PACIFICO | K172: CMPC Pacífico | L172: CMPC Pacífico | M172: CMPCPACIFICO_BL1_COGEN | N172: Biomasa | O172: MININCO_______220 | P172: Sí
B173: BE FORESTALES | C173: 76.188.197-3 | D173: CMPC CELULOSA PLANTA PACIFICO | E173: 322488 | F173: CMPC PACIFICO | G173: CALDERA RECUPERADORA | H173: IN000336-4 | I173: CMPC PACIFICO 3 | J173: CMPC PACIFICO | K173: CMPC Pacífico | L173: CMPC Pacífico | M173: CMPCPACIFICO_BL1+BL2_COGEN | N173: Biomasa | O173: MININCO_______220 | P173: Sí
B174: BE FORESTALES | C174: 76.188.197-3 | D174: CMPC CELULOSA PLANTA PACIFICO | E174: 322488 | F174: CMPC PACIFICO | G174: CALDERA RECUPERADORA | H174: IN000336-4 | I174: CMPC PACIFICO 3 | J174: CMPC PACIFICO | K174: CMPC Pacífico | L174: CMPC Pacífico | M174: CMPCPACIFICO_BL1+BL2+BL3_COGEN | N174: Diésel | O174: MININCO_______220 | P174: Sí
B175: BE FORESTALES | C175: 76.188.197-3 | D175: CMPC CELULOSA PLANTA PACIFICO | E175: 322488 | F175: CMPC PACIFICO | G175: INCINERADOR DEDICADO | H175: PC001041-8 | I175: CMPC PACIFICO 1 | J175: CMPC PACIFICO | K175: CMPC Pacífico | L175: CMPC Pacífico | M175: CMPCPACIFICO_BL1_COGEN | N175: Biomasa | O175: MININCO_______220 | P175: Sí
B176: BE FORESTALES | C176: 76.188.197-3 | D176: CMPC CELULOSA PLANTA PACIFICO | E176: 322488 | F176: CMPC PACIFICO | G176: INCINERADOR DEDICADO | H176: PC001041-8 | I176: CMPC PACIFICO 1 | J176: CMPC PACIFICO | K176: CMPC Pacífico | L176: CMPC Pacífico | M176: CMPCPACIFICO_BL1+BL2_COGEN | N176: Biomasa | O176: MININCO_______220 | P176: Sí
B177: BE FORESTALES | C177: 76.188.197-3 | D177: CMPC CELULOSA PLANTA PACIFICO | E177: 322488 | F177: CMPC PACIFICO | G177: INCINERADOR DEDICADO | H177: PC001041-8 | I177: CMPC PACIFICO 1 | J177: CMPC PACIFICO | K177: CMPC Pacífico | L177: CMPC Pacífico | M177: CMPCPACIFICO_BL1+BL2+BL3_COGEN | N177: Diésel | O177: MININCO_______220 | P177: Sí
B178: BE FORESTALES | C178: 76.188.197-3 | D178: CMPC CELULOSA PLANTA PACIFICO | E178: 322488 | F178: CMPC PACIFICO | G178: INCINERADOR DEDICADO | H178: PC001041-8 | I178: CMPC PACIFICO 2 | J178: CMPC PACIFICO | K178: CMPC Pacífico | L178: CMPC Pacífico | M178: CMPCPACIFICO_BL1_COGEN | N178: Biomasa | O178: MININCO_______220 | P178: Sí
B179: BE FORESTALES | C179: 76.188.197-3 | D179: CMPC CELULOSA PLANTA PACIFICO | E179: 322488 | F179: CMPC PACIFICO | G179: INCINERADOR DEDICADO | H179: PC001041-8 | I179: CMPC PACIFICO 2 | J179: CMPC PACIFICO | K179: CMPC Pacífico | L179: CMPC Pacífico | M179: CMPCPACIFICO_BL1+BL2_COGEN | N179: Biomasa | O179: MININCO_______220 | P179: Sí
B180: BE FORESTALES | C180: 76.188.197-3 | D180: CMPC CELULOSA PLANTA PACIFICO | E180: 322488 | F180: CMPC PACIFICO | G180: INCINERADOR DEDICADO | H180: PC001041-8 | I180: CMPC PACIFICO 2 | J180: CMPC PACIFICO | K180: CMPC Pacífico | L180: CMPC Pacífico | M180: CMPCPACIFICO_BL1+BL2+BL3_COGEN | N180: Diésel | O180: MININCO_______220 | P180: Sí
B181: BE FORESTALES | C181: 76.188.197-3 | D181: CMPC CELULOSA PLANTA PACIFICO | E181: 322488 | F181: CMPC PACIFICO | G181: INCINERADOR DEDICADO | H181: PC001041-8 | I181: CMPC PACIFICO 3 | J181: CMPC PACIFICO | K181: CMPC Pacífico | L181: CMPC Pacífico | M181: CMPCPACIFICO_BL1_COGEN | N181: Biomasa | O181: MININCO_______220 | P181: Sí
B182: BE FORESTALES | C182: 76.188.197-3 | D182: CMPC CELULOSA PLANTA PACIFICO | E182: 322488 | F182: CMPC PACIFICO | G182: INCINERADOR DEDICADO | H182: PC001041-8 | I182: CMPC PACIFICO 3 | J182: CMPC PACIFICO | K182: CMPC Pacífico | L182: CMPC Pacífico | M182: CMPCPACIFICO_BL1+BL2_COGEN | N182: Biomasa | O182: MININCO_______220 | P182: Sí
B183: BE FORESTALES | C183: 76.188.197-3 | D183: CMPC CELULOSA PLANTA PACIFICO | E183: 322488 | F183: CMPC PACIFICO | G183: INCINERADOR DEDICADO | H183: PC001041-8 | I183: CMPC PACIFICO 3 | J183: CMPC PACIFICO | K183: CMPC Pacífico | L183: CMPC Pacífico | M183: CMPCPACIFICO_BL1+BL2+BL3_COGEN | N183: Diésel | O183: MININCO_______220 | P183: Sí
B184: BE FORESTALES | C184: 76.188.197-3 | D184: PAPELES CORDILLERA S.A. | E184: 2897 | F184: CMPC CORDILLERA | G184: CALDERA 1 | H184: IN001148-0 | I184: CMPC CORDILLERA | J184: CMPC CORDILLERA | K184: CMPC Cordillera | L184: CMPC Cordillera | M184: CMPCCORDILLERA_BL1_COGEN | N184: GNL | O184: PALTO_________110 | P184: Sí
B185: BE FORESTALES | C185: 76.188.197-3 | D185: PAPELES CORDILLERA S.A. | E185: 2897 | F185: CMPC CORDILLERA | G185: CALDERA 1 | H185: IN001148-0 | I185: CMPC CORDILLERA | J185: CMPC CORDILLERA | K185: CMPC Cordillera | L185: CMPC Cordillera | M185: CMPCCORDILLERA_BL1+BL2_COGEN | N185: GNL | O185: PALTO_________110 | P185: Sí
B186: BE FORESTALES | C186: 76.188.197-3 | D186: PAPELES CORDILLERA S.A. | E186: 2897 | F186: CMPC CORDILLERA | G186: CALDERA 1 | H186: IN001148-0 | I186: CMPC CORDILLERA | J186: CMPC CORDILLERA | K186: CMPC Cordillera | L186: CMPC Cordillera | M186: CMPCCORDILLERA_BL1+BL2+BL3_COGEN | N186: GNL | O186: PALTO_________110 | P186: Sí
B187: BE FORESTALES | C187: 76.188.197-3 | D187: PAPELES CORDILLERA S.A. | E187: 2897 | F187: CMPC CORDILLERA | G187: CALDERA 2 | H187: IN001149-9 | I187: CMPC CORDILLERA | J187: CMPC CORDILLERA | K187: CMPC Cordillera | L187: CMPC Cordillera | M187: CMPCCORDILLERA_BL1_COGEN | N187: GNL | O187: PALTO_________110 | P187: Sí
B188: BE FORESTALES | C188: 76.188.197-3 | D188: PAPELES CORDILLERA S.A. | E188: 2897 | F188: CMPC CORDILLERA | G188: CALDERA 2 | H188: IN001149-9 | I188: CMPC CORDILLERA | J188: CMPC CORDILLERA | K188: CMPC Cordillera | L188: CMPC Cordillera | M188: CMPCCORDILLERA_BL1+BL2_COGEN | N188: GNL | O188: PALTO_________110 | P188: Sí
B189: BE FORESTALES | C189: 76.188.197-3 | D189: PAPELES CORDILLERA S.A. | E189: 2897 | F189: CMPC CORDILLERA | G189: CALDERA 2 | H189: IN001149-9 | I189: CMPC CORDILLERA | J189: CMPC CORDILLERA | K189: CMPC Cordillera | L189: CMPC Cordillera | M189: CMPCCORDILLERA_BL1+BL2+BL3_COGEN | N189: GNL | O189: PALTO_________110 | P189: Sí
B190: BE FORESTALES | C190: 76.188.197-3 | D190: PAPELES CORDILLERA S.A. | E190: 2897 | F190: CMPC CORDILLERA | G190: CALDERA 3 | H190: IN001150-2 | I190: CMPC CORDILLERA | J190: CMPC CORDILLERA | K190: CMPC Cordillera | L190: CMPC Cordillera | M190: CMPCCORDILLERA_BL1_COGEN | N190: GNL | O190: PALTO_________110 | P190: Sí
B191: BE FORESTALES | C191: 76.188.197-3 | D191: PAPELES CORDILLERA S.A. | E191: 2897 | F191: CMPC CORDILLERA | G191: CALDERA 3 | H191: IN001150-2 | I191: CMPC CORDILLERA | J191: CMPC CORDILLERA | K191: CMPC Cordillera | L191: CMPC Cordillera | M191: CMPCCORDILLERA_BL1+BL2_COGEN | N191: GNL | O191: PALTO_________110 | P191: Sí
B192: BE FORESTALES | C192: 76.188.197-3 | D192: PAPELES CORDILLERA S.A. | E192: 2897 | F192: CMPC CORDILLERA | G192: CALDERA 3 | H192: IN001150-2 | I192: CMPC CORDILLERA | J192: CMPC CORDILLERA | K192: CMPC Cordillera | L192: CMPC Cordillera | M192: CMPCCORDILLERA_BL1+BL2+BL3_COGEN | N192: GNL | O192: PALTO_________110 | P192: Sí
B193: BE FORESTALES | C193: 76.188.197-3 | D193: PAPELES CORDILLERA S.A. | E193: 2897 | F193: CMPC CORDILLERA | G193: TURBINA | H193: PC003526-2 | I193: CMPC CORDILLERA | J193: CMPC CORDILLERA | K193: CMPC Cordillera | L193: CMPC Cordillera | M193: CMPCCORDILLERA_BL1_COGEN | N193: GNL | O193: PALTO_________110 | P193: Sí
B194: BE FORESTALES | C194: 76.188.197-3 | D194: PAPELES CORDILLERA S.A. | E194: 2897 | F194: CMPC CORDILLERA | G194: TURBINA | H194: PC003526-2 | I194: CMPC CORDILLERA | J194: CMPC CORDILLERA | K194: CMPC Cordillera | L194: CMPC Cordillera | M194: CMPCCORDILLERA_BL1+BL2_COGEN | N194: GNL | O194: PALTO_________110 | P194: Sí
B195: BE FORESTALES | C195: 76.188.197-3 | D195: PAPELES CORDILLERA S.A. | E195: 2897 | F195: CMPC CORDILLERA | G195: TURBINA | H195: PC003526-2 | I195: CMPC CORDILLERA | J195: CMPC CORDILLERA | K195: CMPC Cordillera | L195: CMPC Cordillera | M195: CMPCCORDILLERA_BL1+BL2+BL3_COGEN | N195: GNL | O195: PALTO_________110 | P195: Sí
B196: BE FORESTALES | C196: 76.188.197-3 | D196: CMPC TISSUE S.A. | E196: 9898 | F196: CMPC TISSUE | H196: IN002463-9 | I196: CMPC TISSUE | J196: CMPC TISSUE | L196: CMPC TISSUE | P196: Sí
B197: BE FORESTALES | C197: 76.188.197-3 | D197: CMPC TISSUE S.A. | E197: 9898 | F197: CMPC TISSUE | H197: PC003087-7 | I197: CMPC TISSUE | J197: CMPC TISSUE | L197: CMPC TISSUE | P197: Sí
B198: BE FORESTALES | C198: 76.188.197-3 | D198: CMPC TISSUE S.A. | E198: 9898 | F198: CMPC TISSUE | G198: TURBINA AERODERIVATIVA | H198: PR15149 | I198: CMPC TISSUE | J198: CMPC TISSUE | L198: CMPC TISSUE | P198: Sí
B199: CARDONES SA | C199: 76.550.580-1 | D199: CENTRAL CARDONES | E199: 245656 | F199: CENTRAL CARDONES | G199: UGE Cardones | H199: PC001834-6 | I199: CARDONES (EX TIERRA AMARILLA) | J199: CARDONES | K199: Cardones | L199: Cardones | M199: CARDONES_DIESEL | N199: Diésel | O199: CARDONES______220 | P199: No
B200: COCHRANE | C200: 76.085.254-6 | D200: CENTRAL TERMOELÉCTRICA COCHRANE | E200: 5452233 | F200: COCHRANE (CCH2) | G200: UGE CCH-2 | H200: GE000235-6 | I200: CCR2 | J200: Cochrane | K200: Cochrane | L200: CCH2 | M200: COCHRANE-CCH2_CAR | N200: Carbón | O200: COCHRANE______220 | P200: No
B201: COCHRANE | C201: 76.085.254-6 | D201: CENTRAL TERMOELÉCTRICA COCHRANE | E201: 5452233 | F201: COCHRANE (CCH1) | G201: UGE CCH-1 | H201: GE000234-8 | I201: CCR1 | J201: Cochrane | K201: Cochrane | L201: CCH1 | M201: COCHRANE-CCH1_CAR | N201: Carbón | O201: COCHRANE______220 | P201: No
B202: COLBUN | C202: 96.505.760-9 | D202: TERMOELECTRICA NEHUENCO SA | E202: 28770 | F202: NEHUENCO 1 | G202: UGE Nehuenco I | H202: PC001510-0 | I202: NEHUENCO | J202: NEHUENCO | K202: Nehuenco | L202: Nehuenco | M202: NEHUENCO-1_TG1_GNL_INFLEX | N202: GNL | O202: S.LUIS2_______220 | P202: No
... 480 more rows

Sheet Unidades
B2: Lista Unidades TCV
B5: Nombre unidad TCV | C5: Nombre central TCV | D5: Empresa | E5: Autoproductor | F5: Total
B6: ANG1 | C6: Angamos | D6: ANGAMOS | E6: No | F6: 1
B7: ANG2 | C7: Angamos | D7: ANGAMOS | E7: No | F7: 1
B8: Antilhue TG U1 | C8: Antilhue TG | D8: COLBUN | E8: No | F8: 2
B9: Antilhue TG U2 | C9: Antilhue TG | D9: COLBUN | E9: No | F9: 2
B10: Arauco | C10: Arauco | D10: ARAUCO BIO | E10: Sí | F10: 11
B11: Bocamina | C11: Termoeléctrica Bocamina | D11: ENEL_GENERACION | E11: No | F11: 1
B12: Bocamina II | C12: Termoeléctrica Bocamina | D12: ENEL_GENERACION | E12: No | F12: 1
B13: Campiche | C13: Termoeléctrica Ventanas | D13: AES_GENER | E13: No | F13: 1
B14: Candelaria 1 | C14: Candelaria | D14: COLBUN | E14: No | F14: 10
B15: Candelaria 2 | C15: Candelaria | D15: COLBUN | E15: No | F15: 10
B16: Cardones | C16: Cardones | D16: CARDONES SA | E16: No | F16: 1
B17: CC KELAR | C17: Kelar | D17: TAMAKAYA_ENERGIA | E17: No | F17: 48
B18: CC1 | C18: Atacama | D18: ENEL_GENERACION | E18: No | F18: 68
B19: CC2 | C19: Atacama | D19: ENEL_GENERACION | E19: No | F19: 72
B20: CCH1 | C20: Cochrane | D20: COCHRANE | E20: No | F20: 1
B21: CCH2 | C21: Cochrane | D21: COCHRANE | E21: No | F21: 1
B22: CD Iquique | C22: (en blanco) | D22: ENGIE | E22: No
B23: Celco | C23: Celco | D23: ARAUCO BIO | E23: Sí | F23: 4
B24: Cholguán | C24: Cholguan | D24: ARAUCO BIO | E24: Sí | F24: 6
B25: CMPC Cordillera | C25: CMPC Cordillera | D25: BE FORESTALES | E25: Sí | F25: 12
B26: CMPC Laja | C26: CMPC Laja | D26: BE FORESTALES | E26: Sí | F26: 12
B27: CMPC Pacífico | C27: CMPC Pacífico | D27: BE FORESTALES | E27: Sí | F27: 45
B28: CMPC Santa Fe | C28: Santa Fe | D28: BE FORESTALES | E28: Sí | F28: 36
B29: CMPC TISSUE | C29: (en blanco) | D29: BE FORESTALES | E29: Sí
B30: Colmito | C30: Colmito | D30: COLMITO | E30: No | F30: 3
B31: CTA | C31: Andina | D31: ANDINA | E31: No | F31: 1
B32: CTH | C32: Hornitos | D32: HORNITOS | E32: No | F32: 2
B33: CTM1 | C33: Mejillones | D33: ENGIE | E33: No | F33: 1
B34: CTM2 | C34: Mejillones | D34: ENGIE | E34: No | F34: 1
B35: CTM3 | C35: Mejillones | D35: ENGIE | E35: No | F35: 12
B36: CTTAR | C36: Tarapacá | D36: ENEL_GENERACION | E36: No | F36: 1
B37: Diego de Almagro | C37: Diego de Almagro | D37: ENEL_GENERACION | E37: No | F37: 1
B38: El Salvador | C38: El Salvador | D38: SWO | E38: No | F38: 1
B39: Emelda U1 | C39: Emelda | D39: EMELDA | E39: No | F39: 1
B40: Emelda U2 | C40: Emelda | D40: EMELDA | E40: No | F40: 1
B41: Energía Pacífico | C41: Energía Pacífico | D41: ENERGIA PACIFICO | E41: Sí | F41: 1
B42: Escuadrón | C42: Escuadron | D42: NUEVA ENERGIA | E42: No | F42: 2
B43: Esperanza TG | C43: Esperanza | D43: ENORCHILE | E43: No | F43: 1
B44: Guacolda 1 | C44: Guacolda | D44: GUACOLDA | E44: No | F44: 1
B45: Guacolda 2 | C45: Guacolda | D45: GUACOLDA | E45: No | F45: 1
B46: Guacolda 3 | C46: Guacolda | D46: GUACOLDA | E46: No | F46: 1
B47: Guacolda 4 | C47: Guacolda | D47: GUACOLDA | E47: No | F47: 1
B48: Guacolda 5 | C48: Guacolda | D48: GUACOLDA | E48: No | F48: 1
B49: Horcones | C49: Horcones TG | D49: ARAUCO BIO | E49: No | F49: 1
B50: Huasco TG | C50: Huasco TG | D50: ENEL_GENERACION | E50: No | F50: 6
B51: IEM | C51: Mejillones | D51: ENGIE | E51: No | F51: 1
B52: Laguna Verde TG | C52: Laguna Verde | D52: AES_GENER | E52: No | F52: 1
B53: Laguna Verde TV | C53: Laguna Verde | D53: AES_GENER | E53: No | F53: 4
B54: Laja | C54: Laja | D54: AES_GENER | E54: Sí | F54: 2
B55: Lautaro-Comasa | C55: Lautaro | D55: COMASA | E55: No | F55: 2
B56: Lautaro-Comasa 2 | C56: Lautaro | D56: COMASA | E56: No | F56: 1
B57: Licantén | C57: Licanten | D57: ARAUCO BIO | E57: Sí | F57: 2
B58: Los Guindos | C58: Los Guindos | D58: LOS_GUINDOS | E58: No | F58: 1
B59: Los Pinos | C59: Los Pinos | D59: COLBUN | E59: No | F59: 1
B60: Los Vientos | C60: Los Vientos | D60: GMETROPOLITANA | E60: No | F60: 2
B61: Masisa (Cabrero) | C61: Masisa | D61: NEOMAS | E61: Sí | F61: 5
B62: Nehuenco | C62: Nehuenco | D62: COLBUN | E62: No | F62: 42
B63: Nehuenco II | C63: Nehuenco | D63: COLBUN | E63: No | F63: 19
B64: Nehuenco TG 9B | C64: Nehuenco | D64: COLBUN | E64: No | F64: 10
B65: NTO1 | C65: Norgener | D65: AES_GENER | E65: No | F65: 1
B66: NTO2 | C66: Norgener | D66: AES_GENER | E66: No | F66: 1
B67: Nueva Aldea I | C67: Nueva Aldea I | D67: ARAUCO BIO | E67: Sí | F67: 6
B68: Nueva Aldea III | C68: Nueva Aldea III | D68: ARAUCO BIO | E68: Sí | F68: 3
B69: Nueva Renca | C69: Nueva Renca | D69: GMETROPOLITANA | E69: No | F69: 14
B70: Nueva Ventanas | C70: Termoeléctrica Ventanas | D70: AES_GENER | E70: No | F70: 1
B71: Petropower | C71: Petropower | D71: ERSA | E71: Sí | F71: 1
B72: Quintero A | C72: Quintero | D72: ENEL_GENERACION | E72: No | F72: 7
B73: Quintero B | C73: Quintero | D73: ENEL_GENERACION | E73: No | F73: 7
B74: Renca U1 | C74: Renca | D74: GMETROPOLITANA | E74: No | F74: 1
B75: Renca U2 | C75: Renca | D75: GMETROPOLITANA | E75: No | F75: 1
B76: San Isidro | C76: San Isidro | D76: ENEL_GENERACION | E76: No | F76: 27
B77: San Isidro II | C77: San Isidro 2 | D77: ENEL_GENERACION | E77: No | F77: 21
B78: San Lorenzo de D. de Almagro U1 | C78: San Lorenzo de D. de Almagro | D78: ENLASA | E78: No | F78: 1
B79: San Lorenzo de D. de Almagro U2 | C79: San Lorenzo de D. de Almagro | D79: ENLASA | E79: No | F79: 1
B80: Santa Lidia | C80: Santa Lidia | D80: GMETROPOLITANA | E80: No | F80: 1
B81: Santa María | C81: Santa María | D81: COLBUN | E81: No | F81: 2
B82: Taltal 1 | C82: Taltal | D82: ENEL_GENERACION | E82: No | F82: 7
B83: Taltal 2 | C83: Taltal | D83: ENEL_GENERACION | E83: No | F83: 7
B84: TG_Coronel | C84: Coronel | D84: SGA | E84: No | F84: 3
B85: TG1 | C85: Tocopilla | D85: ENGIE | E85: No | F85: 1
B86: TG2 | C86: Tocopilla | D86: ENGIE | E86: No | F86: 1
B87: TG3 | C87: Tocopilla | D87: ENGIE | E87: No | F87: 5
B88: TGTAR | C88: Tarapacá | D88: ENEL_GENERACION | E88: No | F88: 1
B89: U12 | C89: Tocopilla | D89: ENGIE | E89: No | F89: 1
B90: U13 | C90: Tocopilla | D90: ENGIE | E90: No | F90: 1
B91: U14 | C91: Tocopilla | D91: ENGIE | E91: No | F91: 1
B92: U15 | C92: Tocopilla | D92: ENGIE | E92: No | F92: 1
B93: U16 | C93: Tocopilla | D93: ENGIE | E93: No | F93: 11
B94: Valdivia | C94: Valdivia | D94: ARAUCO BIO | E94: Sí | F94: 16
B95: Ventanas 1 | C95: Termoeléctrica Ventanas | D95: AES_GENER | E95: No | F95: 1
B96: Ventanas 2 | C96: Termoeléctrica Ventanas | D96: AES_GENER | E96: No | F96: 1
B97: Viñales | C97: Viñales | D97: ARAUCO BIO | E97: Sí | F97: 2
B98: Yungay 1 | C98: Yungay | D98: ORAZUL_CHILE | E98: No | F98: 4
B99: Yungay 2 | C99: Yungay | D99: ORAZUL_CHILE | E99: No | F99: 4
B100: Yungay 3 | C100: Yungay | D100: ORAZUL_CHILE | E100: No | F100: 4
B101: Yungay 4 ca | C101: Yungay | D101: ORAZUL_CHILE | E101: No | F101: 1
B102: Los Guindos 2 | C102: Los Guindos | D102: LOS_GUINDOS | E102: No | F102: 1
B103: ACONCAGUA | C103: ACONCAGUA | D103: ERSA | E103: Sí | F103: 2
B104: ERSA_BIOBIO | C104: ERSA_BIOBIO | D104: ERSA | E104: Sí | F104: 1
B105: Total general | F105: 653

Sheet Retiros Anuales
B2: Empresa | C2: Medida_kWh | D2: Prorrata | F2: Empresa | G2: Energía Retirada kWh | H2: Prorrata | I2: Pago CLP
B3: AASA_ENERGIA | C3: -1716931.535 | D3: =+TablaRetiros[[#This Row],[Medida_kWh]]/SUM(TablaRetiros[Medida_kWh]) -> 2.407212742e-05 | F3: =+TablaRetiros[[#This Row],[Empresa]] -> AASA_ENERGIA | G3: =+TablaRetiros[[#This Row],[Medida_kWh]]*-1 -> 1716931.535 | H3: =+TablaRetiros[[#This Row],[Prorrata]] -> 2.407212742e-05 | I3: =+H3*GETPIVOTDATA("Compensación",Resultados!$Q$4) -> 721566.4721
B4: ABASTIBLE | C4: -2373236.587 | D4: =+TablaRetiros[[#This Row],[Medida_kWh]]/SUM(TablaRetiros[Medida_kWh]) -> 3.327380991e-05 | F4: =+TablaRetiros[[#This Row],[Empresa]] -> ABASTIBLE | G4: =+TablaRetiros[[#This Row],[Medida_kWh]]*-1 -> 2373236.587 | H4: =+TablaRetiros[[#This Row],[Prorrata]] -> 3.327380991e-05 | I4: =+H4*GETPIVOTDATA("Compensación",Resultados!$Q$4) -> 997388.6068
B5: ACCIONA_ENERGIA | C5: -870874236.9 | D5: =+TablaRetiros[[#This Row],[Medida_kWh]]/SUM(TablaRetiros[Medida_kWh]) -> 0.01221003585 | F5: =+TablaRetiros[[#This Row],[Empresa]] -> ACCIONA_ENERGIA | G5: =+TablaRetiros[[#This Row],[Medida_kWh]]*-1 -> 870874236.9 | H5: =+TablaRetiros[[#This Row],[Prorrata]] -> 0.01221003585 | I5: =+H5*GETPIVOTDATA("Compensación",Resultados!$Q$4) -> 365998083.2
B6: AELA_GENERACION | C6: -506172688.8 | D6: =+TablaRetiros[[#This Row],[Medida_kWh]]/SUM(TablaRetiros[Medida_kWh]) -> 0.007096761411 | F6: =+TablaRetiros[[#This Row],[Empresa]] -> AELA_GENERACION | G6: =+TablaRetiros[[#This Row],[Medida_kWh]]*-1 -> 506172688.8 | H6: =+TablaRetiros[[#This Row],[Prorrata]] -> 0.007096761411 | I6: =+H6*GETPIVOTDATA("Compensación",Resultados!$Q$4) -> 212726736
B7: AES_GENER | C7: -8705012657 | D7: =+TablaRetiros[[#This Row],[Medida_kWh]]/SUM(TablaRetiros[Medida_kWh]) -> 0.1220480663 | F7: =+TablaRetiros[[#This Row],[Empresa]] -> AES_GENER | G7: =+TablaRetiros[[#This Row],[Medida_kWh]]*-1 -> 8705012657 | H7: =+TablaRetiros[[#This Row],[Prorrata]] -> 0.1220480663 | I7: =+H7*GETPIVOTDATA("Compensación",Resultados!$Q$4) -> 3658413364
B8: ALBA | C8: -6615082.94 | D8: =+TablaRetiros[[#This Row],[Medida_kWh]]/SUM(TablaRetiros[Medida_kWh]) -> 9.274634206e-05 | F8: =+TablaRetiros[[#This Row],[Empresa]] -> ALBA | G8: =+TablaRetiros[[#This Row],[Medida_kWh]]*-1 -> 6615082.94 | H8: =+TablaRetiros[[#This Row],[Prorrata]] -> 9.274634206e-05 | I8: =+H8*GETPIVOTDATA("Compensación",Resultados!$Q$4) -> 2780088.759
B9: ALMEYDA | C9: -244197591.1 | D9: =+TablaRetiros[[#This Row],[Medida_kWh]]/SUM(TablaRetiros[Medida_kWh]) -> 0.003423756516 | F9: =+TablaRetiros[[#This Row],[Empresa]] -> ALMEYDA | G9: =+TablaRetiros[[#This Row],[Medida_kWh]]*-1 -> 244197591.1 | H9: =+TablaRetiros[[#This Row],[Prorrata]] -> 0.003423756516 | I9: =+H9*GETPIVOTDATA("Compensación",Resultados!$Q$4) -> 102627734.9
B10: ALLIPEN | C10: -28748192.29 | D10: =+TablaRetiros[[#This Row],[Medida_kWh]]/SUM(TablaRetiros[Medida_kWh]) -> 0.0004030621686 | F10: =+TablaRetiros[[#This Row],[Empresa]] -> ALLIPEN | G10: =+TablaRetiros[[#This Row],[Medida_kWh]]*-1 -> 28748192.29 | H10: =+TablaRetiros[[#This Row],[Prorrata]] -> 0.0004030621686 | I10: =+H10*GETPIVOTDATA("Compensación",Resultados!$Q$4) -> 12081863.06
B11: ANDINA | C11: -972266492.2 | D11: =+TablaRetiros[[#This Row],[Medida_kWh]]/SUM(TablaRetiros[Medida_kWh]) -> 0.0136315994 | F11: =+TablaRetiros[[#This Row],[Empresa]] -> ANDINA | G11: =+TablaRetiros[[#This Row],[Medida_kWh]]*-1 -> 972266492.2 | H11: =+TablaRetiros[[#This Row],[Prorrata]] -> 0.0136315994 | I11: =+H11*GETPIVOTDATA("Compensación",Resultados!$Q$4) -> 408609713.6
B12: ANGAMOS | C12: -3190423790 | D12: =+TablaRetiros[[#This Row],[Medida_kWh]]/SUM(TablaRetiros[Medida_kWh]) -> 0.04473113018 | F12: =+TablaRetiros[[#This Row],[Empresa]] -> ANGAMOS | G12: =+TablaRetiros[[#This Row],[Medida_kWh]]*-1 -> 3190423790 | H12: =+TablaRetiros[[#This Row],[Prorrata]] -> 0.04473113018 | I12: =+H12*GETPIVOTDATA("Compensación",Resultados!$Q$4) -> 1340823901
B13: ARAUCO BIO | C13: -482417780.4 | D13: =+TablaRetiros[[#This Row],[Medida_kWh]]/SUM(TablaRetiros[Medida_kWh]) -> 0.006763707255 | F13: =+TablaRetiros[[#This Row],[Empresa]] -> ARAUCO BIO | G13: =+TablaRetiros[[#This Row],[Medida_kWh]]*-1 -> 482417780.4 | H13: =+TablaRetiros[[#This Row],[Prorrata]] -> 0.006763707255 | I13: =+H13*GETPIVOTDATA("Compensación",Resultados!$Q$4) -> 202743376.1
B14: ARRAYAN_EOLICO | C14: -3579530.192 | D14: =+TablaRetiros[[#This Row],[Medida_kWh]]/SUM(TablaRetiros[Medida_kWh]) -> 5.01865713e-05 | F14: =+TablaRetiros[[#This Row],[Empresa]] -> ARRAYAN_EOLICO | G14: =+TablaRetiros[[#This Row],[Medida_kWh]]*-1 -> 3579530.192 | H14: =+TablaRetiros[[#This Row],[Prorrata]] -> 5.01865713e-05 | I14: =+H14*GETPIVOTDATA("Compensación",Resultados!$Q$4) -> 1504351.758
B15: CERRO_DOMINADOR_CSP | C15: -616073614 | D15: =+TablaRetiros[[#This Row],[Medida_kWh]]/SUM(TablaRetiros[Medida_kWh]) -> 0.008637620217 | F15: =+TablaRetiros[[#This Row],[Empresa]] -> CERRO_DOMINADOR_CSP | G15: =+TablaRetiros[[#This Row],[Medida_kWh]]*-1 -> 616073614 | H15: =+TablaRetiros[[#This Row],[Prorrata]] -> 0.008637620217 | I15: =+H15*GETPIVOTDATA("Compensación",Resultados!$Q$4) -> 258914263.7
B16: ATRIA_ENERGIA | C16: -87541485.41 | D16: =+TablaRetiros[[#This Row],[Medida_kWh]]/SUM(TablaRetiros[Medida_kWh]) -> 0.001227369728 | F16: =+TablaRetiros[[#This Row],[Empresa]] -> ATRIA_ENERGIA | G16: =+TablaRetiros[[#This Row],[Medida_kWh]]*-1 -> 87541485.41 | H16: =+TablaRetiros[[#This Row],[Prorrata]] -> 0.001227369728 | I16: =+H16*GETPIVOTDATA("Compensación",Resultados!$Q$4) -> 36790634.63
B17: BE FORESTALES | C17: -38416513.67 | D17: =+TablaRetiros[[#This Row],[Medida_kWh]]/SUM(TablaRetiros[Medida_kWh]) -> 0.0005386162425 | F17: =+TablaRetiros[[#This Row],[Empresa]] -> BE FORESTALES | G17: =+TablaRetiros[[#This Row],[Medida_kWh]]*-1 -> 38416513.67 | H17: =+TablaRetiros[[#This Row],[Prorrata]] -> 0.0005386162425 | I17: =+H17*GETPIVOTDATA("Compensación",Resultados!$Q$4) -> 16145121.5
B18: BESALCO | C18: -102781970.5 | D18: =+TablaRetiros[[#This Row],[Medida_kWh]]/SUM(TablaRetiros[Medida_kWh]) -> 0.001441047962 | F18: =+TablaRetiros[[#This Row],[Empresa]] -> BESALCO | G18: =+TablaRetiros[[#This Row],[Medida_kWh]]*-1 -> 102781970.5 | H18: =+TablaRetiros[[#This Row],[Prorrata]] -> 0.001441047962 | I18: =+H18*GETPIVOTDATA("Compensación",Resultados!$Q$4) -> 43195679.22
B19: CABO_LEONES | C19: -133886423.8 | D19: =+TablaRetiros[[#This Row],[Medida_kWh]]/SUM(TablaRetiros[Medida_kWh]) -> 0.001877145936 | F19: =+TablaRetiros[[#This Row],[Empresa]] -> CABO_LEONES | G19: =+TablaRetiros[[#This Row],[Medida_kWh]]*-1 -> 133886423.8 | H19: =+TablaRetiros[[#This Row],[Prorrata]] -> 0.001877145936 | I19: =+H19*GETPIVOTDATA("Compensación",Resultados!$Q$4) -> 56267796.65
B20: CAREN | C20: -71717900.36 | D20: =+TablaRetiros[[#This Row],[Medida_kWh]]/SUM(TablaRetiros[Medida_kWh]) -> 0.001005516179 | F20: =+TablaRetiros[[#This Row],[Empresa]] -> CAREN | G20: =+TablaRetiros[[#This Row],[Medida_kWh]]*-1 -> 71717900.36 | H20: =+TablaRetiros[[#This Row],[Prorrata]] -> 0.001005516179 | I20: =+H20*GETPIVOTDATA("Compensación",Resultados!$Q$4) -> 30140533.44
B21: COCHRANE | C21: -1947693930 | D21: =+TablaRetiros[[#This Row],[Medida_kWh]]/SUM(TablaRetiros[Medida_kWh]) -> 0.02730751664 | F21: =+TablaRetiros[[#This Row],[Empresa]] -> COCHRANE | G21: =+TablaRetiros[[#This Row],[Medida_kWh]]*-1 -> 1947693930 | H21: =+TablaRetiros[[#This Row],[Prorrata]] -> 0.02730751664 | I21: =+H21*GETPIVOTDATA("Compensación",Resultados!$Q$4) -> 818547862.5
B22: COLBUN | C22: -1.021932053e+10 | D22: =+TablaRetiros[[#This Row],[Medida_kWh]]/SUM(TablaRetiros[Medida_kWh]) -> 0.1432793219 | F22: =+TablaRetiros[[#This Row],[Empresa]] -> COLBUN | G22: =+TablaRetiros[[#This Row],[Medida_kWh]]*-1 -> 1.021932053e+10 | H22: =+TablaRetiros[[#This Row],[Prorrata]] -> 0.1432793219 | I22: =+H22*GETPIVOTDATA("Compensación",Resultados!$Q$4) -> 4294824176
B23: COMASA | C23: -62117821.4 | D23: =+TablaRetiros[[#This Row],[Medida_kWh]]/SUM(TablaRetiros[Medida_kWh]) -> 0.0008709188931 | F23: =+TablaRetiros[[#This Row],[Empresa]] -> COMASA | G23: =+TablaRetiros[[#This Row],[Medida_kWh]]*-1 -> 62117821.4 | H23: =+TablaRetiros[[#This Row],[Prorrata]] -> 0.0008709188931 | I23: =+H23*GETPIVOTDATA("Compensación",Resultados!$Q$4) -> 26105954.91
B24: CONEJO_SOLAR | C24: -190985334 | D24: =+TablaRetiros[[#This Row],[Medida_kWh]]/SUM(TablaRetiros[Medida_kWh]) -> 0.00267769751 | F24: =+TablaRetiros[[#This Row],[Empresa]] -> CONEJO_SOLAR | G24: =+TablaRetiros[[#This Row],[Medida_kWh]]*-1 -> 190985334 | H24: =+TablaRetiros[[#This Row],[Prorrata]] -> 0.00267769751 | I24: =+H24*GETPIVOTDATA("Compensación",Resultados!$Q$4) -> 80264478.16
B25: COYANCO | C25: -41486729.35 | D25: =+TablaRetiros[[#This Row],[Medida_kWh]]/SUM(TablaRetiros[Medida_kWh]) -> 0.0005816620028 | F25: =+TablaRetiros[[#This Row],[Empresa]] -> COYANCO | G25: =+TablaRetiros[[#This Row],[Medida_kWh]]*-1 -> 41486729.35 | H25: =+TablaRetiros[[#This Row],[Prorrata]] -> 0.0005816620028 | I25: =+H25*GETPIVOTDATA("Compensación",Resultados!$Q$4) -> 17435426.12
B26: CHACAYES | C26: -471295120.8 | D26: =+TablaRetiros[[#This Row],[Medida_kWh]]/SUM(TablaRetiros[Medida_kWh]) -> 0.006607762727 | F26: =+TablaRetiros[[#This Row],[Empresa]] -> CHACAYES | G26: =+TablaRetiros[[#This Row],[Medida_kWh]]*-1 -> 471295120.8 | H26: =+TablaRetiros[[#This Row],[Prorrata]] -> 0.006607762727 | I26: =+H26*GETPIVOTDATA("Compensación",Resultados!$Q$4) -> 198068910
B27: CHUNGUNGO | C27: -109913269.8 | D27: =+TablaRetiros[[#This Row],[Medida_kWh]]/SUM(TablaRetiros[Medida_kWh]) -> 0.001541031883 | F27: =+TablaRetiros[[#This Row],[Empresa]] -> CHUNGUNGO | G27: =+TablaRetiros[[#This Row],[Medida_kWh]]*-1 -> 109913269.8 | H27: =+TablaRetiros[[#This Row],[Prorrata]] -> 0.001541031883 | I27: =+H27*GETPIVOTDATA("Compensación",Resultados!$Q$4) -> 46192715.75
B28: DUQUECO | C28: -297891030.5 | D28: =+TablaRetiros[[#This Row],[Medida_kWh]]/SUM(TablaRetiros[Medida_kWh]) -> 0.004176561906 | F28: =+TablaRetiros[[#This Row],[Empresa]] -> DUQUECO | G28: =+TablaRetiros[[#This Row],[Medida_kWh]]*-1 -> 297891030.5 | H28: =+TablaRetiros[[#This Row],[Prorrata]] -> 0.004176561906 | I28: =+H28*GETPIVOTDATA("Compensación",Resultados!$Q$4) -> 125193215.7
B29: EGP_SUR | C29: -610163.307 | D29: =+TablaRetiros[[#This Row],[Medida_kWh]]/SUM(TablaRetiros[Medida_kWh]) -> 8.55475514e-06 | F29: =+TablaRetiros[[#This Row],[Empresa]] -> EGP_SUR | G29: =+TablaRetiros[[#This Row],[Medida_kWh]]*-1 -> 610163.307 | H29: =+TablaRetiros[[#This Row],[Prorrata]] -> 8.55475514e-06 | I29: =+H29*GETPIVOTDATA("Compensación",Resultados!$Q$4) -> 256430.3677
B30: EL_MORADO | C30: -23143631.37 | D30: =+TablaRetiros[[#This Row],[Medida_kWh]]/SUM(TablaRetiros[Medida_kWh]) -> 0.0003244837852 | F30: =+TablaRetiros[[#This Row],[Empresa]] -> EL_MORADO | G30: =+TablaRetiros[[#This Row],[Medida_kWh]]*-1 -> 23143631.37 | H30: =+TablaRetiros[[#This Row],[Prorrata]] -> 0.0003244837852 | I30: =+H30*GETPIVOTDATA("Compensación",Resultados!$Q$4) -> 9726461.483
B31: EL_PELICANO | C31: -176657903.2 | D31: =+TablaRetiros[[#This Row],[Medida_kWh]]/SUM(TablaRetiros[Medida_kWh]) -> 0.002476820694 | F31: =+TablaRetiros[[#This Row],[Empresa]] -> EL_PELICANO | G31: =+TablaRetiros[[#This Row],[Medida_kWh]]*-1 -> 176657903.2 | H31: =+TablaRetiros[[#This Row],[Prorrata]] -> 0.002476820694 | I31: =+H31*GETPIVOTDATA("Compensación",Resultados!$Q$4) -> 74243158.46
B32: EMBALSE_ANCOA | C32: -12055572.18 | D32: =+TablaRetiros[[#This Row],[Medida_kWh]]/SUM(TablaRetiros[Medida_kWh]) -> 0.0001690243691 | F32: =+TablaRetiros[[#This Row],[Empresa]] -> EMBALSE_ANCOA | G32: =+TablaRetiros[[#This Row],[Medida_kWh]]*-1 -> 12055572.18 | H32: =+TablaRetiros[[#This Row],[Prorrata]] -> 0.0001690243691 | I32: =+H32*GETPIVOTDATA("Compensación",Resultados!$Q$4) -> 5066536.729
B33: EMELDA | C33: -134065748.6 | D33: =+TablaRetiros[[#This Row],[Medida_kWh]]/SUM(TablaRetiros[Medida_kWh]) -> 0.001879660148 | F33: =+TablaRetiros[[#This Row],[Empresa]] -> EMELDA | G33: =+TablaRetiros[[#This Row],[Medida_kWh]]*-1 -> 134065748.6 | H33: =+TablaRetiros[[#This Row],[Prorrata]] -> 0.001879660148 | I33: =+H33*GETPIVOTDATA("Compensación",Resultados!$Q$4) -> 56343160.62
B34: ENEL_GENERACION | C34: -1.717515902e+10 | D34: =+TablaRetiros[[#This Row],[Medida_kWh]]/SUM(TablaRetiros[Medida_kWh]) -> 0.240803205 | F34: =+TablaRetiros[[#This Row],[Empresa]] -> ENEL_GENERACION | G34: =+TablaRetiros[[#This Row],[Medida_kWh]]*-1 -> 1.717515902e+10 | H34: =+TablaRetiros[[#This Row],[Prorrata]] -> 0.240803205 | I34: =+H34*GETPIVOTDATA("Compensación",Resultados!$Q$4) -> 7218120611
B35: ENERGIA PACIFICO | C35: -48664091.84 | D35: =+TablaRetiros[[#This Row],[Medida_kWh]]/SUM(TablaRetiros[Medida_kWh]) -> 0.0006822917488 | F35: =+TablaRetiros[[#This Row],[Empresa]] -> ENERGIA PACIFICO | G35: =+TablaRetiros[[#This Row],[Medida_kWh]]*-1 -> 48664091.84 | H35: =+TablaRetiros[[#This Row],[Prorrata]] -> 0.0006822917488 | I35: =+H35*GETPIVOTDATA("Compensación",Resultados!$Q$4) -> 20451821.37
B36: ENERGIA_LEON | C36: -12191852.69 | D36: =+TablaRetiros[[#This Row],[Medida_kWh]]/SUM(TablaRetiros[Medida_kWh]) -> 0.0001709350812 | F36: =+TablaRetiros[[#This Row],[Empresa]] -> ENERGIA_LEON | G36: =+TablaRetiros[[#This Row],[Medida_kWh]]*-1 -> 12191852.69 | H36: =+TablaRetiros[[#This Row],[Prorrata]] -> 0.0001709350812 | I36: =+H36*GETPIVOTDATA("Compensación",Resultados!$Q$4) -> 5123810.677
B37: ENGIE | C37: -8945615649 | D37: =+TablaRetiros[[#This Row],[Medida_kWh]]/SUM(TablaRetiros[Medida_kWh]) -> 0.125421425 | F37: =+TablaRetiros[[#This Row],[Empresa]] -> ENGIE | G37: =+TablaRetiros[[#This Row],[Medida_kWh]]*-1 -> 8945615649 | H37: =+TablaRetiros[[#This Row],[Prorrata]] -> 0.125421425 | I37: =+H37*GETPIVOTDATA("Compensación",Resultados!$Q$4) -> 3759530414
B38: ENORCHILE | C38: -120075062.3 | D38: =+TablaRetiros[[#This Row],[Medida_kWh]]/SUM(TablaRetiros[Medida_kWh]) -> 0.001683504636 | F38: =+TablaRetiros[[#This Row],[Empresa]] -> ENORCHILE | G38: =+TablaRetiros[[#This Row],[Medida_kWh]]*-1 -> 120075062.3 | H38: =+TablaRetiros[[#This Row],[Prorrata]] -> 0.001683504636 | I38: =+H38*GETPIVOTDATA("Compensación",Resultados!$Q$4) -> 50463362.87
B39: EOLICA_ESPERANZA | C39: -8842408.183 | D39: =+TablaRetiros[[#This Row],[Medida_kWh]]/SUM(TablaRetiros[Medida_kWh]) -> 0.0001239744114 | F39: =+TablaRetiros[[#This Row],[Empresa]] -> EOLICA_ESPERANZA | G39: =+TablaRetiros[[#This Row],[Medida_kWh]]*-1 -> 8842408.183 | H39: =+TablaRetiros[[#This Row],[Prorrata]] -> 0.0001239744114 | I39: =+H39*GETPIVOTDATA("Compensación",Resultados!$Q$4) -> 3716155.914
B40: ERNC1 | C40: -24507397.09 | D40: =+TablaRetiros[[#This Row],[Medida_kWh]]/SUM(TablaRetiros[Medida_kWh]) -> 0.0003436043742 | F40: =+TablaRetiros[[#This Row],[Empresa]] -> ERNC1 | G40: =+TablaRetiros[[#This Row],[Medida_kWh]]*-1 -> 24507397.09 | H40: =+TablaRetiros[[#This Row],[Prorrata]] -> 0.0003436043742 | I40: =+H40*GETPIVOTDATA("Compensación",Resultados!$Q$4) -> 10299604.67
B41: ERSA | C41: -122518574.9 | D41: =+TablaRetiros[[#This Row],[Medida_kWh]]/SUM(TablaRetiros[Medida_kWh]) -> 0.001717763747 | F41: =+TablaRetiros[[#This Row],[Empresa]] -> ERSA | G41: =+TablaRetiros[[#This Row],[Medida_kWh]]*-1 -> 122518574.9 | H41: =+TablaRetiros[[#This Row],[Prorrata]] -> 0.001717763747 | I41: =+H41*GETPIVOTDATA("Compensación",Resultados!$Q$4) -> 51490286.04
B42: GAS SUR | C42: -1533428.908 | D42: =+TablaRetiros[[#This Row],[Medida_kWh]]/SUM(TablaRetiros[Medida_kWh]) -> 2.149934072e-05 | F42: =+TablaRetiros[[#This Row],[Empresa]] -> GAS SUR | G42: =+TablaRetiros[[#This Row],[Medida_kWh]]*-1 -> 1533428.908 | H42: =+TablaRetiros[[#This Row],[Prorrata]] -> 2.149934072e-05 | I42: =+H42*GETPIVOTDATA("Compensación",Resultados!$Q$4) -> 644446.7149
B43: GM_HOLDINGS | C43: -2527578738 | D43: =+TablaRetiros[[#This Row],[Medida_kWh]]/SUM(TablaRetiros[Medida_kWh]) -> 0.03543775404 | F43: =+TablaRetiros[[#This Row],[Empresa]] -> GM_HOLDINGS | G43: =+TablaRetiros[[#This Row],[Medida_kWh]]*-1 -> 2527578738 | H43: =+TablaRetiros[[#This Row],[Prorrata]] -> 0.03543775404 | I43: =+H43*GETPIVOTDATA("Compensación",Resultados!$Q$4) -> 1062253232
B44: GUACOLDA | C44: -3727921795 | D44: =+TablaRetiros[[#This Row],[Medida_kWh]]/SUM(TablaRetiros[Medida_kWh]) -> 0.05226708616 | F44: =+TablaRetiros[[#This Row],[Empresa]] -> GUACOLDA | G44: =+TablaRetiros[[#This Row],[Medida_kWh]]*-1 -> 3727921795 | H44: =+TablaRetiros[[#This Row],[Prorrata]] -> 0.05226708616 | I44: =+H44*GETPIVOTDATA("Compensación",Resultados!$Q$4) -> 1566715575
B45: HELIO_ATACAMA_TRES | C45: -12962834.89 | D45: =+TablaRetiros[[#This Row],[Medida_kWh]]/SUM(TablaRetiros[Medida_kWh]) -> 0.0001817445873 | F45: =+TablaRetiros[[#This Row],[Empresa]] -> HELIO_ATACAMA_TRES | G45: =+TablaRetiros[[#This Row],[Medida_kWh]]*-1 -> 12962834.89 | H45: =+TablaRetiros[[#This Row],[Prorrata]] -> 0.0001817445873 | I45: =+H45*GETPIVOTDATA("Compensación",Resultados!$Q$4) -> 5447827.623
B46: HIDROLIRCAY | C46: -118855855.3 | D46: =+TablaRetiros[[#This Row],[Medida_kWh]]/SUM(TablaRetiros[Medida_kWh]) -> 0.001666410823 | F46: =+TablaRetiros[[#This Row],[Empresa]] -> HIDROLIRCAY | G46: =+TablaRetiros[[#This Row],[Medida_kWh]]*-1 -> 118855855.3 | H46: =+TablaRetiros[[#This Row],[Prorrata]] -> 0.001666410823 | I46: =+H46*GETPIVOTDATA("Compensación",Resultados!$Q$4) -> 49950972.66
B47: HORNITOS | C47: -1371142596 | D47: =+TablaRetiros[[#This Row],[Medida_kWh]]/SUM(TablaRetiros[Medida_kWh]) -> 0.01922401599 | F47: =+TablaRetiros[[#This Row],[Empresa]] -> HORNITOS | G47: =+TablaRetiros[[#This Row],[Medida_kWh]]*-1 -> 1371142596 | H47: =+TablaRetiros[[#This Row],[Prorrata]] -> 0.01922401599 | I47: =+H47*GETPIVOTDATA("Compensación",Resultados!$Q$4) -> 576243435.2
B48: HUAJACHE | C48: -20391930.72 | D48: =+TablaRetiros[[#This Row],[Medida_kWh]]/SUM(TablaRetiros[Medida_kWh]) -> 0.0002859037444 | F48: =+TablaRetiros[[#This Row],[Empresa]] -> HUAJACHE | G48: =+TablaRetiros[[#This Row],[Medida_kWh]]*-1 -> 20391930.72 | H48: =+TablaRetiros[[#This Row],[Prorrata]] -> 0.0002859037444 | I48: =+H48*GETPIVOTDATA("Compensación",Resultados!$Q$4) -> 8570017.621
B49: IMELSA_ENERGIA | C49: -365165566.9 | D49: =+TablaRetiros[[#This Row],[Medida_kWh]]/SUM(TablaRetiros[Medida_kWh]) -> 0.005119780188 | F49: =+TablaRetiros[[#This Row],[Empresa]] -> IMELSA_ENERGIA | G49: =+TablaRetiros[[#This Row],[Medida_kWh]]*-1 -> 365165566.9 | H49: =+TablaRetiros[[#This Row],[Prorrata]] -> 0.005119780188 | I49: =+H49*GETPIVOTDATA("Compensación",Resultados!$Q$4) -> 153466358.2
B50: JAVIERA | C50: -149747372.4 | D50: =+TablaRetiros[[#This Row],[Medida_kWh]]/SUM(TablaRetiros[Medida_kWh]) -> 0.002099523339 | F50: =+TablaRetiros[[#This Row],[Empresa]] -> JAVIERA | G50: =+TablaRetiros[[#This Row],[Medida_kWh]]*-1 -> 149747372.4 | H50: =+TablaRetiros[[#This Row],[Prorrata]] -> 0.002099523339 | I50: =+H50*GETPIVOTDATA("Compensación",Resultados!$Q$4) -> 62933600.43
B51: KALTEMP | C51: -889015.723 | D51: =+TablaRetiros[[#This Row],[Medida_kWh]]/SUM(TablaRetiros[Medida_kWh]) -> 1.246438738e-05 | F51: =+TablaRetiros[[#This Row],[Empresa]] -> KALTEMP | G51: =+TablaRetiros[[#This Row],[Medida_kWh]]*-1 -> 889015.723 | H51: =+TablaRetiros[[#This Row],[Prorrata]] -> 1.246438738e-05 | I51: =+H51*GETPIVOTDATA("Compensación",Resultados!$Q$4) -> 373622.3174
B52: KDM_ENERGIA | C52: -96427959.79 | D52: =+TablaRetiros[[#This Row],[Medida_kWh]]/SUM(TablaRetiros[Medida_kWh]) -> 0.001351961967 | F52: =+TablaRetiros[[#This Row],[Empresa]] -> KDM_ENERGIA | G52: =+TablaRetiros[[#This Row],[Medida_kWh]]*-1 -> 96427959.79 | H52: =+TablaRetiros[[#This Row],[Prorrata]] -> 0.001351961967 | I52: =+H52*GETPIVOTDATA("Compensación",Resultados!$Q$4) -> 40525310.03
B53: LA ARENA SPA | C53: -30969324.25 | D53: =+TablaRetiros[[#This Row],[Medida_kWh]]/SUM(TablaRetiros[Medida_kWh]) -> 0.0004342034055 | F53: =+TablaRetiros[[#This Row],[Empresa]] -> LA ARENA SPA | G53: =+TablaRetiros[[#This Row],[Medida_kWh]]*-1 -> 30969324.25 | H53: =+TablaRetiros[[#This Row],[Prorrata]] -> 0.0004342034055 | I53: =+H53*GETPIVOTDATA("Compensación",Resultados!$Q$4) -> 13015327.39
B54: LA CONFLUENCIA | C54: -246998307.7 | D54: =+TablaRetiros[[#This Row],[Medida_kWh]]/SUM(TablaRetiros[Medida_kWh]) -> 0.003463023781 | F54: =+TablaRetiros[[#This Row],[Empresa]] -> LA CONFLUENCIA | G54: =+TablaRetiros[[#This Row],[Medida_kWh]]*-1 -> 246998307.7 | H54: =+TablaRetiros[[#This Row],[Prorrata]] -> 0.003463023781 | I54: =+H54*GETPIVOTDATA("Compensación",Resultados!$Q$4) -> 103804778.4
B55: LA HIGUERA | C55: -322545727.6 | D55: =+TablaRetiros[[#This Row],[Medida_kWh]]/SUM(TablaRetiros[Medida_kWh]) -> 0.00452223149 | F55: =+TablaRetiros[[#This Row],[Empresa]] -> LA HIGUERA | G55: =+TablaRetiros[[#This Row],[Medida_kWh]]*-1 -> 322545727.6 | H55: =+TablaRetiros[[#This Row],[Prorrata]] -> 0.00452223149 | I55: =+H55*GETPIVOTDATA("Compensación",Resultados!$Q$4) -> 135554725.4
B56: LIPIGAS | C56: -86211186 | D56: =+TablaRetiros[[#This Row],[Medida_kWh]]/SUM(TablaRetiros[Medida_kWh]) -> 0.001208718351 | F56: =+TablaRetiros[[#This Row],[Empresa]] -> LIPIGAS | G56: =+TablaRetiros[[#This Row],[Medida_kWh]]*-1 -> 86211186 | H56: =+TablaRetiros[[#This Row],[Prorrata]] -> 0.001208718351 | I56: =+H56*GETPIVOTDATA("Compensación",Resultados!$Q$4) -> 36231556.16
B57: LOS_CURUROS | C57: -15135906.25 | D57: =+TablaRetiros[[#This Row],[Medida_kWh]]/SUM(TablaRetiros[Medida_kWh]) -> 0.0002122119936 | F57: =+TablaRetiros[[#This Row],[Empresa]] -> LOS_CURUROS | G57: =+TablaRetiros[[#This Row],[Medida_kWh]]*-1 -> 15135906.25 | H57: =+TablaRetiros[[#This Row],[Prorrata]] -> 0.0002122119936 | I57: =+H57*GETPIVOTDATA("Compensación",Resultados!$Q$4) -> 6361093.762
B58: LUZ_DEL_NORTE | C58: -124317311.5 | D58: =+TablaRetiros[[#This Row],[Medida_kWh]]/SUM(TablaRetiros[Medida_kWh]) -> 0.001742982817 | F58: =+TablaRetiros[[#This Row],[Empresa]] -> LUZ_DEL_NORTE | G58: =+TablaRetiros[[#This Row],[Medida_kWh]]*-1 -> 124317311.5 | H58: =+TablaRetiros[[#This Row],[Prorrata]] -> 0.001742982817 | I58: =+H58*GETPIVOTDATA("Compensación",Resultados!$Q$4) -> 52246232.34
B59: MONTE REDONDO | C59: -184340393.3 | D59: =+TablaRetiros[[#This Row],[Medida_kWh]]/SUM(TablaRetiros[Medida_kWh]) -> 0.00258453255 | F59: =+TablaRetiros[[#This Row],[Empresa]] -> MONTE REDONDO | G59: =+TablaRetiros[[#This Row],[Medida_kWh]]*-1 -> 184340393.3 | H59: =+TablaRetiros[[#This Row],[Prorrata]] -> 0.00258453255 | I59: =+H59*GETPIVOTDATA("Compensación",Resultados!$Q$4) -> 77471841.24
B60: NEOMAS | C60: -67094034.31 | D60: =+TablaRetiros[[#This Row],[Medida_kWh]]/SUM(TablaRetiros[Medida_kWh]) -> 0.0009406875639 | F60: =+TablaRetiros[[#This Row],[Empresa]] -> NEOMAS | G60: =+TablaRetiros[[#This Row],[Medida_kWh]]*-1 -> 67094034.31 | H60: =+TablaRetiros[[#This Row],[Prorrata]] -> 0.0009406875639 | I60: =+H60*GETPIVOTDATA("Compensación",Resultados!$Q$4) -> 28197283.73
B61: NORACID | C61: -19538045.33 | D61: =+TablaRetiros[[#This Row],[Medida_kWh]]/SUM(TablaRetiros[Medida_kWh]) -> 0.0002739318996 | F61: =+TablaRetiros[[#This Row],[Empresa]] -> NORACID | G61: =+TablaRetiros[[#This Row],[Medida_kWh]]*-1 -> 19538045.33 | H61: =+TablaRetiros[[#This Row],[Prorrata]] -> 0.0002739318996 | I61: =+H61*GETPIVOTDATA("Compensación",Resultados!$Q$4) -> 8211159.36
B62: NORVIND | C62: -60451423.89 | D62: =+TablaRetiros[[#This Row],[Medida_kWh]]/SUM(TablaRetiros[Medida_kWh]) -> 0.0008475552746 | F62: =+TablaRetiros[[#This Row],[Empresa]] -> NORVIND | G62: =+TablaRetiros[[#This Row],[Medida_kWh]]*-1 -> 60451423.89 | H62: =+TablaRetiros[[#This Row],[Prorrata]] -> 0.0008475552746 | I62: =+H62*GETPIVOTDATA("Compensación",Resultados!$Q$4) -> 25405626.13
B63: NUEVA ENERGIA | C63: -88350931.66 | D63: =+TablaRetiros[[#This Row],[Medida_kWh]]/SUM(TablaRetiros[Medida_kWh]) -> 0.001238718517 | F63: =+TablaRetiros[[#This Row],[Empresa]] -> NUEVA ENERGIA | G63: =+TablaRetiros[[#This Row],[Medida_kWh]]*-1 -> 88350931.66 | H63: =+TablaRetiros[[#This Row],[Prorrata]] -> 0.001238718517 | I63: =+H63*GETPIVOTDATA("Compensación",Resultados!$Q$4) -> 37130816.67
B64: ON GROUP | C64: -21039320.66 | D64: =+TablaRetiros[[#This Row],[Medida_kWh]]/SUM(TablaRetiros[Medida_kWh]) -> 0.000294980433 | F64: =+TablaRetiros[[#This Row],[Empresa]] -> ON GROUP | G64: =+TablaRetiros[[#This Row],[Medida_kWh]]*-1 -> 21039320.66 | H64: =+TablaRetiros[[#This Row],[Prorrata]] -> 0.000294980433 | I64: =+H64*GETPIVOTDATA("Compensación",Resultados!$Q$4) -> 8842093.043
B65: PACIFIC HYDRO | C65: -6031028.806 | D65: =+TablaRetiros[[#This Row],[Medida_kWh]]/SUM(TablaRetiros[Medida_kWh]) -> 8.455764889e-05 | F65: =+TablaRetiros[[#This Row],[Empresa]] -> PACIFIC HYDRO | G65: =+TablaRetiros[[#This Row],[Medida_kWh]]*-1 -> 6031028.806 | H65: =+TablaRetiros[[#This Row],[Prorrata]] -> 8.455764889e-05 | I65: =+H65*GETPIVOTDATA("Compensación",Resultados!$Q$4) -> 2534631.166
B66: PANGUIPULLI | C66: -193166573.4 | D66: =+TablaRetiros[[#This Row],[Medida_kWh]]/SUM(TablaRetiros[Medida_kWh]) -> 0.002708279436 | F66: =+TablaRetiros[[#This Row],[Empresa]] -> PANGUIPULLI | G66: =+TablaRetiros[[#This Row],[Medida_kWh]]*-1 -> 193166573.4 | H66: =+TablaRetiros[[#This Row],[Prorrata]] -> 0.002708279436 | I66: =+H66*GETPIVOTDATA("Compensación",Resultados!$Q$4) -> 81181177.03
B67: PARQUE_EOLICO_LEBU | C67: -2958179.026 | D67: =+TablaRetiros[[#This Row],[Medida_kWh]]/SUM(TablaRetiros[Medida_kWh]) -> 4.14749575e-05 | F67: =+TablaRetiros[[#This Row],[Empresa]] -> PARQUE_EOLICO_LEBU | G67: =+TablaRetiros[[#This Row],[Medida_kWh]]*-1 -> 2958179.026 | H67: =+TablaRetiros[[#This Row],[Prorrata]] -> 4.14749575e-05 | I67: =+H67*GETPIVOTDATA("Compensación",Resultados!$Q$4) -> 1243219.523
B68: PEHUENCHE | C68: -314195096.8 | D68: =+TablaRetiros[[#This Row],[Medida_kWh]]/SUM(TablaRetiros[Medida_kWh]) -> 0.004405152011 | F68: =+TablaRetiros[[#This Row],[Empresa]] -> PEHUENCHE | G68: =+TablaRetiros[[#This Row],[Medida_kWh]]*-1 -> 314195096.8 | H68: =+TablaRetiros[[#This Row],[Prorrata]] -> 0.004405152011 | I68: =+H68*GETPIVOTDATA("Compensación",Resultados!$Q$4) -> 132045246.4
B69: POZO_ALMONTE_SOLAR_2 | C69: -21211036.97 | D69: =+TablaRetiros[[#This Row],[Medida_kWh]]/SUM(TablaRetiros[Medida_kWh]) -> 0.0002973879705 | F69: =+TablaRetiros[[#This Row],[Empresa]] -> POZO_ALMONTE_SOLAR_2 | G69: =+TablaRetiros[[#This Row],[Medida_kWh]]*-1 -> 21211036.97 | H69: =+TablaRetiros[[#This Row],[Prorrata]] -> 0.0002973879705 | I69: =+H69*GETPIVOTDATA("Compensación",Resultados!$Q$4) -> 8914259.424
B70: POZO_ALMONTE_SOLAR_3 | C70: -38825996 | D70: =+TablaRetiros[[#This Row],[Medida_kWh]]/SUM(TablaRetiros[Medida_kWh]) -> 0.0005443573631 | F70: =+TablaRetiros[[#This Row],[Empresa]] -> POZO_ALMONTE_SOLAR_3 | G70: =+TablaRetiros[[#This Row],[Medida_kWh]]*-1 -> 38825996 | H70: =+TablaRetiros[[#This Row],[Prorrata]] -> 0.0005443573631 | I70: =+H70*GETPIVOTDATA("Compensación",Resultados!$Q$4) -> 16317212.65
B71: PUCLARO | C71: -2712050.4 | D71: =+TablaRetiros[[#This Row],[Medida_kWh]]/SUM(TablaRetiros[Medida_kWh]) -> 3.802412704e-05 | F71: =+TablaRetiros[[#This Row],[Empresa]] -> PUCLARO | G71: =+TablaRetiros[[#This Row],[Medida_kWh]]*-1 -> 2712050.4 | H71: =+TablaRetiros[[#This Row],[Prorrata]] -> 3.802412704e-05 | I71: =+H71*GETPIVOTDATA("Compensación",Resultados!$Q$4) -> 1139780.241
B72: PUNTILLA | C72: -174125262.8 | D72: =+TablaRetiros[[#This Row],[Medida_kWh]]/SUM(TablaRetiros[Medida_kWh]) -> 0.002441311973 | F72: =+TablaRetiros[[#This Row],[Empresa]] -> PUNTILLA | G72: =+TablaRetiros[[#This Row],[Medida_kWh]]*-1 -> 174125262.8 | H72: =+TablaRetiros[[#This Row],[Prorrata]] -> 0.002441311973 | I72: =+H72*GETPIVOTDATA("Compensación",Resultados!$Q$4) -> 73178777.97
B73: RAKI | C73: -27431118.91 | D73: =+TablaRetiros[[#This Row],[Medida_kWh]]/SUM(TablaRetiros[Medida_kWh]) -> 0.0003845962266 | F73: =+TablaRetiros[[#This Row],[Empresa]] -> RAKI | G73: =+TablaRetiros[[#This Row],[Medida_kWh]]*-1 -> 27431118.91 | H73: =+TablaRetiros[[#This Row],[Prorrata]] -> 0.0003845962266 | I73: =+H73*GETPIVOTDATA("Compensación",Resultados!$Q$4) -> 11528343.03
B74: RIO_COLORADO | C74: -24022737.41 | D74: =+TablaRetiros[[#This Row],[Medida_kWh]]/SUM(TablaRetiros[Medida_kWh]) -> 0.0003368092345 | F74: =+TablaRetiros[[#This Row],[Empresa]] -> RIO_COLORADO | G74: =+TablaRetiros[[#This Row],[Medida_kWh]]*-1 -> 24022737.41 | H74: =+TablaRetiros[[#This Row],[Prorrata]] -> 0.0003368092345 | I74: =+H74*GETPIVOTDATA("Compensación",Resultados!$Q$4) -> 10095919.1
B75: RUCATAYO | C75: -267251730.4 | D75: =+TablaRetiros[[#This Row],[Medida_kWh]]/SUM(TablaRetiros[Medida_kWh]) -> 0.003746985583 | F75: =+TablaRetiros[[#This Row],[Empresa]] -> RUCATAYO | G75: =+TablaRetiros[[#This Row],[Medida_kWh]]*-1 -> 267251730.4 | H75: =+TablaRetiros[[#This Row],[Prorrata]] -> 0.003746985583 | I75: =+H75*GETPIVOTDATA("Compensación",Resultados!$Q$4) -> 112316585.9
B76: SAFIRA_ENERGIA_CHILE | C76: -25841002.38 | D76: =+TablaRetiros[[#This Row],[Medida_kWh]]/SUM(TablaRetiros[Medida_kWh]) -> 0.0003623021007 | F76: =+TablaRetiros[[#This Row],[Empresa]] -> SAFIRA_ENERGIA_CHILE | G76: =+TablaRetiros[[#This Row],[Medida_kWh]]*-1 -> 25841002.38 | H76: =+TablaRetiros[[#This Row],[Prorrata]] -> 0.0003623021007 | I76: =+H76*GETPIVOTDATA("Compensación",Resultados!$Q$4) -> 10860072.49
B77: SAN_JUAN_LAP | C77: -501888221.2 | D77: =+TablaRetiros[[#This Row],[Medida_kWh]]/SUM(TablaRetiros[Medida_kWh]) -> 0.007036691311 | F77: =+TablaRetiros[[#This Row],[Empresa]] -> SAN_JUAN_LAP | G77: =+TablaRetiros[[#This Row],[Medida_kWh]]*-1 -> 501888221.2 | H77: =+TablaRetiros[[#This Row],[Prorrata]] -> 0.007036691311 | I77: =+H77*GETPIVOTDATA("Compensación",Resultados!$Q$4) -> 210926123.6
B78: SANTIAGO_SOLAR | C78: -69421865.17 | D78: =+TablaRetiros[[#This Row],[Medida_kWh]]/SUM(TablaRetiros[Medida_kWh]) -> 0.0009733247658 | F78: =+TablaRetiros[[#This Row],[Empresa]] -> SANTIAGO_SOLAR | G78: =+TablaRetiros[[#This Row],[Medida_kWh]]*-1 -> 69421865.17 | H78: =+TablaRetiros[[#This Row],[Prorrata]] -> 0.0009733247658 | I78: =+H78*GETPIVOTDATA("Compensación",Resultados!$Q$4) -> 29175589.89
B79: SGA | C79: -105125524.4 | D79: =+TablaRetiros[[#This Row],[Medida_kWh]]/SUM(TablaRetiros[Medida_kWh]) -> 0.001473905609 | F79: =+TablaRetiros[[#This Row],[Empresa]] -> SGA | G79: =+TablaRetiros[[#This Row],[Medida_kWh]]*-1 -> 105125524.4 | H79: =+TablaRetiros[[#This Row],[Prorrata]] -> 0.001473905609 | I79: =+H79*GETPIVOTDATA("Compensación",Resultados!$Q$4) -> 44180593.25
B80: SPVP4 | C80: -11543340.98 | D80: =+TablaRetiros[[#This Row],[Medida_kWh]]/SUM(TablaRetiros[Medida_kWh]) -> 0.0001618426649 | F80: =+TablaRetiros[[#This Row],[Empresa]] -> SPVP4 | G80: =+TablaRetiros[[#This Row],[Medida_kWh]]*-1 -> 11543340.98 | H80: =+TablaRetiros[[#This Row],[Prorrata]] -> 0.0001618426649 | I80: =+H80*GETPIVOTDATA("Compensación",Resultados!$Q$4) -> 4851263.815
B81: TACORA_ENERGY | C81: -3290956.44 | D81: =+TablaRetiros[[#This Row],[Medida_kWh]]/SUM(TablaRetiros[Medida_kWh]) -> 4.614064169e-05 | F81: =+TablaRetiros[[#This Row],[Empresa]] -> TACORA_ENERGY | G81: =+TablaRetiros[[#This Row],[Medida_kWh]]*-1 -> 3290956.44 | H81: =+TablaRetiros[[#This Row],[Prorrata]] -> 4.614064169e-05 | I81: =+H81*GETPIVOTDATA("Compensación",Resultados!$Q$4) -> 1383074.269
B82: TAMAKAYA_ENERGIA | C82: -3286055014 | D82: =+TablaRetiros[[#This Row],[Medida_kWh]]/SUM(TablaRetiros[Medida_kWh]) -> 0.04607192156 | F82: =+TablaRetiros[[#This Row],[Empresa]] -> TAMAKAYA_ENERGIA | G82: =+TablaRetiros[[#This Row],[Medida_kWh]]*-1 -> 3286055014 | H82: =+TablaRetiros[[#This Row],[Prorrata]] -> 0.04607192156 | I82: =+H82*GETPIVOTDATA("Compensación",Resultados!$Q$4) -> 1381014371
B83: TECNORED | C83: -154848346.7 | D83: =+TablaRetiros[[#This Row],[Medida_kWh]]/SUM(TablaRetiros[Medida_kWh]) -> 0.002171041219 | F83: =+TablaRetiros[[#This Row],[Empresa]] -> TECNORED | G83: =+TablaRetiros[[#This Row],[Medida_kWh]]*-1 -> 154848346.7 | H83: =+TablaRetiros[[#This Row],[Prorrata]] -> 0.002171041219 | I83: =+H83*GETPIVOTDATA("Compensación",Resultados!$Q$4) -> 65077362.12
B84: UCUQUER_DOS | C84: -10206125.76 | D84: =+TablaRetiros[[#This Row],[Medida_kWh]]/SUM(TablaRetiros[Medida_kWh]) -> 0.0001430943253 | F84: =+TablaRetiros[[#This Row],[Empresa]] -> UCUQUER_DOS | G84: =+TablaRetiros[[#This Row],[Medida_kWh]]*-1 -> 10206125.76 | H84: =+TablaRetiros[[#This Row],[Prorrata]] -> 0.0001430943253 | I84: =+H84*GETPIVOTDATA("Compensación",Resultados!$Q$4) -> 4289278.87
B85: EGP_CHILE | C85: -46000889.29 | D85: =+TablaRetiros[[#This Row],[Medida_kWh]]/SUM(TablaRetiros[Medida_kWh]) -> 0.0006449524899 | F85: =+TablaRetiros[[#This Row],[Empresa]] -> EGP_CHILE | G85: =+TablaRetiros[[#This Row],[Medida_kWh]]*-1 -> 46000889.29 | H85: =+TablaRetiros[[#This Row],[Prorrata]] -> 0.0006449524899 | I85: =+H85*GETPIVOTDATA("Compensación",Resultados!$Q$4) -> 19332570.18
B86: PMGD_PICA_PILOT | C86: -106788328.3 | D86: =+TablaRetiros[[#This Row],[Medida_kWh]]/SUM(TablaRetiros[Medida_kWh]) -> 0.001497218842 | F86: =+TablaRetiros[[#This Row],[Empresa]] -> PMGD_PICA_PILOT | G86: =+TablaRetiros[[#This Row],[Medida_kWh]]*-1 -> 106788328.3 | H86: =+TablaRetiros[[#This Row],[Prorrata]] -> 0.001497218842 | I86: =+H86*GETPIVOTDATA("Compensación",Resultados!$Q$4) -> 44879411.74
B87: ALTOS_TILTIL | C87: -890193.072 | D87: =+TablaRetiros[[#This Row],[Medida_kWh]]/SUM(TablaRetiros[Medida_kWh]) -> 1.248089433e-05 | F87: =+TablaRetiros[[#This Row],[Empresa]] -> ALTOS_TILTIL | G87: =+TablaRetiros[[#This Row],[Medida_kWh]]*-1 -> 890193.072 | H87: =+TablaRetiros[[#This Row],[Prorrata]] -> 1.248089433e-05 | I87: =+H87*GETPIVOTDATA("Compensación",Resultados!$Q$4) -> 374117.1161
B88: EOLICA_TALTAL | C88: -40067485.96 | D88: =+TablaRetiros[[#This Row],[Medida_kWh]]/SUM(TablaRetiros[Medida_kWh]) -> 0.0005617635927 | F88: =+TablaRetiros[[#This Row],[Empresa]] -> EOLICA_TALTAL | G88: =+TablaRetiros[[#This Row],[Medida_kWh]]*-1 -> 40067485.96 | H88: =+TablaRetiros[[#This Row],[Prorrata]] -> 0.0005617635927 | I88: =+H88*GETPIVOTDATA("Compensación",Resultados!$Q$4) -> 16838967.6
B89: PV_SALVADOR | C89: -16982827.75 | D89: =+TablaRetiros[[#This Row],[Medida_kWh]]/SUM(TablaRetiros[Medida_kWh]) -> 0.0002381066369 | F89: =+TablaRetiros[[#This Row],[Empresa]] -> PV_SALVADOR | G89: =+TablaRetiros[[#This Row],[Medida_kWh]]*-1 -> 16982827.75 | H89: =+TablaRetiros[[#This Row],[Prorrata]] -> 0.0002381066369 | I89: =+H89*GETPIVOTDATA("Compensación",Resultados!$Q$4) -> 7137290.485
B90: EMOAC | C90: -3489456.17 | D90: =+TablaRetiros[[#This Row],[Medida_kWh]]/SUM(TablaRetiros[Medida_kWh]) -> 4.89236943e-05 | F90: =+TablaRetiros[[#This Row],[Empresa]] -> EMOAC | G90: =+TablaRetiros[[#This Row],[Medida_kWh]]*-1 -> 3489456.17 | H90: =+TablaRetiros[[#This Row],[Prorrata]] -> 4.89236943e-05 | I90: =+H90*GETPIVOTDATA("Compensación",Resultados!$Q$4) -> 1466496.786
B91: ENERGY_ASSET | C91: -505590.78 | D91: =+TablaRetiros[[#This Row],[Medida_kWh]]/SUM(TablaRetiros[Medida_kWh]) -> 7.088602796e-06 | F91: =+TablaRetiros[[#This Row],[Empresa]] -> ENERGY_ASSET | G91: =+TablaRetiros[[#This Row],[Medida_kWh]]*-1 -> 505590.78 | H91: =+TablaRetiros[[#This Row],[Prorrata]] -> 7.088602796e-06 | I91: =+H91*GETPIVOTDATA("Compensación",Resultados!$Q$4) -> 212482.18
B92: ECOM_GENERACION | C92: -349948.578 | D92: =+TablaRetiros[[#This Row],[Medida_kWh]]/SUM(TablaRetiros[Medida_kWh]) -> 4.90643138e-06 | F92: =+TablaRetiros[[#This Row],[Empresa]] -> ECOM_GENERACION | G92: =+TablaRetiros[[#This Row],[Medida_kWh]]*-1 -> 349948.578 | H92: =+TablaRetiros[[#This Row],[Prorrata]] -> 4.90643138e-06 | I92: =+H92*GETPIVOTDATA("Compensación",Resultados!$Q$4) -> 147071.1882
B93: Total general | C93: -7.075430172e+10 | F93: Total | G93: =+SUM(G3:G92) -> 7.132446189e+10 | H93: =+SUM(H3:H92) -> 1 | I93: 2.997518497e+10

Sheet Impuestos SII
C2: Impuesto a Emisiones 2020
C3: Fuente Oficial Servicio de Impuesto Internos | O3: Matriz 1: Unidades, Gx Anual e Impuestos | T3: Matriz 2: Fuente e Impuestos | W3: Matriz 3: Relación Fuente Emisora con Unidades Generadoras | AB3: Matriz 4: Distribución Impuesto
A5: RUT | B5: DV | C5: ESTABLECIMIENTO | D5: CÓDIGO FUENTE | E5: MONTO IMPUESTO USD | F5: TIPO DE CAMBIO | G5: FOLIO | H5: ID FOLIO | I5: PERIODO | J5: FECHA MODIFICACIÓN | K5: Planta Generación Eléctrica SEN | O5: =+Unidades!B5 -> Nombre unidad TCV | P5: N° Caso | Q5: Gx Anual [kWh] | R5: Impuesto por central CLP | T5: N° Fuente | U5: Impuesto por fuente CLP | W5: Fuente Emisora | X5: N° Unidades | Y5: Unidad Generadora 1 | Z5: Unidad Generadora 2 | AB5: Fuente Emisora | AC5: Unidad Generadora 1 | AD5: Unidad Generadora 2
A6: 7562510 | B6: 4 | C6: BO PAPER BIO BIO | D6: GE000270-4 | E6: 74865.54 | F6: 721.82 | G6: 5141507 | H6: 216705384 | I6: 202104 | J6: 2021-04-01 | K6: 0 | O6: =+Unidades!B6 -> ANG1 | P6: 1 | Q6: =+VLOOKUP(O6,TablaGxN_NTH1[],14,0) -> 1974915569 | R6: 5813731907 | T6: =+D6 -> GE000270-4 | U6: =+K6*F6*E6 -> 0 | W6: GE000103-5 | X6: =+COUNTA(Y6:Z6) -> 2 | Y6: ANG1 | Z6: ANG2 | AB6: =+W6 -> GE000103-5 | AC6: 5813731907 | AD6: 5820276486
A7: 90266000 | B7: 3 | C7: PRILLEX AMÉRICA | D7: IN002734-4 | E7: 11335.73 | F7: 721.82 | G7: 5141509 | H7: 216705386 | I7: 202104 | J7: 2021-04-01 | K7: 0 | O7: =+Unidades!B7 -> ANG2 | P7: 1 | Q7: =+VLOOKUP(O7,TablaGxN_NTH1[],14,0) -> 1977138752 | R7: 5820276486 | T7: =+D7 -> IN002734-4 | U7: =+K7*F7*E7 -> 0 | W7: GE000277-1 | X7: =+COUNTA(Y7:Z7) -> 1 | Y7: IEM | AB7: =+W7 -> GE000277-1 | AC7: 4368653610
A8: 90266000 | B8: 3 | C8: PRILLEX AMÉRICA | D8: IN002733-6 | E8: 5106.4 | F8: 721.82 | G8: 5141511 | H8: 216705388 | I8: 202104 | J8: 2021-04-01 | K8: 0 | O8: =+Unidades!B8 -> Antilhue TG U1 | P8: 2 | Q8: =+VLOOKUP(O8,TablaGxN_NTH1[],14,0) -> 8350644.627 | R8: 30799193.22 | T8: IN002733-6 | U8: 0 | W8: GE000043-8 | X8: 1 | Y8: Bocamina | AB8: GE000043-8 | AC8: 1286623131
A9: 90266000 | B9: 3 | C9: PRILLEX AMÉRICA | D9: IN002731-K | E9: 303.46 | F9: 721.82 | G9: 5141513 | H9: 216705390 | I9: 202104 | J9: 2021-04-01 | K9: 0 | O9: =+Unidades!B9 -> Antilhue TG U2 | P9: 2 | Q9: =+VLOOKUP(O9,TablaGxN_NTH1[],14,0) -> 7076161.058 | R9: 30358781.96 | T9: IN002731-K | U9: =+K9*F9*E9 -> 0 | W9: GE000106-k | X9: 1 | Y9: Bocamina II | AB9: GE000106-k | AC9: 7067136781
A10: 96510970 | B10: 6 | C10: PLANTA TRUPÁN/CHOLGUAN | D10: IN000611-8 | E10: 110623.99 | F10: 721.82 | G10: 5141517 | H10: 216705392 | I10: 202104 | J10: 2021-04-01 | K10: 1 | O10: =+Unidades!B10 -> Arauco | P10: 2 | Q10: =+VLOOKUP(O10,TablaGxN_NTH1[],14,0) -> 15810849.3 | R10: 943675246 | T10: IN000611-8 | U10: 79850608.46 | W10: GE000124-8 | X10: 1 | Y10: Campiche | AB10: GE000124-8 | AC10: 4966435722
A11: 96510970 | B11: 6 | C11: PLANTA TRUPÁN/CHOLGUAN | D11: IN003326-K | E11: 1514.99 | F11: 721.82 | G11: 5141519 | H11: 216705394 | I11: 202104 | J11: 2021-04-01 | K11: 1 | O11: =+Unidades!B11 -> Bocamina | P11: 1 | Q11: =+VLOOKUP(O11,TablaGxN_NTH1[],14,0) -> 328380775.4 | R11: 1286623131 | T11: IN003326-K | U11: 1093550.082 | W11: PC001834-6 | X11: 1 | Y11: Cardones | AB11: PC001834-6 | AC11: 3575210.551
A12: 96510970 | B12: 6 | C12: PLANTA TRUPÁN/CHOLGUAN | D12: IN003325-1 | E12: 1168.59 | F12: 721.82 | G12: 5141521 | H12: 216705396 | I12: 202104 | J12: 2021-04-01 | K12: 1 | O12: =+Unidades!B12 -> Bocamina II | P12: 1 | Q12: =+VLOOKUP(O12,TablaGxN_NTH1[],14,0) -> 1476406933 | R12: 7067136781 | T12: IN003325-1 | U12: 843511.6338 | W12: GE000234-8 | X12: 2 | Y12: CCH1 | Z12: CCH2 | AB12: GE000234-8 | AC12: 5437638406 | AD12: 5474715969
A13: 96802690 | B13: 9 | C13: PLANTA CABRERO DIVISION MADERAS | D13: CA010879-0 | E13: 171.51 | F13: 721.82 | G13: 5141523 | H13: 216705398 | I13: 202104 | J13: 2021-04-01 | K13: 1 | O13: =+Unidades!B13 -> Campiche | P13: 1 | Q13: =+VLOOKUP(O13,TablaGxN_NTH1[],14,0) -> 1321371726 | R13: 4966435722 | T13: CA010879-0 | U13: 123799.3482 | W13: PC003590-4 | X13: =+COUNTA(Y13:Z13) -> 1 | Y13: CENTRAL DIÉSEL IQUIQUE | AB13: PC003590-4
A14: 96802690 | B14: 9 | C14: PLANTA CABRERO DIVISION MADERAS | D14: GE000130-2 | E14: 31515.88 | F14: 721.82 | G14: 5141525 | H14: 216705400 | I14: 202104 | J14: 2021-04-01 | K14: 1 | O14: =+Unidades!B14 -> Candelaria 1 | P14: 1 | Q14: =+VLOOKUP(O14,TablaGxN_NTH1[],14,0) -> 55729959.26 | R14: 170071669.8 | T14: GE000130-2 | U14: 22748792.5 | W14: IN002463-9 | X14: 1 | Y14: CMPC TISSUE | AB14: IN002463-9 | AC14: 9311369.727
A15: 96802690 | B15: 9 | C15: PLANTA CABRERO DIVISION MADERAS | D15: IN002653-4 | E15: 867.4 | F15: 721.82 | G15: 5141527 | H15: 216705402 | I15: 202104 | J15: 2021-04-01 | K15: 1 | O15: =+Unidades!B15 -> Candelaria 2 | P15: 1 | Q15: =+VLOOKUP(O15,TablaGxN_NTH1[],14,0) -> 84054446.46 | R15: 220124956.8 | T15: IN002653-4 | U15: 626106.668 | W15: PC003087-7 | X15: 1 | Y15: CMPC TISSUE | AB15: PC003087-7 | AC15: 253342514.1
A16: 96802690 | B16: 9 | C16: PLANTA CABRERO DIVISION MADERAS | D16: IN002647-K | E16: 926.14 | F16: 721.82 | G16: 5141529 | H16: 216705404 | I16: 202104 | J16: 2021-04-01 | K16: 1 | O16: =+Unidades!B16 -> Cardones | P16: 1 | Q16: =+VLOOKUP(O16,TablaGxN_NTH1[],14,0) -> 733107.06 | R16: 3575210.55 | T16: IN002647-K | U16: 668506.3748 | W16: GE000251-8 | X16: 1 | Y16: CTA | AB16: GE000251-8 | AC16: 2633200861
A17: 96802690 | B17: 9 | C17: PLANTA CABRERO DIVISION MADERAS | D17: CA010880-4 | E17: 175.19 | F17: 721.82 | G17: 5141531 | H17: 216705406 | I17: 202104 | J17: 2021-04-01 | K17: 1 | O17: =+Unidades!B17 -> CC KELAR | P17: 2 | Q17: =+VLOOKUP(O17,TablaGxN_NTH1[],14,0) -> 1697656014 | R17: 2765505068 | T17: CA010880-4 | U17: 126455.6458 | W17: GE000100-0 | X17: 1 | Y17: CTH | AB17: GE000100-0 | AC17: 3833524117
A18: 61704000 | B18: K | C18: DIVISIÓN CHUQUICAMATA | D18: CF000116-3 | E18: 40381.03 | F18: 721.82 | G18: 5141533 | H18: 216705408 | I18: 202104 | J18: 2021-04-01 | K18: 0 | O18: =+Unidades!B18 -> CC1 | P18: 2 | Q18: =+VLOOKUP(O18,TablaGxN_NTH1[],14,0) -> 167509369.4 | R18: 436494110.9 | T18: CF000116-3 | U18: 0 | W18: GE000018-7 | X18: 2 | Y18: CTM1 | Z18: CTM2 | AB18: GE000018-7 | AC18: 334172463.7 | AD18: 523160637.2
A19: 61704000 | B19: K | C19: DIVISIÓN CHUQUICAMATA | D19: PC001459-6 | E19: 1603.25 | F19: 721.82 | G19: 5141535 | H19: 216705410 | I19: 202104 | J19: 2021-04-01 | K19: 0 | O19: =+Unidades!B19 -> CC2 | P19: 2 | Q19: =+VLOOKUP(O19,TablaGxN_NTH1[],14,0) -> 202560365.4 | R19: 519591263.6 | T19: PC001459-6 | U19: 0 | W19: GE000019-5 | X19: 0 | AB19: GE000019-5
A20: 61704000 | B20: K | C20: DIVISIÓN CHUQUICAMATA | D20: PC001460-K | E20: 1571.29 | F20: 721.82 | G20: 5141537 | H20: 216705412 | I20: 202104 | J20: 2021-04-01 | K20: 0 | O20: =+Unidades!B20 -> CCH1 | P20: 1 | Q20: =+VLOOKUP(O20,TablaGxN_NTH1[],14,0) -> 1546322328 | R20: 5437638406 | T20: PC001460-K | U20: 0 | W20: GE000250-K | X20: 1 | Y20: CTM3 | AB20: GE000250-K | AC20: 1577893222
A21: 61704000 | B21: K | C21: DIVISIÓN CHUQUICAMATA | D21: PC001461-8 | E21: 2760.56 | F21: 721.82 | G21: 5141539 | H21: 216705414 | I21: 202104 | J21: 2021-04-01 | K21: 0 | O21: =+Unidades!B21 -> CCH2 | P21: 1 | Q21: =+VLOOKUP(O21,TablaGxN_NTH1[],14,0) -> 1556866219 | R21: 5474715969 | T21: PC001461-8 | U21: 0 | W21: GE000013-6 | X21: 1 | Y21: CTTAR | AB21: GE000013-6
A22: 61704000 | B22: K | C22: DIVISIÓN CHUQUICAMATA | D22: IN000975-3 | E22: 91123.66 | F22: 721.82 | G22: 5141541 | H22: 216705416 | I22: 202104 | J22: 2021-04-01 | K22: 0 | O22: =+Unidades!B22 -> CD Iquique | P22: 1 | Q22: =+VLOOKUP(O22,TablaGxN_NTH1[],14,0) -> 0 | R22: 0 | T22: IN000975-3 | U22: 0 | W22: PC000355-1 | X22: 1 | Y22: Diego de Almagro | AB22: PC000355-1 | AC22: 1586921.27
A23: 61704000 | B23: K | C23: DIVISIÓN CHUQUICAMATA | D23: IN000976-1 | E23: 92843.94 | F23: 721.82 | G23: 5141543 | H23: 216705418 | I23: 202104 | J23: 2021-04-01 | K23: 0 | O23: =+Unidades!B23 -> Celco | P23: 2 | Q23: =+VLOOKUP(O23,TablaGxN_NTH1[],14,0) -> 49631187.75 | R23: 493883326.7 | T23: IN000976-1 | U23: 0 | W23: PC003725-7 | X23: 1 | Y23: El Salvador | AB23: PC003725-7 | AC23: 110440076.9
A24: 61704000 | B24: K | C24: DIVISIÓN CHUQUICAMATA | D24: IN003564-5 | E24: 13731.6 | F24: 721.82 | G24: 5141547 | H24: 216705420 | I24: 202104 | J24: 2021-04-01 | K24: 0 | O24: =+Unidades!B24 -> Cholguán | P24: 2 | Q24: =+VLOOKUP(O24,TablaGxN_NTH1[],14,0) -> 46551654.74 | R24: 81787670.17 | T24: IN003564-5 | U24: 0 | W24: EL029919-7 | X24: 1 | Y24: Emelda U1 | AB24: EL029919-7 | AC24: 366698.9964
A25: 61704000 | B25: K | C25: DIVISIÓN CHUQUICAMATA | D25: IN003641-2 | E25: 103832.03 | F25: 721.82 | G25: 5141551 | H25: 216705422 | I25: 202104 | J25: 2021-04-01 | K25: 0 | O25: =+Unidades!B25 -> CMPC Cordillera | P25: 2 | Q25: =+VLOOKUP(O25,TablaGxN_NTH1[],14,0) -> 3723177.154 | R25: 550405131.4 | T25: IN003641-2 | U25: 0 | W25: EL029922-7 | X25: 1 | Y25: Emelda U2 | AB25: EL029922-7 | AC25: 269556.4608
A26: 76186388 | B26: 6 | C26: CENTRAL CORONEL | D26: PC000146-K | E26: 40936.14 | F26: 721.82 | G26: 5141553 | H26: 216705424 | I26: 202104 | J26: 2021-04-01 | K26: 1 | O26: =+Unidades!B26 -> CMPC Laja | P26: 2 | Q26: =+VLOOKUP(O26,TablaGxN_NTH1[],14,0) -> 113510359.4 | R26: 80831547.41 | T26: PC000146-K | U26: 29548524.57 | W26: GE000102-7 | X26: 1 | Y26: Energía Pacífico | AB26: GE000102-7 | AC26: 36910164.65
A27: 76186388 | B27: 6 | C27: CENTRAL CORONEL | D27: CA-OR-25110 | E27: 12.39 | F27: 721.82 | G27: 5141555 | H27: 216705426 | I27: 202104 | J27: 2021-04-01 | K27: 0 | O27: =+Unidades!B27 -> CMPC Pacífico | P27: 2 | Q27: =+VLOOKUP(O27,TablaGxN_NTH1[],14,0) -> 104017829.1 | R27: 408732668.3 | T27: CA-OR-25110 | U27: 0 | W27: PC003595-5 | X27: 1 | Y27: Esperanza TG | AB27: PC003595-5
A28: 76085254 | B28: 6 | C28: CENTRAL TERMOELÉCTRICA COCHRANE | D28: GE000234-8 | E28: 15117833.22 | F28: 721.82 | G28: 5141557 | H28: 216705428 | I28: 202104 | J28: 2021-04-01 | K28: 1 | O28: =+Unidades!B28 -> CMPC Santa Fe | P28: 2 | Q28: =+VLOOKUP(O28,TablaGxN_NTH1[],14,0) -> 136885370.5 | R28: 122403976.3 | T28: GE000234-8 | U28: 1.091235437e+10 | W28: GE000016-0 | X28: 2 | Y28: Guacolda 1 | Z28: Guacolda 2 | AB28: GE000016-0 | AC28: 3900541668 | AD28: 3438540228
A29: 96505760 | B29: 9 | C29: CENTRAL TERMOELÉCTRICA CANDELARIA | D29: PC000387-K | E29: 235615.07 | F29: 721.82 | G29: 5141561 | H29: 216705430 | I29: 202104 | J29: 2021-04-01 | K29: 1 | O29: =+Unidades!B29 -> CMPC TISSUE | P29: 2 | Q29: =+VLOOKUP(O29,TablaGxN_NTH1[],14,0) -> 0 | R29: 262653883.8 | T29: PC000387-K | U29: 170071669.8 | W29: TG-GEV-9401 | X29: 1 | Y29: Los Guindos 2 | AB29: TG-GEV-9401 | AC29: 19730733.15
A30: 96505760 | B30: 9 | C30: CENTRAL TERMOELÉCTRICA CANDELARIA | D30: PC000388-8 | E30: 304958.24 | F30: 721.82 | G30: 5141563 | H30: 216705432 | I30: 202104 | J30: 2021-04-01 | K30: 1 | O30: =+Unidades!B30 -> Colmito | P30: 1 | Q30: =+VLOOKUP(O30,TablaGxN_NTH1[],14,0) -> 4666965.689 | R30: 14091016.35 | T30: PC000388-8 | U30: 220124956.8 | W30: GE000079-9 | X30: 1 | Y30: Guacolda 3 | AB30: GE000079-9 | AC30: 3503151354
A31: 96505760 | B31: 9 | C31: COMPLEJO TERMOELÉCTRICO NEHUENCO | D31: PC001510-0 | E31: 3516735.37 | F31: 721.82 | G31: 5141565 | H31: 216705434 | I31: 202104 | J31: 2021-04-01 | K31: 1 | O31: =+Unidades!B31 -> CTA | P31: 1 | Q31: =+VLOOKUP(O31,TablaGxN_NTH1[],14,0) -> 652352169.1 | R31: 2633200861 | T31: PC001510-0 | U31: 2538449925 | W31: GE000080-2 | X31: 1 | Y31: Guacolda 4 | AB31: GE000080-2 | AC31: 3065194179
A32: 96505760 | B32: 9 | C32: COMPLEJO TERMOELÉCTRICO NEHUENCO | D32: IN000473-5 | E32: 1060.28 | F32: 721.82 | G32: 5141567 | H32: 216705436 | I32: 202104 | J32: 2021-04-01 | K32: 1 | O32: =+Unidades!B32 -> CTH | P32: 1 | Q32: =+VLOOKUP(O32,TablaGxN_NTH1[],14,0) -> 747391268.8 | R32: 3833524117 | T32: IN000473-5 | U32: 765331.3096 | W32: GE000215-1 | X32: 1 | Y32: Guacolda 5 | AB32: GE000215-1 | AC32: 3626441408
A33: 96505760 | B33: 9 | C33: COMPLEJO TERMOELÉCTRICO NEHUENCO | D33: PC001511-0 | E33: 4701969.98 | F33: 721.82 | G33: 5141569 | H33: 216705438 | I33: 202104 | J33: 2021-04-01 | K33: 1 | O33: =+Unidades!B33 -> CTM1 | P33: 1 | Q33: =+VLOOKUP(O33,TablaGxN_NTH1[],14,0) -> 98587691.9 | R33: 334172463.7 | T33: PC001511-0 | U33: 3393975971 | W33: PC002440-0 | X33: 1 | Y33: Horcones | AB33: PC002440-0 | AC33: 1146697.688
A34: 96505760 | B34: 9 | C34: COMPLEJO TERMOELÉCTRICO NEHUENCO | D34: PC001512-0 | E34: 11465.35 | F34: 721.82 | G34: 5141571 | H34: 216705440 | I34: 202104 | J34: 2021-04-01 | K34: 1 | O34: =+Unidades!B34 -> CTM2 | P34: 1 | Q34: =+VLOOKUP(O34,TablaGxN_NTH1[],14,0) -> 154343057.3 | R34: 523160637.2 | T34: PC001512-0 | U34: 8275918.937 | W34: PC000603-8 | X34: 1 | Y34: Laguna Verde TG | AB34: PC000603-8
A35: 96505760 | B35: 9 | C35: CENTRAL TERMOELÉCTRICA LOS PINOS | D35: PC000507-4 | E35: 198491.51 | F35: 721.82 | G35: 5141573 | H35: 216705442 | I35: 202104 | J35: 2021-04-01 | K35: 1 | O35: =+Unidades!B35 -> CTM3 | P35: 1 | Q35: =+VLOOKUP(O35,TablaGxN_NTH1[],14,0) -> 1046215458 | R35: 1577893222 | T35: PC000507-4 | U35: 143275141.7 | W35: GE000116-7 | X35: 1 | Y35: Laja | AB35: GE000116-7 | AC35: 846240.1134
A36: 96505760 | B36: 9 | C36: COMPLEJO TERMOELECTRICO SANTA MARIA | D36: GE000094-2 | E36: 13231914.86 | F36: 721.82 | G36: 5141575 | H36: 216705444 | I36: 202104 | J36: 2021-04-01 | K36: 1 | O36: =+Unidades!B36 -> CTTAR | P36: 1 | Q36: =+VLOOKUP(O36,TablaGxN_NTH1[],14,0) -> 0 | R36: 0 | T36: GE000094-2 | U36: 9551060784 | W36: GE000114-0 | X36: 1 | Y36: Lautaro-Comasa | AB36: GE000114-0 | AC36: 44781286.93
A37: 96505760 | B37: 9 | C37: COMPLEJO TERMOELECTRICO SANTA MARIA | D37: IN001433-1 | E37: 5321.93 | F37: 721.82 | G37: 5141577 | H37: 216705446 | I37: 202104 | J37: 2021-04-01 | K37: 1 | O37: =+Unidades!B37 -> Diego de Almagro | P37: 1 | Q37: =+VLOOKUP(O37,TablaGxN_NTH1[],14,0) -> 194311.251 | R37: 1586921.27 | T37: IN001433-1 | U37: 3841475.513 | W37: GE000203-8 | X37: 1 | Y37: Lautaro-Comasa 2 | AB37: GE000203-8 | AC37: 53432422.34
A38: 76008306 | B38: 2 | C38: CENTRAL TERMOELECTRICA CAMPICHE | D38: GE000124-8 | E38: 6880435.18 | F38: 721.82 | G38: 5141579 | H38: 216705448 | I38: 202104 | J38: 2021-04-01 | K38: 1 | O38: =+Unidades!B38 -> El Salvador | P38: 1 | Q38: =+VLOOKUP(O38,TablaGxN_NTH1[],14,0) -> 83277.876 | R38: 110440076.9 | T38: GE000124-8 | U38: 4966435722 | W38: PC003468-1 | X38: 1 | Y38: Los Guindos | AB38: PC003468-1 | AC38: 15100135.14
A39: 96665000 | B39: 1 | C39: EAGON LAUTARO S.A. | D39: IN000373-9 | E39: 9357.44 | F39: 721.82 | G39: 5141581 | H39: 216705450 | I39: 202104 | J39: 2021-04-01 | K39: 0 | O39: =+Unidades!B39 -> Emelda U1 | P39: 1 | Q39: =+VLOOKUP(O39,TablaGxN_NTH1[],14,0) -> 95175.6 | R39: 366699 | T39: IN000373-9 | U39: 0 | W39: PC000507-4 | X39: 1 | Y39: Los Pinos | AB39: PC000507-4 | AC39: 143275141.7
A40: 96665000 | B40: 1 | C40: EAGON LAUTARO S.A. | D40: IN003176-3 | E40: 10038.35 | F40: 721.82 | G40: 5141583 | H40: 216705452 | I40: 202104 | J40: 2021-04-01 | K40: 0 | O40: =+Unidades!B40 -> Emelda U2 | P40: 1 | Q40: =+VLOOKUP(O40,TablaGxN_NTH1[],14,0) -> 76281.13 | R40: 269556.46 | T40: IN003176-3 | U40: 0 | W40: PC000023-4 | X40: 1 | Y40: Los Vientos | AB40: PC000023-4 | AC40: 127040038.5
A41: 96989120 | B41: 4 | C41: CERVECERA CCU CHILE LTDA. (2) | D41: IN001253-3 | E41: 3043.71 | F41: 721.82 | G41: 5141585 | H41: 216705454 | I41: 202104 | J41: 2021-04-01 | K41: 0 | O41: =+Unidades!B41 -> Energía Pacífico | P41: 1 | Q41: =+VLOOKUP(O41,TablaGxN_NTH1[],14,0) -> 112116631.5 | R41: 36910164.65 | T41: IN001253-3 | U41: 0 | W41: GE000005-5 | X41: 1 | Y41: NTO1 | AB41: GE000005-5 | AC41: 2924206586
A42: 96989120 | B42: 4 | C42: CERVECERA CCU CHILE LTDA. (2) | D42: IN003583-1 | E42: 71948.29 | F42: 721.82 | G42: 5141589 | H42: 216705456 | I42: 202104 | J42: 2021-04-01 | K42: 0 | O42: =+Unidades!B42 -> Escuadrón | P42: 2 | Q42: =+VLOOKUP(O42,TablaGxN_NTH1[],14,0) -> 11274641.35 | R42: 26320343.43 | T42: IN003583-1 | U42: 0 | W42: GE000006-3 | X42: 1 | Y42: NTO2 | AB42: GE000006-3 | AC42: 2913021870
A43: 76284294 | B43: 7 | C43: CENTRAL TERMOELECTRICA LOS GUINDOS | D43: PC003468-1 | E43: 20919.53 | F43: 721.82 | G43: 5141591 | H43: 216705458 | I43: 202104 | J43: 2021-04-01 | K43: 1 | O43: =+Unidades!B43 -> Esperanza TG | P43: 1 | Q43: =+VLOOKUP(O43,TablaGxN_NTH1[],14,0) -> 0 | R43: 0 | T43: PC003468-1 | U43: 15100135.14 | W43: GE000072-1 | X43: 1 | Y43: Nueva Ventanas | AB43: GE000072-1 | AC43: 5329378966
A44: 76284294 | B44: 7 | C44: CENTRAL TERMOELECTRICA LOS GUINDOS | D44: TG-GEV-9401 | E44: 27334.7 | F44: 721.82 | G44: 5141593 | H44: 216705460 | I44: 202104 | J44: 2021-04-01 | K44: 1 | O44: =+Unidades!B44 -> Guacolda 1 | P44: 1 | Q44: =+VLOOKUP(O44,TablaGxN_NTH1[],14,0) -> 835561877.5 | R44: 3900541668 | T44: TG-GEV-9401 | U44: 19730733.15 | W44: GE000010-1 | X44: 1 | Y44: ERSA_BIOBIO | AB44: GE000010-1 | AC44: 1971944245
A45: 96893820 | B45: 7 | C45: PLANTA SUR | D45: CA001493-4 | E45: 10715.09 | F45: 721.82 | G45: 5141595 | H45: 216705462 | I45: 202104 | J45: 2021-04-01 | K45: 0 | O45: =+Unidades!B45 -> Guacolda 2 | P45: 1 | Q45: =+VLOOKUP(O45,TablaGxN_NTH1[],14,0) -> 736593369 | R45: 3438540228 | T45: CA001493-4 | U45: 0 | W45: IN001131-6 | X45: 1 | Y45: Renca U1 | AB45: IN001131-6
A46: 96893820 | B46: 7 | C46: PLANTA SUR | D46: IN000383-6 | E46: 27372.85 | F46: 721.82 | G46: 5141597 | H46: 216705464 | I46: 202104 | J46: 2021-04-01 | K46: 0 | O46: =+Unidades!B46 -> Guacolda 3 | P46: 1 | Q46: =+VLOOKUP(O46,TablaGxN_NTH1[],14,0) -> 904408770 | R46: 3503151354 | T46: IN000383-6 | U46: 0 | W46: IN001132-4 | X46: 1 | Y46: Renca U2 | AB46: IN001132-4
A47: 96893820 | B47: 7 | C47: PLANTA SUR | D47: IN000386-0 | E47: 7883.49 | F47: 721.82 | G47: 5141599 | H47: 216705466 | I47: 202104 | J47: 2021-04-01 | K47: 0 | O47: =+Unidades!B47 -> Guacolda 4 | P47: 1 | Q47: =+VLOOKUP(O47,TablaGxN_NTH1[],14,0) -> 747663288.5 | R47: 3065194179 | T47: IN000386-0 | U47: 0 | W47: PC000569-4 | X47: 1 | Y47: San Lorenzo de D. de Almagro U1 | AB47: PC000569-4 | AC47: 0
A48: 96893820 | B48: 7 | C48: PLANTA SUR | D48: IN000385-2 | E48: 36202.33 | F48: 721.82 | G48: 5141601 | H48: 216705468 | I48: 202104 | J48: 2021-04-01 | K48: 0 | O48: =+Unidades!B48 -> Guacolda 5 | P48: 1 | Q48: =+VLOOKUP(O48,TablaGxN_NTH1[],14,0) -> 969878066.4 | R48: 3626441408 | T48: IN000385-2 | U48: 0 | W48: PC000570-8 | X48: 1 | Y48: San Lorenzo de D. de Almagro U2 | AB48: PC000570-8 | AC48: 0
A49: 96893820 | B49: 7 | C49: PLANTA SUR | D49: IN000387-9 | E49: 136066.77 | F49: 721.82 | G49: 5141603 | H49: 216705470 | I49: 202104 | J49: 2021-04-01 | K49: 0 | O49: =+Unidades!B49 -> Horcones | P49: 1 | Q49: =+VLOOKUP(O49,TablaGxN_NTH1[],14,0) -> 220589.062 | R49: 1146697.69 | T49: IN000387-9 | U49: 0 | W49: PC000846-4 | X49: 1 | Y49: Santa Lidia | AB49: PC000846-4 | AC49: 27698283.37
A50: 96893820 | B50: 7 | C50: PLANTA MEJILLONES | D50: IN000357-7 | E50: 16530.32 | F50: 721.82 | G50: 5141607 | H50: 216705472 | I50: 202104 | J50: 2021-04-01 | K50: 0 | O50: =+Unidades!B50 -> Huasco TG | P50: 2 | Q50: =+VLOOKUP(O50,TablaGxN_NTH1[],14,0) -> 107767.105 | R50: 2572393.24 | T50: IN000357-7 | U50: 0 | W50: PC003591-2 | X50: 1 | Y50: TG1 | AB50: PC003591-2 | AC50: 0
A51: 96893820 | B51: 7 | C51: PLANTA MEJILLONES | D51: IN000359-3 | E51: 20854.65 | F51: 721.82 | G51: 5141611 | H51: 216705474 | I51: 202104 | J51: 2021-04-01 | K51: 0 | O51: =+Unidades!B51 -> IEM | P51: 1 | Q51: =+VLOOKUP(O51,TablaGxN_NTH1[],14,0) -> 2339743816 | R51: 4368653610 | T51: IN000359-3 | U51: 0 | W51: PC003592-0 | X51: 1 | Y51: TG2 | AB51: PC003592-0
A52: 96893820 | B52: 7 | C52: PLANTA MEJILLONES | D52: IN002751-4 | E52: 18677.73 | F52: 721.82 | G52: 5141613 | H52: 216705476 | I52: 202104 | J52: 2021-04-01 | K52: 0 | O52: =+Unidades!B52 -> Laguna Verde TG | P52: 1 | Q52: =+VLOOKUP(O52,TablaGxN_NTH1[],14,0) -> 0 | R52: 0 | T52: IN002751-4 | U52: 0 | W52: PC003593-9 | X52: 1 | Y52: TG3 | AB52: PC003593-9 | AC52: 20073099.6
A53: 96893820 | B53: 7 | C53: PLANTA MEJILLONES | D53: IN000361-5 | E53: 8808.88 | F53: 721.82 | G53: 5141615 | H53: 216705478 | I53: 202104 | J53: 2021-04-01 | K53: 0 | O53: =+Unidades!B53 -> Laguna Verde TV | P53: 2 | Q53: =+VLOOKUP(O53,TablaGxN_NTH1[],14,0) -> 0 | R53: 0 | T53: IN000361-5 | U53: 0 | W53: PC000103-6 | X53: 1 | Y53: TGTAR | AB53: PC000103-6 | AC53: 137384.0006
A54: 96893820 | B54: 7 | C54: PLANTA MEJILLONES | D54: CA010810-3 | E54: 4986.98 | F54: 721.82 | G54: 5141617 | H54: 216705480 | I54: 202104 | J54: 2021-04-01 | K54: 0 | O54: =+Unidades!B54 -> Laja | P54: 1 | Q54: =+VLOOKUP(O54,TablaGxN_NTH1[],14,0) -> 13190774.7 | R54: 846240.11 | T54: CA010810-3 | U54: 0 | W54: GE000025-k | X54: =+COUNTA(Y54:Z54) -> 0 | AB54: GE000025-k
A55: 96893820 | B55: 7 | C55: PLANTA SUR | D55: IN001087-5 | E55: 17469.75 | F55: 721.82 | G55: 5141619 | H55: 216705482 | I55: 202104 | J55: 2021-04-01 | K55: 0 | O55: =+Unidades!B55 -> Lautaro-Comasa | P55: 1 | Q55: =+VLOOKUP(O55,TablaGxN_NTH1[],14,0) -> 155438192.2 | R55: 44781286.93 | T55: IN001087-5 | U55: 0 | W55: GE000024-1 | X55: 2 | Y55: U13 | Z55: U12 | AB55: GE000024-1
A56: 96893820 | B56: 7 | C56: PLANTA SUR | D56: IN001088-3 | E56: 29826.87 | F56: 721.82 | G56: 5141621 | H56: 216705484 | I56: 202104 | J56: 2021-04-01 | K56: 0 | O56: =+Unidades!B56 -> Lautaro-Comasa 2 | P56: 1 | Q56: =+VLOOKUP(O56,TablaGxN_NTH1[],14,0) -> 110913832.1 | R56: 53432422.34 | T56: IN001088-3 | U56: 0 | W56: GE000023-3 | X56: 0 | AB56: GE000023-3
A57: 96893820 | B57: 7 | C57: PLANTA SUR | D57: IN001089-1 | E57: 31522.06 | F57: 721.82 | G57: 5141623 | H57: 216705486 | I57: 202104 | J57: 2021-04-01 | K57: 0 | O57: =+Unidades!B57 -> Licantén | P57: 2 | Q57: =+VLOOKUP(O57,TablaGxN_NTH1[],14,0) -> 13613024.27 | R57: 90559811.5 | T57: IN001089-1 | U57: 0 | W57: GE000022-5 | X57: 2 | Y57: U15 | Z57: U14 | AB57: GE000022-5 | AC57: 283319537.8 | AD57: 161372391.2
A58: 96893820 | B58: 7 | C58: PLANTA SUR | D58: IN001091-3 | E58: 151802.46 | F58: 721.82 | G58: 5141625 | H58: 216705488 | I58: 202104 | J58: 2021-04-01 | K58: 0 | O58: =+Unidades!B58 -> Los Guindos | P58: 1 | Q58: =+VLOOKUP(O58,TablaGxN_NTH1[],14,0) -> 3816030.297 | R58: 15100135.14 | T58: IN001091-3 | U58: 0 | W58: PC003594-7 | X58: 1 | Y58: U16 | AB58: PC003594-7 | AC58: 1674067003
A59: 96893820 | B59: 7 | C59: PLANTA SUR | D59: IN001092-1 | E59: 72632.57 | F59: 721.82 | G59: 5141627 | H59: 216705490 | I59: 202104 | J59: 2021-04-01 | K59: 0 | O59: =+Unidades!B59 -> Los Pinos | P59: 1 | Q59: =+VLOOKUP(O59,TablaGxN_NTH1[],14,0) -> 50514254.28 | R59: 143275141.8 | T59: IN001092-1 | U59: 0 | W59: GE000035-7 | X59: 1 | Y59: Ventanas 1 | AB59: GE000035-7 | AC59: 398116435.7
A60: 96893820 | B60: 7 | C60: PLANTA SUR | D60: IN001979-1 | E60: 9.94 | F60: 721.82 | G60: 5141629 | H60: 216705492 | I60: 202104 | J60: 2021-04-01 | K60: 0 | O60: =+Unidades!B60 -> Los Vientos | P60: 1 | Q60: =+VLOOKUP(O60,TablaGxN_NTH1[],14,0) -> 29081755.84 | R60: 127040038.5 | T60: IN001979-1 | U60: 0 | W60: GE000036-5 | X60: 1 | Y60: Ventanas 2 | AB60: GE000036-5 | AC60: 3239950865
A61: 96893820 | B61: 7 | C61: PLANTA SUR | D61: IN003567-K | E61: 49846.41 | F61: 721.82 | G61: 5141631 | H61: 216705494 | I61: 202104 | J61: 2021-04-01 | K61: 0 | O61: =+Unidades!B61 -> Masisa (Cabrero) | P61: 2 | Q61: =+VLOOKUP(O61,TablaGxN_NTH1[],14,0) -> 44002811.8 | R61: 24293660.54 | T61: IN003567-K | U61: 0 | W61: GE000085-3 | X61: 1 | Y61: Viñales | AB61: GE000085-3 | AC61: 114084957.5
A62: 96893820 | B62: 7 | C62: PLANTA ORIENTE | D62: IN000377-1 | E62: 83978.99 | F62: 721.82 | G62: 5141633 | H62: 216705496 | I62: 202104 | J62: 2021-04-01 | K62: 0 | O62: =+Unidades!B62 -> Nehuenco | P62: 2 | Q62: =+VLOOKUP(O62,TablaGxN_NTH1[],14,0) -> 1714795147 | R62: 2539215256 | T62: IN000377-1 | U62: 0 | W62: PC000952-5 | X62: 1 | Y62: Yungay 4 ca | AB62: PC000952-5
A63: 96893820 | B63: 7 | C63: PLANTA ORIENTE | D63: IN000378-K | E63: 63857.62 | F63: 721.82 | G63: 5141635 | H63: 216705498 | I63: 202104 | J63: 2021-04-01 | K63: 0 | O63: =+Unidades!B63 -> Nehuenco II | P63: 1 | Q63: =+VLOOKUP(O63,TablaGxN_NTH1[],14,0) -> 2189153997 | R63: 3393975971 | T63: IN000378-K | U63: 0 | W63: IN000611-8 | X63: 1 | Y63: Cholguán | AB63: IN000611-8 | AC63: 79850608.46
A64: 96893820 | B64: 7 | C64: PLANTA ORIENTE | D64: IN000379-8 | E64: 6129.81 | F64: 721.82 | G64: 5141637 | H64: 216705500 | I64: 202104 | J64: 2021-04-01 | K64: 0 | O64: =+Unidades!B64 -> Nehuenco TG 9B | P64: 1 | Q64: =+VLOOKUP(O64,TablaGxN_NTH1[],14,0) -> 2978906.884 | R64: 8275918.94 | T64: IN000379-8 | U64: 0 | W64: IN003325-1 | X64: 1 | Y64: Cholguán | AB64: IN003325-1 | AC64: 843511.6338
A65: 96893820 | B65: 7 | C65: PLANTA ORIENTE | D65: IN000380-1 | E65: 13733.22 | F65: 721.82 | G65: 5141639 | H65: 216705502 | I65: 202104 | J65: 2021-04-01 | K65: 0 | O65: =+Unidades!B65 -> NTO1 | P65: 1 | Q65: =+VLOOKUP(O65,TablaGxN_NTH1[],14,0) -> 761243851 | R65: 2924206586 | T65: IN000380-1 | U65: 0 | W65: IN003326-k | X65: 1 | Y65: Cholguán | AB65: IN003326-k | AC65: 1093550.082
A66: 96893820 | B66: 7 | C66: PLANTA ORIENTE | D66: CA001482-9 | E66: 8474.16 | F66: 721.82 | G66: 5141641 | H66: 216705504 | I66: 202104 | J66: 2021-04-01 | K66: 0 | O66: =+Unidades!B66 -> NTO2 | P66: 1 | Q66: =+VLOOKUP(O66,TablaGxN_NTH1[],14,0) -> 759802880.9 | R66: 2913021870 | T66: CA001482-9 | U66: 0 | W66: PC000335-7 | X66: 1 | Y66: Huasco TG | AB66: PC000335-7 | AC66: 847611.5714
A67: 96893820 | B67: 7 | C67: PLANTA ORIENTE | D67: CA001483-7 | E67: 14041.24 | F67: 721.82 | G67: 5141643 | H67: 216705506 | I67: 202104 | J67: 2021-04-01 | K67: 0 | O67: =+Unidades!B67 -> Nueva Aldea I | P67: 3 | Q67: =+VLOOKUP(O67,TablaGxN_NTH1[],14,0) -> 32874047.78 | R67: 35740752.02 | T67: CA001483-7 | U67: 0 | W67: PC000336-5 | X67: 1 | Y67: Huasco TG | AB67: PC000336-5 | AC67: 797214.099
A68: 76326949 | B68: 3 | C68: CENTRAL COLMITO | D68: PC003323-5 | E68: 19521.51 | F68: 721.82 | G68: 5141645 | H68: 216705508 | I68: 202104 | J68: 2021-04-01 | K68: 1 | O68: =+Unidades!B68 -> Nueva Aldea III | P68: 3 | Q68: =+VLOOKUP(O68,TablaGxN_NTH1[],14,0) -> 239374745 | R68: 260248858.2 | T68: PC003323-5 | U68: 14091016.35 | W68: PC000337-3 | X68: 1 | Y68: Huasco TG | AB68: PC000337-3 | AC68: 927567.5728
A69: 76009328 | B69: 9 | C69: CENTRAL TERMOELÉCTRICA DIEGO DE ALMAGRO | D69: PC000569-4 | E69: 102.37 | F69: 721.82 | G69: 5141647 | H69: 216705510 | I69: 202104 | J69: 2021-04-01 | K69: 0 | O69: =+Unidades!B69 -> Nueva Renca | P69: 1 | Q69: =+VLOOKUP(O69,TablaGxN_NTH1[],14,0) -> 1055864839 | R69: 2169019691 | T69: PC000569-4 | U69: 0 | W69: IN000473-5 | X69: 1 | Y69: Nehuenco | AB69: IN000473-5 | AC69: 765331.3096
A70: 76009328 | B70: 9 | C70: CENTRAL TERMOELÉCTRICA DIEGO DE ALMAGRO | D70: PC000570-8 | E70: 175.3 | F70: 721.82 | G70: 5141649 | H70: 216705512 | I70: 202104 | J70: 2021-04-01 | K70: 0 | O70: =+Unidades!B70 -> Nueva Ventanas | P70: 1 | Q70: =+VLOOKUP(O70,TablaGxN_NTH1[],14,0) -> 1398395035 | R70: 5329378966 | T70: PC000570-8 | U70: 0 | W70: PC001510-0 | X70: 1 | Y70: Nehuenco | AB70: PC001510-0 | AC70: 2538449925
A71: 76004337 | B71: 0 | C71: EMPRESA ELECTRICA DIEGO DE ALMAGRO | D71: EL029919-7 | E71: 508.02 | F71: 721.82 | G71: 5141651 | H71: 216705514 | I71: 202104 | J71: 2021-04-01 | K71: 1 | O71: =+Unidades!B71 -> Petropower | P71: 1 | Q71: =+VLOOKUP(O71,TablaGxN_NTH1[],14,0) -> 2468179.403 | R71: 0 | T71: =+D71 -> EL029919-7 | U71: =+K71*F71*E71 -> 366698.9964 | W71: EL019740-9 | X71: =+COUNTA(Y71:Z71) -> 2 | Y71: Nueva Aldea I | Z71: Nueva Aldea III | AB71: =+W71 -> EL019740-9 | AC71: 9111.683511 | AD71: 66347.37929
A72: 76004337 | B72: 0 | C72: EMPRESA ELECTRICA DIEGO DE ALMAGRO | D72: EL029922-7 | E72: 373.44 | F72: 721.82 | G72: 5141653 | H72: 216705516 | I72: 202104 | J72: 2021-04-01 | K72: 1 | O72: =+Unidades!B72 -> Quintero A | P72: 1 | Q72: =+VLOOKUP(O72,TablaGxN_NTH1[],14,0) -> 331680141.1 | R72: 1069966952 | T72: EL029922-7 | U72: 269556.4608 | W72: IN000218-k | X72: 2 | Y72: Nueva Aldea I | Z72: Nueva Aldea III | AB72: IN000218-k | AC72: 29397470.6 | AD72: 214059798
A73: 96591040 | B73: 9 | C73: PLANTA AGROZZI TENO | D73: IN000522-7 | E73: 56170.09 | F73: 721.82 | G73: 5141655 | H73: 216705518 | I73: 202104 | J73: 2021-04-01 | K73: 0 | O73: =+Unidades!B73 -> Quintero B | P73: 1 | Q73: =+VLOOKUP(O73,TablaGxN_NTH1[],14,0) -> 255302834.9 | R73: 838759900 | T73: IN000522-7 | U73: 0 | W73: IN002622-4 | X73: 2 | Y73: Nueva Aldea I | Z73: Nueva Aldea III | AB73: IN002622-4 | AC73: 6334169.741 | AD73: 46122712.86
A74: 96591040 | B74: 9 | C74: PLANTA AGROZZI TENO | D74: IN000523-5 | E74: 63921.41 | F74: 721.82 | G74: 5141657 | H74: 216705520 | I74: 202104 | J74: 2021-04-01 | K74: 0 | O74: =+Unidades!B74 -> Renca U1 | P74: 1 | Q74: =+VLOOKUP(O74,TablaGxN_NTH1[],14,0) -> 0 | R74: 0 | T74: IN000523-5 | U74: 0 | W74: IN000219-8 | X74: 1 | Y74: Valdivia | AB74: IN000219-8 | AC74: 210365849.3
A75: 96591040 | B75: 9 | C75: PLANTA AGROZZI TENO | D75: IN000525-1 | E75: 52592.32 | F75: 721.82 | G75: 5141659 | H75: 216705522 | I75: 202104 | J75: 2021-04-01 | K75: 0 | O75: =+Unidades!B75 -> Renca U2 | P75: 1 | Q75: =+VLOOKUP(O75,TablaGxN_NTH1[],14,0) -> 0 | R75: 0 | T75: IN000525-1 | U75: 0 | W75: IN000220-1 | X75: 1 | Y75: Valdivia | AB75: IN000220-1 | AC75: 148696147.1
A76: 96591040 | B76: 9 | C76: PLANTA AGROZZI TENO | D76: IN000526-K | E76: 34291.44 | F76: 721.82 | G76: 5141661 | H76: 216705524 | I76: 202104 | J76: 2021-04-01 | K76: 0 | O76: =+Unidades!B76 -> San Isidro | P76: 1 | Q76: =+VLOOKUP(O76,TablaGxN_NTH1[],14,0) -> 1394406409 | R76: 2148655337 | T76: IN000526-K | U76: 0 | W76: PC000444-2 | X76: 1 | Y76: Yungay 1 | AB76: PC000444-2 | AC76: 1089067.58
A77: 96591040 | B77: 9 | C77: PLANTA AGROZZI TENO | D77: IN000527-8 | E77: 12536.97 | F77: 721.82 | G77: 5141663 | H77: 216705526 | I77: 202104 | J77: 2021-04-01 | K77: 0 | O77: =+Unidades!B77 -> San Isidro II | P77: 1 | Q77: =+VLOOKUP(O77,TablaGxN_NTH1[],14,0) -> 2213366098 | R77: 3256847394 | T77: IN000527-8 | U77: 0 | W77: PC000445-0 | X77: 1 | Y77: Yungay 1 | AB77: PC000445-0 | AC77: 1089067.58
A78: 96591040 | B78: 9 | C78: PLANTA AGROZZI TENO | D78: IN003413-4 | E78: 40746.78 | F78: 721.82 | G78: 5141665 | H78: 216705528 | I78: 202104 | J78: 2021-04-01 | K78: 0 | O78: =+Unidades!B78 -> San Lorenzo de D. de Almagro U1 | P78: 1 | Q78: =+VLOOKUP(O78,TablaGxN_NTH1[],14,0) -> 0.5347575545 | R78: 0 | T78: IN003413-4 | U78: 0 | W78: PC000446-9 | X78: 1 | Y78: Yungay 2 | AB78: PC000446-9 | AC78: 693214.2734
A79: 85145500 | B79: 0 | C79: ENERGIAS INDUSTRIALES SA | D79: IN001047-6 | E79: 13556.45 | F79: 721.82 | G79: 5141667 | H79: 216705530 | I79: 202104 | J79: 2021-04-01 | K79: 0 | O79: =+Unidades!B79 -> San Lorenzo de D. de Almagro U2 | P79: 1 | Q79: =+VLOOKUP(O79,TablaGxN_NTH1[],14,0) -> 0.5598243148 | R79: 0 | T79: IN001047-6 | U79: 0 | W79: PC000447-7 | X79: 1 | Y79: Yungay 2 | AB79: PC000447-7 | AC79: 693214.2734
A80: 85145500 | B80: 0 | C80: ENERGIAS INDUSTRIALES SA | D80: IN000411-5 | E80: 13556.45 | F80: 721.82 | G80: 5141669 | H80: 216705532 | I80: 202104 | J80: 2021-04-01 | K80: 0 | O80: =+Unidades!B80 -> Santa Lidia | P80: 1 | Q80: =+VLOOKUP(O80,TablaGxN_NTH1[],14,0) -> 7473070.655 | R80: 27698283.37 | T80: IN000411-5 | U80: 0 | W80: PC000448-5 | X80: 1 | Y80: Yungay 3 | AB80: PC000448-5 | AC80: 801104.7088
A81: 85145500 | B81: 0 | C81: ENERGIAS INDUSTRIALES SA | D81: IN000412-3 | E81: 7473.97 | F81: 721.82 | G81: 5141671 | H81: 216705534 | I81: 202104 | J81: 2021-04-01 | K81: 0 | O81: =+Unidades!B81 -> Santa María | P81: 2 | Q81: =+VLOOKUP(O81,TablaGxN_NTH1[],14,0) -> 1959859736 | R81: 9554902260 | T81: IN000412-3 | U81: 0 | W81: PC000449-3 | X81: 1 | Y81: Yungay 3 | AB81: PC000449-3 | AC81: 170176.2832
A82: 85145500 | B82: 0 | C82: ENERGIAS INDUSTRIALES SA | D82: IN000413-1 | E82: 6569.59 | F82: 721.82 | G82: 5141673 | H82: 216705536 | I82: 202104 | J82: 2021-04-01 | K82: 0 | O82: =+Unidades!B82 -> Taltal 1 | P82: 1 | Q82: =+VLOOKUP(O82,TablaGxN_NTH1[],14,0) -> 35346879.45 | R82: 215106387.8 | T82: IN000413-1 | U82: 0 | W82: PC001511-0 | X82: 1 | Y82: Nehuenco II | AB82: PC001511-0 | AC82: 3393975971
A83: 96903720 | B83: 3 | C83: UGE EL SALVADOR TG | D83: PC003725-7 | E83: 153002.24 | F83: 721.82 | G83: 5141675 | H83: 216705538 | I83: 202104 | J83: 2021-04-01 | K83: 1 | O83: =+Unidades!B83 -> Taltal 2 | P83: 1 | Q83: =+VLOOKUP(O83,TablaGxN_NTH1[],14,0) -> 21189434.65 | R83: 86882795.45 | T83: PC003725-7 | U83: 110440076.9 | W83: PC001512-0 | X83: 1 | Y83: Nehuenco TG 9B | AB83: PC001512-0 | AC83: 8275918.937
A84: 96814370 | B84: 0 | C84: CENTRAL TERMOELÉCTRICA NUEVA VENTANAS | D84: GE000072-1 | E84: 7383252.01 | F84: 721.82 | G84: 5141677 | H84: 216705540 | I84: 202104 | J84: 2021-04-01 | K84: 1 | O84: =+Unidades!B84 -> TG_Coronel | P84: 3 | Q84: =+VLOOKUP(O84,TablaGxN_NTH1[],14,0) -> 2545644.897 | R84: 29548524.57 | T84: GE000072-1 | U84: 5329378966 | W84: IN001115-4 | X84: 1 | Y84: Nueva Renca | AB84: IN001115-4 | AC84: 2169019691
A85: 76101812 | B85: 4 | C85: SOPROLE | D85: IN003122-4 | E85: 124595.99 | F85: 721.82 | G85: 5141679 | H85: 216705542 | I85: 202104 | J85: 2021-04-01 | K85: 0 | O85: =+Unidades!B85 -> TG1 | P85: 1 | Q85: =+VLOOKUP(O85,TablaGxN_NTH1[],14,0) -> 3408.48 | R85: 0 | T85: IN003122-4 | U85: 0 | W85: PC000620-8 | X85: 1 | Y85: Quintero A | AB85: PC000620-8 | AC85: 1069966952
A86: 76101812 | B86: 4 | C86: SOPROLE | D86: IN002335-7 | E86: 26919.65 | F86: 721.82 | G86: 5141681 | H86: 216705544 | I86: 202104 | J86: 2021-04-01 | K86: 0 | O86: =+Unidades!B86 -> TG2 | P86: 1 | Q86: =+VLOOKUP(O86,TablaGxN_NTH1[],14,0) -> 0 | R86: 0 | T86: IN002335-7 | U86: 0 | W86: PC000621-6 | X86: 1 | Y86: Quintero B | AB86: PC000621-6 | AC86: 838759900
A87: 76101812 | B87: 4 | C87: SOPROLE | D87: CA011536-3 | E87: 152.33 | F87: 721.82 | G87: 5141683 | H87: 216705546 | I87: 202104 | J87: 2021-04-01 | K87: 0 | O87: =+Unidades!B87 -> TG3 | P87: 1 | Q87: =+VLOOKUP(O87,TablaGxN_NTH1[],14,0) -> 18607552.15 | R87: 20073099.6 | T87: CA011536-3 | U87: 0 | W87: PC000312-8 | X87: 1 | Y87: Taltal 1 | AB87: PC000312-8 | AC87: 215106387.8
A88: 76101812 | B88: 4 | C88: SOPROLE | D88: CA011537-1 | E88: 152.33 | F88: 721.82 | G88: 5141685 | H88: 216705548 | I88: 202104 | J88: 2021-04-01 | K88: 0 | O88: =+Unidades!B88 -> TGTAR | P88: 1 | Q88: =+VLOOKUP(O88,TablaGxN_NTH1[],14,0) -> 0 | R88: 137384.0006 | T88: CA011537-1 | U88: 0 | W88: PC000313-6 | X88: 1 | Y88: Taltal 2 | AB88: PC000313-6 | AC88: 86882795.45
A89: 76030472 | B89: 7 | C89: METHANEX CHILE S.A. | D89: IN000902-8 | E89: 216243.93 | F89: 721.82 | G89: 5141687 | H89: 216705550 | I89: 202104 | J89: 2021-04-01 | K89: 0 | O89: =+Unidades!B89 -> U12 | P89: 1 | Q89: =+VLOOKUP(O89,TablaGxN_NTH1[],14,0) -> 0 | R89: 0 | T89: IN000902-8 | U89: 0 | W89: PC000146-k | X89: 1 | Y89: TG_Coronel | AB89: PC000146-k | AC89: 29548524.57
A90: 76030472 | B90: 7 | C90: METHANEX CHILE S.A. | D90: IN000901-K | E90: 223413.95 | F90: 721.82 | G90: 5141689 | H90: 216705552 | I90: 202104 | J90: 2021-04-01 | K90: 0 | O90: =+Unidades!B90 -> U13 | P90: 1 | Q90: =+VLOOKUP(O90,TablaGxN_NTH1[],14,0) -> 0 | R90: 0 | T90: IN000901-K | U90: 0 | W90: PC000387-k | X90: 1 | Y90: Candelaria 1 | AB90: PC000387-k | AC90: 170071669.8
A91: 76030472 | B91: 7 | C91: METHANEX CHILE S.A. | D91: EL003401-1 | E91: 75627.5 | F91: 721.82 | G91: 5141691 | H91: 216705554 | I91: 202104 | J91: 2021-04-01 | K91: 0 | O91: =+Unidades!B91 -> U14 | P91: 1 | Q91: =+VLOOKUP(O91,TablaGxN_NTH1[],14,0) -> 41727880.74 | R91: 161372391.2 | T91: EL003401-1 | U91: 0 | W91: PC000388-8 | X91: 1 | Y91: Candelaria 2 | AB91: PC000388-8 | AC91: 220124956.8
A92: 76030472 | B92: 7 | C92: METHANEX CHILE S.A. | D92: IN003456-8 | E92: 235762.74 | F92: 721.82 | G92: 5141693 | H92: 216705556 | I92: 202104 | J92: 2021-04-01 | K92: 0 | O92: =+Unidades!B92 -> U15 | P92: 1 | Q92: =+VLOOKUP(O92,TablaGxN_NTH1[],14,0) -> 73261130.97 | R92: 283319537.8 | T92: IN003456-8 | U92: 0 | W92: PC003323-5 | X92: 1 | Y92: Colmito | AB92: PC003323-5 | AC92: 14091016.35
A93: 76030472 | B93: 7 | C93: METHANEX CHILE S.A. | D93: IN003455-K | E93: 187011.33 | F93: 721.82 | G93: 5141695 | H93: 216705558 | I93: 202104 | J93: 2021-04-01 | K93: 0 | O93: =+Unidades!B93 -> U16 | P93: 1 | Q93: =+VLOOKUP(O93,TablaGxN_NTH1[],14,0) -> 1026237851 | R93: 1674067003 | T93: IN003455-K | U93: 0 | W93: CA000124-7 | X93: 1 | Y93: Antilhue TG U1 | AB93: CA000124-7 | AC93: 0
A94: 76418918 | B94: 3 | C94: GUACOLDA | D94: GE000016-0 | E94: 10167468.2 | F94: 721.82 | G94: 5141697 | H94: 216705560 | I94: 202104 | J94: 2021-04-01 | K94: 1 | O94: =+Unidades!B94 -> Valdivia | P94: 2 | Q94: =+VLOOKUP(O94,TablaGxN_NTH1[],14,0) -> 119829502.7 | R94: 359061996.4 | T94: GE000016-0 | U94: 7339081896 | W94: PC001400-1 | X94: 1 | Y94: Antilhue TG U1 | AB94: PC001400-1 | AC94: 30799193.22
A95: 76418918 | B95: 3 | C95: GUACOLDA | D95: GE000079-9 | E95: 4853220.13 | F95: 721.82 | G95: 5141701 | H95: 216705562 | I95: 202104 | J95: 2021-04-01 | K95: 1 | O95: =+Unidades!B95 -> Ventanas 1 | P95: 1 | Q95: =+VLOOKUP(O95,TablaGxN_NTH1[],14,0) -> 89916659.67 | R95: 398116435.7 | T95: GE000079-9 | U95: 3503151354 | W95: CA000125-5 | X95: 1 | Y95: Antilhue TG U2 | AB95: CA000125-5 | AC95: 0
A96: 76418918 | B96: 3 | C96: GUACOLDA | D96: GE000080-2 | E96: 4246479.98 | F96: 721.82 | G96: 5141703 | H96: 216705564 | I96: 202104 | J96: 2021-04-01 | K96: 1 | O96: =+Unidades!B96 -> Ventanas 2 | P96: 1 | Q96: =+VLOOKUP(O96,TablaGxN_NTH1[],14,0) -> 875260367.7 | R96: 3239950865 | T96: GE000080-2 | U96: 3065194179 | W96: PC001401-1 | X96: 1 | Y96: Antilhue TG U2 | AB96: PC001401-1 | AC96: 30358781.96
A97: 76418918 | B97: 3 | C97: GUACOLDA | D97: GE000215-1 | E97: 5024024.56 | F97: 721.82 | G97: 5141705 | H97: 216705566 | I97: 202104 | J97: 2021-04-01 | K97: 1 | O97: =+Unidades!B97 -> Viñales | P97: 1 | Q97: =+VLOOKUP(O97,TablaGxN_NTH1[],14,0) -> 223550951.4 | R97: 114084957.5 | T97: GE000215-1 | U97: 3626441408 | W97: IN000213-9 | X97: 1 | Y97: Arauco | AB97: IN000213-9 | AC97: 210159697.6
A98: 96565750 | B98: 9 | C98: ASERRADEROS VALDIVIA | D98: CA010881-2 | E98: 516.49 | F98: 721.82 | G98: 5141707 | H98: 216705568 | I98: 202104 | J98: 2021-04-01 | K98: 0 | O98: =+Unidades!B98 -> Yungay 1 | P98: 2 | Q98: =+VLOOKUP(O98,TablaGxN_NTH1[],14,0) -> 642243.7966 | R98: 2178135.16 | T98: CA010881-2 | U98: 0 | W98: IN000214-7 | X98: 1 | Y98: Arauco | AB98: IN000214-7 | AC98: 129853238.1
A99: 96565750 | B99: 9 | C99: ASERRADEROS VALDIVIA | D99: IN000862-5 | E99: 1694.55 | F99: 721.82 | G99: 5141709 | H99: 216705570 | I99: 202104 | J99: 2021-04-01 | K99: 0 | O99: =+Unidades!B99 -> Yungay 2 | P99: 2 | Q99: =+VLOOKUP(O99,TablaGxN_NTH1[],14,0) -> 384271.4248 | R99: 1386428.54 | T99: IN000862-5 | U99: 0 | W99: IN000215-5 | X99: 1 | Y99: Arauco | AB99: IN000215-5 | AC99: 0
A100: 96565750 | B100: 9 | C100: ASERRADEROS VALDIVIA | D100: IN000863-3 | E100: 4420.56 | F100: 721.82 | G100: 5141711 | H100: 216705572 | I100: 202104 | J100: 2021-04-01 | K100: 0 | O100: =+Unidades!B100 -> Yungay 3 | P100: 2 | Q100: =+VLOOKUP(O100,TablaGxN_NTH1[],14,0) -> 473194.1596 | R100: 971280.99 | T100: IN000863-3 | U100: 0 | W100: IN000216-3 | X100: 1 | Y100: Arauco | AB100: IN000216-3 | AC100: 262682135.8
A101: 96565750 | B101: 9 | C101: PLANTA VIÑALES | D101: GE000085-3 | E101: 158051.81 | F101: 721.82 | G101: 5141713 | H101: 216705574 | I101: 202104 | J101: 2021-04-01 | K101: 1 | O101: =+Unidades!B101 -> Yungay 4 ca | P101: 1 | Q101: =+VLOOKUP(O101,TablaGxN_NTH1[],14,0) -> 0 | R101: 0 | T101: GE000085-3 | U101: 114084957.5 | W101: IN000217-1 | X101: 1 | Y101: Arauco | AB101: IN000217-1 | AC101: 177356631
A102: 96532330 | B102: 9 | C102: CMPC CELULOSA PLANTA LAJA | D102: IN002371-3 | E102: 19792.46 | F102: 721.82 | G102: 5141715 | H102: 216705576 | I102: 202104 | J102: 2021-04-01 | K102: 1 | O102: =+Unidades!B102 -> Los Guindos 2 | P102: 1 | Q102: =+VLOOKUP(O102,TablaGxN_NTH1[],14,0) -> 4140852.614 | R102: 19730733.15 | T102: IN002371-3 | U102: 14286593.48 | W102: IN001365-3 | X102: 1 | Y102: Arauco | AB102: IN001365-3 | AC102: 163623543.5
A103: 96532330 | B103: 9 | C103: CMPC CELULOSA PLANTA LAJA | D103: IN001988-0 | E103: 92190.51 | F103: 721.82 | G103: 5141717 | H103: 216705578 | I103: 202104 | J103: 2021-04-01 | K103: 1 | O103: =+Unidades!B103 -> ACONCAGUA | P103: 1 | Q103: =+VLOOKUP(O103,TablaGxN_NTH1[],14,0) -> 28241867.34 | R103: 1163351101 | T103: IN001988-0 | U103: 66544953.93 | W103: PC003576-9 | X103: 1 | Y103: CC KELAR | AB103: PC003576-9 | AC103: 1410313599
A104: 96532330 | B104: 9 | C104: CMPC CELULOSA PLANTA SANTA FE | D104: IN000638-K | E104: 34273.4 | F104: 721.82 | G104: 5141719 | H104: 216705580 | I104: 202104 | J104: 2021-04-01 | K104: 1 | O104: =+Unidades!B104 -> ERSA_BIOBIO | P104: 1 | Q104: =+VLOOKUP(O104,TablaGxN_NTH1[],14,0) -> 86024781.46 | R104: 1971944245 | T104: IN000638-K | U104: 24739225.59 | W104: PC003577-7 | X104: 1 | Y104: CC KELAR | AB104: PC003577-7 | AC104: 1355191469
A105: 96532330 | B105: 9 | C105: CMPC CELULOSA PLANTA SANTA FE | D105: IN000640-1 | E105: 123005.87 | F105: 721.82 | G105: 5141721 | H105: 216705582 | I105: 202104 | J105: 2021-04-01 | K105: 1 | T105: IN000640-1 | U105: 88788097.08 | W105: PC003571-8 | X105: 1 | Y105: CC1 | AB105: PC003571-8 | AC105: 226538457.4
A106: 96532330 | B106: 9 | C106: CMPC CELULOSA PLANTA SANTA FE | D106: IN000639-8 | E106: 12297.6 | F106: 721.82 | G106: 5141723 | H106: 216705584 | I106: 202104 | J106: 2021-04-01 | K106: 1 | T106: IN000639-8 | U106: 8876653.632 | W106: PC003572-6 | X106: 1 | Y106: CC1 | AB106: PC003572-6 | AC106: 209955653.5
A107: 96532330 | B107: 9 | C107: CMPC CELULOSA PLANTA SANTA FE | D107: IN002012-9 | E107: 30438.66 | F107: 721.82 | G107: 5141725 | H107: 216705586 | I107: 202104 | J107: 2021-04-01 | K107: 0 | T107: IN002012-9 | U107: 0 | W107: PC003573-4 | X107: 1 | Y107: CC2 | AB107: PC003573-4 | AC107: 222575355.2
A108: 96532330 | B108: 9 | C108: CMPC PULP SA PLANTA PACIFICO | D108: IN000336-4 | E108: 499293.43 | F108: 721.82 | G108: 5141727 | H108: 216705588 | I108: 202104 | J108: 2021-04-01 | K108: 1 | T108: IN000336-4 | U108: 360399983.6 | W108: PC003574-2 | X108: 1 | Y108: CC2 | AB108: PC003574-2 | AC108: 297015908.4
A109: 96532330 | B109: 9 | C109: CMPC PULP SA PLANTA PACIFICO | D109: GE000015-2 | E109: 28221.97 | F109: 721.82 | G109: 5141729 | H109: 216705590 | I109: 202104 | J109: 2021-04-01 | K109: 1 | T109: GE000015-2 | U109: 20371182.39 | W109: IN000211-2 | X109: 1 | Y109: Celco | AB109: IN000211-2 | AC109: 53999577.96
A110: 96532330 | B110: 9 | C110: CMPC PULP SA PLANTA PACIFICO | D110: IN000334-8 | E110: 25317.36 | F110: 721.82 | G110: 5141731 | H110: 216705592 | I110: 202104 | J110: 2021-04-01 | K110: 1 | T110: IN000334-8 | U110: 18274576.8 | W110: IN000212-0 | X110: 1 | Y110: Celco | AB110: IN000212-0 | AC110: 439883748.7
A111: 96532330 | B111: 9 | C111: CMPC PULP SA PLANTA PACIFICO | D111: IN000335-6 | E111: 13420.14 | F111: 721.82 | G111: 5141733 | H111: 216705594 | I111: 202104 | J111: 2021-04-01 | K111: 1 | T111: IN000335-6 | U111: 9686925.455 | W111: IN001148-0 | X111: 1 | Y111: CMPC Cordillera | AB111: IN001148-0 | AC111: 31441187.14
A112: 78932860 | B112: 9 | C112: CENTRAL TARAPACÁ | D112: PC000103-6 | E112: 190.33 | F112: 721.82 | G112: 5141737 | H112: 216705596 | I112: 202104 | J112: 2021-04-01 | K112: 1 | T112: PC000103-6 | U112: 137384.0006 | W112: IN001149-9 | X112: 1 | Y112: CMPC Cordillera | AB112: IN001149-9 | AC112: 286888391.2
A113: 78932860 | B113: 9 | C113: CENTRAL ATACAMA | D113: PC003571-8 | E113: 313843.42 | F113: 721.82 | G113: 5141739 | H113: 216705598 | I113: 202104 | J113: 2021-04-01 | K113: 1 | T113: PC003571-8 | U113: 226538457.4 | W113: IN001150-2 | X113: 1 | Y113: CMPC Cordillera | AB113: IN001150-2 | AC113: 213041874.3
A114: 78932860 | B114: 9 | C114: CENTRAL ATACAMA | D114: PC003572-6 | E114: 290869.82 | F114: 721.82 | G114: 5141741 | H114: 216705600 | I114: 202104 | J114: 2021-04-01 | K114: 1 | T114: PC003572-6 | U114: 209955653.5 | W114: PC003526-2 | X114: 1 | Y114: CMPC Cordillera | AB114: PC003526-2 | AC114: 19033678.8
A115: 78932860 | B115: 9 | C115: CENTRAL ATACAMA | D115: PC003573-4 | E115: 308352.99 | F115: 721.82 | G115: 5141743 | H115: 216705602 | I115: 202104 | J115: 2021-04-01 | K115: 1 | T115: PC003573-4 | U115: 222575355.2 | W115: IN001988-0 | X115: 1 | Y115: CMPC Laja | AB115: IN001988-0 | AC115: 66544953.93
A116: 78932860 | B116: 9 | C116: CENTRAL ATACAMA | D116: PC003574-2 | E116: 411481.96 | F116: 721.82 | G116: 5141745 | H116: 216705604 | I116: 202104 | J116: 2021-04-01 | K116: 1 | T116: PC003574-2 | U116: 297015908.4 | W116: IN002371-3 | X116: 1 | Y116: CMPC Laja | AB116: IN002371-3 | AC116: 14286593.48
A117: 78932860 | B117: 9 | C117: CENTRAL SAN ISIDRO I | D117: PC000319-5 | E117: 2976719.04 | F117: 721.82 | G117: 5141747 | H117: 216705606 | I117: 202104 | J117: 2021-04-01 | K117: 1 | T117: PC000319-5 | U117: 2148655337 | W117: GE000015-2 | X117: 1 | Y117: CMPC Pacífico | AB117: GE000015-2 | AC117: 20371182.39
A118: 79587210 | B118: 8 | C118: MINA 0 | D118: CA001578-7 | E118: 87897.97 | F118: 721.82 | G118: 5141749 | H118: 216705608 | I118: 202104 | J118: 2021-04-01 | K118: 0 | T118: CA001578-7 | U118: 0 | W118: IN000334-8 | X118: 1 | Y118: CMPC Pacífico | AB118: IN000334-8 | AC118: 18274576.8
A119: 79587210 | B119: 8 | C119: MINA 0 | D119: CA001579-5 | E119: 87760.83 | F119: 721.82 | G119: 5141751 | H119: 216705610 | I119: 202104 | J119: 2021-04-01 | K119: 0 | T119: CA001579-5 | U119: 0 | W119: IN000335-6 | X119: 1 | Y119: CMPC Pacífico | AB119: IN000335-6 | AC119: 9686925.455
A120: 79587210 | B120: 8 | C120: MINA 0 | D120: CA001580-9 | E120: 89496.4 | F120: 721.82 | G120: 5141753 | H120: 216705612 | I120: 202104 | J120: 2021-04-01 | K120: 0 | T120: CA001580-9 | U120: 0 | W120: IN000336-4 | X120: 1 | Y120: CMPC Pacífico | AB120: IN000336-4 | AC120: 360399983.6
A121: 79587210 | B121: 8 | C121: MINA 0 | D121: CA001641-4 | E121: 3927.89 | F121: 721.82 | G121: 5141755 | H121: 216705614 | I121: 202104 | J121: 2021-04-01 | K121: 0 | T121: CA001641-4 | U121: 0 | W121: PC001041-8 | X121: 1 | Y121: CMPC Pacífico | AB121: PC001041-8 | AC121: 0
A122: 79587210 | B122: 8 | C122: MINA 0 | D122: CA011065-5 | E122: 69233.54 | F122: 721.82 | G122: 5141757 | H122: 216705616 | I122: 202104 | J122: 2021-04-01 | K122: 0 | T122: CA011065-5 | U122: 0 | W122: IN000638-k | X122: 1 | Y122: CMPC Santa Fe | AB122: IN000638-k | AC122: 24739225.59
A123: 79587210 | B123: 8 | C123: MINA 0 | D123: CA011066-3 | E123: 60908.56 | F123: 721.82 | G123: 5141759 | H123: 216705618 | I123: 202104 | J123: 2021-04-01 | K123: 0 | T123: CA011066-3 | U123: 0 | W123: IN000639-8 | X123: 1 | Y123: CMPC Santa Fe | AB123: IN000639-8 | AC123: 8876653.632
A124: 79587210 | B124: 8 | C124: MINA 0 | D124: CA011067-1 | E124: 64886.88 | F124: 721.82 | G124: 5141761 | H124: 216705620 | I124: 202104 | J124: 2021-04-01 | K124: 0 | T124: CA011067-1 | U124: 0 | W124: IN000640-1 | X124: 1 | Y124: CMPC Santa Fe | AB124: IN000640-1 | AC124: 88788097.08
A125: 79587210 | B125: 8 | C125: MINA 0 | D125: CA011068-K | E125: 47760.37 | F125: 721.82 | G125: 5141763 | H125: 216705622 | I125: 202104 | J125: 2021-04-01 | K125: 0 | T125: CA011068-K | U125: 0 | W125: IN002012-9 | X125: =+COUNTA(Y125:Z125) -> 0 | AB125: IN002012-9
A126: 96717620 | B126: 6 | C126: RENCA NUEVA RENCA | D126: IN001115-4 | E126: 3004931.55 | F126: 721.82 | G126: 5141765 | H126: 216705624 | I126: 202104 | J126: 2021-04-01 | K126: 1 | T126: IN001115-4 | U126: 2169019691 | W126: GE000037-3 | X126: 1 | Y126: Laguna Verde TV | AB126: GE000037-3
A127: 96717620 | B127: 6 | C127: LOS VIENTOS | D127: PC000023-4 | E127: 175999.61 | F127: 721.82 | G127: 5141771 | H127: 216705626 | I127: 202104 | J127: 2021-04-01 | K127: 1 | T127: PC000023-4 | U127: 127040038.5 | W127: GE000038-1 | X127: 1 | Y127: Laguna Verde TV | AB127: GE000038-1
A128: 96717620 | B128: 6 | C128: SANTA LIDIA | D128: PC000846-4 | E128: 38372.84 | F128: 721.82 | G128: 5141773 | H128: 216705628 | I128: 202104 | J128: 2021-04-01 | K128: 1 | T128: PC000846-4 | U128: 27698283.37 | W128: GE000039-k | X128: 1 | Y128: Laguna Verde TV | AB128: GE000039-k
A129: 96529310 | B129: 8 | C129: PLANTA TISSUE TALAGANTE | D129: IN002463-9 | E129: 12899.85 | F129: 721.82 | G129: 5141775 | H129: 216705630 | I129: 202104 | J129: 2021-04-01 | K129: 1 | T129: IN002463-9 | U129: 9311369.727 | W129: GE000040-3 | X129: 1 | Y129: Laguna Verde TV | AB129: GE000040-3
A130: 96529310 | B130: 8 | C130: PLANTA TISSUE TALAGANTE | D130: PC003087-7 | E130: 350977.41 | F130: 721.82 | G130: 5141777 | H130: 216705632 | I130: 202104 | J130: 2021-04-01 | K130: 1 | T130: PC003087-7 | U130: 253342514.1 | W130: IN000224-4 | X130: 1 | Y130: Licantén | AB130: IN000224-4 | AC130: 73202949.43
A131: 96529310 | B131: 8 | C131: PLANTA TISSUE TALAGANTE | D131: CA004445-0 | E131: 42.19 | F131: 721.82 | G131: 5141779 | H131: 216705634 | I131: 202104 | J131: 2021-04-01 | K131: 0 | T131: CA004445-0 | U131: 0 | W131: IN000225-2 | X131: 1 | Y131: Licantén | AB131: IN000225-2 | AC131: 17356862.07
A132: 96529310 | B132: 8 | C132: PLANTA TISSUE TALAGANTE | D132: CA004446-9 | E132: 42.19 | F132: 721.82 | G132: 5141781 | H132: 216705636 | I132: 202104 | J132: 2021-04-01 | K132: 0 | T132: CA004446-9 | U132: 0 | W132: GE000094-2 | X132: 1 | Y132: Santa María | AB132: GE000094-2 | AC132: 9551060784
A133: 91081000 | B133: 6 | C133: HUASCO | D133: PC000335-7 | E133: 1174.27 | F133: 721.82 | G133: 5141783 | H133: 216705638 | I133: 202104 | J133: 2021-04-01 | K133: 1 | T133: PC000335-7 | U133: 847611.5714 | W133: IN001433-1 | X133: 1 | Y133: Santa María | AB133: IN001433-1 | AC133: 3841475.513
A134: 91081000 | B134: 6 | C134: HUASCO | D134: PC000336-5 | E134: 1104.45 | F134: 721.82 | G134: 5141785 | H134: 216705640 | I134: 202104 | J134: 2021-04-01 | K134: 1 | T134: PC000336-5 | U134: 797214.099 | W134: CA010879-0 | X134: 1 | Y134: Masisa (Cabrero) | AB134: CA010879-0 | AC134: 123799.3482
A135: 91081000 | B135: 6 | C135: HUASCO | D135: PC000337-3 | E135: 1285.04 | F135: 721.82 | G135: 5141787 | H135: 216705642 | I135: 202104 | J135: 2021-04-01 | K135: 1 | T135: =+D135 -> PC000337-3 | U135: =+K135*F135*E135 -> 927567.5728 | W135: CA010880-4 | X135: =+COUNTA(Y135:Z135) -> 1 | Y135: Masisa (Cabrero) | AB135: =+W135 -> CA010880-4 | AC135: 126455.6458
A136: 91081000 | B136: 6 | C136: CENTRAL TALTAL | D136: PC000312-8 | E136: 298005.58 | F136: 721.82 | G136: 5141789 | H136: 216705644 | I136: 202104 | J136: 2021-04-01 | K136: 1 | T136: PC000312-8 | U136: 215106387.8 | W136: GE000130-2 | X136: 1 | Y136: Masisa (Cabrero) | AB136: GE000130-2 | AC136: 22748792.5
A137: 91081000 | B137: 6 | C137: CENTRAL TALTAL | D137: PC000313-6 | E137: 120366.29 | F137: 721.82 | G137: 5141791 | H137: 216705646 | I137: 202104 | J137: 2021-04-01 | K137: 1 | T137: PC000313-6 | U137: 86882795.45 | W137: IN002647-k | X137: 1 | Y137: Masisa (Cabrero) | AB137: IN002647-k | AC137: 668506.3748
A138: 91081000 | B138: 6 | C138: SAN ISIDRO 2 | D138: PC000318-7 | E138: 4511993.84 | F138: 721.82 | G138: 5141793 | H138: 216705648 | I138: 202104 | J138: 2021-04-01 | K138: 1 | T138: PC000318-7 | U138: 3256847394 | W138: IN002653-4 | X138: 1 | Y138: Masisa (Cabrero) | AB138: IN002653-4 | AC138: 626106.668
A139: 91081000 | B139: 6 | C139: DIEGO DE ALMAGRO | D139: PC000355-1 | E139: 2198.5 | F139: 721.82 | G139: 5141795 | H139: 216705650 | I139: 202104 | J139: 2021-04-01 | K139: 1 | T139: PC000355-1 | U139: 1586921.27 | W139: PC000319-5 | X139: 1 | Y139: San Isidro | AB139: PC000319-5 | AC139: 2148655337
A140: 91081000 | B140: 6 | C140: CENTRAL QUINTERO | D140: PC000620-8 | E140: 1482318.24 | F140: 721.82 | G140: 5141797 | H140: 216705652 | I140: 202104 | J140: 2021-04-01 | K140: 1 | T140: PC000620-8 | U140: 1069966952 | W140: PC000318-7 | X140: 1 | Y140: San Isidro II | AB140: PC000318-7 | AC140: 3256847394
A141: 91081000 | B141: 6 | C141: CENTRAL QUINTERO | D141: PC000621-6 | E141: 1162007.01 | F141: 721.82 | G141: 5141799 | H141: 216705654 | I141: 202104 | J141: 2021-04-01 | K141: 1 | T141: PC000621-6 | U141: 838759900 | W141: GE000257-7 | X141: 1 | Y141: Escuadrón | AB141: GE000257-7 | AC141: 26320343.43
A142: 91081000 | B142: 6 | C142: CENTRAL TERMOELECTRICA BOCAMINA U1 | D142: GE000043-8 | E142: 1782470.88 | F142: 721.82 | G142: 5141801 | H142: 216705656 | I142: 202104 | J142: 2021-04-01 | K142: 1 | T142: GE000043-8 | U142: 1286623131 | W142: IN002847-2 | X142: 1 | Y142: Escuadrón | AB142: IN002847-2 | AC142: 0
A143: 91081000 | B143: 6 | C143: CENTRAL TERMOELECTRICA BOCAMINA U1 | D143: GE000106-K | E143: 9790718.99 | F143: 721.82 | G143: 5141803 | H143: 216705658 | I143: 202104 | J143: 2021-04-01 | K143: 1 | T143: GE000106-K | U143: 7067136781 | W143: PC003861-K | X143: 1 | Y143: ACONCAGUA | AB143: PC003861-K | AC143: 863318078.7
A144: 96546010 | B144: 1 | C144: CENTRAL LAUTARO | D144: GE000114-0 | E144: 62039.41 | F144: 721.82 | G144: 5141805 | H144: 216705660 | I144: 202104 | J144: 2021-04-01 | K144: 1 | T144: GE000114-0 | U144: 44781286.93 | W144: IN003466-5 | X144: 1 | Y144: ACONCAGUA | AB144: IN003466-5 | AC144: 300033022.1
A145: 96546010 | B145: 1 | C145: CENTRAL LAUTARO | D145: GE000203-8 | E145: 74024.58 | F145: 721.82 | G145: 5141807 | H145: 216705662 | I145: 202104 | J145: 2021-04-01 | K145: 1 | T145: GE000203-8 | U145: 53432422.34
A146: 76550580 | B146: 1 | C146: CENTRAL CARDONES | D146: PC001834-6 | E146: 4953.05 | F146: 721.82 | G146: 5141809 | H146: 216705664 | I146: 202104 | J146: 2021-04-01 | K146: 1 | T146: PC001834-6 | U146: 3575210.551
A147: 95304000 | B147: K | C147: ASERRADERO MULCHEN | D147: IN002233-4 | E147: 79420.56 | F147: 721.82 | G147: 5141811 | H147: 216705666 | I147: 202104 | J147: 2021-04-01 | K147: 0 | T147: IN002233-4 | U147: 0
A148: 95304000 | B148: K | C148: ASERRADERO MULCHEN | D148: IN002232-6 | E148: 103546.77 | F148: 721.82 | G148: 5141813 | H148: 216705668 | I148: 202104 | J148: 2021-04-01 | K148: 0 | T148: IN002232-6 | U148: 0
A149: 96929960 | B149: 7 | C149: PLANTA PONIENTE ORIZON | D149: IN000254-6 | E149: 50449.31 | F149: 721.82 | G149: 5141825 | H149: 216705670 | I149: 202104 | J149: 2021-04-01 | K149: 0 | T149: IN000254-6 | U149: 0
A150: 96929960 | B150: 7 | C150: PLANTA PONIENTE ORIZON | D150: IN000255-4 | E150: 42687.03 | F150: 721.82 | G150: 5141827 | H150: 216705672 | I150: 202104 | J150: 2021-04-01 | K150: 0 | T150: IN000255-4 | U150: 0
A151: 96929960 | B151: 7 | C151: PLANTA PONIENTE ORIZON | D151: IN000256-2 | E151: 104462.84 | F151: 721.82 | G151: 5141831 | H151: 216705676 | I151: 202104 | J151: 2021-04-01 | K151: 0 | T151: IN000256-2 | U151: 0
A152: 96929960 | B152: 7 | C152: PLANTA PONIENTE ORIZON | D152: IN003579-3 | E152: 43107.45 | F152: 721.82 | G152: 5141833 | H152: 216705678 | I152: 202104 | J152: 2021-04-01 | K152: 0 | T152: IN003579-3 | U152: 0
A153: 96929960 | B153: 7 | C153: PLANTA PONIENTE ORIZON | D153: IN003580-7 | E153: 353.68 | F153: 721.82 | G153: 5141835 | H153: 216705680 | I153: 202104 | J153: 2021-04-01 | K153: 0 | T153: IN003580-7 | U153: 0
A154: 96929960 | B154: 7 | C154: PLANTA PONIENTE ORIZON | D154: CA-OR-16559 | E154: 2.73 | F154: 721.82 | G154: 5141837 | H154: 216705682 | I154: 202104 | J154: 2021-04-01 | K154: 0 | T154: CA-OR-16559 | U154: 0
A155: 96929960 | B155: 7 | C155: PLANTA PONIENTE ORIZON | D155: CA-OR-16620 | E155: 117.17 | F155: 721.82 | G155: 5141839 | H155: 216705684 | I155: 202104 | J155: 2021-04-01 | K155: 0 | T155: CA-OR-16620 | U155: 0
A156: 96929960 | B156: 7 | C156: PLANTA PONIENTE ORIZON | D156: CA-OR-16657 | E156: 47.74 | F156: 721.82 | G156: 5141841 | H156: 216705686 | I156: 202104 | J156: 2021-04-01 | K156: 0 | T156: CA-OR-16657 | U156: 0
A157: 96929960 | B157: 7 | C157: PLANTA PONIENTE ORIZON | D157: CA-OR-16515 | E157: 10.4 | F157: 721.82 | G157: 5141843 | H157: 216705688 | I157: 202104 | J157: 2021-04-01 | K157: 0 | T157: CA-OR-16515 | U157: 0
A158: 96929960 | B158: 7 | C158: PLANTA PONIENTE ORIZON | D158: CA-OR-16525 | E158: 22.54 | F158: 721.82 | G158: 5141845 | H158: 216705690 | I158: 202104 | J158: 2021-04-01 | K158: 0 | T158: CA-OR-16525 | U158: 0
A159: 76009904 | B159: K | C159: CENTRAL TERMOELÉCTRICA ANTILHUE | D159: PC001400-1 | E159: 42668.8 | F159: 721.82 | G159: 5141847 | H159: 216705692 | I159: 202104 | J159: 2021-04-01 | K159: 1 | T159: PC001400-1 | U159: 30799193.22
A160: 76009904 | B160: K | C160: CENTRAL TERMOELÉCTRICA ANTILHUE | D160: PC001401-1 | E160: 42058.66 | F160: 721.82 | G160: 5141849 | H160: 216705694 | I160: 202104 | J160: 2021-04-01 | K160: 1 | T160: PC001401-1 | U160: 30358781.96
A161: 96547510 | B161: 9 | C161: CENTRAL HORCONES | D161: PC002440-0 | E161: 1588.62 | F161: 721.82 | G161: 5141855 | H161: 216705696 | I161: 202104 | J161: 2021-04-01 | K161: 1 | T161: PC002440-0 | U161: 1146697.688
A162: 76708710 | B162: 1 | C162: CENTRAL TERMICA ANDINA | D162: GE000251-8 | E162: 3648002.08 | F162: 721.82 | G162: 5141857 | H162: 216705698 | I162: 202104 | J162: 2021-04-01 | K162: 1 | T162: GE000251-8 | U162: 2633200861
A163: 76708710 | B163: 1 | C163: CENTRAL TERMICA ANDINA | D163: GE000100-0 | E163: 5310914.24 | F163: 721.82 | G163: 5141859 | H163: 216705700 | I163: 202104 | J163: 2021-04-01 | K163: 1 | T163: GE000100-0 | U163: 3833524117
A164: 76004976 | B164: K | C164: CENTRAL TERMOELÉCTRICA ANGAMOS | D164: GE000103-5 | E164: 16117603.27 | F164: 721.82 | G164: 5141861 | H164: 216705702 | I164: 202104 | J164: 2021-04-01 | K164: 1 | T164: GE000103-5 | U164: 1.163400839e+10
A165: 99579230 | B165: 3 | C165: INDUSTRIAS ISLA QUIHUA SA | D165: IN001046-8 | E165: 49046.64 | F165: 721.82 | G165: 5141865 | H165: 216705704 | I165: 202104 | J165: 2021-04-01 | K165: 0 | T165: IN001046-8 | U165: 0
A166: 99579230 | B166: 3 | C166: INDUSTRIAS ISLA QUIHUA SA | D166: IN002071-4 | E166: 38619.74 | F166: 721.82 | G166: 5141867 | H166: 216705706 | I166: 202104 | J166: 2021-04-01 | K166: 0 | T166: IN002071-4 | U166: 0
A167: 99579230 | B167: 3 | C167: INDUSTRIAS ISLA QUIHUA SA | D167: IN001763-2 | E167: 16536.41 | F167: 721.82 | G167: 5141869 | H167: 216705708 | I167: 202104 | J167: 2021-04-01 | K167: 0 | T167: IN001763-2 | U167: 0
A168: 99579230 | B168: 3 | C168: INDUSTRIAS ISLA QUIHUA SA | D168: IN000112-4 | E168: 4918.75 | F168: 721.82 | G168: 5141871 | H168: 216705710 | I168: 202104 | J168: 2021-04-01 | K168: 0 | T168: IN000112-4 | U168: 0
A169: 96554890 | B169: 4 | C169: COMPANIA PAPELERA PACIFICO | D169: IN003211-5 | E169: 140.37 | F169: 721.82 | G169: 5141873 | H169: 216705712 | I169: 202104 | J169: 2021-04-01 | K169: 0 | T169: IN003211-5 | U169: 0
A170: 96554890 | B170: 4 | C170: COMPANIA PAPELERA PACIFICO | D170: IN003212-3 | E170: 140.37 | F170: 721.82 | G170: 5141875 | H170: 216705714 | I170: 202104 | J170: 2021-04-01 | K170: 0 | T170: IN003212-3 | U170: 0
A171: 93458000 | B171: 1 | C171: PLANTA CONSTITUCION | D171: IN000211-2 | E171: 74810.31 | F171: 721.82 | G171: 5141877 | H171: 216705716 | I171: 202104 | J171: 2021-04-01 | K171: 1 | T171: IN000211-2 | U171: 53999577.96
A172: 93458000 | B172: 1 | C172: PLANTA CONSTITUCION | D172: IN000212-0 | E172: 609409.2 | F172: 721.82 | G172: 5141879 | H172: 216705718 | I172: 202104 | J172: 2021-04-01 | K172: 1 | T172: IN000212-0 | U172: 439883748.7
A173: 93458000 | B173: 1 | C173: PLANTA ARAUCO | D173: IN000213-9 | E173: 291152.5 | F173: 721.82 | G173: 5141881 | H173: 216705720 | I173: 202104 | J173: 2021-04-01 | K173: 1 | T173: IN000213-9 | U173: 210159697.6
A174: 93458000 | B174: 1 | C174: PLANTA ARAUCO | D174: IN000216-3 | E174: 363916.4 | F174: 721.82 | G174: 5141883 | H174: 216705722 | I174: 202104 | J174: 2021-04-01 | K174: 1 | T174: IN000216-3 | U174: 262682135.8
A175: 93458000 | B175: 1 | C175: PLANTA ARAUCO | D175: IN001365-3 | E175: 226681.92 | F175: 721.82 | G175: 5141887 | H175: 216705724 | I175: 202104 | J175: 2021-04-01 | K175: 1 | T175: IN001365-3 | U175: 163623543.5
A176: 93458000 | B176: 1 | C176: PLANTA ARAUCO | D176: IN000214-7 | E176: 179896.98 | F176: 721.82 | G176: 5141889 | H176: 216705726 | I176: 202104 | J176: 2021-04-01 | K176: 1 | T176: IN000214-7 | U176: 129853238.1
A177: 93458000 | B177: 1 | C177: PLANTA ARAUCO | D177: IN000217-1 | E177: 245707.56 | F177: 721.82 | G177: 5141891 | H177: 216705728 | I177: 202104 | J177: 2021-04-01 | K177: 1 | T177: IN000217-1 | U177: 177356631
A178: 93458000 | B178: 1 | C178: PLANTA LICANCEL | D178: IN000225-2 | E178: 24045.97 | F178: 721.82 | G178: 5141893 | H178: 216705730 | I178: 202104 | J178: 2021-04-01 | K178: 1 | T178: IN000225-2 | U178: 17356862.07
A179: 93458000 | B179: 1 | C179: PLANTA LICANCEL | D179: IN000224-4 | E179: 101414.41 | F179: 721.82 | G179: 5141895 | H179: 216705732 | I179: 202104 | J179: 2021-04-01 | K179: 1 | T179: IN000224-4 | U179: 73202949.43
A180: 93458000 | B180: 1 | C180: NUEVA ALDEA | D180: IN002622-4 | E180: 72673.08 | F180: 721.82 | G180: 5141897 | H180: 216705734 | I180: 202104 | J180: 2021-04-01 | K180: 1 | T180: IN002622-4 | U180: 52456882.61
A181: 93458000 | B181: 1 | C181: NUEVA ALDEA | D181: IN000218-K | E181: 337282.52 | F181: 721.82 | G181: 5141899 | H181: 216705736 | I181: 202104 | J181: 2021-04-01 | K181: 1 | T181: IN000218-K | U181: 243457268.6
A182: 93458000 | B182: 1 | C182: NUEVA ALDEA | D182: EL019740-9 | E182: 104.54 | F182: 721.82 | G182: 5141901 | H182: 216705738 | I182: 202104 | J182: 2021-04-01 | K182: 1 | T182: EL019740-9 | U182: 75459.0628
A183: 93458000 | B183: 1 | C183: PLANTA VALDIVIA | D183: IN000219-8 | E183: 291438.1 | F183: 721.82 | G183: 5141903 | H183: 216705740 | I183: 202104 | J183: 2021-04-01 | K183: 1 | T183: IN000219-8 | U183: 210365849.3
A184: 93458000 | B184: 1 | C184: PLANTA VALDIVIA | D184: IN000220-1 | E184: 206001.7 | F184: 721.82 | G184: 5141905 | H184: 216705742 | I184: 202104 | J184: 2021-04-01 | K184: 1 | T184: IN000220-1 | U184: 148696147.1
A185: 76143821 | B185: 2 | C185: PLANTA CORONEL | D185: IN000245-7 | E185: 9978.11 | F185: 721.82 | G185: 5141909 | H185: 216705744 | I185: 202104 | J185: 2021-04-01 | K185: 0 | T185: IN000245-7 | U185: 0
A186: 76143821 | B186: 2 | C186: PLANTA CORONEL | D186: IN003308-1 | E186: 14924.94 | F186: 721.82 | G186: 5141911 | H186: 216705746 | I186: 202104 | J186: 2021-04-01 | K186: 0 | T186: IN003308-1 | U186: 0
A187: 76143821 | B187: 2 | C187: PLANTA CORONEL | D187: IN003307-3 | E187: 25508.63 | F187: 721.82 | G187: 5141913 | H187: 216705748 | I187: 202104 | J187: 2021-04-01 | K187: 0 | T187: IN003307-3 | U187: 0
A188: 76143821 | B188: 2 | C188: PLANTA CORONEL | D188: SSTALH-115 | E188: 19929.07 | F188: 721.82 | G188: 5141917 | H188: 216705750 | I188: 202104 | J188: 2021-04-01 | K188: 0 | T188: SSTALH-115 | U188: 0
A189: 76143821 | B189: 2 | C189: PLANTA CORONEL | D189: IN003557-2 | E189: 10156.87 | F189: 721.82 | G189: 5141919 | H189: 216705752 | I189: 202104 | J189: 2021-04-01 | K189: 0 | T189: IN003557-2 | U189: 0
A190: 76629030 | B190: 2 | C190: CENTRAL A GAS CICLO COMBINADO KELAR | D190: PC003576-9 | E190: 1953830.04 | F190: 721.82 | G190: 5141921 | H190: 216705754 | I190: 202104 | J190: 2021-04-01 | K190: 1 | T190: PC003576-9 | U190: 1410313599
A191: 76629030 | B191: 2 | C191: CENTRAL A GAS CICLO COMBINADO KELAR | D191: PC003577-7 | E191: 1877464.56 | F191: 721.82 | G191: 5141923 | H191: 216705756 | I191: 202104 | J191: 2021-04-01 | K191: 1 | T191: PC003577-7 | U191: 1355191469
A192: 87756500 | B192: 9 | C192: EMPRESA NACIONAL DEL PETRÓLEO (ENAP) | D192: IN000649-5 | E192: 257792.32 | F192: 721.82 | G192: 5141925 | H192: 216705758 | I192: 202104 | J192: 2021-04-01 | K192: 0 | T192: IN000649-5 | U192: 0
A193: 87756500 | B193: 9 | C193: EMPRESA NACIONAL DEL PETRÓLEO (ENAP) | D193: IN000650-9 | E193: 80146.28 | F193: 721.82 | G193: 5141927 | H193: 216705760 | I193: 202104 | J193: 2021-04-01 | K193: 0 | T193: IN000650-9 | U193: 0
A194: 87756500 | B194: 9 | C194: EMPRESA NACIONAL DEL PETRÓLEO (ENAP) | D194: IN000651-7 | E194: 165859.03 | F194: 721.82 | G194: 5141929 | H194: 216705762 | I194: 202104 | J194: 2021-04-01 | K194: 0 | T194: IN000651-7 | U194: 0
A195: 87756500 | B195: 9 | C195: EMPRESA NACIONAL DEL PETRÓLEO (ENAP) | D195: IN001036-0 | E195: 108140.71 | F195: 721.82 | G195: 5141931 | H195: 216705764 | I195: 202104 | J195: 2021-04-01 | K195: 0 | T195: IN001036-0 | U195: 0
A196: 87756500 | B196: 9 | C196: EMPRESA NACIONAL DEL PETRÓLEO (ENAP) | D196: IN000652-5 | E196: 329329.09 | F196: 721.82 | G196: 5141933 | H196: 216705766 | I196: 202104 | J196: 2021-04-01 | K196: 0 | T196: IN000652-5 | U196: 0
A197: 87756500 | B197: 9 | C197: EMPRESA NACIONAL DEL PETRÓLEO (ENAP) | D197: PC003440-1 | E197: 210.79 | F197: 721.82 | G197: 5141935 | H197: 216705768 | I197: 202104 | J197: 2021-04-01 | K197: 0 | T197: PC003440-1 | U197: 0
A198: 87756500 | B198: 9 | C198: REFINERIA BIO BIO | D198: IN000560-K | E198: 70872.49 | F198: 721.82 | G198: 5141939 | H198: 216705770 | I198: 202104 | J198: 2021-04-01 | K198: 0 | T198: IN000560-K | U198: 0
A199: 87756500 | B199: 9 | C199: REFINERIA BIO BIO | D199: IN000559-6 | E199: 61677 | F199: 721.82 | G199: 5141941 | H199: 216705772 | I199: 202104 | J199: 2021-04-01 | K199: 0 | T199: =+D199 -> IN000559-6 | U199: =+K199*F199*E199 -> 0
A200: 87756500 | B200: 9 | C200: REFINERIA BIO BIO | D200: IN000558-8 | E200: 125378.47 | F200: 721.82 | G200: 5141943 | H200: 216705774 | I200: 202104 | J200: 2021-04-01 | K200: 0 | T200: IN000558-8 | U200: 0
A201: 87756500 | B201: 9 | C201: REFINERIA BIO BIO | D201: IN000557-K | E201: 80113.84 | F201: 721.82 | G201: 5141945 | H201: 216705776 | I201: 202104 | J201: 2021-04-01 | K201: 0 | T201: IN000557-K | U201: 0
A202: 87756500 | B202: 9 | C202: REFINERIA BIO BIO | D202: IN000556-1 | E202: 100987.54 | F202: 721.82 | G202: 5141947 | H202: 216705778 | I202: 202104 | J202: 2021-04-01 | K202: 0 | T202: IN000556-1 | U202: 0
... 77 more rows

Sheet Empresas
B3: Empresas
B4: AES_GENER
B5: ANDINA
B6: ANGAMOS
B7: ARAUCO BIO
B8: BE FORESTALES
B9: CARDONES SA
B10: COCHRANE
B11: COLBUN
B12: COLMITO
B13: COMASA
B14: EMELDA
B15: ENEL_GENERACION
B16: ENERGIA PACIFICO
B17: ENGIE
B18: ENLASA
B19: ENORCHILE
B20: ERSA
B21: GMETROPOLITANA
B22: GUACOLDA
B23: HORNITOS
B24: LOS_GUINDOS
B25: NEOMAS
B26: NUEVA ENERGIA
B27: ORAZUL_CHILE
B28: SGA
B29: SWO
B30: TAMAKAYA_ENERGIA
B31: AASA_ENERGIA
B32: ABASTIBLE
B33: ACCIONA_ENERGIA
B34: AELA_GENERACION
B35: ALBA
B36: ALMEYDA
B37: ALLIPEN
B38: ARRAYAN_EOLICO
B39: CERRO_DOMINADOR_CSP
B40: ATRIA_ENERGIA
B41: BESALCO
B42: CABO_LEONES
B43: CAREN
B44: CONEJO_SOLAR
B45: COYANCO
B46: CHACAYES
B47: CHUNGUNGO
B48: DUQUECO
B49: EGP_SUR
B50: EL_MORADO
B51: EL_PELICANO
B52: EMBALSE_ANCOA
B53: ENERGIA_LEON
B54: EOLICA_ESPERANZA
B55: ERNC1
B56: GAS SUR
B57: GM_HOLDINGS
B58: HELIO_ATACAMA_TRES
B59: HIDROLIRCAY
B60: HUAJACHE
B61: IMELSA_ENERGIA
B62: JAVIERA
B63: KALTEMP
B64: KDM_ENERGIA
B65: LA ARENA SPA
B66: LA CONFLUENCIA
B67: LA HIGUERA
B68: LIPIGAS
B69: LOS_CURUROS
B70: LUZ_DEL_NORTE
B71: MONTE REDONDO
B72: NORACID
B73: NORVIND
B74: ON GROUP
B75: PACIFIC HYDRO
B76: PANGUIPULLI
B77: PARQUE_EOLICO_LEBU
B78: PEHUENCHE
B79: POZO_ALMONTE_SOLAR_2
B80: POZO_ALMONTE_SOLAR_3
B81: PUCLARO
B82: PUNTILLA
B83: RAKI
B84: RIO_COLORADO
B85: RUCATAYO
B86: SAFIRA_ENERGIA_CHILE
B87: SAN_JUAN_LAP
B88: SANTIAGO_SOLAR
B89: SPVP4
B90: TACORA_ENERGY
B91: TECNORED
B92: UCUQUER_DOS
B93: EGP_CHILE
B94: PMGD_PICA_PILOT
B95: ALTOS_TILTIL
B96: EOLICA_TALTAL
B97: PV_SALVADOR
B98: EMOAC
B99: ENERGY_ASSET
B100: ECOM_GENERACION

Sheet CVP-pre
B2: Costos variables Promedio (numeradores)
B4: Nombre unidad TCV | C4: Enero | D4: Febrero | E4: Marzo | F4: Abril | G4: Mayo | H4: Junio | I4: Julio | J4: Agosto | K4: Septiembre | L4: Octubre | M4: Noviembre | N4: Diciembre | O4: Total
B5: =+Unidades!B6 -> ANG1 | C5: 3475565257 | D5: 2105704808 | E5: 3505022693 | F5: 3401715977 | G5: 3616381264 | H5: 3512872837 | I5: 3231885416 | J5: 2968040730 | K5: 2689531151 | L5: 1295206734 | M5: 3288999188 | N5: 3679303737 | O5: =+SUM(TablaCVP_pre[[#This Row],[Enero]:[Diciembre]]) -> 3.677022979e+10
B6: =+Unidades!B7 -> ANG2 | C6: 3553117852 | D6: 2745125886 | E6: 3408861707 | F6: 3453267849 | G6: 3666624125 | H6: 3631095649 | I6: 2085432984 | J6: 2699583013 | K6: 2905767851 | L6: 1593771201 | M6: 3439035216 | N6: 3607725976 | O6: =+SUM(TablaCVP_pre[[#This Row],[Enero]:[Diciembre]]) -> 3.678940931e+10
B7: =+Unidades!B8 -> Antilhue TG U1 | C7: 13070588.42 | D7: 50733596.5 | E7: 591663638.9 | F7: 81427919.37 | G7: 1269697.779 | H7: 264994.2065 | I7: 765785.3718 | J7: 2610625.201 | K7: 0 | L7: 59823.7525 | M7: 576306.063 | N7: 3107.614293 | O7: =+SUM(TablaCVP_pre[[#This Row],[Enero]:[Diciembre]]) -> 742446083.2
B8: =+Unidades!B9 -> Antilhue TG U2 | C8: 81417129.31 | D8: 51755873.87 | E8: 487404404.9 | F8: 59415183.8 | G8: 978357.021 | H8: 1365264.896 | I8: 1354383.51 | J8: 0 | K8: 2644578.488 | L8: 59823.7525 | M8: 0 | N8: 555411.4131 | O8: =+SUM(TablaCVP_pre[[#This Row],[Enero]:[Diciembre]]) -> 686950410.9
B9: =+Unidades!B10 -> Arauco | C9: 22859778.88 | D9: 45282388.71 | E9: 31383632.73 | F9: 54629502.22 | G9: 21368770.9 | H9: 9126554.69 | I9: 9610117.226 | J9: 2099181.938 | K9: 6206667.488 | L9: 9560540.811 | M9: 20040819.99 | N9: 7871453.615 | O9: =+SUM(TablaCVP_pre[[#This Row],[Enero]:[Diciembre]]) -> 240039409.2
B10: =+Unidades!B11 -> Bocamina | C10: 0 | D10: 0 | E10: 714933154.4 | F10: 1515362676 | G10: 1926931100 | H10: 1799747429 | I10: 1254892433 | J10: 295489124.5 | K10: 758791051.6 | L10: 0 | M10: 267685968.8 | N10: 998670081.8 | O10: =+SUM(TablaCVP_pre[[#This Row],[Enero]:[Diciembre]]) -> 9532503019
B11: =+Unidades!B12 -> Bocamina II | C11: 1875631549 | D11: 0 | E11: 1613219588 | F11: 4651249.939 | G11: 4950250433 | H11: 4391377095 | I11: 2996199138 | J11: 3088514265 | K11: 3405274962 | L11: 3752234023 | M11: 4241589955 | N11: 2171690205 | O11: =+SUM(TablaCVP_pre[[#This Row],[Enero]:[Diciembre]]) -> 3.249063246e+10
B12: =+Unidades!B13 -> Campiche | C12: 2182302979 | D12: 2789794249 | E12: 3657268895 | F12: 3153750484 | G12: 2669245642 | H12: 2009618158 | I12: 2027934413 | J12: 1342362079 | K12: 2190751194 | L12: 2513068488 | M12: 2343572337 | N12: 3638551889 | O12: =+SUM(TablaCVP_pre[[#This Row],[Enero]:[Diciembre]]) -> 3.051822081e+10
B13: =+Unidades!B14 -> Candelaria 1 | C13: 31407763.99 | D13: 264765733.5 | E13: 984169959.9 | F13: 84799650.64 | G13: 116186466.1 | H13: 429137015.9 | I13: 14955895.06 | J13: 0 | K13: 49656101.75 | L13: 2553801.551 | M13: 5255772.343 | N13: 156436432.3 | O13: =+SUM(TablaCVP_pre[[#This Row],[Enero]:[Diciembre]]) -> 2139324593
B14: =+Unidades!B15 -> Candelaria 2 | C14: 10113164.17 | D14: 186918558.2 | E14: 1033165404 | F14: 17046880.14 | G14: 6438530.881 | H14: 204640311.5 | I14: 12863586.34 | J14: 0 | K14: 44286716.33 | L14: 9866465.486 | M14: 6981020.506 | N14: 52616555.41 | O14: =+SUM(TablaCVP_pre[[#This Row],[Enero]:[Diciembre]]) -> 1584937193
B15: =+Unidades!B16 -> Cardones | C15: 0 | D15: 0 | E15: 89850312.94 | F15: 0 | G15: 0 | H15: 0 | I15: 0 | J15: 0 | K15: 0 | L15: 0 | M15: 0 | N15: 0 | O15: =+SUM(TablaCVP_pre[[#This Row],[Enero]:[Diciembre]]) -> 89850312.94
B16: =+Unidades!B17 -> CC KELAR | C16: 360713405.1 | D16: 400527555.8 | E16: 2756616957 | F16: 3206193462 | G16: 1.012235034e+10 | H16: 8194471699 | I16: 2495146065 | J16: 2064056108 | K16: 3051344932 | L16: 2190630544 | M16: 601292172.5 | N16: 2924942861 | O16: =+SUM(TablaCVP_pre[[#This Row],[Enero]:[Diciembre]]) -> 3.83682861e+10
B17: =+Unidades!B18 -> CC1 | C17: 358923636.5 | D17: 59137337.08 | E17: 1292142085 | F17: 612028536.1 | G17: 418163274.9 | H17: 409961256.6 | I17: 369858548 | J17: 131382424.5 | K17: 357814890.3 | L17: 228652533.9 | M17: 473118183.5 | N17: 956335557.1 | O17: =+SUM(TablaCVP_pre[[#This Row],[Enero]:[Diciembre]]) -> 5667518263
B18: =+Unidades!B19 -> CC2 | C18: 225802531.5 | D18: 123764827.2 | E18: 918476752.9 | F18: 417155159.6 | G18: 399033182.9 | H18: 2203217599 | I18: 228324443 | J18: 129376068 | K18: 526905776.9 | L18: 837461143.5 | M18: 647099944.7 | N18: 1878433977 | O18: =+SUM(TablaCVP_pre[[#This Row],[Enero]:[Diciembre]]) -> 8535051407
B19: =+Unidades!B20 -> CCH1 | C19: 2714044442 | D19: 2595833130 | E19: 3091550431 | F19: 2865523800 | G19: 2999581236 | H19: 2936411874 | I19: 2313967045 | J19: 2507896703 | K19: 2565006702 | L19: 2672942282 | M19: 2803956658 | N19: 2419436084 | O19: =+SUM(TablaCVP_pre[[#This Row],[Enero]:[Diciembre]]) -> 3.248615039e+10
B20: =+Unidades!B21 -> CCH2 | C20: 2940240259 | D20: 2591995826 | E20: 3123146987 | F20: 2865469968 | G20: 2996151735 | H20: 2911583613 | I20: 2350865977 | J20: 2499105132 | K20: 2557571387 | L20: 2662298505 | M20: 2800909839 | N20: 2421838452 | O20: =+SUM(TablaCVP_pre[[#This Row],[Enero]:[Diciembre]]) -> 3.272117768e+10
B21: =+Unidades!B22 -> CD Iquique | C21: 0 | D21: 0 | E21: 0 | F21: 0 | G21: 0 | H21: 0 | I21: 0 | J21: 0 | K21: 0 | L21: 0 | M21: 0 | N21: 0 | O21: =+SUM(TablaCVP_pre[[#This Row],[Enero]:[Diciembre]]) -> 0
B22: =+Unidades!B23 -> Celco | C22: 86027230.5 | D22: 97407094.42 | E22: 20643398.32 | F22: 111019425.8 | G22: 92356837.09 | H22: 118963293.5 | I22: 39041038.9 | J22: 29311363.87 | K22: 35622490.32 | L22: 26425562.57 | M22: 84313319.7 | N22: 111677572.4 | O22: =+SUM(TablaCVP_pre[[#This Row],[Enero]:[Diciembre]]) -> 852808627.4
B23: =+Unidades!B24 -> Cholguán | C23: 38453831.25 | D23: 20946947.35 | E23: 19252626.34 | F23: 41932538.81 | G23: 53849281.45 | H23: 39448279.22 | I23: 7433001.882 | J23: 12339291.94 | K23: 7569257.9 | L23: 16522277.68 | M23: 16362713.36 | N23: 42163494.05 | O23: =+SUM(TablaCVP_pre[[#This Row],[Enero]:[Diciembre]]) -> 316273541.2
B24: =+Unidades!B25 -> CMPC Cordillera | C24: 341936.1341 | D24: 6387019.813 | E24: 26818827.76 | F24: 40932318.27 | G24: 0 | H24: 0 | I24: 0 | J24: 0 | K24: 0 | L24: 0 | M24: 0 | N24: 0 | O24: =+SUM(TablaCVP_pre[[#This Row],[Enero]:[Diciembre]]) -> 74480101.98
B25: =+Unidades!B26 -> CMPC Laja | C25: 130371900.8 | D25: 205193089.4 | E25: 378884317.6 | F25: 260022222.6 | G25: 251617045.5 | H25: 204951624 | I25: 68948757.55 | J25: 49579590.31 | K25: 102345420.6 | L25: 164533720.8 | M25: 44125272.06 | N25: 0 | O25: =+SUM(TablaCVP_pre[[#This Row],[Enero]:[Diciembre]]) -> 1860572961
B26: =+Unidades!B27 -> CMPC Pacífico | C26: 11436112.28 | D26: 72285649.94 | E26: 303792213.2 | F26: 206412002.1 | G26: 136994572 | H26: 120982266.2 | I26: 12444332.81 | J26: 20691612.09 | K26: 27758445.21 | L26: 70622213.55 | M26: 137029025 | N26: 225405390.1 | O26: =+SUM(TablaCVP_pre[[#This Row],[Enero]:[Diciembre]]) -> 1345853834
B27: =+Unidades!B28 -> CMPC Santa Fe | C27: 232635980.6 | D27: 249592758.6 | E27: 460265750.6 | F27: 493727829.6 | G27: 610450260.7 | H27: 369126426 | I27: 85496871.43 | J27: 18958871.11 | K27: 29351814.45 | L27: 59586958.87 | M27: 277950526.3 | N27: 404468249 | O27: =+SUM(TablaCVP_pre[[#This Row],[Enero]:[Diciembre]]) -> 3291612297
B28: =+Unidades!B29 -> CMPC TISSUE | C28: 0 | D28: 0 | E28: 0 | F28: 0 | G28: 0 | H28: 0 | I28: 0 | J28: 0 | K28: 0 | L28: 0 | M28: 0 | N28: 0 | O28: =+SUM(TablaCVP_pre[[#This Row],[Enero]:[Diciembre]]) -> 0
B29: =+Unidades!B30 -> Colmito | C29: 0 | D29: 0 | E29: 2289464.361 | F29: 5932439.54 | G29: 25824502.36 | H29: 89642274.64 | I29: 9379828.23 | J29: 45033648.14 | K29: 1220360.304 | L29: 0 | M29: 276956.9362 | N29: 59137299.48 | O29: =+SUM(TablaCVP_pre[[#This Row],[Enero]:[Diciembre]]) -> 238736774
B30: =+Unidades!B31 -> CTA | C30: 1225933734 | D30: 1558658874 | E30: 1888832191 | F30: 1403270752 | G30: 1853307098 | H30: 1647469639 | I30: 1616488947 | J30: 1130834834 | K30: 1705313893 | L30: 5140746.481 | M30: 0 | N30: 0 | O30: =+SUM(TablaCVP_pre[[#This Row],[Enero]:[Diciembre]]) -> 1.403525071e+10
B31: =+Unidades!B32 -> CTH | C31: 1026730601 | D31: 1190099746 | E31: 1055885929 | F31: 1143389956 | G31: 1659793436 | H31: 1191610684 | I31: 1667596270 | J31: 1158147983 | K31: 464823773 | L31: 1873359955 | M31: 1873786557 | N31: 2196252379 | O31: =+SUM(TablaCVP_pre[[#This Row],[Enero]:[Diciembre]]) -> 1.650147727e+10
B32: =+Unidades!B33 -> CTM1 | C32: 0 | D32: 188935658.2 | E32: 1236652901 | F32: 151563679.4 | G32: 233451490.8 | H32: 968686596.1 | I32: 0 | J32: 30277656.31 | K32: 0 | L32: 100992272.3 | M32: 4434822.962 | N32: 125012463.4 | O32: =+SUM(TablaCVP_pre[[#This Row],[Enero]:[Diciembre]]) -> 3040007541
B33: =+Unidades!B34 -> CTM2 | C33: 286923684.1 | D33: 208102429.5 | E33: 1141455900 | F33: 662236415.4 | G33: 1440133696 | H33: 663158041.2 | I33: 133868.0059 | J33: 82545494.63 | K33: 0 | L33: 262196340.7 | M33: 0 | N33: 0 | O33: =+SUM(TablaCVP_pre[[#This Row],[Enero]:[Diciembre]]) -> 4746885869
B34: =+Unidades!B35 -> CTM3 | C34: 1286277428 | D34: 2607569908 | E34: 2946623408 | F34: 2216370408 | G34: 990367135.6 | H34: 2291169863 | I34: 2121102940 | J34: 1903879926 | K34: 2136561947 | L34: 1752122876 | M34: 453983577.6 | N34: 349567277.5 | O34: =+SUM(TablaCVP_pre[[#This Row],[Enero]:[Diciembre]]) -> 2.105559669e+10
B35: =+Unidades!B36 -> CTTAR | C35: 0 | D35: 0 | E35: 0 | F35: 0 | G35: 0 | H35: 0 | I35: 0 | J35: 0 | K35: 0 | L35: 0 | M35: 0 | N35: 0 | O35: =+SUM(TablaCVP_pre[[#This Row],[Enero]:[Diciembre]]) -> 0
B36: =+Unidades!B37 -> Diego de Almagro | C36: 14989625.98 | D36: 98977.67094 | E36: 0 | F36: 0 | G36: 0 | H36: 0 | I36: 0 | J36: 0 | K36: 10983098.68 | L36: 0 | M36: 0 | N36: 2855060.701 | O36: =+SUM(TablaCVP_pre[[#This Row],[Enero]:[Diciembre]]) -> 28926763.03
B37: =+Unidades!B38 -> El Salvador | C37: 15684208.09 | D37: 0 | E37: 0 | F37: 0 | G37: 0 | H37: 0 | I37: 0 | J37: 0 | K37: 396.8269628 | L37: 0 | M37: 0 | N37: 0 | O37: =+SUM(TablaCVP_pre[[#This Row],[Enero]:[Diciembre]]) -> 15684604.92
B38: =+Unidades!B39 -> Emelda U1 | C38: 0 | D38: 82734.32778 | E38: 10650391.34 | F38: 53442.63952 | G38: 15301.44513 | H38: 3431.14492 | I38: 0 | J38: 103264.1098 | K38: 3366122.505 | L38: 0 | M38: 122930.8364 | N38: 1023695.011 | O38: =+SUM(TablaCVP_pre[[#This Row],[Enero]:[Diciembre]]) -> 15421313.36
B39: =+Unidades!B40 -> Emelda U2 | C39: 0 | D39: 88994.6707 | E39: 10564674.14 | F39: 44880.35072 | G39: 38484.87176 | H39: 52942.68847 | I39: 0 | J39: 24162.44775 | K39: 78605.30282 | L39: 0 | M39: 135792.7245 | N39: 79255.4038 | O39: =+SUM(TablaCVP_pre[[#This Row],[Enero]:[Diciembre]]) -> 11107792.6
B40: =+Unidades!B41 -> Energía Pacífico | C40: 141880369.7 | D40: 21930775.46 | E40: 205044473.6 | F40: 36047124.5 | G40: 2249135.113 | H40: 34720736.6 | I40: 6485221.463 | J40: 3180582.59 | K40: 1909219.519 | L40: 2911219.445 | M40: 72107324.56 | N40: 17691930.94 | O40: =+SUM(TablaCVP_pre[[#This Row],[Enero]:[Diciembre]]) -> 546158113.5
B41: =+Unidades!B42 -> Escuadrón | C41: 6643182.575 | D41: 22812413.74 | E41: 77228022.8 | F41: 31039861.78 | G41: 45091952.7 | H41: 29588697.16 | I41: 1252709.733 | J41: 40094.93216 | K41: 0 | L41: 0 | M41: 0 | N41: 886305.1401 | O41: =+SUM(TablaCVP_pre[[#This Row],[Enero]:[Diciembre]]) -> 214583240.6
B42: =+Unidades!B43 -> Esperanza TG | C42: 0 | D42: 0 | E42: 0 | F42: 0 | G42: 0 | H42: 0 | I42: 0 | J42: 0 | K42: 0 | L42: 0 | M42: 0 | N42: 0 | O42: =+SUM(TablaCVP_pre[[#This Row],[Enero]:[Diciembre]]) -> 0
B43: =+Unidades!B44 -> Guacolda 1 | C43: 1422002803 | D43: 1447224181 | E43: 1522518726 | F43: 1689203899 | G43: 1717891148 | H43: 1609663427 | I43: 1428028836 | J43: 1236275606 | K43: 1286089157 | L43: 1428090932 | M43: 1509652227 | N43: 1096654249 | O43: =+SUM(TablaCVP_pre[[#This Row],[Enero]:[Diciembre]]) -> 1.739329519e+10
B44: =+Unidades!B45 -> Guacolda 2 | C44: 969501871 | D44: 1231536071 | E44: 1234868471 | F44: 1648462361 | G44: 1715753089 | H44: 1485566951 | I44: 1351205910 | J44: 480855980.8 | K44: 1137478437 | L44: 1379595796 | M44: 900307262.3 | N44: 1426359753 | O44: =+SUM(TablaCVP_pre[[#This Row],[Enero]:[Diciembre]]) -> 1.496149195e+10
B45: =+Unidades!B46 -> Guacolda 3 | C45: 1567513350 | D45: 1344841129 | E45: 1730087443 | F45: 1611147446 | G45: 1299559088 | H45: 1318376573 | I45: 1534860490 | J45: 1452484553 | K45: 1321468086 | L45: 1614725941 | M45: 1403971482 | N45: 1579973230 | O45: =+SUM(TablaCVP_pre[[#This Row],[Enero]:[Diciembre]]) -> 1.777900881e+10
B46: =+Unidades!B47 -> Guacolda 4 | C46: 1232031492 | D46: 1384601961 | E46: 1640022919 | F46: 858566189.1 | G46: 741911324.2 | H46: 1587655923 | I46: 1417986182 | J46: 1152915944 | K46: 1129994124 | L46: 1527529883 | M46: 1563082517 | N46: 1838613422 | O46: =+SUM(TablaCVP_pre[[#This Row],[Enero]:[Diciembre]]) -> 1.607491188e+10
B47: =+Unidades!B48 -> Guacolda 5 | C47: 1616424623 | D47: 1225766720 | E47: 1520926115 | F47: 1637597583 | G47: 1606643056 | H47: 1753517420 | I47: 1547982003 | J47: 1361389536 | K47: 1339778167 | L47: 1543082044 | M47: 1444374869 | N47: 1286126122 | O47: =+SUM(TablaCVP_pre[[#This Row],[Enero]:[Diciembre]]) -> 1.788360826e+10
B48: =+Unidades!B49 -> Horcones | C48: 0 | D48: 12318737.35 | E48: 9831992.332 | F48: 0 | G48: 0 | H48: 0 | I48: 4323388.459 | J48: 0 | K48: 0 | L48: 0 | M48: 0 | N48: 32137.87394 | O48: =+SUM(TablaCVP_pre[[#This Row],[Enero]:[Diciembre]]) -> 26506256.01
B49: =+Unidades!B50 -> Huasco TG | C49: 230543.3165 | D49: 334871.1822 | E49: 2726001.209 | F49: 3784467.229 | G49: 614964.9932 | H49: 0 | I49: 0 | J49: 0 | K49: 0 | L49: 1048054.599 | M49: 0 | N49: 4177532.723 | O49: =+SUM(TablaCVP_pre[[#This Row],[Enero]:[Diciembre]]) -> 12916435.25
B50: =+Unidades!B51 -> IEM | C50: 4334666113 | D50: 3815883299 | E50: 4376977286 | F50: 4450487516 | G50: 3946522502 | H50: 4284665280 | I50: 4179104393 | J50: 3774309900 | K50: 3941814564 | L50: 727904176.7 | M50: 4167062360 | N50: 4493418463 | O50: =+SUM(TablaCVP_pre[[#This Row],[Enero]:[Diciembre]]) -> 4.649281585e+10
B51: =+Unidades!B52 -> Laguna Verde TG | C51: 0 | D51: 0 | E51: 0 | F51: 0 | G51: 0 | H51: 0 | I51: 0 | J51: 0 | K51: 0 | L51: 0 | M51: 0 | N51: 0 | O51: =+SUM(TablaCVP_pre[[#This Row],[Enero]:[Diciembre]]) -> 0
B52: =+Unidades!B53 -> Laguna Verde TV | C52: 0 | D52: 0 | E52: 0 | F52: 0 | G52: 0 | H52: 0 | I52: 0 | J52: 0 | K52: 0 | L52: 0 | M52: 0 | N52: 0 | O52: =+SUM(TablaCVP_pre[[#This Row],[Enero]:[Diciembre]]) -> 0
B53: =+Unidades!B54 -> Laja | C53: 0 | D53: 0 | E53: 0 | F53: 0 | G53: 0 | H53: 0 | I53: 0 | J53: 0 | K53: 0 | L53: 0 | M53: 0 | N53: 0 | O53: =+SUM(TablaCVP_pre[[#This Row],[Enero]:[Diciembre]]) -> 0
B54: =+Unidades!B55 -> Lautaro-Comasa | C54: 327049085.9 | D54: 255480586.6 | E54: 477904129.6 | F54: 347207197.8 | G54: 408236935.3 | H54: 268764773.4 | I54: 211190456.7 | J54: 130210116.2 | K54: 167941042.5 | L54: 197661613.4 | M54: 134669004.7 | N54: 504558803 | O54: =+SUM(TablaCVP_pre[[#This Row],[Enero]:[Diciembre]]) -> 3430873745
B55: =+Unidades!B56 -> Lautaro-Comasa 2 | C55: 152830415.6 | D55: 210851748.9 | E55: 412679112.6 | F55: 311729580.6 | G55: 346876924.5 | H55: 236100530 | I55: 144898720.7 | J55: 84705539.96 | K55: 93773923.96 | L55: 0 | M55: 158918342.5 | N55: 102861679.5 | O55: =+SUM(TablaCVP_pre[[#This Row],[Enero]:[Diciembre]]) -> 2256226519
B56: =+Unidades!B57 -> Licantén | C56: 4945.372449 | D56: 4090.295961 | E56: 187657.2702 | F56: 4523.285382 | G56: 2428045.443 | H56: 2316002.337 | I56: 2078362.226 | J56: 2224901.883 | K56: 2143614.476 | L56: 2334905.426 | M56: 2286913.767 | N56: 2852797.737 | O56: =+SUM(TablaCVP_pre[[#This Row],[Enero]:[Diciembre]]) -> 18866759.52
B57: =+Unidades!B58 -> Los Guindos | C57: 87140135.21 | D57: 0 | E57: 335952482.7 | F57: 14708050.62 | G57: 0 | H57: 0 | I57: 0 | J57: 0 | K57: 0 | L57: 0 | M57: 0 | N57: 0 | O57: =+SUM(TablaCVP_pre[[#This Row],[Enero]:[Diciembre]]) -> 437800668.6
B58: =+Unidades!B59 -> Los Pinos | C58: 35722845.7 | D58: 193095810.8 | E58: 1256503939 | F58: 321959126.5 | G58: 458448409.2 | H58: 535084525.6 | I58: 19898588.96 | J58: 136540696.9 | K58: 7687885.665 | L58: 32646285.69 | M58: 62660842.14 | N58: 166962657.7 | O58: =+SUM(TablaCVP_pre[[#This Row],[Enero]:[Diciembre]]) -> 3227211614
B59: =+Unidades!B60 -> Los Vientos | C59: 394068617.3 | D59: 634200418.7 | E59: 452142236.8 | F59: 46049723.04 | G59: 194347805.7 | H59: 895667299.3 | I59: 39631941.08 | J59: 203089877.1 | K59: 14878752.67 | L59: 0 | M59: 0 | N59: 144007755 | O59: =+SUM(TablaCVP_pre[[#This Row],[Enero]:[Diciembre]]) -> 3018084427
B60: =+Unidades!B61 -> Masisa (Cabrero) | C60: 27478032.59 | D60: 47418196.7 | E60: 66120406.4 | F60: 48723602.06 | G60: 40974098.32 | H60: 31447711.66 | I60: 3431500.57 | J60: 8534307.61 | K60: 2713366.766 | L60: 455554.8071 | M60: 20110555.04 | N60: 34033967 | O60: =+SUM(TablaCVP_pre[[#This Row],[Enero]:[Diciembre]]) -> 331441299.5
B61: =+Unidades!B62 -> Nehuenco | C61: 1644816550 | D61: 110006705.6 | E61: 0 | F61: 600759362.5 | G61: 0 | H61: 2921081718 | I61: 3852789232 | J61: 631760618.9 | K61: 3279952357 | L61: 403904007.9 | M61: 1271973.775 | N61: 0 | O61: =+SUM(TablaCVP_pre[[#This Row],[Enero]:[Diciembre]]) -> 1.344634253e+10
B62: =+Unidades!B63 -> Nehuenco II | C62: 5602562427 | D62: 4381370081 | E62: 4832970232 | F62: 5222182691 | G62: 5000256518 | H62: 4327013713 | I62: 5050443589 | J62: 443330285.3 | K62: 3682318488 | L62: 507331278.2 | M62: 0 | N62: 0 | O62: =+SUM(TablaCVP_pre[[#This Row],[Enero]:[Diciembre]]) -> 3.90497793e+10
B63: =+Unidades!B64 -> Nehuenco TG 9B | C63: 0 | D63: 0 | E63: 0 | F63: 944410.651 | G63: 13910361.33 | H63: 21756547.7 | I63: 0 | J63: 0 | K63: 0 | L63: 17145116.88 | M63: 0 | N63: 1802057.449 | O63: =+SUM(TablaCVP_pre[[#This Row],[Enero]:[Diciembre]]) -> 55558494.01
B64: =+Unidades!B65 -> NTO1 | C64: 1613001842 | D64: 1396570301 | E64: 95850040.2 | F64: 976865871.9 | G64: 1657489555 | H64: 1556254711 | I64: 1351229227 | J64: 1370756175 | K64: 1377706707 | L64: 1514593012 | M64: 1475801834 | N64: 1704750600 | O64: =+SUM(TablaCVP_pre[[#This Row],[Enero]:[Diciembre]]) -> 1.609086988e+10
B65: =+Unidades!B66 -> NTO2 | C65: 1593403929 | D65: 1269033356 | E65: 1564001174 | F65: 1222209989 | G65: 1625320189 | H65: 1040307409 | I65: 1030065417 | J65: 1307914947 | K65: 848706261 | L65: 1492165447 | M65: 1223075735 | N65: 1496196437 | O65: =+SUM(TablaCVP_pre[[#This Row],[Enero]:[Diciembre]]) -> 1.571240029e+10
B66: =+Unidades!B67 -> Nueva Aldea I | C66: 15863265.39 | D66: 11250937.53 | E66: 35566106.1 | F66: 31471819.1 | G66: 6183554.064 | H66: 12461874.61 | I66: 11827829.6 | J66: 20697876.57 | K66: 31128502.1 | L66: 35073038.57 | M66: 29901362.47 | N66: 20840352.76 | O66: =+SUM(TablaCVP_pre[[#This Row],[Enero]:[Diciembre]]) -> 262266518.9
B67: =+Unidades!B68 -> Nueva Aldea III | C67: 0 | D67: 0 | E67: 0 | F67: 0 | G67: 0 | H67: 0 | I67: 0 | J67: 0 | K67: 0 | L67: 0 | M67: 0 | N67: 0 | O67: =+SUM(TablaCVP_pre[[#This Row],[Enero]:[Diciembre]]) -> 0
B68: =+Unidades!B69 -> Nueva Renca | C68: 4226757303 | D68: 4309756623 | E68: 5228174144 | F68: 4249420319 | G68: 4538047592 | H68: 4055302088 | I68: 4182290638 | J68: 2255798365 | K68: 58197.13687 | L68: 302805354 | M68: 0 | N68: 1107925218 | O68: =+SUM(TablaCVP_pre[[#This Row],[Enero]:[Diciembre]]) -> 3.445633584e+10
B69: =+Unidades!B70 -> Nueva Ventanas | C69: 2893042185 | D69: 2181636989 | E69: 3049580192 | F69: 3116424410 | G69: 3329285896 | H69: 3034202967 | I69: 2049830981 | J69: 1935258505 | K69: 2280215255 | L69: 2811979070 | M69: 2712512421 | N69: 1347793524 | O69: =+SUM(TablaCVP_pre[[#This Row],[Enero]:[Diciembre]]) -> 3.074176239e+10
B70: =+Unidades!B71 -> Petropower | C70: 6673312.906 | D70: 0 | E70: 0 | F70: 0 | G70: 0 | H70: 0 | I70: 0 | J70: 0 | K70: 0 | L70: 0 | M70: 0 | N70: 0 | O70: =+SUM(TablaCVP_pre[[#This Row],[Enero]:[Diciembre]]) -> 6673312.906
B71: =+Unidades!B72 -> Quintero A | C71: 241230528.1 | D71: 402767107 | E71: 1746249646 | F71: 1256152295 | G71: 376189054.7 | H71: 71057689.05 | I71: 254205878.6 | J71: 80419653.38 | K71: 232517275 | L71: 1315905584 | M71: 957505205.7 | N71: 1138370908 | O71: =+SUM(TablaCVP_pre[[#This Row],[Enero]:[Diciembre]]) -> 8072570825
B72: =+Unidades!B73 -> Quintero B | C72: 229488502.8 | D72: 151178594.7 | E72: 2006710291 | F72: 767049529.6 | G72: 262552242.6 | H72: 72506569.75 | I72: 106166242.9 | J72: 101007287 | K72: 284282162.5 | L72: 267807824.6 | M72: 497659077.5 | N72: 753378917.2 | O72: =+SUM(TablaCVP_pre[[#This Row],[Enero]:[Diciembre]]) -> 5499787242
B73: =+Unidades!B74 -> Renca U1 | C73: 0 | D73: 0 | E73: 0 | F73: 0 | G73: 0 | H73: 0 | I73: 0 | J73: 0 | K73: 0 | L73: 0 | M73: 0 | N73: 0 | O73: =+SUM(TablaCVP_pre[[#This Row],[Enero]:[Diciembre]]) -> 0
B74: =+Unidades!B75 -> Renca U2 | C74: 0 | D74: 0 | E74: 0 | F74: 0 | G74: 0 | H74: 0 | I74: 0 | J74: 0 | K74: 0 | L74: 0 | M74: 0 | N74: 0 | O74: =+SUM(TablaCVP_pre[[#This Row],[Enero]:[Diciembre]]) -> 0
B75: =+Unidades!B76 -> San Isidro | C75: 2212376386 | D75: 1653323614 | E75: 6118584457 | F75: 3439663489 | G75: 2498862748 | H75: 232531720.1 | I75: 2182332203 | J75: 467856814.7 | K75: 2247982675 | L75: 1025753869 | M75: 154402097.2 | N75: 1236724446 | O75: =+SUM(TablaCVP_pre[[#This Row],[Enero]:[Diciembre]]) -> 2.347039452e+10
B76: =+Unidades!B77 -> San Isidro II | C76: 5768607111 | D76: 4597935795 | E76: 6583956590 | F76: 4641944299 | G76: 4352774990 | H76: 239019455.7 | I76: 2869732619 | J76: 896233978.7 | K76: 3859988186 | L76: 2956255240 | M76: 2680735795 | N76: 4424583588 | O76: =+SUM(TablaCVP_pre[[#This Row],[Enero]:[Diciembre]]) -> 4.387176765e+10
B77: =+Unidades!B78 -> San Lorenzo de D. de Almagro U1 | C77: 0 | D77: 0 | E77: 0 | F77: 0 | G77: 0 | H77: 0 | I77: 0 | J77: 70.6646119 | K77: 0 | L77: 0 | M77: 0 | N77: 0 | O77: =+SUM(TablaCVP_pre[[#This Row],[Enero]:[Diciembre]]) -> 70.6646119
B78: =+Unidades!B79 -> San Lorenzo de D. de Almagro U2 | C78: 0 | D78: 0 | E78: 0 | F78: 0 | G78: 0 | H78: 0 | I78: 0 | J78: 81.18886555 | K78: 0 | L78: 0 | M78: 0 | N78: 0 | O78: =+SUM(TablaCVP_pre[[#This Row],[Enero]:[Diciembre]]) -> 81.18886555
B79: =+Unidades!B80 -> Santa Lidia | C79: 0 | D79: 209417781.9 | E79: 155086028.5 | F79: 12895060.4 | G79: 20092527.22 | H79: 83346756.19 | I79: 225406942 | J79: 0 | K79: 0 | L79: 0 | M79: 0 | N79: 688474.0231 | O79: =+SUM(TablaCVP_pre[[#This Row],[Enero]:[Diciembre]]) -> 706933570.2
B80: =+Unidades!B81 -> Santa María | C80: 3896709917 | D80: 4183507937 | E80: 5262940522 | F80: 4967268645 | G80: 5009025345 | H80: 4407044921 | I80: 3736857452 | J80: 3864655727 | K80: 3651758125 | L80: 3569723250 | M80: 0 | N80: 4333130858 | O80: =+SUM(TablaCVP_pre[[#This Row],[Enero]:[Diciembre]]) -> 4.68826227e+10
B81: =+Unidades!B82 -> Taltal 1 | C81: 103805661.6 | D81: 106865897.1 | E81: 395302568.8 | F81: 275558301.4 | G81: 196817372.6 | H81: 45943620.28 | I81: 60288598.24 | J81: 96837746.46 | K81: 31006052.49 | L81: 145772475.3 | M81: 147073715.2 | N81: 100698263.6 | O81: =+SUM(TablaCVP_pre[[#This Row],[Enero]:[Diciembre]]) -> 1705970273
B82: =+Unidades!B83 -> Taltal 2 | C82: 3013381.803 | D82: 0 | E82: 64784365.37 | F82: 0 | G82: 27138334.32 | H82: 78064283.21 | I82: 91270428.73 | J82: 122264769.5 | K82: 70590395.73 | L82: 136164992.5 | M82: 228128461.8 | N82: 280728783.4 | O82: =+SUM(TablaCVP_pre[[#This Row],[Enero]:[Diciembre]]) -> 1102148196
B83: =+Unidades!B84 -> TG_Coronel | C83: 2235910.923 | D83: 169690.882 | E83: 39379610.37 | F83: 0 | G83: 24654200.47 | H83: 93041105.58 | I83: 0 | J83: 12318707.03 | K83: 0 | L83: 0 | M83: 0 | N83: 1032500.713 | O83: =+SUM(TablaCVP_pre[[#This Row],[Enero]:[Diciembre]]) -> 172831726
B84: =+Unidades!B85 -> TG1 | C84: 0 | D84: 0 | E84: 0 | F84: 0 | G84: 0 | H84: 0 | I84: 0 | J84: 0 | K84: 0 | L84: 0 | M84: 0 | N84: 767933.4592 | O84: =+SUM(TablaCVP_pre[[#This Row],[Enero]:[Diciembre]]) -> 767933.4592
B85: =+Unidades!B86 -> TG2 | C85: 0 | D85: 0 | E85: 0 | F85: 0 | G85: 0 | H85: 0 | I85: 0 | J85: 0 | K85: 0 | L85: 0 | M85: 0 | N85: 0 | O85: =+SUM(TablaCVP_pre[[#This Row],[Enero]:[Diciembre]]) -> 0
B86: =+Unidades!B87 -> TG3 | C86: 81700713.76 | D86: 60330545.41 | E86: 0 | F86: 0 | G86: 0 | H86: 0 | I86: 0 | J86: 0 | K86: 0 | L86: 0 | M86: 0 | N86: 20135089.61 | O86: =+SUM(TablaCVP_pre[[#This Row],[Enero]:[Diciembre]]) -> 162166348.8
B87: =+Unidades!B88 -> TGTAR | C87: 0 | D87: 0 | E87: 0 | F87: 0 | G87: 0 | H87: 0 | I87: 0 | J87: 0 | K87: 0 | L87: 0 | M87: 0 | N87: 0 | O87: =+SUM(TablaCVP_pre[[#This Row],[Enero]:[Diciembre]]) -> 0
B88: =+Unidades!B89 -> U12 | C88: 0 | D88: 0 | E88: 0 | F88: 0 | G88: 0 | H88: 0 | I88: 0 | J88: 0 | K88: 0 | L88: 0 | M88: 0 | N88: 0 | O88: =+SUM(TablaCVP_pre[[#This Row],[Enero]:[Diciembre]]) -> 0
B89: =+Unidades!B90 -> U13 | C89: 0 | D89: 0 | E89: 0 | F89: 0 | G89: 0 | H89: 0 | I89: 0 | J89: 0 | K89: 0 | L89: 0 | M89: 0 | N89: 0 | O89: =+SUM(TablaCVP_pre[[#This Row],[Enero]:[Diciembre]]) -> 0
B90: =+Unidades!B91 -> U14 | C90: 0 | D90: 0 | E90: 921998151.7 | F90: 217392784 | G90: 0 | H90: 0 | I90: 0 | J90: 0 | K90: 215439465 | L90: 235180352.4 | M90: 0 | N90: 315993156.3 | O90: =+SUM(TablaCVP_pre[[#This Row],[Enero]:[Diciembre]]) -> 1906003909
B91: =+Unidades!B92 -> U15 | C91: 0 | D91: 0 | E91: 686625597.4 | F91: 452660101.7 | G91: 0 | H91: 1026173255 | I91: 0 | J91: 0 | K91: 187591831.4 | L91: 489744794.8 | M91: 108509042.7 | N91: 195517879.8 | O91: =+SUM(TablaCVP_pre[[#This Row],[Enero]:[Diciembre]]) -> 3146822503
B92: =+Unidades!B93 -> U16 | C92: 612728193.7 | D92: 2106617128 | E92: 1446981259 | F92: 2750909656 | G92: 2579836698 | H92: 2791819654 | I92: 2992662943 | J92: 3147786710 | K92: 1079007540 | L92: 2212852453 | M92: 129752770.8 | N92: 348813657.5 | O92: =+SUM(TablaCVP_pre[[#This Row],[Enero]:[Diciembre]]) -> 2.219976866e+10
B93: =+Unidades!B94 -> Valdivia | C93: 12683031.83 | D93: 0 | E93: 0 | F93: 0 | G93: 0 | H93: 831974.2936 | I93: 13220283.95 | J93: 0 | K93: 0 | L93: 0 | M93: 24647994.18 | N93: 69284175.43 | O93: =+SUM(TablaCVP_pre[[#This Row],[Enero]:[Diciembre]]) -> 120667459.7
B94: =+Unidades!B95 -> Ventanas 1 | C94: 0 | D94: 409776454.2 | E94: 1254343262 | F94: 137771408.2 | G94: 0 | H94: 1082932355 | I94: 0 | J94: 0 | K94: 0 | L94: 0 | M94: 0 | N94: 177695095.6 | O94: =+SUM(TablaCVP_pre[[#This Row],[Enero]:[Diciembre]]) -> 3062518575
B95: =+Unidades!B96 -> Ventanas 2 | C95: 2533954969 | D95: 1532399416 | E95: 2897708980 | F95: 2450799842 | G95: 2445652148 | H95: 594740324.8 | I95: 1782946712 | J95: 2136481254 | K95: 1980728268 | L95: 2019921143 | M95: 2023365015 | N95: 2622170286 | O95: =+SUM(TablaCVP_pre[[#This Row],[Enero]:[Diciembre]]) -> 2.502086836e+10
B96: =+Unidades!B97 -> Viñales | C96: 313395930.1 | D96: 270029080.3 | E96: 314340805.9 | F96: 298334863.4 | G96: 352318371.1 | H96: 280228595.4 | I96: 229864364.1 | J96: 235377269 | K96: 214098207.5 | L96: 265595232.9 | M96: 218689514.1 | N96: 218822178 | O96: =+SUM(TablaCVP_pre[[#This Row],[Enero]:[Diciembre]]) -> 3211094412
B97: =+Unidades!B98 -> Yungay 1 | C97: 0 | D97: 0 | E97: 4137618.664 | F97: 0 | G97: 0 | H97: 0 | I97: 0 | J97: 0 | K97: 0 | L97: 0 | M97: 4670796.563 | N97: 67396534.48 | O97: =+SUM(TablaCVP_pre[[#This Row],[Enero]:[Diciembre]]) -> 76204949.71
B98: =+Unidades!B99 -> Yungay 2 | C98: 0 | D98: 0 | E98: 7759478.518 | F98: 0 | G98: 0 | H98: 0 | I98: 0 | J98: 0 | K98: 0 | L98: 0 | M98: 1201560.09 | N98: 32871467.56 | O98: =+SUM(TablaCVP_pre[[#This Row],[Enero]:[Diciembre]]) -> 41832506.17
B99: =+Unidades!B100 -> Yungay 3 | C99: 0 | D99: 0 | E99: 11772145 | F99: 0 | G99: 0 | H99: 0 | I99: 0 | J99: 0 | K99: 0 | L99: 0 | M99: 7006521.83 | N99: 35310301.02 | O99: =+SUM(TablaCVP_pre[[#This Row],[Enero]:[Diciembre]]) -> 54088967.84
B100: =+Unidades!B101 -> Yungay 4 ca | C100: 0 | D100: 0 | E100: 0 | F100: 0 | G100: 0 | H100: 0 | I100: 0 | J100: 0 | K100: 0 | L100: 0 | M100: 0 | N100: 0 | O100: =+SUM(TablaCVP_pre[[#This Row],[Enero]:[Diciembre]]) -> 0
B101: =+Unidades!B102 -> Los Guindos 2 | C101: 79761502.28 | D101: 0 | E101: 33215789.95 | F101: 0 | G101: 0 | H101: 68407802.28 | I101: 108217299.4 | J101: 7149855.153 | K101: 4996081.621 | L101: 6864704.87 | M101: 0 | N101: 142483524.9 | O101: =+SUM(TablaCVP_pre[[#This Row],[Enero]:[Diciembre]]) -> 451096560.5
B102: =+Unidades!B103 -> ACONCAGUA | C102: 0 | D102: 0 | E102: 0 | F102: 0 | G102: 0 | H102: 0 | I102: 0 | J102: 0 | K102: 0 | L102: 0 | M102: 0 | N102: 0 | O102: =+SUM(TablaCVP_pre[[#This Row],[Enero]:[Diciembre]]) -> 0
B103: =+Unidades!B104 -> ERSA_BIOBIO | C103: 13126722.27 | D103: 5366615.587 | E103: 22674033.32 | F103: 30629787.27 | G103: 18130871.15 | H103: 49851885.23 | I103: 4763824.932 | J103: 10079531.76 | K103: 17416099.25 | L103: 21928723.41 | M103: 22035234.4 | N103: 15009942.39 | O103: =+SUM(TablaCVP_pre[[#This Row],[Enero]:[Diciembre]]) -> 231013271

Sheet CMgP-pre
B2: Costos Marginales Promedio (numeradores)
B4: Nombre unidad TCV | C4: Enero | D4: Febrero | E4: Marzo | F4: Abril | G4: Mayo | H4: Junio | I4: Julio | J4: Agosto | K4: Septiembre | L4: Octubre | M4: Noviembre | N4: Diciembre | O4: Total
B5: =+TablaCVP_pre[[#This Row],[Nombre unidad TCV]] -> ANG1 | C5: 5750717233 | D5: 3627247515 | E5: 9955397995 | F5: 6697380081 | G5: 6316604612 | H5: 5886782013 | I5: 4541827630 | J5: 4172643741 | K5: 3601572644 | L5: 2002866773 | M5: 4576580844 | N5: 5847873286 | O5: =+SUM(TablaCMgP_pre[[#This Row],[Enero]:[Diciembre]]) -> 6.297749437e+10
B6: =+TablaCVP_pre[[#This Row],[Nombre unidad TCV]] -> ANG2 | C6: 5912427875 | D6: 4618577554 | E6: 9877681289 | F6: 6821446155 | G6: 6416837713 | H6: 6088582280 | I6: 2922151641 | J6: 3691467379 | K6: 3904644521 | L6: 2395266772 | M6: 4808060055 | N6: 5695973164 | O6: =+SUM(TablaCMgP_pre[[#This Row],[Enero]:[Diciembre]]) -> 6.31531164e+10
B7: =+TablaCVP_pre[[#This Row],[Nombre unidad TCV]] -> Antilhue TG U1 | C7: 13070588.42 | D7: 53437326.48 | E7: 732262089.8 | F7: 92751374.98 | G7: 1269697.779 | H7: 264994.2065 | I7: 765785.3718 | J7: 2610625.201 | K7: 0 | L7: 59823.7525 | M7: 576306.063 | N7: 3107.614293 | O7: =+SUM(TablaCMgP_pre[[#This Row],[Enero]:[Diciembre]]) -> 897071719.6
B8: =+TablaCVP_pre[[#This Row],[Nombre unidad TCV]] -> Antilhue TG U2 | C8: 81417129.31 | D8: 55421839.22 | E8: 605486292.9 | F8: 70738639.41 | G8: 978357.021 | H8: 1365264.896 | I8: 1354383.51 | J8: 0 | K8: 2644578.488 | L8: 59823.7525 | M8: 0 | N8: 555411.4131 | O8: =+SUM(TablaCMgP_pre[[#This Row],[Enero]:[Diciembre]]) -> 820021720
B9: =+TablaCVP_pre[[#This Row],[Nombre unidad TCV]] -> Arauco | C9: 45998100.43 | D9: 91563208.82 | E9: 100600947.5 | F9: 123624646.5 | G9: 39448692.72 | H9: 21794424.33 | I9: 15574053.36 | J9: 9302250.389 | K9: 12754147.34 | L9: 15332268.62 | M9: 26931626.27 | N9: 26154207.72 | O9: =+SUM(TablaCMgP_pre[[#This Row],[Enero]:[Diciembre]]) -> 529078574
B10: =+TablaCVP_pre[[#This Row],[Nombre unidad TCV]] -> Bocamina | C10: 0 | D10: 0 | E10: 835443840.6 | F10: 2188617705 | G10: 2762456316 | H10: 2422551731 | I10: 1350809225 | J10: 395281147.1 | K10: 789331690.2 | L10: 0 | M10: 313715571.6 | N10: 1180432839 | O10: =+SUM(TablaCMgP_pre[[#This Row],[Enero]:[Diciembre]]) -> 1.223864007e+10
B11: =+TablaCVP_pre[[#This Row],[Nombre unidad TCV]] -> Bocamina II | C11: 2919356831 | D11: 0 | E11: 2327205433 | F11: 5534770.013 | G11: 8034653987 | H11: 6801585136 | I11: 3634350098 | J11: 3704559597 | K11: 3937230919 | L11: 4476481072 | M11: 4852715333 | N11: 2472177942 | O11: =+SUM(TablaCMgP_pre[[#This Row],[Enero]:[Diciembre]]) -> 4.316585112e+10
B12: =+TablaCVP_pre[[#This Row],[Nombre unidad TCV]] -> Campiche | C12: 2992328634 | D12: 4470625311 | E12: 9270813707 | F12: 5655226771 | G12: 4337426711 | H12: 3041214930 | I12: 2361799455 | J12: 1761776447 | K12: 2412877889 | L12: 2964016462 | M12: 2714826950 | N12: 4628638748 | O12: =+SUM(TablaCMgP_pre[[#This Row],[Enero]:[Diciembre]]) -> 4.661157201e+10
B13: =+TablaCVP_pre[[#This Row],[Nombre unidad TCV]] -> Candelaria 1 | C13: 31771787.12 | D13: 311303340.2 | E13: 1201562379 | F13: 518446482.9 | G13: 372417460.3 | H13: 601564516.2 | I13: 15577084.94 | J13: 253840363.4 | K13: 67883914.25 | L13: 2553801.551 | M13: 5255772.343 | N13: 156436432.3 | O13: =+SUM(TablaCMgP_pre[[#This Row],[Enero]:[Diciembre]]) -> 3538613335
B14: =+TablaCVP_pre[[#This Row],[Nombre unidad TCV]] -> Candelaria 2 | C14: 10656707.82 | D14: 370697049.8 | E14: 2855852803 | F14: 634271172.9 | G14: 161568039.7 | H14: 285057929.3 | I14: 14396435.36 | J14: 392082606.6 | K14: 67934612.3 | L14: 10723193.37 | M14: 6981020.506 | N14: 52616555.41 | O14: =+SUM(TablaCMgP_pre[[#This Row],[Enero]:[Diciembre]]) -> 4862838126
B15: =+TablaCVP_pre[[#This Row],[Nombre unidad TCV]] -> Cardones | C15: 0 | D15: 0 | E15: 104402232.1 | F15: 0 | G15: 0 | H15: 0 | I15: 0 | J15: 0 | K15: 0 | L15: 0 | M15: 0 | N15: 0 | O15: =+SUM(TablaCMgP_pre[[#This Row],[Enero]:[Diciembre]]) -> 104402232.1
B16: =+TablaCVP_pre[[#This Row],[Nombre unidad TCV]] -> CC KELAR | C16: 8334642807 | D16: 5177490682 | E16: 5163778622 | F16: 6486093379 | G16: 1.124363102e+10 | H16: 9008676577 | I16: 4131969736 | J16: 4435705666 | K16: 3229712210 | L16: 3034028220 | M16: 1484777328 | N16: 5135597850 | O16: =+SUM(TablaCMgP_pre[[#This Row],[Enero]:[Diciembre]]) -> 6.686610409e+10
B17: =+TablaCVP_pre[[#This Row],[Nombre unidad TCV]] -> CC1 | C17: 882210238.3 | D17: 74039842.51 | E17: 2040060405 | F17: 806913728.3 | G17: 637665127 | H17: 479050667.1 | I17: 382224010.1 | J17: 162049838.5 | K17: 379018838.1 | L17: 246349318.6 | M17: 491784554.4 | N17: 996782579.6 | O17: =+SUM(TablaCMgP_pre[[#This Row],[Enero]:[Diciembre]]) -> 7578149147
B18: =+TablaCVP_pre[[#This Row],[Nombre unidad TCV]] -> CC2 | C18: 269959141.6 | D18: 143151005.4 | E18: 1467401778 | F18: 615185834.4 | G18: 471050410 | H18: 2352843203 | I18: 349960538.5 | J18: 400931966.8 | K18: 558270047.1 | L18: 887855544.6 | M18: 678689094.7 | N18: 2014784795 | O18: =+SUM(TablaCMgP_pre[[#This Row],[Enero]:[Diciembre]]) -> 1.021008336e+10
B19: =+TablaCVP_pre[[#This Row],[Nombre unidad TCV]] -> CCH1 | C19: 3838851616 | D19: 3558835981 | E19: 7780711292 | F19: 5175424437 | G19: 4891733980 | H19: 4551831141 | I19: 2843799116 | J19: 3365965554 | K19: 3356271714 | L19: 4120769414 | M19: 3956473437 | N19: 3488490058 | O19: =+SUM(TablaCMgP_pre[[#This Row],[Enero]:[Diciembre]]) -> 5.092915774e+10
B20: =+TablaCVP_pre[[#This Row],[Nombre unidad TCV]] -> CCH2 | C20: 4260925556 | D20: 3554861088 | E20: 7949469022 | F20: 5165807862 | G20: 4881681454 | H20: 4528453593 | I20: 2897047157 | J20: 3359798474 | K20: 3349798633 | L20: 4091101134 | M20: 3949158885 | N20: 3557522523 | O20: =+SUM(TablaCMgP_pre[[#This Row],[Enero]:[Diciembre]]) -> 5.154562538e+10
B21: =+TablaCVP_pre[[#This Row],[Nombre unidad TCV]] -> CD Iquique | C21: 0 | D21: 0 | E21: 0 | F21: 0 | G21: 0 | H21: 0 | I21: 0 | J21: 0 | K21: 0 | L21: 0 | M21: 0 | N21: 0 | O21: =+SUM(TablaCMgP_pre[[#This Row],[Enero]:[Diciembre]]) -> 0
B22: =+TablaCVP_pre[[#This Row],[Nombre unidad TCV]] -> Celco | C22: 150365089.2 | D22: 156590478.9 | E22: 29057109.82 | F22: 215708330.9 | G22: 171546525.9 | H22: 181459960.6 | I22: 72879880.06 | J22: 74102947.62 | K22: 58169029.85 | L22: 38132432.43 | M22: 105897997.6 | N22: 166562125.4 | O22: =+SUM(TablaCMgP_pre[[#This Row],[Enero]:[Diciembre]]) -> 1420471908
B23: =+TablaCVP_pre[[#This Row],[Nombre unidad TCV]] -> Cholguán | C23: 114666398.3 | D23: 84631494.68 | E23: 74247156.47 | F23: 114963282 | G23: 147497671.9 | H23: 138867778.4 | I23: 163902752.7 | J23: 145688777.1 | K23: 112679435.9 | L23: 98774900.64 | M23: 54179086.59 | N23: 88326574.75 | O23: =+SUM(TablaCMgP_pre[[#This Row],[Enero]:[Diciembre]]) -> 1338425310
B24: =+TablaCVP_pre[[#This Row],[Nombre unidad TCV]] -> CMPC Cordillera | C24: 8848423.487 | D24: 8952691.669 | E24: 26818827.76 | F24: 41247557.53 | G24: 0 | H24: 0 | I24: 0 | J24: 0 | K24: 0 | L24: 0 | M24: 0 | N24: 0 | O24: =+SUM(TablaCMgP_pre[[#This Row],[Enero]:[Diciembre]]) -> 85867500.44
B25: =+TablaCVP_pre[[#This Row],[Nombre unidad TCV]] -> CMPC Laja | C25: 442482003.6 | D25: 467677986.3 | E25: 840170941.3 | F25: 469026196.6 | G25: 410394112.6 | H25: 363504105.5 | I25: 194947442.6 | J25: 184767355.3 | K25: 218138172.8 | L25: 237980092.7 | M25: 58801019.47 | N25: 0 | O25: =+SUM(TablaCMgP_pre[[#This Row],[Enero]:[Diciembre]]) -> 3887889429
B26: =+TablaCVP_pre[[#This Row],[Nombre unidad TCV]] -> CMPC Pacífico | C26: 106146661.4 | D26: 392782355.7 | E26: 672133804.8 | F26: 441577746.5 | G26: 267567822.8 | H26: 284730601.6 | I26: 87200198.19 | J26: 56135274.44 | K26: 205021761.6 | L26: 258307631.4 | M26: 254278035.5 | N26: 463419578.5 | O26: =+SUM(TablaCMgP_pre[[#This Row],[Enero]:[Diciembre]]) -> 3489301473
B27: =+TablaCVP_pre[[#This Row],[Nombre unidad TCV]] -> CMPC Santa Fe | C27: 309360123.5 | D27: 369483979.3 | E27: 1036144298 | F27: 776501681 | G27: 968257657.6 | H27: 575812374.9 | I27: 114393182.7 | J27: 27999078.99 | K27: 35073249.89 | L27: 75779269.74 | M27: 407764877.9 | N27: 630152778.7 | O27: =+SUM(TablaCMgP_pre[[#This Row],[Enero]:[Diciembre]]) -> 5326722552
B28: =+TablaCVP_pre[[#This Row],[Nombre unidad TCV]] -> CMPC TISSUE | C28: 0 | D28: 0 | E28: 0 | F28: 0 | G28: 0 | H28: 0 | I28: 0 | J28: 0 | K28: 0 | L28: 0 | M28: 0 | N28: 0 | O28: =+SUM(TablaCMgP_pre[[#This Row],[Enero]:[Diciembre]]) -> 0
B29: =+TablaCVP_pre[[#This Row],[Nombre unidad TCV]] -> Colmito | C29: 0 | D29: 0 | E29: 2289464.361 | F29: 7313344.128 | G29: 28552505.93 | H29: 98716998.09 | I29: 9379828.23 | J29: 47760029.47 | K29: 1220360.304 | L29: 0 | M29: 276956.9362 | N29: 59268600.58 | O29: =+SUM(TablaCMgP_pre[[#This Row],[Enero]:[Diciembre]]) -> 254778088
B30: =+TablaCVP_pre[[#This Row],[Nombre unidad TCV]] -> CTA | C30: 1795013900 | D30: 2328041037 | E30: 4292557913 | F30: 2404039577 | G30: 2872038062 | H30: 2572601984 | I30: 1991577442 | J30: 1358081021 | K30: 2081399765 | L30: 5433092.098 | M30: 0 | N30: 0 | O30: =+SUM(TablaCMgP_pre[[#This Row],[Enero]:[Diciembre]]) -> 2.170078379e+10
B31: =+TablaCVP_pre[[#This Row],[Nombre unidad TCV]] -> CTH | C31: 1536337509 | D31: 1837293372 | E31: 1830036216 | F31: 1898654508 | G31: 2526741102 | H31: 1703868667 | I31: 2034592208 | J31: 1390852432 | K31: 561878080.6 | L31: 2484004816 | M31: 2467771284 | N31: 3198045761 | O31: =+SUM(TablaCMgP_pre[[#This Row],[Enero]:[Diciembre]]) -> 2.347007595e+10
B32: =+TablaCVP_pre[[#This Row],[Nombre unidad TCV]] -> CTM1 | C32: 0 | D32: 208873346.7 | E32: 2296022941 | F32: 156286551.6 | G32: 258999772.7 | H32: 1131811513 | I32: 0 | J32: 30277656.31 | K32: 0 | L32: 103052418.6 | M32: 5694156.4 | N32: 155008412.3 | O32: =+SUM(TablaCMgP_pre[[#This Row],[Enero]:[Diciembre]]) -> 4346026769
B33: =+TablaCVP_pre[[#This Row],[Nombre unidad TCV]] -> CTM2 | C33: 380065517.5 | D33: 331723455.5 | E33: 2481968797 | F33: 811388211.7 | G33: 1703670234 | H33: 755424089.5 | I33: 133868.0059 | J33: 83314851.43 | K33: 0 | L33: 281733576.1 | M33: 0 | N33: 0 | O33: =+SUM(TablaCMgP_pre[[#This Row],[Enero]:[Diciembre]]) -> 6829422601
B34: =+TablaCVP_pre[[#This Row],[Nombre unidad TCV]] -> CTM3 | C34: 4162463064 | D34: 3351368785 | E34: 6869431276 | F34: 4344937852 | G34: 1715288451 | H34: 3287588237 | I34: 2697626381 | J34: 2377831188 | K34: 2287566779 | L34: 2002721616 | M34: 929682022.8 | N34: 2189398465 | O34: =+SUM(TablaCMgP_pre[[#This Row],[Enero]:[Diciembre]]) -> 3.621590412e+10
B35: =+TablaCVP_pre[[#This Row],[Nombre unidad TCV]] -> CTTAR | C35: 0 | D35: 0 | E35: 0 | F35: 0 | G35: 0 | H35: 0 | I35: 0 | J35: 0 | K35: 0 | L35: 0 | M35: 0 | N35: 0 | O35: =+SUM(TablaCMgP_pre[[#This Row],[Enero]:[Diciembre]]) -> 0
B36: =+TablaCVP_pre[[#This Row],[Nombre unidad TCV]] -> Diego de Almagro | C36: 19611586.44 | D36: 98977.67094 | E36: 0 | F36: 0 | G36: 0 | H36: 0 | I36: 0 | J36: 0 | K36: 12715756.65 | L36: 0 | M36: 0 | N36: 2855060.701 | O36: =+SUM(TablaCMgP_pre[[#This Row],[Enero]:[Diciembre]]) -> 35281381.46
B37: =+TablaCVP_pre[[#This Row],[Nombre unidad TCV]] -> El Salvador | C37: 17741604.84 | D37: 0 | E37: 0 | F37: 0 | G37: 0 | H37: 0 | I37: 0 | J37: 0 | K37: 433.2912912 | L37: 0 | M37: 0 | N37: 0 | O37: =+SUM(TablaCMgP_pre[[#This Row],[Enero]:[Diciembre]]) -> 17742038.13
B38: =+TablaCVP_pre[[#This Row],[Nombre unidad TCV]] -> Emelda U1 | C38: 0 | D38: 82734.32778 | E38: 12783935.96 | F38: 53442.63952 | G38: 15301.44513 | H38: 3431.14492 | I38: 0 | J38: 103264.1098 | K38: 3366122.505 | L38: 0 | M38: 122930.8364 | N38: 1023695.011 | O38: =+SUM(TablaCMgP_pre[[#This Row],[Enero]:[Diciembre]]) -> 17554857.98
B39: =+TablaCVP_pre[[#This Row],[Nombre unidad TCV]] -> Emelda U2 | C39: 0 | D39: 88994.6707 | E39: 12373231.5 | F39: 44880.35072 | G39: 38484.87176 | H39: 52942.68847 | I39: 0 | J39: 24162.44775 | K39: 78605.30282 | L39: 0 | M39: 135792.7245 | N39: 79255.4038 | O39: =+SUM(TablaCMgP_pre[[#This Row],[Enero]:[Diciembre]]) -> 12916349.96
B40: =+TablaCVP_pre[[#This Row],[Nombre unidad TCV]] -> Energía Pacífico | C40: 358549229.1 | D40: 326333447.2 | E40: 644018658.7 | F40: 333462070.2 | G40: 354020852.8 | H40: 348049278.3 | I40: 253212713.5 | J40: 266810975.6 | K40: 205875683.4 | L40: 144800717.6 | M40: 232773768.7 | N40: 317080591.3 | O40: =+SUM(TablaCMgP_pre[[#This Row],[Enero]:[Diciembre]]) -> 3784987986
B41: =+TablaCVP_pre[[#This Row],[Nombre unidad TCV]] -> Escuadrón | C41: 10039057.51 | D41: 52356855.49 | E41: 263602312.4 | F41: 91056065.48 | G41: 102749936 | H41: 67782572.89 | I41: 10411620.87 | J41: 40094.93216 | K41: 0 | L41: 0 | M41: 20730.4101 | N41: 1136463.476 | O41: =+SUM(TablaCMgP_pre[[#This Row],[Enero]:[Diciembre]]) -> 599195709.5
B42: =+TablaCVP_pre[[#This Row],[Nombre unidad TCV]] -> Esperanza TG | C42: 0 | D42: 0 | E42: 0 | F42: 0 | G42: 0 | H42: 0 | I42: 0 | J42: 0 | K42: 0 | L42: 0 | M42: 0 | N42: 0 | O42: =+SUM(TablaCMgP_pre[[#This Row],[Enero]:[Diciembre]]) -> 0
B43: =+TablaCVP_pre[[#This Row],[Nombre unidad TCV]] -> Guacolda 1 | C43: 2180698584 | D43: 2527443687 | E43: 4076092540 | F43: 2940533452 | G43: 3008714128 | H43: 2561861891 | I43: 1762507894 | J43: 1539572107 | K43: 1533880201 | L43: 1821091542 | M43: 1905115044 | N43: 1369334545 | O43: =+SUM(TablaCMgP_pre[[#This Row],[Enero]:[Diciembre]]) -> 2.722684561e+10
B44: =+TablaCVP_pre[[#This Row],[Nombre unidad TCV]] -> Guacolda 2 | C44: 1366466007 | D44: 2246972249 | E44: 3756267976 | F44: 2943249326 | G44: 3055680192 | H44: 2461633946 | I44: 1691999027 | J44: 593119728.3 | K44: 1367937267 | L44: 1782753268 | M44: 1139225280 | N44: 1927010077 | O44: =+SUM(TablaCMgP_pre[[#This Row],[Enero]:[Diciembre]]) -> 2.433231434e+10
B45: =+TablaCVP_pre[[#This Row],[Nombre unidad TCV]] -> Guacolda 3 | C45: 2408822487 | D45: 2478932025 | E45: 4988248299 | F45: 2857722417 | G45: 2203412387 | H45: 1981625780 | I45: 1939946323 | J45: 1825596701 | K45: 1587980615 | L45: 2086823829 | M45: 1822593415 | N45: 2314978970 | O45: =+SUM(TablaCMgP_pre[[#This Row],[Enero]:[Diciembre]]) -> 2.849668325e+10
B46: =+TablaCVP_pre[[#This Row],[Nombre unidad TCV]] -> Guacolda 4 | C46: 1707315149 | D46: 2206413816 | E46: 4417929049 | F46: 1399836170 | G46: 1305560463 | H46: 2471937533 | I46: 1745442850 | J46: 1448091947 | K46: 1319846749 | L46: 1900518909 | M46: 1963017116 | N46: 2504808003 | O46: =+SUM(TablaCMgP_pre[[#This Row],[Enero]:[Diciembre]]) -> 2.439071776e+10
B47: =+TablaCVP_pre[[#This Row],[Nombre unidad TCV]] -> Guacolda 5 | C47: 2715333122 | D47: 1989627749 | E47: 5015644081 | F47: 3425837995 | G47: 3140882588 | H47: 3086209318 | I47: 1989290095 | J47: 1730641718 | K47: 1669496086 | L47: 2202406394 | M47: 2022459483 | N47: 1984149253 | O47: =+SUM(TablaCMgP_pre[[#This Row],[Enero]:[Diciembre]]) -> 3.097197788e+10
B48: =+TablaCVP_pre[[#This Row],[Nombre unidad TCV]] -> Horcones | C48: 0 | D48: 12318737.35 | E48: 11747833.52 | F48: 0 | G48: 0 | H48: 0 | I48: 4681349.262 | J48: 0 | K48: 0 | L48: 0 | M48: 0 | N48: 32137.87394 | O48: =+SUM(TablaCMgP_pre[[#This Row],[Enero]:[Diciembre]]) -> 28780058
B49: =+TablaCVP_pre[[#This Row],[Nombre unidad TCV]] -> Huasco TG | C49: 230543.3165 | D49: 334871.1822 | E49: 2726001.209 | F49: 3784467.229 | G49: 614964.9932 | H49: 0 | I49: 0 | J49: 0 | K49: 0 | L49: 1048054.599 | M49: 0 | N49: 4177532.723 | O49: =+SUM(TablaCMgP_pre[[#This Row],[Enero]:[Diciembre]]) -> 12916435.25
B50: =+TablaCVP_pre[[#This Row],[Nombre unidad TCV]] -> IEM | C50: 6712219907 | D50: 6325615040 | E50: 1.158423361e+10 | F50: 8209122652 | G50: 6450105507 | H50: 6827649242 | I50: 5331347978 | J50: 5209822994 | K50: 5004175477 | L50: 942079995.9 | M50: 5744853144 | N50: 6949925167 | O50: =+SUM(TablaCMgP_pre[[#This Row],[Enero]:[Diciembre]]) -> 7.529115071e+10
B51: =+TablaCVP_pre[[#This Row],[Nombre unidad TCV]] -> Laguna Verde TG | C51: 0 | D51: 0 | E51: 0 | F51: 0 | G51: 0 | H51: 0 | I51: 0 | J51: 0 | K51: 0 | L51: 0 | M51: 0 | N51: 0 | O51: =+SUM(TablaCMgP_pre[[#This Row],[Enero]:[Diciembre]]) -> 0
B52: =+TablaCVP_pre[[#This Row],[Nombre unidad TCV]] -> Laguna Verde TV | C52: 0 | D52: 0 | E52: 0 | F52: 0 | G52: 0 | H52: 0 | I52: 0 | J52: 0 | K52: 0 | L52: 0 | M52: 0 | N52: 0 | O52: =+SUM(TablaCMgP_pre[[#This Row],[Enero]:[Diciembre]]) -> 0
B53: =+TablaCVP_pre[[#This Row],[Nombre unidad TCV]] -> Laja | C53: 32329952.78 | D53: 32684101.68 | E53: 111575717.6 | F53: 47890341.76 | G53: 40243282.03 | H53: 50420051.3 | I53: 22419248.92 | J53: 26391536.97 | K53: 24166084.85 | L53: 23642123.59 | M53: 19251678.09 | N53: 32738500.19 | O53: =+SUM(TablaCMgP_pre[[#This Row],[Enero]:[Diciembre]]) -> 463752619.7
B54: =+TablaCVP_pre[[#This Row],[Nombre unidad TCV]] -> Lautaro-Comasa | C54: 537751918.6 | D54: 467858057.9 | E54: 1025396420 | F54: 578896627.8 | G54: 627253666.8 | H54: 407540839.4 | I54: 326421922.8 | J54: 210436841.3 | K54: 272976044.6 | L54: 313792615.6 | M54: 150564598.5 | N54: 620090762.5 | O54: =+SUM(TablaCMgP_pre[[#This Row],[Enero]:[Diciembre]]) -> 5538980316
B55: =+TablaCVP_pre[[#This Row],[Nombre unidad TCV]] -> Lautaro-Comasa 2 | C55: 270294409.7 | D55: 395797497 | E55: 878302936.1 | F55: 545164641.6 | G55: 531829448.5 | H55: 406074255.5 | I55: 313379155.9 | J55: 238785613.3 | K55: 203221329.4 | L55: 0 | M55: 177242499.8 | N55: 113086790.4 | O55: =+SUM(TablaCMgP_pre[[#This Row],[Enero]:[Diciembre]]) -> 4073178577
B56: =+TablaCVP_pre[[#This Row],[Nombre unidad TCV]] -> Licantén | C56: 183760.8167 | D56: 105353.4061 | E56: 9450518.542 | F56: 153905.9581 | G56: 76479420.3 | H56: 86226943.98 | I56: 46600448.83 | J56: 46026380.84 | K56: 38046905.3 | L56: 42196066.42 | M56: 36999768.25 | N56: 62064311.15 | O56: =+SUM(TablaCMgP_pre[[#This Row],[Enero]:[Diciembre]]) -> 444533783.8
B57: =+TablaCVP_pre[[#This Row],[Nombre unidad TCV]] -> Los Guindos | C57: 87140135.21 | D57: 0 | E57: 401302833.2 | F57: 14708050.62 | G57: 0 | H57: 0 | I57: 0 | J57: 0 | K57: 0 | L57: 0 | M57: 0 | N57: 0 | O57: =+SUM(TablaCMgP_pre[[#This Row],[Enero]:[Diciembre]]) -> 503151019
B58: =+TablaCVP_pre[[#This Row],[Nombre unidad TCV]] -> Los Pinos | C58: 40899760.69 | D58: 261785287.5 | E58: 1824248658 | F58: 400525595.5 | G58: 579655105.8 | H58: 700832460.3 | I58: 23591787.64 | J58: 157105616.4 | K58: 7687885.665 | L58: 32825117.36 | M58: 62692036.59 | N58: 179649420.1 | O58: =+SUM(TablaCMgP_pre[[#This Row],[Enero]:[Diciembre]]) -> 4271498731
B59: =+TablaCVP_pre[[#This Row],[Nombre unidad TCV]] -> Los Vientos | C59: 403222203.1 | D59: 678331837.2 | E59: 553823547 | F59: 57754299.26 | G59: 211416489.3 | H59: 934950438.4 | I59: 40543235.64 | J59: 205643990.5 | K59: 14878752.67 | L59: 0 | M59: 0 | N59: 144007755 | O59: =+SUM(TablaCMgP_pre[[#This Row],[Enero]:[Diciembre]]) -> 3244572548
B60: =+TablaCVP_pre[[#This Row],[Nombre unidad TCV]] -> Masisa (Cabrero) | C60: 124368167.3 | D60: 122678910.3 | E60: 246987628.3 | F60: 146462320.3 | G60: 142076002.2 | H60: 142139940.9 | I60: 90806726.69 | J60: 94285400.88 | K60: 86558882.13 | L60: 26918872.85 | M60: 101633698.1 | N60: 127207555.7 | O60: =+SUM(TablaCMgP_pre[[#This Row],[Enero]:[Diciembre]]) -> 1452124106
B61: =+TablaCVP_pre[[#This Row],[Nombre unidad TCV]] -> Nehuenco | C61: 2194135832 | D61: 5736467948 | E61: 1.074808801e+10 | F61: 7897646260 | G61: 8070186856 | H61: 5495509474 | I61: 4760829905 | J61: 5398666619 | K61: 5192315039 | L61: 610248259.7 | M61: 1271973.775 | N61: 0 | O61: =+SUM(TablaCMgP_pre[[#This Row],[Enero]:[Diciembre]]) -> 5.610536618e+10
B62: =+TablaCVP_pre[[#This Row],[Nombre unidad TCV]] -> Nehuenco II | C62: 8109697114 | D62: 6493204272 | E62: 1.167766317e+10 | F62: 8848076889 | G62: 9213078407 | H62: 8019068764 | I62: 6326278692 | J62: 5912163450 | K62: 5944105688 | L62: 796674865 | M62: 0 | N62: 0 | O62: =+SUM(TablaCMgP_pre[[#This Row],[Enero]:[Diciembre]]) -> 7.134001131e+10
B63: =+TablaCVP_pre[[#This Row],[Nombre unidad TCV]] -> Nehuenco TG 9B | C63: 0 | D63: 0 | E63: 0 | F63: 1054785.112 | G63: 22417583.21 | H63: 32072311.87 | I63: 0 | J63: 0 | K63: 0 | L63: 17370475.35 | M63: 0 | N63: 1802057.449 | O63: =+SUM(TablaCMgP_pre[[#This Row],[Enero]:[Diciembre]]) -> 74717212.99
B64: =+TablaCVP_pre[[#This Row],[Nombre unidad TCV]] -> NTO1 | C64: 2393223278 | D64: 2254580062 | E64: 176234550.4 | F64: 1812140545 | G64: 2765035511 | H64: 2488079182 | I64: 1664187346 | J64: 1758854142 | K64: 1667502184 | L64: 2144624199 | M64: 1929607309 | N64: 2566219660 | O64: =+SUM(TablaCMgP_pre[[#This Row],[Enero]:[Diciembre]]) -> 2.362028797e+10
B65: =+TablaCVP_pre[[#This Row],[Nombre unidad TCV]] -> NTO2 | C65: 2420882499 | D65: 2088910167 | E65: 4261398138 | F65: 2224266686 | G65: 2724206199 | H65: 1690397255 | I65: 1256509885 | J65: 1681905284 | K65: 1033804600 | L65: 2125363721 | M65: 1592422032 | N65: 2263358917 | O65: =+SUM(TablaCMgP_pre[[#This Row],[Enero]:[Diciembre]]) -> 2.536342538e+10
B66: =+TablaCVP_pre[[#This Row],[Nombre unidad TCV]] -> Nueva Aldea I | C66: 67155367.24 | D66: 79175046.5 | E66: 252483683.1 | F66: 149660719.4 | G66: 54696727.76 | H66: 47665694.56 | I66: 36244122.37 | J66: 63327329.17 | K66: 70794315.73 | L66: 91933149.99 | M66: 79665460.48 | N66: 63629676.37 | O66: =+SUM(TablaCMgP_pre[[#This Row],[Enero]:[Diciembre]]) -> 1056431293
B67: =+TablaCVP_pre[[#This Row],[Nombre unidad TCV]] -> Nueva Aldea III | C67: 482704091.1 | D67: 381158442.4 | E67: 1235482994 | F67: 789293820.4 | G67: 548829534.1 | H67: 521857853.9 | I67: 512585706.5 | J67: 492870873 | K67: 472759396.3 | L67: 548355274 | M67: 533204415.7 | N67: 716557374.6 | O67: =+SUM(TablaCMgP_pre[[#This Row],[Enero]:[Diciembre]]) -> 7235659776
B68: =+TablaCVP_pre[[#This Row],[Nombre unidad TCV]] -> Nueva Renca | C68: 5684552732 | D68: 6406556227 | E68: 1.09757113e+10 | F68: 6419239124 | G68: 6130816704 | H68: 4882292272 | I68: 4185288447 | J68: 2255798365 | K68: 58197.13687 | L68: 360661617.7 | M68: 0 | N68: 1267646568 | O68: =+SUM(TablaCMgP_pre[[#This Row],[Enero]:[Diciembre]]) -> 4.856862155e+10
B69: =+TablaCVP_pre[[#This Row],[Nombre unidad TCV]] -> Nueva Ventanas | C69: 4042908705 | D69: 3449426530 | E69: 7731751200 | F69: 5805707181 | G69: 5539280893 | H69: 5105571674 | I69: 2443932480 | J69: 2309877090 | K69: 2548918349 | L69: 3355091473 | M69: 3160775595 | N69: 1625106415 | O69: =+SUM(TablaCMgP_pre[[#This Row],[Enero]:[Diciembre]]) -> 4.711834759e+10
B70: =+TablaCVP_pre[[#This Row],[Nombre unidad TCV]] -> Petropower | C70: 74412768.96 | D70: 0 | E70: 0 | F70: 0 | G70: 0 | H70: 0 | I70: 0 | J70: 0 | K70: 0 | L70: 0 | M70: 0 | N70: 0 | O70: =+SUM(TablaCMgP_pre[[#This Row],[Enero]:[Diciembre]]) -> 74412768.96
B71: =+TablaCVP_pre[[#This Row],[Nombre unidad TCV]] -> Quintero A | C71: 273456260.8 | D71: 674686302.4 | E71: 2994851280 | F71: 1723379886 | G71: 1246629494 | H71: 2064973744 | I71: 610052256.4 | J71: 763625870.2 | K71: 235023727.8 | L71: 1322075156 | M71: 999341395.5 | N71: 1159671396 | O71: =+SUM(TablaCMgP_pre[[#This Row],[Enero]:[Diciembre]]) -> 1.406776677e+10
B72: =+TablaCVP_pre[[#This Row],[Nombre unidad TCV]] -> Quintero B | C72: 259561703.5 | D72: 189195801 | E72: 2961593648 | F72: 1234199180 | G72: 1337104550 | H72: 2121279910 | I72: 536334402.9 | J72: 514480254.3 | K72: 286963984.7 | L72: 274577674.7 | M72: 538825527.6 | N72: 765819825.5 | O72: =+SUM(TablaCMgP_pre[[#This Row],[Enero]:[Diciembre]]) -> 1.101993646e+10
B73: =+TablaCVP_pre[[#This Row],[Nombre unidad TCV]] -> Renca U1 | C73: 0 | D73: 0 | E73: 0 | F73: 0 | G73: 0 | H73: 0 | I73: 0 | J73: 0 | K73: 0 | L73: 0 | M73: 0 | N73: 0 | O73: =+SUM(TablaCMgP_pre[[#This Row],[Enero]:[Diciembre]]) -> 0
B74: =+TablaCVP_pre[[#This Row],[Nombre unidad TCV]] -> Renca U2 | C74: 0 | D74: 0 | E74: 0 | F74: 0 | G74: 0 | H74: 0 | I74: 0 | J74: 0 | K74: 0 | L74: 0 | M74: 0 | N74: 0 | O74: =+SUM(TablaCMgP_pre[[#This Row],[Enero]:[Diciembre]]) -> 0
B75: =+TablaCVP_pre[[#This Row],[Nombre unidad TCV]] -> San Isidro | C75: 2716079712 | D75: 2675884637 | E75: 1.210090022e+10 | F75: 7350344531 | G75: 6649856466 | H75: 6555631711 | I75: 3843045716 | J75: 4264116266 | K75: 2324728063 | L75: 1141887358 | M75: 180267262.2 | N75: 1455241479 | O75: =+SUM(TablaCMgP_pre[[#This Row],[Enero]:[Diciembre]]) -> 5.125798342e+10
B76: =+TablaCVP_pre[[#This Row],[Nombre unidad TCV]] -> San Isidro II | C76: 7738568438 | D76: 7197242809 | E76: 1.368729717e+10 | F76: 8279413694 | G76: 7823900691 | H76: 7504288778 | I76: 4761409528 | J76: 5369284961 | K76: 4127216463 | L76: 3369934459 | M76: 3158299066 | N76: 5106111567 | O76: =+SUM(TablaCMgP_pre[[#This Row],[Enero]:[Diciembre]]) -> 7.812296762e+10
B77: =+TablaCVP_pre[[#This Row],[Nombre unidad TCV]] -> San Lorenzo de D. de Almagro U1 | C77: 0 | D77: 0 | E77: 0 | F77: 0 | G77: 0 | H77: 0 | I77: 0 | J77: 70.6646119 | K77: 0 | L77: 0 | M77: 0 | N77: 0 | O77: =+SUM(TablaCMgP_pre[[#This Row],[Enero]:[Diciembre]]) -> 70.6646119
B78: =+TablaCVP_pre[[#This Row],[Nombre unidad TCV]] -> San Lorenzo de D. de Almagro U2 | C78: 0 | D78: 0 | E78: 0 | F78: 0 | G78: 0 | H78: 0 | I78: 0 | J78: 81.18886555 | K78: 0 | L78: 0 | M78: 0 | N78: 0 | O78: =+SUM(TablaCMgP_pre[[#This Row],[Enero]:[Diciembre]]) -> 81.18886555
B79: =+TablaCVP_pre[[#This Row],[Nombre unidad TCV]] -> Santa Lidia | C79: 0 | D79: 209417781.9 | E79: 201128844.4 | F79: 15077594.94 | G79: 21830817.58 | H79: 89074722.67 | I79: 225406942 | J79: 0 | K79: 0 | L79: 0 | M79: 0 | N79: 688474.0231 | O79: =+SUM(TablaCMgP_pre[[#This Row],[Enero]:[Diciembre]]) -> 762625177.6
B80: =+TablaCVP_pre[[#This Row],[Nombre unidad TCV]] -> Santa María | C80: 5288672380 | D80: 6161401799 | E80: 1.255568854e+10 | F80: 7852326128 | G80: 7680391892 | H80: 6605594827 | I80: 4158588371 | J80: 4687161068 | K80: 4180853039 | L80: 4183313953 | M80: 0 | N80: 5887581591 | O80: =+SUM(TablaCMgP_pre[[#This Row],[Enero]:[Diciembre]]) -> 6.924157359e+10
B81: =+TablaCVP_pre[[#This Row],[Nombre unidad TCV]] -> Taltal 1 | C81: 129089939.9 | D81: 177144362.4 | E81: 614956222 | F81: 416759916 | G81: 302555481.3 | H81: 64736059.93 | I81: 73798147.1 | J81: 129145997.8 | K81: 34820956.19 | L81: 168429088.9 | M81: 148703904 | N81: 109900973.2 | O81: =+SUM(TablaCMgP_pre[[#This Row],[Enero]:[Diciembre]]) -> 2370041049
B82: =+TablaCVP_pre[[#This Row],[Nombre unidad TCV]] -> Taltal 2 | C82: 3013381.803 | D82: 0 | E82: 85678398.48 | F82: 0 | G82: 33814935.97 | H82: 99965874.12 | I82: 105601538.5 | J82: 161417769.3 | K82: 74249785.41 | L82: 177729019 | M82: 229942134.6 | N82: 307547246.4 | O82: =+SUM(TablaCMgP_pre[[#This Row],[Enero]:[Diciembre]]) -> 1278960084
B83: =+TablaCVP_pre[[#This Row],[Nombre unidad TCV]] -> TG_Coronel | C83: 2235910.923 | D83: 169690.882 | E83: 52546890.96 | F83: 0 | G83: 28302800.55 | H83: 103459814.1 | I83: 0 | J83: 12853244.6 | K83: 0 | L83: 0 | M83: 0 | N83: 1032500.713 | O83: =+SUM(TablaCMgP_pre[[#This Row],[Enero]:[Diciembre]]) -> 200600852.7
B84: =+TablaCVP_pre[[#This Row],[Nombre unidad TCV]] -> TG1 | C84: 0 | D84: 0 | E84: 0 | F84: 0 | G84: 0 | H84: 0 | I84: 0 | J84: 0 | K84: 0 | L84: 0 | M84: 0 | N84: 767933.4592 | O84: =+SUM(TablaCMgP_pre[[#This Row],[Enero]:[Diciembre]]) -> 767933.4592
B85: =+TablaCVP_pre[[#This Row],[Nombre unidad TCV]] -> TG2 | C85: 0 | D85: 0 | E85: 0 | F85: 0 | G85: 0 | H85: 0 | I85: 0 | J85: 0 | K85: 0 | L85: 0 | M85: 0 | N85: 0 | O85: =+SUM(TablaCMgP_pre[[#This Row],[Enero]:[Diciembre]]) -> 0
B86: =+TablaCVP_pre[[#This Row],[Nombre unidad TCV]] -> TG3 | C86: 424260134.5 | D86: 61733980.69 | E86: 0 | F86: 0 | G86: 0 | H86: 0 | I86: 0 | J86: 0 | K86: 0 | L86: 0 | M86: 0 | N86: 120676944.7 | O86: =+SUM(TablaCMgP_pre[[#This Row],[Enero]:[Diciembre]]) -> 606671059.9
B87: =+TablaCVP_pre[[#This Row],[Nombre unidad TCV]] -> TGTAR | C87: 0 | D87: 0 | E87: 0 | F87: 0 | G87: 0 | H87: 0 | I87: 0 | J87: 0 | K87: 0 | L87: 0 | M87: 0 | N87: 0 | O87: =+SUM(TablaCMgP_pre[[#This Row],[Enero]:[Diciembre]]) -> 0
B88: =+TablaCVP_pre[[#This Row],[Nombre unidad TCV]] -> U12 | C88: 0 | D88: 0 | E88: 0 | F88: 0 | G88: 0 | H88: 0 | I88: 0 | J88: 0 | K88: 0 | L88: 0 | M88: 0 | N88: 0 | O88: =+SUM(TablaCMgP_pre[[#This Row],[Enero]:[Diciembre]]) -> 0
B89: =+TablaCVP_pre[[#This Row],[Nombre unidad TCV]] -> U13 | C89: 0 | D89: 0 | E89: 0 | F89: 0 | G89: 0 | H89: 0 | I89: 0 | J89: 0 | K89: 0 | L89: 0 | M89: 0 | N89: 0 | O89: =+SUM(TablaCMgP_pre[[#This Row],[Enero]:[Diciembre]]) -> 0
B90: =+TablaCVP_pre[[#This Row],[Nombre unidad TCV]] -> U14 | C90: 0 | D90: 0 | E90: 1483238698 | F90: 261802699.8 | G90: 0 | H90: 0 | I90: 0 | J90: 0 | K90: 215439465 | L90: 235180352.4 | M90: 0 | N90: 370206650.5 | O90: =+SUM(TablaCMgP_pre[[#This Row],[Enero]:[Diciembre]]) -> 2565867866
B91: =+TablaCVP_pre[[#This Row],[Nombre unidad TCV]] -> U15 | C91: 0 | D91: 0 | E91: 1207548213 | F91: 493055040.6 | G91: 0 | H91: 1145283773 | I91: 0 | J91: 0 | K91: 191063131.9 | L91: 499194369 | M91: 108509042.7 | N91: 241737103.6 | O91: =+SUM(TablaCMgP_pre[[#This Row],[Enero]:[Diciembre]]) -> 3886390673
B92: =+TablaCVP_pre[[#This Row],[Nombre unidad TCV]] -> U16 | C92: 660851559.7 | D92: 2857151931 | E92: 2442870842 | F92: 4958563460 | G92: 4888820955 | H92: 4293818063 | I92: 3890238880 | J92: 3808595121 | K92: 1235487865 | L92: 2490299324 | M92: 134472779.4 | N92: 1955233926 | O92: =+SUM(TablaCMgP_pre[[#This Row],[Enero]:[Diciembre]]) -> 3.361640471e+10
B93: =+TablaCVP_pre[[#This Row],[Nombre unidad TCV]] -> Valdivia | C93: 377808670.4 | D93: 395082108 | E93: 671075297 | F93: 267704346.1 | G93: 228845902.1 | H93: 316393809.7 | I93: 241218821.6 | J93: 233207708 | K93: 193594768.1 | L93: 335680505.1 | M93: 388761426.4 | N93: 408854316.3 | O93: =+SUM(TablaCMgP_pre[[#This Row],[Enero]:[Diciembre]]) -> 4058227679
B94: =+TablaCVP_pre[[#This Row],[Nombre unidad TCV]] -> Ventanas 1 | C94: 0 | D94: 612529261.3 | E94: 2129842730 | F94: 149801000 | G94: 0 | H94: 1457133985 | I94: 0 | J94: 0 | K94: 0 | L94: 0 | M94: 0 | N94: 224524715.6 | O94: =+SUM(TablaCMgP_pre[[#This Row],[Enero]:[Diciembre]]) -> 4573831692
B95: =+TablaCVP_pre[[#This Row],[Nombre unidad TCV]] -> Ventanas 2 | C95: 3047458592 | D95: 1735697804 | E95: 6013452996 | F95: 3270354959 | G95: 3166525184 | H95: 797520426.5 | I95: 1929155575 | J95: 2661701731 | K95: 2060307247 | L95: 2188811016 | M95: 2271878151 | N95: 3364070751 | O95: =+SUM(TablaCMgP_pre[[#This Row],[Enero]:[Diciembre]]) -> 3.250693443e+10
B96: =+TablaCVP_pre[[#This Row],[Nombre unidad TCV]] -> Viñales | C96: 630479034 | D96: 588469042.2 | E96: 1210452565 | F96: 836105401.4 | G96: 784067716.4 | H96: 764640039.6 | I96: 397969063 | J96: 393231439.4 | K96: 320610338.4 | L96: 405633179.4 | M96: 377635767 | N96: 404489992.4 | O96: =+SUM(TablaCMgP_pre[[#This Row],[Enero]:[Diciembre]]) -> 7113783578
B97: =+TablaCVP_pre[[#This Row],[Nombre unidad TCV]] -> Yungay 1 | C97: 0 | D97: 0 | E97: 5024428.289 | F97: 0 | G97: 0 | H97: 0 | I97: 0 | J97: 0 | K97: 0 | L97: 0 | M97: 4670796.563 | N97: 67396534.48 | O97: =+SUM(TablaCMgP_pre[[#This Row],[Enero]:[Diciembre]]) -> 77091759.33
B98: =+TablaCVP_pre[[#This Row],[Nombre unidad TCV]] -> Yungay 2 | C98: 0 | D98: 0 | E98: 10542222.12 | F98: 0 | G98: 0 | H98: 0 | I98: 0 | J98: 0 | K98: 0 | L98: 0 | M98: 1201560.09 | N98: 32871467.56 | O98: =+SUM(TablaCMgP_pre[[#This Row],[Enero]:[Diciembre]]) -> 44615249.77
B99: =+TablaCVP_pre[[#This Row],[Nombre unidad TCV]] -> Yungay 3 | C99: 0 | D99: 0 | E99: 14767893.27 | F99: 0 | G99: 0 | H99: 0 | I99: 0 | J99: 0 | K99: 0 | L99: 0 | M99: 7006521.83 | N99: 35310301.02 | O99: =+SUM(TablaCMgP_pre[[#This Row],[Enero]:[Diciembre]]) -> 57084716.12
B100: =+TablaCVP_pre[[#This Row],[Nombre unidad TCV]] -> Yungay 4 ca | C100: 0 | D100: 0 | E100: 0 | F100: 0 | G100: 0 | H100: 0 | I100: 0 | J100: 0 | K100: 0 | L100: 0 | M100: 0 | N100: 0 | O100: =+SUM(TablaCMgP_pre[[#This Row],[Enero]:[Diciembre]]) -> 0
B101: =+TablaCVP_pre[[#This Row],[Nombre unidad TCV]] -> Los Guindos 2 | C101: 79761502.28 | D101: 0 | E101: 34404063.08 | F101: 0 | G101: 0 | H101: 68407802.28 | I101: 108217299.4 | J101: 7149855.153 | K101: 4996081.621 | L101: 6864704.87 | M101: 0 | N101: 142483524.9 | O101: =+SUM(TablaCMgP_pre[[#This Row],[Enero]:[Diciembre]]) -> 452284833.6
B102: =+TablaCVP_pre[[#This Row],[Nombre unidad TCV]] -> ACONCAGUA | C102: 0 | D102: 0 | E102: 0 | F102: 0 | G102: 0 | H102: 0 | I102: 0 | J102: 0 | K102: 0 | L102: 164743797.2 | M102: 168261740.2 | N102: 473994874.6 | O102: =+SUM(TablaCMgP_pre[[#This Row],[Enero]:[Diciembre]]) -> 807000411.9
B103: =+TablaCVP_pre[[#This Row],[Nombre unidad TCV]] -> ERSA_BIOBIO | C103: 154178309.6 | D103: 92586223.38 | E103: 488702610.3 | F103: 459794196.5 | G103: 238175221.6 | H103: 578317550.8 | I103: 46082971.96 | J103: 94648939.86 | K103: 149330511 | L103: 193531900 | M103: 195688065 | N103: 143128002.7 | O103: =+SUM(TablaCMgP_pre[[#This Row],[Enero]:[Diciembre]]) -> 2834164503

Sheet NTH1
B2: NTH1 (numero de horas con Gx)
B4: Nombre unidad TCV | C4: Enero | D4: Febrero | E4: Marzo | F4: Abril | G4: Mayo | H4: Junio | I4: Julio | J4: Agosto | K4: Septiembre | L4: Octubre | M4: Noviembre | N4: Diciembre | O4: Total
B5: =+TablaCVP_pre[[#This Row],[Nombre unidad TCV]] -> ANG1 | C5: 744 | D5: 552 | E5: 744 | F5: 721 | G5: 744 | H5: 720 | I5: 744 | J5: 744 | K5: 673 | L5: 320 | M5: 713 | N5: 744 | O5: =+SUM(TablaNTH1[[#This Row],[Enero]:[Diciembre]]) -> 8163
B6: =+TablaCVP_pre[[#This Row],[Nombre unidad TCV]] -> ANG2 | C6: 744 | D6: 672 | E6: 744 | F6: 721 | G6: 744 | H6: 720 | I6: 528 | J6: 652 | K6: 699 | L6: 387 | M6: 720 | N6: 744 | O6: =+SUM(TablaNTH1[[#This Row],[Enero]:[Diciembre]]) -> 8075
B7: =+TablaCVP_pre[[#This Row],[Nombre unidad TCV]] -> Antilhue TG U1 | C7: 5 | D7: 16 | E7: 187 | F7: 42 | G7: 2 | H7: 1 | I7: 2 | J7: 3 | K7: 0 | L7: 2 | M7: 3 | N7: 5 | O7: =+SUM(TablaNTH1[[#This Row],[Enero]:[Diciembre]]) -> 268
B8: =+TablaCVP_pre[[#This Row],[Nombre unidad TCV]] -> Antilhue TG U2 | C8: 27 | D8: 20 | E8: 165 | F8: 31 | G8: 2 | H8: 1 | I8: 2 | J8: 0 | K8: 2 | L8: 2 | M8: 0 | N8: 1 | O8: =+SUM(TablaNTH1[[#This Row],[Enero]:[Diciembre]]) -> 253
B9: =+TablaCVP_pre[[#This Row],[Nombre unidad TCV]] -> Arauco | C9: 351 | D9: 601 | E9: 643 | F9: 659 | G9: 561 | H9: 322 | I9: 331 | J9: 386 | K9: 450 | L9: 474 | M9: 529 | N9: 565 | O9: =+SUM(TablaNTH1[[#This Row],[Enero]:[Diciembre]]) -> 5872
B10: =+TablaCVP_pre[[#This Row],[Nombre unidad TCV]] -> Bocamina | C10: 0 | D10: 0 | E10: 255 | F10: 607 | G10: 744 | H10: 720 | I10: 568 | J10: 132 | K10: 350 | L10: 0 | M10: 104 | N10: 372 | O10: =+SUM(TablaNTH1[[#This Row],[Enero]:[Diciembre]]) -> 3852
B11: =+TablaCVP_pre[[#This Row],[Nombre unidad TCV]] -> Bocamina II | C11: 295 | D11: 0 | E11: 267 | F11: 1 | G11: 744 | H11: 720 | I11: 618 | J11: 667 | K11: 645 | L11: 738 | M11: 720 | N11: 364 | O11: =+SUM(TablaNTH1[[#This Row],[Enero]:[Diciembre]]) -> 5779
B12: =+TablaCVP_pre[[#This Row],[Nombre unidad TCV]] -> Campiche | C12: 527 | D12: 672 | E12: 744 | F12: 721 | G12: 744 | H12: 556 | I12: 744 | J12: 406 | K12: 719 | L12: 744 | M12: 691 | N12: 707 | O12: =+SUM(TablaNTH1[[#This Row],[Enero]:[Diciembre]]) -> 7975
B13: =+TablaCVP_pre[[#This Row],[Nombre unidad TCV]] -> Candelaria 1 | C13: 6 | D13: 39 | E13: 148 | F13: 119 | G13: 84 | H13: 122 | I13: 5 | J13: 104 | K13: 28 | L13: 3 | M13: 12 | N13: 20 | O13: =+SUM(TablaNTH1[[#This Row],[Enero]:[Diciembre]]) -> 690
B14: =+TablaCVP_pre[[#This Row],[Nombre unidad TCV]] -> Candelaria 2 | C14: 4 | D14: 45 | E14: 395 | F14: 165 | G14: 45 | H14: 68 | I14: 5 | J14: 181 | K14: 33 | L14: 4 | M14: 14 | N14: 10 | O14: =+SUM(TablaNTH1[[#This Row],[Enero]:[Diciembre]]) -> 969
B15: =+TablaCVP_pre[[#This Row],[Nombre unidad TCV]] -> Cardones | C15: 0 | D15: 0 | E15: 9 | F15: 0 | G15: 0 | H15: 0 | I15: 0 | J15: 0 | K15: 0 | L15: 0 | M15: 0 | N15: 0 | O15: =+SUM(TablaNTH1[[#This Row],[Enero]:[Diciembre]]) -> 9
B16: =+TablaCVP_pre[[#This Row],[Nombre unidad TCV]] -> CC KELAR | C16: 709 | D16: 640 | E16: 523 | F16: 504 | G16: 706 | H16: 646 | I16: 371 | J16: 416 | K16: 292 | L16: 368 | M16: 187 | N16: 413 | O16: =+SUM(TablaNTH1[[#This Row],[Enero]:[Diciembre]]) -> 5775
B17: =+TablaCVP_pre[[#This Row],[Nombre unidad TCV]] -> CC1 | C17: 259 | D17: 17 | E17: 253 | F17: 288 | G17: 120 | H17: 105 | I17: 98 | J17: 48 | K17: 98 | L17: 57 | M17: 104 | N17: 187 | O17: =+SUM(TablaNTH1[[#This Row],[Enero]:[Diciembre]]) -> 1634
B18: =+TablaCVP_pre[[#This Row],[Nombre unidad TCV]] -> CC2 | C18: 93 | D18: 32 | E18: 159 | F18: 200 | G18: 120 | H18: 270 | I18: 118 | J18: 127 | K18: 100 | L18: 175 | M18: 108 | N18: 355 | O18: =+SUM(TablaNTH1[[#This Row],[Enero]:[Diciembre]]) -> 1857
B19: =+TablaCVP_pre[[#This Row],[Nombre unidad TCV]] -> CCH1 | C19: 638 | D19: 672 | E19: 728 | F19: 721 | G19: 744 | H19: 719 | I19: 667 | J19: 744 | K19: 719 | L19: 744 | M19: 720 | N19: 623 | O19: =+SUM(TablaNTH1[[#This Row],[Enero]:[Diciembre]]) -> 8439
B20: =+TablaCVP_pre[[#This Row],[Nombre unidad TCV]] -> CCH2 | C20: 744 | D20: 672 | E20: 744 | F20: 721 | G20: 744 | H20: 698 | I20: 698 | J20: 744 | K20: 719 | L20: 734 | M20: 720 | N20: 630 | O20: =+SUM(TablaNTH1[[#This Row],[Enero]:[Diciembre]]) -> 8568
B21: =+TablaCVP_pre[[#This Row],[Nombre unidad TCV]] -> CD Iquique | C21: 0 | D21: 0 | E21: 0 | F21: 0 | G21: 0 | H21: 0 | I21: 0 | J21: 0 | K21: 0 | L21: 0 | M21: 0 | N21: 0 | O21: =+SUM(TablaNTH1[[#This Row],[Enero]:[Diciembre]]) -> 0
B22: =+TablaCVP_pre[[#This Row],[Nombre unidad TCV]] -> Celco | C22: 723 | D22: 643 | E22: 657 | F22: 713 | G22: 718 | H22: 692 | I22: 704 | J22: 736 | K22: 719 | L22: 447 | M22: 720 | N22: 708 | O22: =+SUM(TablaNTH1[[#This Row],[Enero]:[Diciembre]]) -> 8180
B23: =+TablaCVP_pre[[#This Row],[Nombre unidad TCV]] -> Cholguán | C23: 736 | D23: 671 | E23: 511 | F23: 721 | G23: 744 | H23: 699 | I23: 744 | J23: 744 | K23: 719 | L23: 744 | M23: 720 | N23: 720 | O23: =+SUM(TablaNTH1[[#This Row],[Enero]:[Diciembre]]) -> 8473
B24: =+TablaCVP_pre[[#This Row],[Nombre unidad TCV]] -> CMPC Cordillera | C24: 27 | D24: 23 | E24: 11 | F24: 35 | G24: 0 | H24: 0 | I24: 0 | J24: 0 | K24: 0 | L24: 0 | M24: 0 | N24: 0 | O24: =+SUM(TablaNTH1[[#This Row],[Enero]:[Diciembre]]) -> 96
B25: =+TablaCVP_pre[[#This Row],[Nombre unidad TCV]] -> CMPC Laja | C25: 720 | D25: 665 | E25: 732 | F25: 690 | G25: 668 | H25: 682 | I25: 682 | J25: 658 | K25: 713 | L25: 683 | M25: 187 | N25: 0 | O25: =+SUM(TablaNTH1[[#This Row],[Enero]:[Diciembre]]) -> 7080
B26: =+TablaCVP_pre[[#This Row],[Nombre unidad TCV]] -> CMPC Pacífico | C26: 424 | D26: 653 | E26: 699 | F26: 693 | G26: 616 | H26: 684 | I26: 681 | J26: 392 | K26: 715 | L26: 738 | M26: 616 | N26: 697 | O26: =+SUM(TablaNTH1[[#This Row],[Enero]:[Diciembre]]) -> 7608
B27: =+TablaCVP_pre[[#This Row],[Nombre unidad TCV]] -> CMPC Santa Fe | C27: 432 | D27: 316 | E27: 617 | F27: 522 | G27: 738 | H27: 652 | I27: 532 | J27: 86 | K27: 163 | L27: 212 | M27: 491 | N27: 595 | O27: =+SUM(TablaNTH1[[#This Row],[Enero]:[Diciembre]]) -> 5356
B28: =+TablaCVP_pre[[#This Row],[Nombre unidad TCV]] -> CMPC TISSUE | C28: 0 | D28: 0 | E28: 0 | F28: 0 | G28: 0 | H28: 0 | I28: 0 | J28: 0 | K28: 0 | L28: 0 | M28: 0 | N28: 0 | O28: =+SUM(TablaNTH1[[#This Row],[Enero]:[Diciembre]]) -> 0
B29: =+TablaCVP_pre[[#This Row],[Nombre unidad TCV]] -> Colmito | C29: 0 | D29: 0 | E29: 8 | F29: 3 | G29: 12 | H29: 36 | I29: 10 | J29: 19 | K29: 3 | L29: 0 | M29: 3 | N29: 49 | O29: =+SUM(TablaNTH1[[#This Row],[Enero]:[Diciembre]]) -> 143
B30: =+TablaCVP_pre[[#This Row],[Nombre unidad TCV]] -> CTA | C30: 524 | D30: 672 | E30: 688 | F30: 546 | G30: 744 | H30: 652 | I30: 711 | J30: 534 | K30: 719 | L30: 3 | M30: 0 | N30: 0 | O30: =+SUM(TablaNTH1[[#This Row],[Enero]:[Diciembre]]) -> 5793
B31: =+TablaCVP_pre[[#This Row],[Nombre unidad TCV]] -> CTH | C31: 485 | D31: 536 | E31: 523 | F31: 493 | G31: 699 | H31: 521 | I31: 744 | J31: 531 | K31: 204 | L31: 721 | M31: 701 | N31: 744 | O31: =+SUM(TablaNTH1[[#This Row],[Enero]:[Diciembre]]) -> 6902
B32: =+TablaCVP_pre[[#This Row],[Nombre unidad TCV]] -> CTM1 | C32: 0 | D32: 100 | E32: 545 | F32: 91 | G32: 126 | H32: 410 | I32: 0 | J32: 18 | K32: 0 | L32: 66 | M32: 13 | N32: 79 | O32: =+SUM(TablaNTH1[[#This Row],[Enero]:[Diciembre]]) -> 1448
B33: =+TablaCVP_pre[[#This Row],[Nombre unidad TCV]] -> CTM2 | C33: 165 | D33: 130 | E33: 562 | F33: 300 | G33: 582 | H33: 297 | I33: 51 | J33: 52 | K33: 0 | L33: 126 | M33: 0 | N33: 0 | O33: =+SUM(TablaNTH1[[#This Row],[Enero]:[Diciembre]]) -> 2265
B34: =+TablaCVP_pre[[#This Row],[Nombre unidad TCV]] -> CTM3 | C34: 691 | D34: 669 | E34: 732 | F34: 675 | G34: 406 | H34: 686 | I34: 744 | J34: 635 | K34: 637 | L34: 449 | M34: 234 | N34: 378 | O34: =+SUM(TablaNTH1[[#This Row],[Enero]:[Diciembre]]) -> 6936
B35: =+TablaCVP_pre[[#This Row],[Nombre unidad TCV]] -> CTTAR | C35: 0 | D35: 0 | E35: 0 | F35: 0 | G35: 0 | H35: 0 | I35: 0 | J35: 0 | K35: 0 | L35: 0 | M35: 0 | N35: 0 | O35: =+SUM(TablaNTH1[[#This Row],[Enero]:[Diciembre]]) -> 0
B36: =+TablaCVP_pre[[#This Row],[Nombre unidad TCV]] -> Diego de Almagro | C36: 13 | D36: 1 | E36: 0 | F36: 0 | G36: 0 | H36: 0 | I36: 0 | J36: 0 | K36: 12 | L36: 0 | M36: 0 | N36: 3 | O36: =+SUM(TablaNTH1[[#This Row],[Enero]:[Diciembre]]) -> 29
B37: =+TablaCVP_pre[[#This Row],[Nombre unidad TCV]] -> El Salvador | C37: 12 | D37: 0 | E37: 0 | F37: 0 | G37: 0 | H37: 0 | I37: 0 | J37: 0 | K37: 1 | L37: 0 | M37: 0 | N37: 0 | O37: =+SUM(TablaNTH1[[#This Row],[Enero]:[Diciembre]]) -> 13
B38: =+TablaCVP_pre[[#This Row],[Nombre unidad TCV]] -> Emelda U1 | C38: 0 | D38: 1 | E38: 4 | F38: 1 | G38: 1 | H38: 1 | I38: 0 | J38: 1 | K38: 5 | L38: 1 | M38: 2 | N38: 2 | O38: =+SUM(TablaNTH1[[#This Row],[Enero]:[Diciembre]]) -> 19
B39: =+TablaCVP_pre[[#This Row],[Nombre unidad TCV]] -> Emelda U2 | C39: 0 | D39: 1 | E39: 4 | F39: 2 | G39: 2 | H39: 1 | I39: 0 | J39: 1 | K39: 1 | L39: 0 | M39: 2 | N39: 1 | O39: =+SUM(TablaNTH1[[#This Row],[Enero]:[Diciembre]]) -> 15
B40: =+TablaCVP_pre[[#This Row],[Nombre unidad TCV]] -> Energía Pacífico | C40: 723 | D40: 639 | E40: 744 | F40: 648 | G40: 681 | H40: 688 | I40: 740 | J40: 744 | K40: 661 | L40: 389 | M40: 569 | N40: 698 | O40: =+SUM(TablaNTH1[[#This Row],[Enero]:[Diciembre]]) -> 7924
B41: =+TablaCVP_pre[[#This Row],[Nombre unidad TCV]] -> Escuadrón | C41: 70 | D41: 99 | E41: 649 | F41: 711 | G41: 744 | H41: 716 | I41: 674 | J41: 1 | K41: 0 | L41: 0 | M41: 2 | N41: 23 | O41: =+SUM(TablaNTH1[[#This Row],[Enero]:[Diciembre]]) -> 3689
B42: =+TablaCVP_pre[[#This Row],[Nombre unidad TCV]] -> Esperanza TG | C42: 0 | D42: 0 | E42: 0 | F42: 0 | G42: 0 | H42: 0 | I42: 0 | J42: 0 | K42: 0 | L42: 0 | M42: 0 | N42: 0 | O42: =+SUM(TablaNTH1[[#This Row],[Enero]:[Diciembre]]) -> 0
B43: =+TablaCVP_pre[[#This Row],[Nombre unidad TCV]] -> Guacolda 1 | C43: 683 | D43: 672 | E43: 695 | F43: 721 | G43: 744 | H43: 720 | I43: 744 | J43: 744 | K43: 719 | L43: 744 | M43: 720 | N43: 449 | O43: =+SUM(TablaNTH1[[#This Row],[Enero]:[Diciembre]]) -> 8355
B44: =+TablaCVP_pre[[#This Row],[Nombre unidad TCV]] -> Guacolda 2 | C44: 470 | D44: 610 | E44: 548 | F44: 721 | G44: 744 | H44: 704 | I44: 744 | J44: 338 | K44: 675 | L44: 744 | M44: 507 | N44: 733 | O44: =+SUM(TablaNTH1[[#This Row],[Enero]:[Diciembre]]) -> 7538
B45: =+TablaCVP_pre[[#This Row],[Nombre unidad TCV]] -> Guacolda 3 | C45: 744 | D45: 636 | E45: 744 | F45: 692 | G45: 550 | H45: 561 | I45: 742 | J45: 743 | K45: 692 | L45: 744 | M45: 667 | N45: 711 | O45: =+SUM(TablaNTH1[[#This Row],[Enero]:[Diciembre]]) -> 8226
B46: =+TablaCVP_pre[[#This Row],[Nombre unidad TCV]] -> Guacolda 4 | C46: 744 | D46: 672 | E46: 744 | F46: 422 | G46: 326 | H46: 720 | I46: 744 | J46: 669 | K46: 625 | L46: 744 | M46: 720 | N46: 744 | O46: =+SUM(TablaNTH1[[#This Row],[Enero]:[Diciembre]]) -> 7874
B47: =+TablaCVP_pre[[#This Row],[Nombre unidad TCV]] -> Guacolda 5 | C47: 737 | D47: 602 | E47: 657 | F47: 721 | G47: 744 | H47: 720 | I47: 744 | J47: 744 | K47: 719 | L47: 744 | M47: 649 | N47: 564 | O47: =+SUM(TablaNTH1[[#This Row],[Enero]:[Diciembre]]) -> 8345
B48: =+TablaCVP_pre[[#This Row],[Nombre unidad TCV]] -> Horcones | C48: 0 | D48: 8 | E48: 8 | F48: 0 | G48: 0 | H48: 0 | I48: 3 | J48: 0 | K48: 0 | L48: 0 | M48: 0 | N48: 1 | O48: =+SUM(TablaNTH1[[#This Row],[Enero]:[Diciembre]]) -> 20
B49: =+TablaCVP_pre[[#This Row],[Nombre unidad TCV]] -> Huasco TG | C49: 1 | D49: 1 | E49: 4 | F49: 8 | G49: 2 | H49: 0 | I49: 0 | J49: 0 | K49: 0 | L49: 2 | M49: 0 | N49: 6 | O49: =+SUM(TablaNTH1[[#This Row],[Enero]:[Diciembre]]) -> 24
B50: =+TablaCVP_pre[[#This Row],[Nombre unidad TCV]] -> IEM | C50: 718 | D50: 672 | E50: 740 | F50: 715 | G50: 616 | H50: 684 | I50: 744 | J50: 718 | K50: 719 | L50: 133 | M50: 720 | N50: 725 | O50: =+SUM(TablaNTH1[[#This Row],[Enero]:[Diciembre]]) -> 7904
B51: =+TablaCVP_pre[[#This Row],[Nombre unidad TCV]] -> Laguna Verde TG | C51: 0 | D51: 0 | E51: 0 | F51: 0 | G51: 0 | H51: 0 | I51: 0 | J51: 0 | K51: 0 | L51: 0 | M51: 0 | N51: 0 | O51: =+SUM(TablaNTH1[[#This Row],[Enero]:[Diciembre]]) -> 0
B52: =+TablaCVP_pre[[#This Row],[Nombre unidad TCV]] -> Laguna Verde TV | C52: 0 | D52: 0 | E52: 0 | F52: 0 | G52: 0 | H52: 0 | I52: 0 | J52: 0 | K52: 0 | L52: 0 | M52: 0 | N52: 0 | O52: =+SUM(TablaNTH1[[#This Row],[Enero]:[Diciembre]]) -> 0
B53: =+TablaCVP_pre[[#This Row],[Nombre unidad TCV]] -> Laja | C53: 601 | D53: 633 | E53: 694 | F53: 596 | G53: 720 | H53: 700 | I53: 625 | J53: 647 | K53: 681 | L53: 699 | M53: 517 | N53: 701 | O53: =+SUM(TablaNTH1[[#This Row],[Enero]:[Diciembre]]) -> 7814
B54: =+TablaCVP_pre[[#This Row],[Nombre unidad TCV]] -> Lautaro-Comasa | C54: 721 | D54: 587 | E54: 743 | F54: 638 | G54: 720 | H54: 504 | I54: 670 | J54: 476 | K54: 611 | L54: 588 | M54: 229 | N54: 744 | O54: =+SUM(TablaNTH1[[#This Row],[Enero]:[Diciembre]]) -> 7231
B55: =+TablaCVP_pre[[#This Row],[Nombre unidad TCV]] -> Lautaro-Comasa 2 | C55: 419 | D55: 638 | E55: 744 | F55: 696 | G55: 705 | H55: 588 | I55: 722 | J55: 557 | K55: 425 | L55: 0 | M55: 274 | N55: 180 | O55: =+SUM(TablaNTH1[[#This Row],[Enero]:[Diciembre]]) -> 5948
B56: =+TablaCVP_pre[[#This Row],[Nombre unidad TCV]] -> Licantén | C56: 7 | D56: 6 | E56: 123 | F56: 17 | G56: 733 | H56: 689 | I56: 742 | J56: 744 | K56: 716 | L56: 708 | M56: 663 | N56: 717 | O56: =+SUM(TablaNTH1[[#This Row],[Enero]:[Diciembre]]) -> 5865
B57: =+TablaCVP_pre[[#This Row],[Nombre unidad TCV]] -> Los Guindos | C57: 7 | D57: 0 | E57: 37 | F57: 2 | G57: 0 | H57: 0 | I57: 0 | J57: 0 | K57: 0 | L57: 0 | M57: 0 | N57: 0 | O57: =+SUM(TablaNTH1[[#This Row],[Enero]:[Diciembre]]) -> 46
B58: =+TablaCVP_pre[[#This Row],[Nombre unidad TCV]] -> Los Pinos | C58: 7 | D58: 32 | E58: 215 | F58: 85 | G58: 130 | H58: 141 | I58: 5 | J58: 24 | K58: 4 | L58: 15 | M58: 20 | N58: 34 | O58: =+SUM(TablaNTH1[[#This Row],[Enero]:[Diciembre]]) -> 712
B59: =+TablaCVP_pre[[#This Row],[Nombre unidad TCV]] -> Los Vientos | C59: 64 | D59: 109 | E59: 59 | F59: 6 | G59: 56 | H59: 214 | I59: 12 | J59: 49 | K59: 7 | L59: 0 | M59: 0 | N59: 14 | O59: =+SUM(TablaNTH1[[#This Row],[Enero]:[Diciembre]]) -> 590
B60: =+TablaCVP_pre[[#This Row],[Nombre unidad TCV]] -> Masisa (Cabrero) | C60: 676 | D60: 621 | E60: 707 | F60: 670 | G60: 572 | H60: 653 | I60: 685 | J60: 682 | K60: 693 | L60: 234 | M60: 693 | N60: 691 | O60: =+SUM(TablaNTH1[[#This Row],[Enero]:[Diciembre]]) -> 7577
B61: =+TablaCVP_pre[[#This Row],[Nombre unidad TCV]] -> Nehuenco | C61: 265 | D61: 628 | E61: 744 | F61: 721 | G61: 744 | H61: 582 | I61: 669 | J61: 720 | K61: 719 | L61: 97 | M61: 3 | N61: 0 | O61: =+SUM(TablaNTH1[[#This Row],[Enero]:[Diciembre]]) -> 5892
B62: =+TablaCVP_pre[[#This Row],[Nombre unidad TCV]] -> Nehuenco II | C62: 744 | D62: 672 | E62: 744 | F62: 721 | G62: 744 | H62: 702 | I62: 744 | J62: 718 | K62: 719 | L62: 112 | M62: 0 | N62: 0 | O62: =+SUM(TablaNTH1[[#This Row],[Enero]:[Diciembre]]) -> 6620
B63: =+TablaCVP_pre[[#This Row],[Nombre unidad TCV]] -> Nehuenco TG 9B | C63: 0 | D63: 0 | E63: 0 | F63: 8 | G63: 6 | H63: 16 | I63: 0 | J63: 0 | K63: 0 | L63: 9 | M63: 0 | N63: 7 | O63: =+SUM(TablaNTH1[[#This Row],[Enero]:[Diciembre]]) -> 46
B64: =+TablaCVP_pre[[#This Row],[Nombre unidad TCV]] -> NTO1 | C64: 731 | D64: 672 | E64: 52 | F64: 490 | G64: 744 | H64: 720 | I64: 744 | J64: 744 | K64: 719 | L64: 744 | M64: 698 | N64: 744 | O64: =+SUM(TablaNTH1[[#This Row],[Enero]:[Diciembre]]) -> 7802
B65: =+TablaCVP_pre[[#This Row],[Nombre unidad TCV]] -> NTO2 | C65: 715 | D65: 655 | E65: 742 | F65: 615 | G65: 744 | H65: 504 | I65: 577 | J65: 723 | K65: 470 | L65: 744 | M65: 606 | N65: 681 | O65: =+SUM(TablaNTH1[[#This Row],[Enero]:[Diciembre]]) -> 7776
B66: =+TablaCVP_pre[[#This Row],[Nombre unidad TCV]] -> Nueva Aldea I | C66: 716 | D66: 649 | E66: 713 | F66: 719 | G66: 634 | H66: 692 | I66: 713 | J66: 728 | K66: 715 | L66: 741 | M66: 715 | N66: 560 | O66: =+SUM(TablaNTH1[[#This Row],[Enero]:[Diciembre]]) -> 8295
B67: =+TablaCVP_pre[[#This Row],[Nombre unidad TCV]] -> Nueva Aldea III | C67: 672 | D67: 456 | E67: 744 | F67: 721 | G67: 593 | H67: 598 | I67: 738 | J67: 744 | K67: 718 | L67: 743 | M67: 694 | N67: 744 | O67: =+SUM(TablaNTH1[[#This Row],[Enero]:[Diciembre]]) -> 8165
B68: =+TablaCVP_pre[[#This Row],[Nombre unidad TCV]] -> Nueva Renca | C68: 597 | D68: 652 | E68: 635 | F68: 587 | G68: 597 | H68: 523 | I68: 440 | J68: 209 | K68: 1 | L68: 62 | M68: 0 | N68: 116 | O68: =+SUM(TablaNTH1[[#This Row],[Enero]:[Diciembre]]) -> 4419
B69: =+TablaCVP_pre[[#This Row],[Nombre unidad TCV]] -> Nueva Ventanas | C69: 744 | D69: 672 | E69: 654 | F69: 719 | G69: 744 | H69: 720 | I69: 683 | J69: 744 | K69: 699 | L69: 744 | M69: 672 | N69: 303 | O69: =+SUM(TablaNTH1[[#This Row],[Enero]:[Diciembre]]) -> 8098
B70: =+TablaCVP_pre[[#This Row],[Nombre unidad TCV]] -> Petropower | C70: 216 | D70: 0 | E70: 0 | F70: 0 | G70: 0 | H70: 0 | I70: 0 | J70: 0 | K70: 0 | L70: 0 | M70: 0 | N70: 0 | O70: =+SUM(TablaNTH1[[#This Row],[Enero]:[Diciembre]]) -> 216
B71: =+TablaCVP_pre[[#This Row],[Nombre unidad TCV]] -> Quintero A | C71: 50 | D71: 130 | E71: 624 | F71: 451 | G71: 321 | H71: 678 | I71: 230 | J71: 324 | K71: 75 | L71: 356 | M71: 272 | N71: 264 | O71: =+SUM(TablaNTH1[[#This Row],[Enero]:[Diciembre]]) -> 3775
B72: =+TablaCVP_pre[[#This Row],[Nombre unidad TCV]] -> Quintero B | C72: 51 | D72: 53 | E72: 554 | F72: 304 | G72: 355 | H72: 688 | I72: 233 | J72: 183 | K72: 86 | L72: 89 | M72: 150 | N72: 187 | O72: =+SUM(TablaNTH1[[#This Row],[Enero]:[Diciembre]]) -> 2933
B73: =+TablaCVP_pre[[#This Row],[Nombre unidad TCV]] -> Renca U1 | C73: 0 | D73: 0 | E73: 0 | F73: 0 | G73: 0 | H73: 0 | I73: 0 | J73: 0 | K73: 0 | L73: 0 | M73: 0 | N73: 0 | O73: =+SUM(TablaNTH1[[#This Row],[Enero]:[Diciembre]]) -> 0
B74: =+TablaCVP_pre[[#This Row],[Nombre unidad TCV]] -> Renca U2 | C74: 0 | D74: 0 | E74: 0 | F74: 0 | G74: 0 | H74: 0 | I74: 0 | J74: 0 | K74: 0 | L74: 0 | M74: 0 | N74: 0 | O74: =+SUM(TablaNTH1[[#This Row],[Enero]:[Diciembre]]) -> 0
B75: =+TablaCVP_pre[[#This Row],[Nombre unidad TCV]] -> San Isidro | C75: 317 | D75: 304 | E75: 744 | F75: 698 | G75: 648 | H75: 699 | I75: 533 | J75: 577 | K75: 358 | L75: 189 | M75: 39 | N75: 258 | O75: =+SUM(TablaNTH1[[#This Row],[Enero]:[Diciembre]]) -> 5364
B76: =+TablaCVP_pre[[#This Row],[Nombre unidad TCV]] -> San Isidro II | C76: 744 | D76: 672 | E76: 744 | F76: 721 | G76: 744 | H76: 720 | I76: 662 | J76: 675 | K76: 644 | L76: 508 | M76: 435 | N76: 569 | O76: =+SUM(TablaNTH1[[#This Row],[Enero]:[Diciembre]]) -> 7838
B77: =+TablaCVP_pre[[#This Row],[Nombre unidad TCV]] -> San Lorenzo de D. de Almagro U1 | C77: 0 | D77: 0 | E77: 0 | F77: 0 | G77: 0 | H77: 0 | I77: 0 | J77: 1 | K77: 0 | L77: 0 | M77: 0 | N77: 0 | O77: =+SUM(TablaNTH1[[#This Row],[Enero]:[Diciembre]]) -> 1
B78: =+TablaCVP_pre[[#This Row],[Nombre unidad TCV]] -> San Lorenzo de D. de Almagro U2 | C78: 0 | D78: 0 | E78: 0 | F78: 0 | G78: 0 | H78: 0 | I78: 0 | J78: 1 | K78: 0 | L78: 0 | M78: 0 | N78: 0 | O78: =+SUM(TablaNTH1[[#This Row],[Enero]:[Diciembre]]) -> 1
B79: =+TablaCVP_pre[[#This Row],[Nombre unidad TCV]] -> Santa Lidia | C79: 0 | D79: 20 | E79: 16 | F79: 3 | G79: 7 | H79: 19 | I79: 35 | J79: 0 | K79: 0 | L79: 0 | M79: 0 | N79: 1 | O79: =+SUM(TablaNTH1[[#This Row],[Enero]:[Diciembre]]) -> 101
B80: =+TablaCVP_pre[[#This Row],[Nombre unidad TCV]] -> Santa María | C80: 626 | D80: 672 | E80: 744 | F80: 714 | G80: 744 | H80: 720 | I80: 737 | J80: 744 | K80: 719 | L80: 721 | M80: 0 | N80: 687 | O80: =+SUM(TablaNTH1[[#This Row],[Enero]:[Diciembre]]) -> 7828
B81: =+TablaCVP_pre[[#This Row],[Nombre unidad TCV]] -> Taltal 1 | C81: 25 | D81: 26 | E81: 82 | F81: 91 | G81: 77 | H81: 18 | I81: 22 | J81: 27 | K81: 10 | L81: 37 | M81: 26 | N81: 25 | O81: =+SUM(TablaNTH1[[#This Row],[Enero]:[Diciembre]]) -> 466
B82: =+TablaCVP_pre[[#This Row],[Nombre unidad TCV]] -> Taltal 2 | C82: 2 | D82: 0 | E82: 12 | F82: 0 | G82: 14 | H82: 32 | I82: 35 | J82: 39 | K82: 23 | L82: 32 | M82: 42 | N82: 75 | O82: =+SUM(TablaNTH1[[#This Row],[Enero]:[Diciembre]]) -> 306
B83: =+TablaCVP_pre[[#This Row],[Nombre unidad TCV]] -> TG_Coronel | C83: 2 | D83: 1 | E83: 33 | F83: 0 | G83: 18 | H83: 48 | I83: 0 | J83: 8 | K83: 0 | L83: 0 | M83: 0 | N83: 1 | O83: =+SUM(TablaNTH1[[#This Row],[Enero]:[Diciembre]]) -> 111
B84: =+TablaCVP_pre[[#This Row],[Nombre unidad TCV]] -> TG1 | C84: 0 | D84: 0 | E84: 0 | F84: 0 | G84: 0 | H84: 0 | I84: 0 | J84: 0 | K84: 0 | L84: 0 | M84: 0 | N84: 2 | O84: =+SUM(TablaNTH1[[#This Row],[Enero]:[Diciembre]]) -> 2
B85: =+TablaCVP_pre[[#This Row],[Nombre unidad TCV]] -> TG2 | C85: 0 | D85: 0 | E85: 0 | F85: 0 | G85: 0 | H85: 0 | I85: 0 | J85: 0 | K85: 0 | L85: 0 | M85: 0 | N85: 0 | O85: =+SUM(TablaNTH1[[#This Row],[Enero]:[Diciembre]]) -> 0
B86: =+TablaCVP_pre[[#This Row],[Nombre unidad TCV]] -> TG3 | C86: 522 | D86: 124 | E86: 0 | F86: 0 | G86: 0 | H86: 0 | I86: 0 | J86: 0 | K86: 0 | L86: 0 | M86: 0 | N86: 170 | O86: =+SUM(TablaNTH1[[#This Row],[Enero]:[Diciembre]]) -> 816
B87: =+TablaCVP_pre[[#This Row],[Nombre unidad TCV]] -> TGTAR | C87: 0 | D87: 0 | E87: 0 | F87: 0 | G87: 0 | H87: 0 | I87: 0 | J87: 0 | K87: 0 | L87: 0 | M87: 0 | N87: 0 | O87: =+SUM(TablaNTH1[[#This Row],[Enero]:[Diciembre]]) -> 0
B88: =+TablaCVP_pre[[#This Row],[Nombre unidad TCV]] -> U12 | C88: 0 | D88: 0 | E88: 0 | F88: 0 | G88: 0 | H88: 0 | I88: 0 | J88: 0 | K88: 0 | L88: 0 | M88: 0 | N88: 0 | O88: =+SUM(TablaNTH1[[#This Row],[Enero]:[Diciembre]]) -> 0
B89: =+TablaCVP_pre[[#This Row],[Nombre unidad TCV]] -> U13 | C89: 0 | D89: 0 | E89: 0 | F89: 0 | G89: 0 | H89: 0 | I89: 0 | J89: 0 | K89: 0 | L89: 0 | M89: 0 | N89: 0 | O89: =+SUM(TablaNTH1[[#This Row],[Enero]:[Diciembre]]) -> 0
B90: =+TablaCVP_pre[[#This Row],[Nombre unidad TCV]] -> U14 | C90: 0 | D90: 0 | E90: 375 | F90: 84 | G90: 0 | H90: 0 | I90: 0 | J90: 0 | K90: 85 | L90: 73 | M90: 0 | N90: 100 | O90: =+SUM(TablaNTH1[[#This Row],[Enero]:[Diciembre]]) -> 717
B91: =+TablaCVP_pre[[#This Row],[Nombre unidad TCV]] -> U15 | C91: 0 | D91: 0 | E91: 288 | F91: 197 | G91: 0 | H91: 390 | I91: 0 | J91: 0 | K91: 63 | L91: 155 | M91: 35 | N91: 60 | O91: =+SUM(TablaNTH1[[#This Row],[Enero]:[Diciembre]]) -> 1188
B92: =+TablaCVP_pre[[#This Row],[Nombre unidad TCV]] -> U16 | C92: 132 | D92: 413 | E92: 274 | F92: 638 | G92: 678 | H92: 566 | I92: 673 | J92: 673 | K92: 233 | L92: 366 | M92: 31 | N92: 252 | O92: =+SUM(TablaNTH1[[#This Row],[Enero]:[Diciembre]]) -> 4929
B93: =+TablaCVP_pre[[#This Row],[Nombre unidad TCV]] -> Valdivia | C93: 744 | D93: 672 | E93: 727 | F93: 721 | G93: 744 | H93: 670 | I93: 744 | J93: 663 | K93: 711 | L93: 744 | M93: 720 | N93: 719 | O93: =+SUM(TablaNTH1[[#This Row],[Enero]:[Diciembre]]) -> 8579
B94: =+TablaCVP_pre[[#This Row],[Nombre unidad TCV]] -> Ventanas 1 | C94: 0 | D94: 185 | E94: 613 | F94: 71 | G94: 0 | H94: 507 | I94: 0 | J94: 0 | K94: 0 | L94: 0 | M94: 0 | N94: 82 | O94: =+SUM(TablaNTH1[[#This Row],[Enero]:[Diciembre]]) -> 1458
B95: =+TablaCVP_pre[[#This Row],[Nombre unidad TCV]] -> Ventanas 2 | C95: 699 | D95: 523 | E95: 743 | F95: 719 | G95: 744 | H95: 224 | I95: 723 | J95: 744 | K95: 718 | L95: 744 | M95: 719 | N95: 742 | O95: =+SUM(TablaNTH1[[#This Row],[Enero]:[Diciembre]]) -> 8042
B96: =+TablaCVP_pre[[#This Row],[Nombre unidad TCV]] -> Viñales | C96: 739 | D96: 669 | E96: 738 | F96: 721 | G96: 735 | H96: 699 | I96: 726 | J96: 744 | K96: 719 | L96: 736 | M96: 694 | N96: 519 | O96: =+SUM(TablaNTH1[[#This Row],[Enero]:[Diciembre]]) -> 8439
B97: =+TablaCVP_pre[[#This Row],[Nombre unidad TCV]] -> Yungay 1 | C97: 0 | D97: 0 | E97: 4 | F97: 0 | G97: 0 | H97: 0 | I97: 0 | J97: 0 | K97: 0 | L97: 0 | M97: 4 | N97: 14 | O97: =+SUM(TablaNTH1[[#This Row],[Enero]:[Diciembre]]) -> 22
B98: =+TablaCVP_pre[[#This Row],[Nombre unidad TCV]] -> Yungay 2 | C98: 0 | D98: 0 | E98: 3 | F98: 0 | G98: 0 | H98: 0 | I98: 0 | J98: 0 | K98: 0 | L98: 0 | M98: 1 | N98: 7 | O98: =+SUM(TablaNTH1[[#This Row],[Enero]:[Diciembre]]) -> 11
B99: =+TablaCVP_pre[[#This Row],[Nombre unidad TCV]] -> Yungay 3 | C99: 0 | D99: 0 | E99: 3 | F99: 0 | G99: 0 | H99: 0 | I99: 0 | J99: 0 | K99: 0 | L99: 0 | M99: 7 | N99: 7 | O99: =+SUM(TablaNTH1[[#This Row],[Enero]:[Diciembre]]) -> 17
B100: =+TablaCVP_pre[[#This Row],[Nombre unidad TCV]] -> Yungay 4 ca | C100: 0 | D100: 0 | E100: 0 | F100: 0 | G100: 0 | H100: 0 | I100: 0 | J100: 0 | K100: 0 | L100: 0 | M100: 0 | N100: 0 | O100: =+SUM(TablaNTH1[[#This Row],[Enero]:[Diciembre]]) -> 0
B101: =+TablaCVP_pre[[#This Row],[Nombre unidad TCV]] -> Los Guindos 2 | C101: 7 | D101: 0 | E101: 5 | F101: 0 | G101: 0 | H101: 26 | I101: 18 | J101: 2 | K101: 2 | L101: 2 | M101: 0 | N101: 14 | O101: =+SUM(TablaNTH1[[#This Row],[Enero]:[Diciembre]]) -> 76
B102: =+TablaCVP_pre[[#This Row],[Nombre unidad TCV]] -> ACONCAGUA | C102: 0 | D102: 0 | E102: 0 | F102: 0 | G102: 0 | H102: 0 | I102: 0 | J102: 0 | K102: 0 | L102: 552 | M102: 395 | N102: 673 | O102: =+SUM(TablaNTH1[[#This Row],[Enero]:[Diciembre]]) -> 1620
B103: =+TablaCVP_pre[[#This Row],[Nombre unidad TCV]] -> ERSA_BIOBIO | C103: 528 | D103: 326 | E103: 744 | F103: 721 | G103: 541 | H103: 720 | I103: 157 | J103: 504 | K103: 717 | L103: 744 | M103: 720 | N103: 522 | O103: =+SUM(TablaNTH1[[#This Row],[Enero]:[Diciembre]]) -> 6944

Sheet GxN_NTH1
B2: Generación Neta NTH1 (denominadores CVP)
B4: Nombre unidad TCV | C4: Enero | D4: Febrero | E4: Marzo | F4: Abril | G4: Mayo | H4: Junio | I4: Julio | J4: Agosto | K4: Septiembre | L4: Octubre | M4: Noviembre | N4: Diciembre | O4: Total
B5: =+TablaCVP_pre[[#This Row],[Nombre unidad TCV]] -> ANG1 | C5: 189896167.2 | D5: 118486107.6 | E5: 191408699.4 | F5: 185637198.4 | G5: 184352305.4 | H5: 185410435.1 | I5: 185196170.8 | J5: 164967784.7 | K5: 150349785.3 | L5: 70152542.97 | M5: 163612296.3 | N5: 185446075.5 | O5: =+SUM(TablaGxN_NTH1[[#This Row],[Enero]:[Diciembre]]) -> 1974915569
B6: =+TablaCVP_pre[[#This Row],[Nombre unidad TCV]] -> ANG2 | C6: 194143453.6 | D6: 153111369.2 | E6: 193353645.9 | F6: 189425010.5 | G6: 187431706.7 | H6: 188174005.8 | I6: 122860268.4 | J6: 152153311.4 | K6: 159330756.6 | L6: 84720356.37 | M6: 171138121.9 | N6: 181296745.5 | O6: =+SUM(TablaGxN_NTH1[[#This Row],[Enero]:[Diciembre]]) -> 1977138752
B7: =+TablaCVP_pre[[#This Row],[Nombre unidad TCV]] -> Antilhue TG U1 | C7: 166355.947 | D7: 431173.361 | E7: 6187966.384 | F7: 1130056.091 | G7: 13902.123 | H7: 18977.228 | I7: 25247.3655 | J7: 58944.466 | K7: 0 | L7: 83124.6285 | M7: 36996.193 | N7: 197900.84 | O7: =+SUM(TablaGxN_NTH1[[#This Row],[Enero]:[Diciembre]]) -> 8350644.627
B8: =+TablaCVP_pre[[#This Row],[Nombre unidad TCV]] -> Antilhue TG U2 | C8: 580597.224 | D8: 449151.833 | E8: 4990269.204 | F8: 866162.5189 | G8: 25205.367 | H8: 17924.818 | I8: 25247.3655 | J8: 0 | K8: 31599.054 | L8: 83124.6285 | M8: 0 | N8: 6879.045 | O8: =+SUM(TablaGxN_NTH1[[#This Row],[Enero]:[Diciembre]]) -> 7076161.058
B9: =+TablaCVP_pre[[#This Row],[Nombre unidad TCV]] -> Arauco | C9: 1419189.939 | D9: 2938837.089 | E9: 2007370.388 | F9: 3495730.575 | G9: 1178315.589 | H9: 501017.081 | I9: 578009.497 | J9: 438480.68 | K9: 647653.723 | L9: 637084.933 | M9: 1167908.572 | N9: 801251.233 | O9: =+SUM(TablaGxN_NTH1[[#This Row],[Enero]:[Diciembre]]) -> 15810849.3
B10: =+TablaCVP_pre[[#This Row],[Nombre unidad TCV]] -> Bocamina | C10: 0 | D10: 0 | E10: 19315326.28 | F10: 55064552.26 | G10: 69618996.79 | H10: 62326058.83 | I10: 42869623.22 | J10: 10777827.28 | K10: 28509402.89 | L10: 0 | M10: 8573971.314 | N10: 31325016.54 | O10: =+SUM(TablaGxN_NTH1[[#This Row],[Enero]:[Diciembre]]) -> 328380775.4
B11: =+TablaCVP_pre[[#This Row],[Nombre unidad TCV]] -> Bocamina II | C11: 78052664.78 | D11: 0 | E11: 62318491.9 | F11: 173152.301 | G11: 221597913.2 | H11: 196548732.2 | I11: 149317782.7 | J11: 160950389 | K11: 161232237.1 | L11: 179408286.5 | M11: 179202216.1 | N11: 87605066.99 | O11: =+SUM(TablaGxN_NTH1[[#This Row],[Enero]:[Diciembre]]) -> 1476406933
B12: =+TablaCVP_pre[[#This Row],[Nombre unidad TCV]] -> Campiche | C12: 88592008.32 | D12: 127402408.2 | E12: 163872775.7 | F12: 153199938.7 | G12: 114138181.5 | H12: 108007673.6 | I12: 90426036.07 | J12: 55421855.42 | K12: 88259345.39 | L12: 108973207.1 | M12: 88426900.81 | N12: 134651395.5 | O12: =+SUM(TablaGxN_NTH1[[#This Row],[Enero]:[Diciembre]]) -> 1321371726
B13: =+TablaCVP_pre[[#This Row],[Nombre unidad TCV]] -> Candelaria 1 | C13: 335148.453 | D13: 3360728.033 | E13: 12354760 | F13: 9897965.953 | G13: 6773128.874 | H13: 9644269.253 | I13: 234244.1197 | J13: 8963750.683 | K13: 1834641.264 | L13: 163732.1313 | M13: 818884.6725 | N13: 1348705.827 | O13: =+SUM(TablaGxN_NTH1[[#This Row],[Enero]:[Diciembre]]) -> 55729959.26
B14: =+TablaCVP_pre[[#This Row],[Nombre unidad TCV]] -> Candelaria 2 | C14: 232518.965 | D14: 4530470.447 | E14: 37417442 | F14: 13595730.65 | G14: 3473474.478 | H14: 4927937.791 | I14: 237523.982 | J14: 15202040.21 | K14: 2233858.673 | L14: 322927.412 | M14: 1317588.649 | N14: 562933.2125 | O14: =+SUM(TablaGxN_NTH1[[#This Row],[Enero]:[Diciembre]]) -> 84054446.46
B15: =+TablaCVP_pre[[#This Row],[Nombre unidad TCV]] -> Cardones | C15: 0 | D15: 0 | E15: 733107.06 | F15: 0 | G15: 0 | H15: 0 | I15: 0 | J15: 0 | K15: 0 | L15: 0 | M15: 0 | N15: 0 | O15: =+SUM(TablaGxN_NTH1[[#This Row],[Enero]:[Diciembre]]) -> 733107.06
B16: =+TablaCVP_pre[[#This Row],[Nombre unidad TCV]] -> CC KELAR | C16: 274747142 | D16: 153863998 | E16: 80810861.15 | F16: 154877609.6 | G16: 249620317.9 | H16: 188240055.4 | I16: 134113451.7 | J16: 138831938.6 | K16: 79222470.22 | L16: 67428308.5 | M16: 53808342.15 | N16: 122091518.7 | O16: =+SUM(TablaGxN_NTH1[[#This Row],[Enero]:[Diciembre]]) -> 1697656014
B17: =+TablaCVP_pre[[#This Row],[Nombre unidad TCV]] -> CC1 | C17: 34392942.28 | D17: 1212931.007 | E17: 26799923.19 | F17: 21420310.78 | G17: 12144890.49 | H17: 9536211.641 | I17: 11334881.04 | J17: 4588044.498 | K17: 10176531.73 | L17: 5716914.392 | M17: 9699258.957 | N17: 20486529.39 | O17: =+SUM(TablaGxN_NTH1[[#This Row],[Enero]:[Diciembre]]) -> 167509369.4
B18: =+TablaCVP_pre[[#This Row],[Nombre unidad TCV]] -> CC2 | C18: 8249222.39 | D18: 2342299.458 | E18: 16164859.36 | F18: 15250007.9 | G18: 12506829.97 | H18: 35618342.19 | I18: 14768540.92 | J18: 13410388.67 | K18: 10547023.69 | L18: 19278497.47 | M18: 11494361.9 | N18: 42929991.51 | O18: =+SUM(TablaGxN_NTH1[[#This Row],[Enero]:[Diciembre]]) -> 202560365.4
B19: =+TablaCVP_pre[[#This Row],[Nombre unidad TCV]] -> CCH1 | C19: 120834728 | D19: 105415371.7 | E19: 143425833.9 | F19: 139528309.5 | G19: 138997881.1 | H19: 138425363.1 | I19: 112691280.4 | J19: 123959012.5 | K19: 132878626.1 | L19: 142021175.7 | M19: 135200418.8 | N19: 112944327.5 | O19: =+SUM(TablaGxN_NTH1[[#This Row],[Enero]:[Diciembre]]) -> 1546322328
B20: =+TablaCVP_pre[[#This Row],[Nombre unidad TCV]] -> CCH2 | C20: 132060860.4 | D20: 105313053.7 | E20: 144795142.2 | F20: 139277411.2 | G20: 138722819.9 | H20: 136974536.2 | I20: 114752689.2 | J20: 123708411.4 | K20: 132633721.8 | L20: 140801225.7 | M20: 134978809.6 | N20: 112847537.3 | O20: =+SUM(TablaGxN_NTH1[[#This Row],[Enero]:[Diciembre]]) -> 1556866219
B21: =+TablaCVP_pre[[#This Row],[Nombre unidad TCV]] -> CD Iquique | C21: 0 | D21: 0 | E21: 0 | F21: 0 | G21: 0 | H21: 0 | I21: 0 | J21: 0 | K21: 0 | L21: 0 | M21: 0 | N21: 0 | O21: =+SUM(TablaGxN_NTH1[[#This Row],[Enero]:[Diciembre]]) -> 0
B22: =+TablaCVP_pre[[#This Row],[Nombre unidad TCV]] -> Celco | C22: 4945961.15 | D22: 4984655.028 | E22: 4218994.625 | F22: 5354250.864 | G22: 5030557.358 | H22: 4441560.849 | I22: 3138526.041 | J22: 3264194.919 | K22: 2933338.952 | L22: 1880641.063 | M22: 4543013.912 | N22: 4895492.985 | O22: =+SUM(TablaGxN_NTH1[[#This Row],[Enero]:[Diciembre]]) -> 49631187.75
B23: =+TablaCVP_pre[[#This Row],[Nombre unidad TCV]] -> Cholguán | C23: 3479374.166 | D23: 2426079.687 | E23: 1771709.907 | F23: 3081165.255 | G23: 3887990.744 | H23: 4122111.558 | I23: 6879953.257 | J23: 6386127.39 | K23: 5383791.583 | L23: 4370948.664 | M23: 2026582.695 | N23: 2735819.835 | O23: =+SUM(TablaGxN_NTH1[[#This Row],[Enero]:[Diciembre]]) -> 46551654.74
B24: =+TablaCVP_pre[[#This Row],[Nombre unidad TCV]] -> CMPC Cordillera | C24: 458965.526 | D24: 693210.026 | E24: 747821.924 | F24: 1823179.678 | G24: 0 | H24: 0 | I24: 0 | J24: 0 | K24: 0 | L24: 0 | M24: 0 | N24: 0 | O24: =+SUM(TablaGxN_NTH1[[#This Row],[Enero]:[Diciembre]]) -> 3723177.154
B25: =+TablaCVP_pre[[#This Row],[Nombre unidad TCV]] -> CMPC Laja | C25: 14040054.42 | D25: 13540723.15 | E25: 14434976.49 | F25: 12124309.93 | G25: 11115150.25 | H25: 10201601.09 | I25: 8100670.133 | J25: 7614520.146 | K25: 9741591.544 | L25: 10106416.87 | M25: 2490345.34 | N25: 0 | O25: =+SUM(TablaGxN_NTH1[[#This Row],[Enero]:[Diciembre]]) -> 113510359.4
B26: =+TablaCVP_pre[[#This Row],[Nombre unidad TCV]] -> CMPC Pacífico | C26: 3400969.878 | D26: 11991853.87 | E26: 11806769.55 | F26: 11536446.98 | G26: 7256343.437 | H26: 7846478.198 | I26: 3570037.367 | J26: 2105936.6 | K26: 9208511.881 | L26: 10569456.15 | M26: 10348413.52 | N26: 14376611.67 | O26: =+SUM(TablaGxN_NTH1[[#This Row],[Enero]:[Diciembre]]) -> 104017829.1
B27: =+TablaCVP_pre[[#This Row],[Nombre unidad TCV]] -> CMPC Santa Fe | C27: 8265141.416 | D27: 9228685.99 | E27: 16141517.03 | F27: 18736948.62 | G27: 26375285.77 | H27: 15851350.4 | I27: 4156067.714 | J27: 609271.212 | K27: 1145123.061 | L27: 2250655.229 | M27: 14807015 | N27: 19318309.06 | O27: =+SUM(TablaGxN_NTH1[[#This Row],[Enero]:[Diciembre]]) -> 136885370.5
B28: =+TablaCVP_pre[[#This Row],[Nombre unidad TCV]] -> CMPC TISSUE | C28: 0 | D28: 0 | E28: 0 | F28: 0 | G28: 0 | H28: 0 | I28: 0 | J28: 0 | K28: 0 | L28: 0 | M28: 0 | N28: 0 | O28: =+SUM(TablaGxN_NTH1[[#This Row],[Enero]:[Diciembre]]) -> 0
B29: =+TablaCVP_pre[[#This Row],[Nombre unidad TCV]] -> Colmito | C29: 0 | D29: 0 | E29: 272871.819 | F29: 83465.757 | G29: 389306.782 | H29: 1255134.038 | I29: 131526.379 | J29: 501391.253 | K29: 45568.068 | L29: 0 | M29: 67519.864 | N29: 1920181.729 | O29: =+SUM(TablaGxN_NTH1[[#This Row],[Enero]:[Diciembre]]) -> 4666965.689
B30: =+TablaCVP_pre[[#This Row],[Nombre unidad TCV]] -> CTA | C30: 59071346.68 | D30: 73601261.75 | E30: 84097933.09 | F30: 65823538.83 | G30: 82395001.76 | H30: 75849803.26 | I30: 79211568.14 | J30: 53183131.71 | K30: 78898599.56 | L30: 219984.334 | M30: 0 | N30: 0 | O30: =+SUM(TablaGxN_NTH1[[#This Row],[Enero]:[Diciembre]]) -> 652352169.1
B31: =+TablaCVP_pre[[#This Row],[Nombre unidad TCV]] -> CTH | C31: 49517425.72 | D31: 60399828.3 | E31: 44518103.01 | F31: 53130354.41 | G31: 73891496.68 | H31: 53057849.65 | I31: 79216102.7 | J31: 56141774.79 | K31: 21905857.96 | L31: 82838887.42 | M31: 79425103.22 | N31: 93348484.97 | O31: =+SUM(TablaGxN_NTH1[[#This Row],[Enero]:[Diciembre]]) -> 747391268.8
B32: =+TablaCVP_pre[[#This Row],[Nombre unidad TCV]] -> CTM1 | C32: 0 | D32: 6980974.922 | E32: 41227636.22 | F32: 5443953.316 | G32: 8602861.685 | H32: 26285276.98 | I32: 0 | J32: 805709.079 | K32: 0 | L32: 3250447.919 | M32: 293896.596 | N32: 5696935.186 | O32: =+SUM(TablaGxN_NTH1[[#This Row],[Enero]:[Diciembre]]) -> 98587691.9
B33: =+TablaCVP_pre[[#This Row],[Nombre unidad TCV]] -> CTM2 | C33: 10425644.84 | D33: 8113288.707 | E33: 40552334.01 | F33: 20302507.68 | G33: 41663476.04 | H33: 19450037.32 | I33: 3582942.163 | J33: 2578578.746 | K33: 0 | L33: 7674247.774 | M33: 0 | N33: 0 | O33: =+SUM(TablaGxN_NTH1[[#This Row],[Enero]:[Diciembre]]) -> 154343057.3
B34: =+TablaCVP_pre[[#This Row],[Nombre unidad TCV]] -> CTM3 | C34: 131565670.2 | D34: 101704778.4 | E34: 126395999.4 | F34: 114412204.6 | G34: 49464284.85 | H34: 98776197.83 | I34: 106722489.7 | J34: 82675444.75 | K34: 80217672.12 | L34: 58361744.7 | M34: 30607772.09 | N34: 65311199.54 | O34: =+SUM(TablaGxN_NTH1[[#This Row],[Enero]:[Diciembre]]) -> 1046215458
B35: =+TablaCVP_pre[[#This Row],[Nombre unidad TCV]] -> CTTAR | C35: 0 | D35: 0 | E35: 0 | F35: 0 | G35: 0 | H35: 0 | I35: 0 | J35: 0 | K35: 0 | L35: 0 | M35: 0 | N35: 0 | O35: =+SUM(TablaGxN_NTH1[[#This Row],[Enero]:[Diciembre]]) -> 0
B36: =+TablaCVP_pre[[#This Row],[Nombre unidad TCV]] -> Diego de Almagro | C36: 92276.743 | D36: 5485.848 | E36: 0 | F36: 0 | G36: 0 | H36: 0 | I36: 0 | J36: 0 | K36: 83945.719 | L36: 0 | M36: 0 | N36: 12602.941 | O36: =+SUM(TablaGxN_NTH1[[#This Row],[Enero]:[Diciembre]]) -> 194311.251
B37: =+TablaCVP_pre[[#This Row],[Nombre unidad TCV]] -> El Salvador | C37: 83275.14 | D37: 0 | E37: 0 | F37: 0 | G37: 0 | H37: 0 | I37: 0 | J37: 0 | K37: 2.736 | L37: 0 | M37: 0 | N37: 0 | O37: =+SUM(TablaGxN_NTH1[[#This Row],[Enero]:[Diciembre]]) -> 83277.876
B38: =+TablaCVP_pre[[#This Row],[Nombre unidad TCV]] -> Emelda U1 | C38: 0 | D38: 892.5 | E38: 68211 | F38: 1177 | G38: 1189.5 | H38: 1306.5 | I38: 0 | J38: 1070.5 | K38: 6133.5 | L38: 1057 | M38: 1182.5 | N38: 12955.6 | O38: =+SUM(TablaGxN_NTH1[[#This Row],[Enero]:[Diciembre]]) -> 95175.6
B39: =+TablaCVP_pre[[#This Row],[Nombre unidad TCV]] -> Emelda U2 | C39: 0 | D39: 937.25 | E39: 67382 | F39: 1124.38 | G39: 1204 | H39: 1430.12 | I39: 0 | J39: 1106.13 | K39: 994 | L39: 0 | M39: 1250 | N39: 853.25 | O39: =+SUM(TablaGxN_NTH1[[#This Row],[Enero]:[Diciembre]]) -> 76281.13
B40: =+TablaCVP_pre[[#This Row],[Nombre unidad TCV]] -> Energía Pacífico | C40: 10491654.84 | D40: 9208286.732 | E40: 10870298.17 | F40: 8944005.679 | G40: 9337131.075 | H40: 9584066.579 | I40: 10114412.96 | J40: 10734670.35 | K40: 9153150.649 | L40: 5485732.249 | M40: 8035371.328 | N40: 10157850.91 | O40: =+SUM(TablaGxN_NTH1[[#This Row],[Enero]:[Diciembre]]) -> 112116631.5
B41: =+TablaCVP_pre[[#This Row],[Nombre unidad TCV]] -> Escuadrón | C41: 228947.854 | D41: 838737.872 | E41: 3678448.582 | F41: 2148024.122 | G41: 2453368.96 | H41: 1487106.932 | I41: 403116.933 | J41: 1218.873 | K41: 0 | L41: 0 | M41: 975.598 | N41: 34695.621 | O41: =+SUM(TablaGxN_NTH1[[#This Row],[Enero]:[Diciembre]]) -> 11274641.35
B42: =+TablaCVP_pre[[#This Row],[Nombre unidad TCV]] -> Esperanza TG | C42: 0 | D42: 0 | E42: 0 | F42: 0 | G42: 0 | H42: 0 | I42: 0 | J42: 0 | K42: 0 | L42: 0 | M42: 0 | N42: 0 | O42: =+SUM(TablaGxN_NTH1[[#This Row],[Enero]:[Diciembre]]) -> 0
B43: =+TablaCVP_pre[[#This Row],[Nombre unidad TCV]] -> Guacolda 1 | C43: 70261722.58 | D43: 76753027.78 | E43: 76057820.39 | F43: 79986769.32 | G43: 87416742.05 | H43: 75427735.73 | I43: 71062261.6 | J43: 57047951.57 | K43: 64973793.09 | L43: 65014981.14 | M43: 65384474.91 | N43: 46174597.33 | O43: =+SUM(TablaGxN_NTH1[[#This Row],[Enero]:[Diciembre]]) -> 835561877.5
B44: =+TablaCVP_pre[[#This Row],[Nombre unidad TCV]] -> Guacolda 2 | C44: 48030408.2 | D44: 68507097.47 | E44: 64869123.82 | F44: 79838225 | G44: 90609467.16 | H44: 72277233.58 | I44: 67882858.68 | J44: 23052656.7 | K44: 60676314.67 | L44: 62952100.94 | M44: 39552954.6 | N44: 58344928.2 | O44: =+SUM(TablaGxN_NTH1[[#This Row],[Enero]:[Diciembre]]) -> 736593369
B45: =+TablaCVP_pre[[#This Row],[Nombre unidad TCV]] -> Guacolda 3 | C45: 81905828.94 | D45: 77383596.35 | E45: 91154869.45 | F45: 79823312.36 | G45: 66600028.79 | H45: 66650238.4 | I45: 80749143.35 | J45: 70374603.98 | K45: 69979596.09 | L45: 77319044.35 | M45: 65097710.02 | N45: 77370797.91 | O45: =+SUM(TablaGxN_NTH1[[#This Row],[Enero]:[Diciembre]]) -> 904408770
B46: =+TablaCVP_pre[[#This Row],[Nombre unidad TCV]] -> Guacolda 4 | C46: 54591069.83 | D46: 65546560.09 | E46: 79136438.48 | F46: 41549973 | G46: 36458046.28 | H46: 74356995.71 | I46: 72409585.21 | J46: 54040276 | K46: 55676446.46 | L46: 68693214.1 | M46: 67605866.41 | N46: 77598816.94 | O46: =+SUM(TablaGxN_NTH1[[#This Row],[Enero]:[Diciembre]]) -> 747663288.5
B47: =+TablaCVP_pre[[#This Row],[Nombre unidad TCV]] -> Guacolda 5 | C47: 89275255.97 | D47: 75174497.48 | E47: 90096562.07 | F47: 96974093.31 | G47: 95957963.89 | H47: 94909524.86 | I47: 80587478.51 | J47: 64192662.2 | K47: 69646568.94 | L47: 80840341.49 | M47: 70941043.49 | N47: 61282074.23 | O47: =+SUM(TablaGxN_NTH1[[#This Row],[Enero]:[Diciembre]]) -> 969878066.4
B48: =+TablaCVP_pre[[#This Row],[Nombre unidad TCV]] -> Horcones | C48: 0 | D48: 91917.164 | E48: 87259.408 | F48: 0 | G48: 0 | H48: 0 | I48: 41030.668 | J48: 0 | K48: 0 | L48: 0 | M48: 0 | N48: 381.822 | O48: =+SUM(TablaGxN_NTH1[[#This Row],[Enero]:[Diciembre]]) -> 220589.062
B49: =+TablaCVP_pre[[#This Row],[Nombre unidad TCV]] -> Huasco TG | C49: 1395.994 | D49: 2584.997 | E49: 22774.563 | F49: 36646.971 | G49: 3975.364 | H49: 0 | I49: 0 | J49: 0 | K49: 0 | L49: 8375.211 | M49: 0 | N49: 32014.005 | O49: =+SUM(TablaGxN_NTH1[[#This Row],[Enero]:[Diciembre]]) -> 107767.105
B50: =+TablaCVP_pre[[#This Row],[Nombre unidad TCV]] -> IEM | C50: 218786096.1 | D50: 205820716.8 | E50: 217489982.8 | F50: 229165732.1 | G50: 193524307.3 | H50: 208423852.2 | I50: 214334736.1 | J50: 198236426.5 | K50: 201319861.6 | L50: 36241894.6 | M50: 200381802.1 | N50: 216018407.7 | O50: =+SUM(TablaGxN_NTH1[[#This Row],[Enero]:[Diciembre]]) -> 2339743816
B51: =+TablaCVP_pre[[#This Row],[Nombre unidad TCV]] -> Laguna Verde TG | C51: 0 | D51: 0 | E51: 0 | F51: 0 | G51: 0 | H51: 0 | I51: 0 | J51: 0 | K51: 0 | L51: 0 | M51: 0 | N51: 0 | O51: =+SUM(TablaGxN_NTH1[[#This Row],[Enero]:[Diciembre]]) -> 0
B52: =+TablaCVP_pre[[#This Row],[Nombre unidad TCV]] -> Laguna Verde TV | C52: 0 | D52: 0 | E52: 0 | F52: 0 | G52: 0 | H52: 0 | I52: 0 | J52: 0 | K52: 0 | L52: 0 | M52: 0 | N52: 0 | O52: =+SUM(TablaGxN_NTH1[[#This Row],[Enero]:[Diciembre]]) -> 0
B53: =+TablaCVP_pre[[#This Row],[Nombre unidad TCV]] -> Laja | C53: 988836.805 | D53: 985675.724 | E53: 1653509.064 | F53: 1148654.594 | G53: 1097304.811 | H53: 1419599.186 | I53: 943158.05 | J53: 1063556.264 | K53: 1064424.855 | L53: 989984.418 | M53: 772705.893 | N53: 1063365.034 | O53: =+SUM(TablaGxN_NTH1[[#This Row],[Enero]:[Diciembre]]) -> 13190774.7
B54: =+TablaCVP_pre[[#This Row],[Nombre unidad TCV]] -> Lautaro-Comasa | C54: 15837660.62 | D54: 12413117.27 | E54: 17090869.95 | F54: 14389894.78 | G54: 16455790.13 | H54: 12011991.48 | I54: 12839585.28 | J54: 8323884.052 | K54: 11052185.86 | L54: 12039889.29 | M54: 5068849.483 | N54: 17914474.03 | O54: =+SUM(TablaGxN_NTH1[[#This Row],[Enero]:[Diciembre]]) -> 155438192.2
B55: =+TablaCVP_pre[[#This Row],[Nombre unidad TCV]] -> Lautaro-Comasa 2 | C55: 7689663.223 | D55: 11283482.28 | E55: 14795767.48 | F55: 13920160.86 | G55: 13741530.85 | H55: 11469164.68 | I55: 12528570.75 | J55: 9333211.238 | K55: 7463038.468 | L55: 0 | M55: 5124899.303 | N55: 3564342.93 | O55: =+SUM(TablaGxN_NTH1[[#This Row],[Enero]:[Diciembre]]) -> 110913832.1
B56: =+TablaCVP_pre[[#This Row],[Nombre unidad TCV]] -> Licantén | C56: 3887.138 | D56: 3228.729 | E56: 156630.449 | F56: 3530.428 | G56: 1890473.175 | H56: 1701652.9 | I56: 1584036.048 | J56: 1725376.861 | K56: 1670505.338 | L56: 1708375.16 | M56: 1467980.663 | N56: 1697347.382 | O56: =+SUM(TablaGxN_NTH1[[#This Row],[Enero]:[Diciembre]]) -> 13613024.27
B57: =+TablaCVP_pre[[#This Row],[Nombre unidad TCV]] -> Los Guindos | C57: 678303.957 | D57: 0 | E57: 3032470.738 | F57: 105255.602 | G57: 0 | H57: 0 | I57: 0 | J57: 0 | K57: 0 | L57: 0 | M57: 0 | N57: 0 | O57: =+SUM(TablaGxN_NTH1[[#This Row],[Enero]:[Diciembre]]) -> 3816030.297
B58: =+TablaCVP_pre[[#This Row],[Nombre unidad TCV]] -> Los Pinos | C58: 396632.485 | D58: 2336104.027 | E58: 16464369.22 | F58: 5706654.012 | G58: 9241723.805 | H58: 10690328.41 | I58: 374590.154 | J58: 1882891.827 | K58: 109593.577 | L58: 412511.116 | M58: 927470.602 | N58: 1971385.046 | O58: =+SUM(TablaGxN_NTH1[[#This Row],[Enero]:[Diciembre]]) -> 50514254.28
B59: =+TablaCVP_pre[[#This Row],[Nombre unidad TCV]] -> Los Vientos | C59: 2699403.789 | D59: 4785520.686 | E59: 4204259.784 | F59: 678786.06 | G59: 2516481.749 | H59: 10563879.02 | I59: 348085.067 | J59: 1792674.501 | K59: 89527.254 | L59: 0 | M59: 0 | N59: 1403137.927 | O59: =+SUM(TablaGxN_NTH1[[#This Row],[Enero]:[Diciembre]]) -> 29081755.84
B60: =+TablaCVP_pre[[#This Row],[Nombre unidad TCV]] -> Masisa (Cabrero) | C60: 3923367.939 | D60: 3476040.047 | E60: 4220035.872 | F60: 3886450.956 | G60: 3602558.516 | H60: 3991571.802 | I60: 3736340.093 | J60: 3789250.701 | K60: 3854233.631 | L60: 1288336.102 | M60: 4049409.878 | N60: 4185216.267 | O60: =+SUM(TablaGxN_NTH1[[#This Row],[Enero]:[Diciembre]]) -> 44002811.8
B61: =+TablaCVP_pre[[#This Row],[Nombre unidad TCV]] -> Nehuenco | C61: 66317961.25 | D61: 171547375.2 | E61: 198170404 | F61: 217316364 | G61: 222064668.2 | H61: 180845151.7 | I61: 191921183 | J61: 220233060.2 | K61: 220456851.7 | L61: 25547821.47 | M61: 374306.306 | N61: 0 | O61: =+SUM(TablaGxN_NTH1[[#This Row],[Enero]:[Diciembre]]) -> 1714795147
B62: =+TablaCVP_pre[[#This Row],[Nombre unidad TCV]] -> Nehuenco II | C62: 257219521 | D62: 199692960.7 | E62: 216883403 | F62: 241785590.6 | G62: 251935810.3 | H62: 243017359.2 | I62: 253290297.9 | J62: 241121885.8 | K62: 251593587.9 | L62: 32613580.66 | M62: 0 | N62: 0 | O62: =+SUM(TablaGxN_NTH1[[#This Row],[Enero]:[Diciembre]]) -> 2189153997
B63: =+TablaCVP_pre[[#This Row],[Nombre unidad TCV]] -> Nehuenco TG 9B | C63: 0 | D63: 0 | E63: 0 | F63: 501753.12 | G63: 387832.377 | H63: 1186848.683 | I63: 0 | J63: 0 | K63: 0 | L63: 459620.704 | M63: 0 | N63: 442852 | O63: =+SUM(TablaGxN_NTH1[[#This Row],[Enero]:[Diciembre]]) -> 2978906.884
B64: =+TablaCVP_pre[[#This Row],[Nombre unidad TCV]] -> NTO1 | C64: 77027553.5 | D64: 72324163.93 | E64: 4913140.297 | F64: 49987630.72 | G64: 79168711.44 | H64: 75152707.27 | I64: 64201664.01 | J64: 63034615.99 | K64: 64835679.18 | L64: 71526992.36 | M64: 64300329.11 | N64: 74770663.16 | O64: =+SUM(TablaGxN_NTH1[[#This Row],[Enero]:[Diciembre]]) -> 761243851
B65: =+TablaCVP_pre[[#This Row],[Nombre unidad TCV]] -> NTO2 | C65: 74950062.5 | D65: 67832147.84 | E65: 77438327.39 | F65: 61819364.19 | G65: 78726866.67 | H65: 51476776.24 | I65: 50900608.56 | J65: 61385447.42 | K65: 42179653.04 | L65: 71260670.13 | M65: 54715561.19 | N65: 67117395.67 | O65: =+SUM(TablaGxN_NTH1[[#This Row],[Enero]:[Diciembre]]) -> 759802880.9
B66: =+TablaCVP_pre[[#This Row],[Nombre unidad TCV]] -> Nueva Aldea I | C66: 2282911.274 | D66: 2224673.94 | E66: 4498893.711 | F66: 3973903.863 | G66: 1450295.922 | H66: 1444209.148 | I66: 1489938.527 | J66: 2642696.431 | K66: 3296654.48 | L66: 4006684.272 | M66: 3307278.073 | N66: 2255908.136 | O66: =+SUM(TablaGxN_NTH1[[#This Row],[Enero]:[Diciembre]]) -> 32874047.78
B67: =+TablaCVP_pre[[#This Row],[Nombre unidad TCV]] -> Nueva Aldea III | C67: 16482722.51 | D67: 13399847.25 | E67: 21796213.2 | F67: 20872361.53 | G67: 14995667.56 | H67: 16582487.43 | I67: 21720721.69 | J67: 21010055.22 | K67: 21814144.16 | L67: 23802776.41 | M67: 22747889.76 | N67: 24149858.24 | O67: =+SUM(TablaGxN_NTH1[[#This Row],[Enero]:[Diciembre]]) -> 239374745
B68: =+TablaCVP_pre[[#This Row],[Nombre unidad TCV]] -> Nueva Renca | C68: 157111671.7 | D68: 175118289.8 | E68: 173732592.6 | F68: 152326011.5 | G68: 142040018.5 | H68: 107570263.2 | I68: 76333459.32 | J68: 37879343.53 | K68: 1980.198 | L68: 11039210 | M68: 0 | N68: 22711999.18 | O68: =+SUM(TablaGxN_NTH1[[#This Row],[Enero]:[Diciembre]]) -> 1055864839
B69: =+TablaCVP_pre[[#This Row],[Nombre unidad TCV]] -> Nueva Ventanas | C69: 121527395.8 | D69: 100882284.5 | E69: 144137559.7 | F69: 159554588.1 | G69: 152202649.9 | H69: 152910785.2 | I69: 95838062.66 | J69: 82198148.23 | K69: 97748609.16 | L69: 126166672.9 | M69: 107241135.2 | N69: 57987143.48 | O69: =+SUM(TablaGxN_NTH1[[#This Row],[Enero]:[Diciembre]]) -> 1398395035
B70: =+TablaCVP_pre[[#This Row],[Nombre unidad TCV]] -> Petropower | C70: 2468179.403 | D70: 0 | E70: 0 | F70: 0 | G70: 0 | H70: 0 | I70: 0 | J70: 0 | K70: 0 | L70: 0 | M70: 0 | N70: 0 | O70: =+SUM(TablaGxN_NTH1[[#This Row],[Enero]:[Diciembre]]) -> 2468179.403
B71: =+TablaCVP_pre[[#This Row],[Nombre unidad TCV]] -> Quintero A | C71: 3731937.409 | D71: 12134726.12 | E71: 56636535.16 | F71: 39596484.44 | G71: 30410451.15 | H71: 62163969.04 | I71: 18894640.88 | J71: 29793962.06 | K71: 5384834.848 | L71: 30100017.1 | M71: 21428529.08 | N71: 21404053.79 | O71: =+SUM(TablaGxN_NTH1[[#This Row],[Enero]:[Diciembre]]) -> 331680141.1
B72: =+TablaCVP_pre[[#This Row],[Nombre unidad TCV]] -> Quintero B | C72: 3515074.43 | D72: 4045001.083 | E72: 47725600.31 | F72: 27382843.76 | G72: 33582059.1 | H72: 63810625.93 | I72: 19344305.19 | J72: 17409826.42 | K72: 6796030.772 | L72: 6024538.545 | M72: 11570046.46 | N72: 14096882.88 | O72: =+SUM(TablaGxN_NTH1[[#This Row],[Enero]:[Diciembre]]) -> 255302834.9
B73: =+TablaCVP_pre[[#This Row],[Nombre unidad TCV]] -> Renca U1 | C73: 0 | D73: 0 | E73: 0 | F73: 0 | G73: 0 | H73: 0 | I73: 0 | J73: 0 | K73: 0 | L73: 0 | M73: 0 | N73: 0 | O73: =+SUM(TablaGxN_NTH1[[#This Row],[Enero]:[Diciembre]]) -> 0
B74: =+TablaCVP_pre[[#This Row],[Nombre unidad TCV]] -> Renca U2 | C74: 0 | D74: 0 | E74: 0 | F74: 0 | G74: 0 | H74: 0 | I74: 0 | J74: 0 | K74: 0 | L74: 0 | M74: 0 | N74: 0 | O74: =+SUM(TablaGxN_NTH1[[#This Row],[Enero]:[Diciembre]]) -> 0
B75: =+TablaCVP_pre[[#This Row],[Nombre unidad TCV]] -> San Isidro | C75: 68758637.3 | D75: 68663978.55 | E75: 207992937.3 | F75: 198299102.7 | G75: 174806696.4 | H75: 197472228.2 | I75: 134217433.5 | J75: 172642156.1 | K75: 81410605.64 | L75: 33207136.3 | M75: 5769845.637 | N75: 51165651.79 | O75: =+SUM(TablaGxN_NTH1[[#This Row],[Enero]:[Diciembre]]) -> 1394406409
B76: =+TablaCVP_pre[[#This Row],[Nombre unidad TCV]] -> San Isidro II | C76: 236057897.5 | D76: 207302129.7 | E76: 237379197.4 | F76: 222963008.9 | G76: 203167645.5 | H76: 221974022.7 | I76: 171674789.3 | J76: 213704277.1 | K76: 153333211.4 | L76: 113961208.2 | M76: 92235552.36 | N76: 139613157.8 | O76: =+SUM(TablaGxN_NTH1[[#This Row],[Enero]:[Diciembre]]) -> 2213366098
B77: =+TablaCVP_pre[[#This Row],[Nombre unidad TCV]] -> San Lorenzo de D. de Almagro U1 | C77: 0 | D77: 0 | E77: 0 | F77: 0 | G77: 0 | H77: 0 | I77: 0 | J77: 0.5347575545 | K77: 0 | L77: 0 | M77: 0 | N77: 0 | O77: =+SUM(TablaGxN_NTH1[[#This Row],[Enero]:[Diciembre]]) -> 0.5347575545
B78: =+TablaCVP_pre[[#This Row],[Nombre unidad TCV]] -> San Lorenzo de D. de Almagro U2 | C78: 0 | D78: 0 | E78: 0 | F78: 0 | G78: 0 | H78: 0 | I78: 0 | J78: 0.5598243148 | K78: 0 | L78: 0 | M78: 0 | N78: 0 | O78: =+SUM(TablaGxN_NTH1[[#This Row],[Enero]:[Diciembre]]) -> 0.5598243148
B79: =+TablaCVP_pre[[#This Row],[Nombre unidad TCV]] -> Santa Lidia | C79: 0 | D79: 1882001.845 | E79: 1498602.694 | F79: 159582.242 | G79: 238522.811 | H79: 1022370.956 | I79: 2669260.346 | J79: 0 | K79: 0 | L79: 0 | M79: 0 | N79: 2729.761 | O79: =+SUM(TablaGxN_NTH1[[#This Row],[Enero]:[Diciembre]]) -> 7473070.655
B80: =+TablaCVP_pre[[#This Row],[Nombre unidad TCV]] -> Santa María | C80: 165091396.5 | D80: 170677557.6 | E80: 211564371.2 | F80: 200554747.6 | G80: 204040540.3 | H80: 180666909 | I80: 150925161.4 | J80: 166036179.4 | K80: 167979227.7 | L80: 159637559.4 | M80: 0 | N80: 182686086.1 | O80: =+SUM(TablaGxN_NTH1[[#This Row],[Enero]:[Diciembre]]) -> 1959859736
B81: =+TablaCVP_pre[[#This Row],[Nombre unidad TCV]] -> Taltal 1 | C81: 1867267.585 | D81: 2098083.374 | E81: 6818962.022 | F81: 7347468.747 | G81: 5558878.106 | H81: 1074244.491 | I81: 1378014.831 | J81: 1988728.38 | K81: 839687.165 | L81: 2580234.603 | M81: 2067485.137 | N81: 1727825.008 | O81: =+SUM(TablaGxN_NTH1[[#This Row],[Enero]:[Diciembre]]) -> 35346879.45
B82: =+TablaCVP_pre[[#This Row],[Nombre unidad TCV]] -> Taltal 2 | C82: 62313.369 | D82: 0 | E82: 883401.72 | F82: 0 | G82: 742270.753 | H82: 1891320.071 | I82: 2097055.818 | J82: 2817179.549 | K82: 1647938.749 | L82: 2402247.567 | M82: 3148264.282 | N82: 5497442.769 | O82: =+SUM(TablaGxN_NTH1[[#This Row],[Enero]:[Diciembre]]) -> 21189434.65
B83: =+TablaCVP_pre[[#This Row],[Nombre unidad TCV]] -> TG_Coronel | C83: 12582.384 | D83: 10994.925 | E83: 799068.538 | F83: 0 | G83: 368425.283 | H83: 1231590.465 | I83: 0 | J83: 118620.012 | K83: 0 | L83: 0 | M83: 0 | N83: 4363.29 | O83: =+SUM(TablaGxN_NTH1[[#This Row],[Enero]:[Diciembre]]) -> 2545644.897
B84: =+TablaCVP_pre[[#This Row],[Nombre unidad TCV]] -> TG1 | C84: 0 | D84: 0 | E84: 0 | F84: 0 | G84: 0 | H84: 0 | I84: 0 | J84: 0 | K84: 0 | L84: 0 | M84: 0 | N84: 3408.48 | O84: =+SUM(TablaGxN_NTH1[[#This Row],[Enero]:[Diciembre]]) -> 3408.48
B85: =+TablaCVP_pre[[#This Row],[Nombre unidad TCV]] -> TG2 | C85: 0 | D85: 0 | E85: 0 | F85: 0 | G85: 0 | H85: 0 | I85: 0 | J85: 0 | K85: 0 | L85: 0 | M85: 0 | N85: 0 | O85: =+SUM(TablaGxN_NTH1[[#This Row],[Enero]:[Diciembre]]) -> 0
B86: =+TablaCVP_pre[[#This Row],[Nombre unidad TCV]] -> TG3 | C86: 12785778.82 | D86: 1446776.067 | E86: 0 | F86: 0 | G86: 0 | H86: 0 | I86: 0 | J86: 0 | K86: 0 | L86: 0 | M86: 0 | N86: 4374997.266 | O86: =+SUM(TablaGxN_NTH1[[#This Row],[Enero]:[Diciembre]]) -> 18607552.15
B87: =+TablaCVP_pre[[#This Row],[Nombre unidad TCV]] -> TGTAR | C87: 0 | D87: 0 | E87: 0 | F87: 0 | G87: 0 | H87: 0 | I87: 0 | J87: 0 | K87: 0 | L87: 0 | M87: 0 | N87: 0 | O87: =+SUM(TablaGxN_NTH1[[#This Row],[Enero]:[Diciembre]]) -> 0
B88: =+TablaCVP_pre[[#This Row],[Nombre unidad TCV]] -> U12 | C88: 0 | D88: 0 | E88: 0 | F88: 0 | G88: 0 | H88: 0 | I88: 0 | J88: 0 | K88: 0 | L88: 0 | M88: 0 | N88: 0 | O88: =+SUM(TablaGxN_NTH1[[#This Row],[Enero]:[Diciembre]]) -> 0
B89: =+TablaCVP_pre[[#This Row],[Nombre unidad TCV]] -> U13 | C89: 0 | D89: 0 | E89: 0 | F89: 0 | G89: 0 | H89: 0 | I89: 0 | J89: 0 | K89: 0 | L89: 0 | M89: 0 | N89: 0 | O89: =+SUM(TablaGxN_NTH1[[#This Row],[Enero]:[Diciembre]]) -> 0
B90: =+TablaCVP_pre[[#This Row],[Nombre unidad TCV]] -> U14 | C90: 0 | D90: 0 | E90: 21022919.42 | F90: 4961401.735 | G90: 0 | H90: 0 | I90: 0 | J90: 0 | K90: 4465802.331 | L90: 5029763.027 | M90: 0 | N90: 6247994.228 | O90: =+SUM(TablaGxN_NTH1[[#This Row],[Enero]:[Diciembre]]) -> 41727880.74
B91: =+TablaCVP_pre[[#This Row],[Nombre unidad TCV]] -> U15 | C91: 0 | D91: 0 | E91: 16634420.69 | F91: 10813690.86 | G91: 0 | H91: 23946154.74 | I91: 0 | J91: 0 | K91: 4278458.612 | L91: 11169028.42 | M91: 2242518.944 | N91: 4176858.709 | O91: =+SUM(TablaGxN_NTH1[[#This Row],[Enero]:[Diciembre]]) -> 73261130.97
B92: =+TablaCVP_pre[[#This Row],[Nombre unidad TCV]] -> U16 | C92: 13972361.12 | D92: 85572902.46 | E92: 60054965.77 | F92: 134045688.1 | G92: 138071295.4 | H92: 129112842.2 | I92: 151407370.1 | J92: 138455302.4 | K92: 44893210.87 | L92: 67076111.11 | M92: 4340035.854 | N92: 59235765.65 | O92: =+SUM(TablaGxN_NTH1[[#This Row],[Enero]:[Diciembre]]) -> 1026237851
B93: =+TablaCVP_pre[[#This Row],[Nombre unidad TCV]] -> Valdivia | C93: 10541675.12 | D93: 8583063.922 | E93: 9455212.746 | F93: 6782587.96 | G93: 6043410.927 | H93: 9798460.812 | I93: 9983052.987 | J93: 8073480.007 | K93: 7960250.965 | L93: 13835123.35 | M93: 15743955.38 | N93: 13029228.52 | O93: =+SUM(TablaGxN_NTH1[[#This Row],[Enero]:[Diciembre]]) -> 119829502.7
B94: =+TablaCVP_pre[[#This Row],[Nombre unidad TCV]] -> Ventanas 1 | C94: 0 | D94: 11181716.27 | E94: 34228724.1 | F94: 3569352.89 | G94: 0 | H94: 35432689.17 | I94: 0 | J94: 0 | K94: 0 | L94: 0 | M94: 0 | N94: 5504177.236 | O94: =+SUM(TablaGxN_NTH1[[#This Row],[Enero]:[Diciembre]]) -> 89916659.67
B95: =+TablaCVP_pre[[#This Row],[Nombre unidad TCV]] -> Ventanas 2 | C95: 77350261.97 | D95: 49575370.66 | E95: 101448596.5 | F95: 81857288.66 | G95: 79786077.66 | H95: 23546958.34 | I95: 69458944.88 | J95: 80525083.6 | K95: 70908771.79 | L95: 74098280.56 | M95: 71683310.72 | N95: 95021422.39 | O95: =+SUM(TablaGxN_NTH1[[#This Row],[Enero]:[Diciembre]]) -> 875260367.7
B96: =+TablaCVP_pre[[#This Row],[Nombre unidad TCV]] -> Viñales | C96: 21534280.71 | D96: 19196555.6 | E96: 21963040.79 | F96: 20752321.07 | G96: 22291081.99 | H96: 17793279.41 | I96: 16521709.34 | J96: 16338987.4 | K96: 15282543.46 | L96: 18627239.72 | M96: 18152723.34 | N96: 15097188.56 | O96: =+SUM(TablaGxN_NTH1[[#This Row],[Enero]:[Diciembre]]) -> 223550951.4
B97: =+TablaCVP_pre[[#This Row],[Nombre unidad TCV]] -> Yungay 1 | C97: 0 | D97: 0 | E97: 34451.5466 | F97: 0 | G97: 0 | H97: 0 | I97: 0 | J97: 0 | K97: 0 | L97: 0 | M97: 44863.405 | N97: 562928.845 | O97: =+SUM(TablaGxN_NTH1[[#This Row],[Enero]:[Diciembre]]) -> 642243.7966
B98: =+TablaCVP_pre[[#This Row],[Nombre unidad TCV]] -> Yungay 2 | C98: 0 | D98: 0 | E98: 72153.46476 | F98: 0 | G98: 0 | H98: 0 | I98: 0 | J98: 0 | K98: 0 | L98: 0 | M98: 12630.138 | N98: 299487.822 | O98: =+SUM(TablaGxN_NTH1[[#This Row],[Enero]:[Diciembre]]) -> 384271.4248
B99: =+TablaCVP_pre[[#This Row],[Nombre unidad TCV]] -> Yungay 3 | C99: 0 | D99: 0 | E99: 101824.8126 | F99: 0 | G99: 0 | H99: 0 | I99: 0 | J99: 0 | K99: 0 | L99: 0 | M99: 68606.064 | N99: 302763.283 | O99: =+SUM(TablaGxN_NTH1[[#This Row],[Enero]:[Diciembre]]) -> 473194.1596
B100: =+TablaCVP_pre[[#This Row],[Nombre unidad TCV]] -> Yungay 4 ca | C100: 0 | D100: 0 | E100: 0 | F100: 0 | G100: 0 | H100: 0 | I100: 0 | J100: 0 | K100: 0 | L100: 0 | M100: 0 | N100: 0 | O100: =+SUM(TablaGxN_NTH1[[#This Row],[Enero]:[Diciembre]]) -> 0
B101: =+TablaCVP_pre[[#This Row],[Nombre unidad TCV]] -> Los Guindos 2 | C101: 663980.678 | D101: 0 | E101: 277946.042 | F101: 0 | G101: 0 | H101: 778431.72 | I101: 1090861.717 | J101: 69884.635 | K101: 46007.551 | L101: 65701.315 | M101: 0 | N101: 1148038.956 | O101: =+SUM(TablaGxN_NTH1[[#This Row],[Enero]:[Diciembre]]) -> 4140852.614
B102: =+TablaCVP_pre[[#This Row],[Nombre unidad TCV]] -> ACONCAGUA | C102: 0 | D102: 0 | E102: 0 | F102: 0 | G102: 0 | H102: 0 | I102: 0 | J102: 0 | K102: 0 | L102: 6578263.041 | M102: 6335387.464 | N102: 15328216.83 | O102: =+SUM(TablaGxN_NTH1[[#This Row],[Enero]:[Diciembre]]) -> 28241867.34
B103: =+TablaCVP_pre[[#This Row],[Nombre unidad TCV]] -> ERSA_BIOBIO | C103: 4994165.143 | D103: 2102504.482 | E103: 8729488.623 | F103: 11794513.64 | G103: 6751991.85 | H103: 18445648.92 | I103: 1798621.947 | J103: 3730402.04 | K103: 6674316.545 | L103: 8138259.122 | M103: 7846796.419 | N103: 5018072.724 | O103: =+SUM(TablaGxN_NTH1[[#This Row],[Enero]:[Diciembre]]) -> 86024781.46

Sheet Resultados
B2: Compensación por unidad | N2: Compensación por central | Q2: Compensación por empresa
B4: Nombre empresa | C4: Nombre central TCV | D4: Nombre unidad TCV | E4: Impuesto | F4: CVP | G4: CMgP | H4: VUI | I4: CTU | J4: Compensación A | K4: Compensación B | L4: Compensación | N4: Nombre central TCV | O4: Suma de Compensación | Q4: Nombre Empresa | R4: Suma de Compensación | T4: Empresa | U4: Impuesto CLP | V4: Compensación CLP | W4: Porcentaje
B5: =+Unidades!D6 -> ANGAMOS | C5: =+Unidades!C6 -> Angamos | D5: =+Unidades!B6 -> ANG1 | E5: =+VLOOKUP(TablaResultados[[#This Row],[Nombre unidad TCV]],'Impuestos SII'!O:R,4,0) -> 5813731907 | F5: =IF( VLOOKUP(TablaResultados[[#This Row],[Nombre unidad TCV]],TablaGxN_NTH1[],14,0)=0,0,VLOOKUP(TablaResultados[[#This Row],[Nombre unidad TCV]],TablaCVP_pre[],14,0)/VLOOKUP(TablaResultados[[#This Row],[Nombre unidad TCV]],TablaGxN_NTH1[],14,0)) -> 18.61863382 | G5: =+IF( VLOOKUP(TablaResultados[[#This Row],[Nombre unidad TCV]],TablaGxN_NTH2[],14,0)=0,0,VLOOKUP(TablaResultados[[#This Row],[Nombre unidad TCV]],TablaCMgP_pre[],14,0)/VLOOKUP(TablaResultados[[#This Row],[Nombre unidad TCV]],TablaGxN_NTH2[],14,0)) -> 32.23609833 | H5: =+VLOOKUP(TablaResultados[[#This Row],[Nombre unidad TCV]],'VUI-pre'!$B$5:$H$152,7,0) -> 2.943787572 | I5: =+TablaResultados[[#This Row],[CVP]]+TablaResultados[[#This Row],[VUI]] -> 21.56242139 | J5: =+MAX(TablaResultados[[#This Row],[CTU]]-TablaResultados[[#This Row],[CMgP]],0)*SUM(TablaGxN_NTH2[[#This Row],[Enero]:[Diciembre]]) -> 0 | K5: =+TablaResultados[[#This Row],[VUI]]*SUM(TablaGxN_NTH3[[#This Row],[Enero]:[Diciembre]]) -> 378470061.1 | L5: =+MAX(TablaResultados[[#This Row],[Compensación A]],TablaResultados[[#This Row],[Compensación B]]) -> 378470061.1 | N5: Andina | O5: 722065012.9 | Q5: AES_GENER | R5: 6180225437 | T5: =+Q5 -> AES_GENER | U5: =+SUMIF(TablaResultados[Nombre empresa],T5,TablaResultados[Impuesto]) -> 1.977195668e+10 | V5: =+SUMIF(TablaResultados[Nombre empresa],T5,TablaResultados[Compensación]) -> 6180225437 | W5: =+IFERROR(V5/U5,"-") -> 0.3125753073
B6: =+Unidades!D7 -> ANGAMOS | C6: =+Unidades!C7 -> Angamos | D6: =+Unidades!B7 -> ANG2 | E6: =+VLOOKUP(TablaResultados[[#This Row],[Nombre unidad TCV]],'Impuestos SII'!O:R,4,0) -> 5820276486 | F6: =IF( VLOOKUP(TablaResultados[[#This Row],[Nombre unidad TCV]],TablaGxN_NTH1[],14,0)=0,0,VLOOKUP(TablaResultados[[#This Row],[Nombre unidad TCV]],TablaCVP_pre[],14,0)/VLOOKUP(TablaResultados[[#This Row],[Nombre unidad TCV]],TablaGxN_NTH1[],14,0)) -> 18.60739883 | G6: =+IF( VLOOKUP(TablaResultados[[#This Row],[Nombre unidad TCV]],TablaGxN_NTH2[],14,0)=0,0,VLOOKUP(TablaResultados[[#This Row],[Nombre unidad TCV]],TablaCMgP_pre[],14,0)/VLOOKUP(TablaResultados[[#This Row],[Nombre unidad TCV]],TablaGxN_NTH2[],14,0)) -> 32.34457571 | H6: =+VLOOKUP(TablaResultados[[#This Row],[Nombre unidad TCV]],'VUI-pre'!$B$5:$H$152,7,0) -> 2.943787572 | I6: =+TablaResultados[[#This Row],[CVP]]+TablaResultados[[#This Row],[VUI]] -> 21.55118641 | J6: =+MAX(TablaResultados[[#This Row],[CTU]]-TablaResultados[[#This Row],[CMgP]],0)*SUM(TablaGxN_NTH2[[#This Row],[Enero]:[Diciembre]]) -> 0 | K6: =+TablaResultados[[#This Row],[VUI]]*SUM(TablaGxN_NTH3[[#This Row],[Enero]:[Diciembre]]) -> 346589201.6 | L6: =+MAX(TablaResultados[[#This Row],[Compensación A]],TablaResultados[[#This Row],[Compensación B]]) -> 346589201.6 | N6: Angamos | O6: 725059262.7 | Q6: ANDINA | R6: 722065012.9 | T6: =+Q6 -> ANDINA | U6: =+SUMIF(TablaResultados[Nombre empresa],T6,TablaResultados[Impuesto]) -> 2633200861 | V6: =+SUMIF(TablaResultados[Nombre empresa],T6,TablaResultados[Compensación]) -> 722065012.9 | W6: 0.2742156983
B7: =+Unidades!D8 -> COLBUN | C7: =+Unidades!C8 -> Antilhue TG | D7: =+Unidades!B8 -> Antilhue TG U1 | E7: =+VLOOKUP(TablaResultados[[#This Row],[Nombre unidad TCV]],'Impuestos SII'!O:R,4,0) -> 30799193.22 | F7: =IF( VLOOKUP(TablaResultados[[#This Row],[Nombre unidad TCV]],TablaGxN_NTH1[],14,0)=0,0,VLOOKUP(TablaResultados[[#This Row],[Nombre unidad TCV]],TablaCVP_pre[],14,0)/VLOOKUP(TablaResultados[[#This Row],[Nombre unidad TCV]],TablaGxN_NTH1[],14,0)) -> 88.90883475 | G7: =+IF( VLOOKUP(TablaResultados[[#This Row],[Nombre unidad TCV]],TablaGxN_NTH2[],14,0)=0,0,VLOOKUP(TablaResultados[[#This Row],[Nombre unidad TCV]],TablaCMgP_pre[],14,0)/VLOOKUP(TablaResultados[[#This Row],[Nombre unidad TCV]],TablaGxN_NTH2[],14,0)) -> 114.7322764 | H7: =+VLOOKUP(TablaResultados[[#This Row],[Nombre unidad TCV]],'VUI-pre'!$B$5:$H$152,7,0) -> 3.688241399 | I7: =+TablaResultados[[#This Row],[CVP]]+TablaResultados[[#This Row],[VUI]] -> 92.59707615 | J7: =+MAX(TablaResultados[[#This Row],[CTU]]-TablaResultados[[#This Row],[CMgP]],0)*SUM(TablaGxN_NTH2[[#This Row],[Enero]:[Diciembre]]) -> 0 | K7: =+TablaResultados[[#This Row],[VUI]]*SUM(TablaGxN_NTH3[[#This Row],[Enero]:[Diciembre]]) -> 13110259.41 | L7: =+MAX(TablaResultados[[#This Row],[Compensación A]],TablaResultados[[#This Row],[Compensación B]]) -> 13110259.41 | N7: Antilhue TG | O7: 26007097.42 | Q7: ANGAMOS | R7: 725059262.7 | T7: ANGAMOS | U7: =+SUMIF(TablaResultados[Nombre empresa],T7,TablaResultados[Impuesto]) -> 1.163400839e+10 | V7: =+SUMIF(TablaResultados[Nombre empresa],T7,TablaResultados[Compensación]) -> 725059262.7 | W7: =+IFERROR(V7/U7,"-") -> 0.06232239468
